Workbook

Sheet 08 25
E2: Приложение 4 Форма 6
D3: к Приказу ФАС России № 960/22 от 08.12.2022 г
B6: Информация о наличии (отсутствии) технической возможности доступа к регулируемым услугам
B8: по транспортировке газа по газораспределительным сетям ООО "ВельскГазСервис"
B10: за август 2025 года
A13: Точка входа в газораспределительную сеть | B13: Точка выхода из газораспределительной сети | C13: Наименование потребителя | D13: Номер группы газопотребления | E13: Объемы газа в соответствии с поступившими заявками, млн. куб. м | F13: Объемы газа в соответствии с удовлетворенными заявками, млн. куб. м | G13: Свободная мощность газораспределительной сети, млн. куб. м
A17: 1 | B17: 2 | C17: 3 | D17: 4 | E17: 5 | F17: 6 | G17: л | H17: 1 | I17: п | J17: 7
A19: ГРС.г.Вельск | B19: =Лист1!B16 -> Вельск, ул.Гайдара-37б (64 квартал) | C19: =Лист1!A16 -> АО "ГТ Энерго" | D19: =Лист1!C16 -> 6 | E19: =Лист1!BI16/1000 -> 0 | F19: =Лист1!H16/1000 -> 0 | G19: =IF(#REF!>0,#REF!,0) ->  | H19: =IF(G19>0,1,0) ->  | I19: =IF(#REF!>0,#REF!,0) ->  | J19: =E19-F19 -> 0
A20: ГРС.г.Вельск | B20: =Лист1!B17 ->  | C20: =Лист1!A17 ->  | D20: =Лист1!C17 -> 6 | E20: =Лист1!BI17/1000 -> 0 | F20: =Лист1!H17/1000 -> 0 | G20: =IF(#REF!>0,#REF!,0) ->  | H20: =IF(G20>0,1,0) ->  | I20: =IF(#REF!>0,#REF!,0) ->  | J20: 0
A21: ГРС.г.Вельск | B21: =Лист1!B18 -> Вельск, ул.Революционная-73 (ПУ-29) | C21: =Лист1!A18 -> АО "ГТ Энерго" | D21: =Лист1!C18 -> 5 | E21: =Лист1!BI18/1000 -> 0 | F21: =Лист1!H18/1000 -> 0 | G21: =IF(#REF!>0,#REF!,0) ->  | I21: =IF(#REF!>0,#REF!,0) ->  | J21: 0
A22: ГРС.г.Вельск | B22: =Лист1!B19 ->  | C22: =Лист1!A19 ->  | D22: =Лист1!C19 -> 5 | E22: =Лист1!BI19/1000 -> 0 | F22: =Лист1!H19/1000 -> 0 | G22: =IF(#REF!>0,#REF!,0) ->  | I22: =IF(#REF!>0,#REF!,0) ->  | J22: 0
A23: ГРС.г.Вельск | B23: =Лист1!B20 ->  | C23: =Лист1!A20 ->  | D23: =Лист1!C20 -> 5 | E23: =Лист1!BI20/1000 -> 0 | F23: =Лист1!H20/1000 -> 0 | G23: =IF(#REF!>0,#REF!,0) ->  | H23: =IF(G23>0,1,0) ->  | I23: =IF(#REF!>0,#REF!,0) ->  | J23: 0
A24: ГРС.г.Вельск | B24: =Лист1!B21 ->  | C24: =Лист1!A21 ->  | D24: =Лист1!C21 -> 5 | E24: =Лист1!BI21/1000 -> 0 | F24: =Лист1!H21/1000 -> 0 | G24: =IF(#REF!>0,#REF!,0) ->  | H24: =IF(G24>0,1,0) ->  | I24: =IF(#REF!>0,#REF!,0) ->  | J24: 0
A25: ГРС.г.Вельск | B25: =Лист1!B22 -> Вельск, ул.Дзержинского-201 (агролицей №45) | C25: =Лист1!A22 -> АО "ГТ Энерго" | D25: =Лист1!C22 -> 4 | E25: =Лист1!BI22/1000 -> 0.0566 | F25: =Лист1!H23/1000 -> 0.008697 | G25: =IF(#REF!>0,#REF!,0) ->  | I25: =IF(#REF!>0,#REF!,0) ->  | J25: 0.047903
A26: ГРС.г.Вельск | B26: =Лист1!B23 -> Вельск, ул.Дзержинского-201 (агролицей №45) | C26: =Лист1!A23 -> АО "ГТ Энерго" | D26: =Лист1!C23 -> 4 | E26: =Лист1!BI23/1000 -> 0 | F26: =Лист1!H24/1000 -> 0 | G26: =IF(#REF!>0,#REF!,0) ->  | I26: =IF(#REF!>0,#REF!,0) ->  | J26: 0
A27: ГРС.г.Вельск | B27: =Лист1!B24 ->  | C27: =Лист1!A24 ->  | D27: =Лист1!C24 -> 4 | E27: =Лист1!BI24/1000 -> 0 | F27: =Лист1!H25/1000 -> 0 | G27: =IF(#REF!>0,#REF!,0) ->  | H27: =IF(G27>0,1,0) ->  | I27: =IF(#REF!>0,#REF!,0) ->  | J27: 0
A28: ГРС.г.Вельск | B28: =Лист1!B25 ->  | C28: =Лист1!A25 ->  | D28: =Лист1!C25 -> 4 | E28: =Лист1!BI25/1000 -> 0 | F28: =Лист1!H26/1000 -> 0 | G28: =IF(#REF!>0,#REF!,0) ->  | H28: =IF(G28>0,1,0) ->  | I28: =IF(#REF!>0,#REF!,0) ->  | J28: 0
A29: ГРС.г.Вельск | B29: =Лист1!B26 -> Вельск, ул.Пушкина-6Б | C29: =Лист1!A26 -> АО "ГТ Энерго" | D29: =Лист1!C26 -> 5 | E29: =Лист1!BI26/1000 -> 0 | F29: =Лист1!H27/1000 -> 0 | G29: =IF(#REF!>0,#REF!,0) ->  | I29: =IF(#REF!>0,#REF!,0) ->  | J29: 0
A30: ГРС.г.Вельск | B30: =Лист1!B27 ->  | C30: =Лист1!A27 ->  | D30: =Лист1!C27 -> 5 | E30: =Лист1!BI27/1000 -> 0 | F30: =Лист1!H28/1000 -> 0 | G30: =IF(#REF!>0,#REF!,0) ->  | I30: =IF(#REF!>0,#REF!,0) ->  | J30: 0
A31: ГРС.г.Вельск | B31: =Лист1!B28 ->  | C31: =Лист1!A28 ->  | D31: =Лист1!C28 -> 5 | E31: =Лист1!BI28/1000 -> 0 | F31: =Лист1!H29/1000 -> 0 | G31: =IF(#REF!>0,#REF!,0) ->  | H31: =IF(G31>0,1,0) ->  | I31: =IF(#REF!>0,#REF!,0) ->  | J31: 0
A32: ГРС.г.Вельск | B32: =Лист1!B29 ->  | C32: =Лист1!A29 ->  | D32: =Лист1!C29 -> 5 | E32: =Лист1!BI29/1000 -> 0 | F32: =Лист1!H30/1000 -> 0 | G32: =IF(#REF!>0,#REF!,0) ->  | H32: =IF(G32>0,1,0) ->  | I32: =IF(#REF!>0,#REF!,0) ->  | J32: 0
A33: ГРС.г.Вельск | B33: =Лист1!B30 -> д.Горка Муравьевская, БМК №2 | C33: =Лист1!A30 -> АО "ГТ Энерго" | D33: =Лист1!C30 -> 5 | E33: =Лист1!BI30/1000 -> 0 | F33: =Лист1!H31/1000 -> 0 | G33: =IF(#REF!>0,#REF!,0) ->  | I33: =IF(#REF!>0,#REF!,0) ->  | J33: 0
A34: ГРС.г.Вельск | B34: =Лист1!B31 ->  | C34: =Лист1!A31 ->  | D34: =Лист1!C31 -> 5 | E34: =Лист1!BI31/1000 -> 0 | F34: =Лист1!H32/1000 -> 0 | G34: =IF(#REF!>0,#REF!,0) ->  | I34: =IF(#REF!>0,#REF!,0) ->  | J34: 0
A35: ГРС.г.Вельск | B35: =Лист1!B32 ->  | C35: =Лист1!A32 ->  | D35: =Лист1!C32 -> 5 | E35: =Лист1!BI32/1000 -> 0 | F35: =Лист1!H33/1000 -> 0 | G35: =IF(#REF!>0,#REF!,0) ->  | H35: =IF(G35>0,1,0) ->  | I35: =IF(#REF!>0,#REF!,0) ->  | J35: 0
A36: ГРС.г.Вельск | B36: =Лист1!B33 ->  | C36: =Лист1!A33 ->  | D36: =Лист1!C33 -> 5 | E36: =Лист1!BI33/1000 -> 0 | F36: =Лист1!H34/1000 -> 0 | G36: =IF(#REF!>0,#REF!,0) ->  | H36: =IF(G36>0,1,0) ->  | I36: =IF(#REF!>0,#REF!,0) ->  | J36: 0
A37: ГРС.г.Вельск | B37: =Лист1!B34 -> д.Вороновская, БМК №3 | C37: =Лист1!A34 -> АО "ГТ Энерго" | D37: =Лист1!C34 -> 5 | E37: =Лист1!BI34/1000 -> 0 | F37: =Лист1!H35/1000 -> 0 | G37: =IF(#REF!>0,#REF!,0) ->  | I37: =IF(#REF!>0,#REF!,0) ->  | J37: 0
A38: ГРС.г.Вельск | B38: =Лист1!B35 ->  | C38: =Лист1!A35 ->  | D38: =Лист1!C35 -> 5 | E38: =Лист1!BI35/1000 -> 0 | F38: =Лист1!H36/1000 -> 0 | G38: =IF(#REF!>0,#REF!,0) ->  | I38: =IF(#REF!>0,#REF!,0) ->  | J38: 0
A39: ГРС.г.Вельск | B39: =Лист1!B36 ->  | C39: =Лист1!A36 ->  | D39: =Лист1!C36 -> 5 | E39: =Лист1!BI36/1000 -> 0 | F39: =Лист1!H37/1000 -> 0 | G39: =IF(#REF!>0,#REF!,0) ->  | H39: =IF(G39>0,1,0) ->  | I39: =IF(#REF!>0,#REF!,0) ->  | J39: 0
A40: ГРС.г.Вельск | B40: =Лист1!B37 ->  | C40: =Лист1!A37 ->  | D40: =Лист1!C37 -> 5 | E40: =Лист1!BI37/1000 -> 0 | F40: =Лист1!H38/1000 -> 0 | G40: =IF(#REF!>0,#REF!,0) ->  | H40: =IF(G40>0,1,0) ->  | I40: =IF(#REF!>0,#REF!,0) ->  | J40: 0
A41: ГРС.г.Вельск | B41: =Лист1!B38 -> Вельск, ул.Гайдара-16В | C41: =Лист1!A38 -> АО "ГТ Энерго" | D41: =Лист1!C38 -> 4 | E41: =Лист1!BI38/1000 -> 0 | F41: =Лист1!H39/1000 -> 0 | G41: =IF(#REF!>0,#REF!,0) ->  | I41: =IF(#REF!>0,#REF!,0) ->  | J41: 0
A42: ГРС.г.Вельск | B42: =Лист1!B39 ->  | C42: =Лист1!A39 ->  | D42: =Лист1!C39 -> 4 | E42: =Лист1!BI39/1000 -> 0 | F42: =Лист1!H40/1000 -> 0 | G42: =IF(#REF!>0,#REF!,0) ->  | I42: =IF(#REF!>0,#REF!,0) ->  | J42: 0
A43: ГРС.г.Вельск | B43: =Лист1!B40 ->  | C43: =Лист1!A40 ->  | D43: =Лист1!C40 -> 4 | E43: =Лист1!BI40/1000 -> 0 | F43: =Лист1!H41/1000 -> 0 | G43: =IF(#REF!>0,#REF!,0) ->  | H43: =IF(G43>0,1,0) ->  | I43: =IF(#REF!>0,#REF!,0) ->  | J43: 0
A44: ГРС.г.Вельск | B44: =Лист1!B41 ->  | C44: =Лист1!A41 ->  | D44: =Лист1!C41 -> 4 | E44: =Лист1!BI41/1000 -> 0 | F44: =Лист1!H42/1000 -> 0 | G44: =IF(#REF!>0,#REF!,0) ->  | H44: =IF(G44>0,1,0) ->  | I44: =IF(#REF!>0,#REF!,0) ->  | J44: 0
A45: ГРС.г.Вельск | B45: =Лист1!B42 -> Вельск, ул.Кирова-6а | C45: =Лист1!A42 -> АО "ГТ Энерго" | D45: =Лист1!C42 -> 5 | E45: =Лист1!BI42/1000 -> 0 | F45: =Лист1!H43/1000 -> 0 | G45: =IF(#REF!>0,#REF!,0) ->  | H45: =IF(G45>0,1,0) ->  | I45: =IF(#REF!>0,#REF!,0) ->  | J45: 0
A46: ГРС.г.Вельск | B46: =Лист1!B43 ->  | C46: =Лист1!A43 ->  | D46: =Лист1!C43 -> 5 | E46: =Лист1!BI43/1000 -> 0 | F46: =Лист1!H44/1000 -> 0 | G46: =IF(#REF!>0,#REF!,0) ->  | H46: =IF(G46>0,1,0) ->  | I46: =IF(#REF!>0,#REF!,0) ->  | J46: 0
A47: ГРС.г.Вельск | B47: =Лист1!B44 ->  | C47: =Лист1!A44 ->  | D47: =Лист1!C44 -> 5 | E47: =Лист1!BI44/1000 -> 0 | F47: =Лист1!H45/1000 -> 0 | G47: =IF(#REF!>0,#REF!,0) ->  | I47: =IF(#REF!>0,#REF!,0) ->  | J47: 0
A48: ГРС.г.Вельск | B48: =Лист1!B45 ->  | C48: =Лист1!A45 ->  | D48: =Лист1!C45 -> 5 | E48: =Лист1!BI45/1000 -> 0 | F48: =Лист1!H46/1000 -> 0 | G48: =IF(#REF!>0,#REF!,0) ->  | I48: =IF(#REF!>0,#REF!,0) ->  | J48: 0
A49: ГРС.г.Вельск | B49: =Лист1!B46 -> Вельск, ул.Дзержинского-201, стр.12 | C49: =Лист1!A46 -> АО "ГТ Энерго" | D49: =Лист1!C46 -> 4 | E49: =Лист1!BI46/1000 -> 0.0308 | F49: =Лист1!H47/1000 -> 0 | G49: =IF(#REF!>0,#REF!,0) ->  | H49: =IF(G49>0,1,0) ->  | I49: =IF(#REF!>0,#REF!,0) ->  | J49: 0.0308
A50: ГРС.г.Вельск | B50: =Лист1!B47 ->  | C50: =Лист1!A47 ->  | D50: =Лист1!C47 -> 4 | E50: =Лист1!BI47/1000 -> 0 | F50: =Лист1!H48/1000 -> 0 | G50: =IF(#REF!>0,#REF!,0) ->  | H50: =IF(G50>0,1,0) ->  | I50: =IF(#REF!>0,#REF!,0) ->  | J50: 0
A51: ГРС.г.Вельск | B51: =Лист1!B48 ->  | C51: =Лист1!A48 ->  | D51: =Лист1!C48 -> 4 | E51: =Лист1!BI48/1000 -> 0 | F51: =Лист1!H49/1000 -> 0 | G51: =IF(#REF!>0,#REF!,0) ->  | I51: =IF(#REF!>0,#REF!,0) ->  | J51: 0
A52: ГРС.г.Вельск | B52: =Лист1!B49 ->  | C52: =Лист1!A49 ->  | D52: =Лист1!C49 -> 4 | E52: =Лист1!BI49/1000 -> 0 | F52: =Лист1!H50/1000 -> 0 | G52: =IF(#REF!>0,#REF!,0) ->  | I52: =IF(#REF!>0,#REF!,0) ->  | J52: 0
A53: ГРС.г.Вельск | B53: =Лист1!B50 -> Вельск, ул.Глинница, зем.уч.1Б | C53: =Лист1!A50 -> АО "ГТ Энерго" | D53: =Лист1!C50 -> 5 | E53: =Лист1!BI50/1000 -> 0.0224 | F53: =Лист1!H51/1000 -> 0.049842 | G53: =IF(#REF!>0,#REF!,0) ->  | H53: =IF(G53>0,1,0) ->  | I53: =IF(#REF!>0,#REF!,0) ->  | J53: -0.027442
A54: ГРС.г.Вельск | B54: =Лист1!B51 -> Вельск, ул.Глинница, зем.уч.1Б | C54: =Лист1!A51 -> АО "ГТ Энерго" | D54: =Лист1!C51 -> 5 | E54: =Лист1!BI51/1000 -> 0 | F54: =Лист1!H52/1000 -> 0 | G54: =IF(#REF!>0,#REF!,0) ->  | H54: =IF(G54>0,1,0) ->  | I54: =IF(#REF!>0,#REF!,0) ->  | J54: 0
A55: ГРС.г.Вельск | B55: =Лист1!B52 ->  | C55: =Лист1!A52 ->  | D55: =Лист1!C52 -> 5 | E55: =Лист1!BI52/1000 -> 0 | F55: =Лист1!H53/1000 -> 0 | G55: =IF(#REF!>0,#REF!,0) ->  | I55: =IF(#REF!>0,#REF!,0) ->  | J55: 0
A56: ГРС.г.Вельск | B56: =Лист1!B53 ->  | C56: =Лист1!A53 ->  | D56: =Лист1!C53 -> 5 | E56: =Лист1!BI53/1000 -> 0 | F56: =Лист1!H54/1000 -> 0 | G56: =IF(#REF!>0,#REF!,0) ->  | I56: =IF(#REF!>0,#REF!,0) ->  | J56: 0
A57: ГРС.г.Вельск | B57: =Лист1!B54 -> Вельск, ул.Чехова-26, 28, 30 (ТГУ) | C57: =Лист1!A54 -> АО "ГТ Энерго" | D57: =Лист1!C54 -> 5 | E57: =Лист1!BI54/1000 -> 0.0134 | F57: =Лист1!H55/1000 -> 0.003535 | G57: =IF(#REF!>0,#REF!,0) ->  | H57: =IF(G57>0,1,0) ->  | I57: =IF(#REF!>0,#REF!,0) ->  | J57: 0.009865
A58: ГРС.г.Вельск | B58: =Лист1!B55 -> Вельск, ул.Чехова-26, 28, 30 (ТГУ) | C58: =Лист1!A55 -> АО "ГТ Энерго" | D58: =Лист1!C55 -> 5 | E58: =Лист1!BI55/1000 -> 0 | F58: =Лист1!H56/1000 -> 0 | G58: =IF(#REF!>0,#REF!,0) ->  | H58: =IF(G58>0,1,0) ->  | I58: =IF(#REF!>0,#REF!,0) ->  | J58: 0
A59: ГРС.г.Вельск | B59: =Лист1!B56 ->  | C59: =Лист1!A56 ->  | D59: =Лист1!C56 -> 5 | E59: =Лист1!BI56/1000 -> 0 | F59: =Лист1!H57/1000 -> 0 | G59: =IF(#REF!>0,#REF!,0) ->  | I59: =IF(#REF!>0,#REF!,0) ->  | J59: 0
A60: ГРС.г.Вельск | B60: =Лист1!B57 ->  | C60: =Лист1!A57 ->  | D60: =Лист1!C57 -> 5 | E60: =Лист1!BI57/1000 -> 0 | F60: =Лист1!H58/1000 -> 0 | G60: =IF(#REF!>0,#REF!,0) ->  | I60: =IF(#REF!>0,#REF!,0) ->  | J60: 0
A61: ГРС.г.Вельск | B61: =Лист1!B58 -> Вельск, ул.Комсомольская-49Б (ТГУ) | C61: =Лист1!A58 -> АО "ГТ Энерго" | D61: =Лист1!C58 -> 6 | E61: =Лист1!BI58/1000 -> 0 | F61: =Лист1!H59/1000 -> 0 | G61: =IF(#REF!>0,#REF!,0) ->  | H61: =IF(G61>0,1,0) ->  | I61: =IF(#REF!>0,#REF!,0) ->  | J61: 0
A62: ГРС.г.Вельск | B62: =Лист1!B59 ->  | C62: =Лист1!A59 ->  | D62: =Лист1!C59 -> 6 | E62: =Лист1!BI59/1000 -> 0 | F62: =Лист1!H60/1000 -> 0 | G62: =IF(#REF!>0,#REF!,0) ->  | H62: =IF(G62>0,1,0) ->  | I62: =IF(#REF!>0,#REF!,0) ->  | J62: 0
A63: ГРС.г.Вельск | B63: =Лист1!B60 ->  | C63: =Лист1!A60 ->  | D63: =Лист1!C60 -> 6 | E63: =Лист1!BI60/1000 -> 0 | F63: =Лист1!H61/1000 -> 0 | G63: =IF(#REF!>0,#REF!,0) ->  | I63: =IF(#REF!>0,#REF!,0) ->  | J63: 0
A64: ГРС.г.Вельск | B64: =Лист1!B61 ->  | C64: =Лист1!A61 ->  | D64: =Лист1!C61 -> 6 | E64: =Лист1!BI61/1000 -> 0 | F64: =Лист1!H62/1000 -> 0 | G64: =IF(#REF!>0,#REF!,0) ->  | I64: =IF(#REF!>0,#REF!,0) ->  | J64: 0
A65: ГРС.г.Вельск | B65: =Лист1!B62 -> Вельск, ул.Тракторная-80, стр.8 | C65: =Лист1!A62 -> АО "ГТ Энерго" | D65: =Лист1!C62 -> 6 | E65: =Лист1!BI62/1000 -> 0 | F65: =Лист1!H63/1000 -> 0 | G65: =IF(#REF!>0,#REF!,0) ->  | H65: =IF(G65>0,1,0) ->  | I65: =IF(#REF!>0,#REF!,0) ->  | J65: 0
A66: ГРС.г.Вельск | B66: =Лист1!B63 ->  | C66: =Лист1!A63 ->  | D66: =Лист1!C63 -> 6 | E66: =Лист1!BI63/1000 -> 0 | F66: =Лист1!H64/1000 -> 0 | G66: =IF(#REF!>0,#REF!,0) ->  | H66: =IF(G66>0,1,0) ->  | I66: =IF(#REF!>0,#REF!,0) ->  | J66: 0
A67: ГРС.г.Вельск | B67: =Лист1!B64 ->  | C67: =Лист1!A64 ->  | D67: =Лист1!C64 -> 6 | E67: =Лист1!BI64/1000 -> 0 | F67: =Лист1!H65/1000 -> 0 | G67: =IF(#REF!>0,#REF!,0) ->  | I67: =IF(#REF!>0,#REF!,0) ->  | J67: 0
A68: ГРС.г.Вельск | B68: =Лист1!B65 ->  | C68: =Лист1!A65 ->  | D68: =Лист1!C65 -> 6 | E68: =Лист1!BI65/1000 -> 0 | F68: =Лист1!H66/1000 -> 0 | G68: =IF(#REF!>0,#REF!,0) ->  | I68: =IF(#REF!>0,#REF!,0) ->  | J68: 0
A69: ГРС.г.Вельск | B69: =Лист1!B66 -> Вельск, ул.Набережная-58а | C69: =Лист1!A66 -> АО "ГТ Энерго" | D69: =Лист1!C66 -> 6 | E69: =Лист1!BI66/1000 -> 0 | F69: =Лист1!H67/1000 -> 0 | G69: =IF(#REF!>0,#REF!,0) ->  | H69: =IF(G69>0,1,0) ->  | I69: =IF(#REF!>0,#REF!,0) ->  | J69: 0
A70: ГРС.г.Вельск | B70: =Лист1!B67 ->  | C70: =Лист1!A67 ->  | D70: =Лист1!C67 -> 6 | E70: =Лист1!BI67/1000 -> 0 | F70: =Лист1!H68/1000 -> 0 | G70: =IF(#REF!>0,#REF!,0) ->  | H70: =IF(G70>0,1,0) ->  | I70: =IF(#REF!>0,#REF!,0) ->  | J70: 0
A71: ГРС.г.Вельск | B71: =Лист1!B68 ->  | C71: =Лист1!A68 ->  | D71: =Лист1!C68 -> 6 | E71: =Лист1!BI68/1000 -> 0 | F71: =Лист1!H69/1000 -> 0 | G71: =IF(#REF!>0,#REF!,0) ->  | I71: =IF(#REF!>0,#REF!,0) ->  | J71: 0
A72: ГРС.г.Вельск | B72: =Лист1!B69 ->  | C72: =Лист1!A69 ->  | D72: =Лист1!C69 -> 6 | E72: =Лист1!BI69/1000 -> 0 | F72: =Лист1!H70/1000 -> 0 | G72: =IF(#REF!>0,#REF!,0) ->  | I72: =IF(#REF!>0,#REF!,0) ->  | J72: 0
A73: ГРС.г.Вельск | B73: =Лист1!B70 ->  | C73: =Лист1!A70 -> АО "ГТ Энерго" | D73: =Лист1!C70 ->  | E73: =Лист1!BI70/1000 -> 0 | F73: =Лист1!H71/1000 -> 0 | G73: =IF(#REF!>0,#REF!,0) ->  | H73: =IF(G73>0,1,0) ->  | I73: =IF(#REF!>0,#REF!,0) ->  | J73: 0
A74: ГРС.г.Вельск | B74: =Лист1!B71 ->  | C74: =Лист1!A71 ->  | D74: =Лист1!C71 ->  | E74: =Лист1!BI71/1000 -> 0 | F74: =Лист1!H72/1000 -> 0 | G74: =IF(#REF!>0,#REF!,0) ->  | H74: =IF(G74>0,1,0) ->  | I74: =IF(#REF!>0,#REF!,0) ->  | J74: 0
A75: ГРС.г.Вельск | B75: =Лист1!B72 ->  | C75: =Лист1!A72 ->  | D75: =Лист1!C72 ->  | E75: =Лист1!BI72/1000 -> 0 | F75: =Лист1!H73/1000 -> 0 | G75: =IF(#REF!>0,#REF!,0) ->  | I75: =IF(#REF!>0,#REF!,0) ->  | J75: 0
A76: ГРС.г.Вельск | B76: =Лист1!B73 ->  | C76: =Лист1!A73 ->  | D76: =Лист1!C73 ->  | E76: =Лист1!BI73/1000 -> 0 | F76: =Лист1!H74/1000 -> 0 | G76: =IF(#REF!>0,#REF!,0) ->  | I76: =IF(#REF!>0,#REF!,0) ->  | J76: 0
A77: ГРС.г.Вельск | B77: =Лист1!B74 ->  | C77: =Лист1!A74 -> АО "ГТ Энерго" | D77: =Лист1!C74 ->  | E77: =Лист1!BI74/1000 -> 0 | F77: =Лист1!H75/1000 -> 0 | G77: =IF(#REF!>0,#REF!,0) ->  | H77: =IF(G77>0,1,0) ->  | I77: =IF(#REF!>0,#REF!,0) ->  | J77: 0
A78: ГРС.г.Вельск | B78: =Лист1!B75 ->  | C78: =Лист1!A75 ->  | D78: =Лист1!C75 ->  | E78: =Лист1!BI75/1000 -> 0 | F78: =Лист1!H76/1000 -> 0 | G78: =IF(#REF!>0,#REF!,0) ->  | H78: =IF(G78>0,1,0) ->  | I78: =IF(#REF!>0,#REF!,0) ->  | J78: 0
A79: ГРС.г.Вельск | B79: =Лист1!B76 ->  | C79: =Лист1!A76 ->  | D79: =Лист1!C76 ->  | E79: =Лист1!BI76/1000 -> 0 | F79: =Лист1!H77/1000 -> 0 | G79: =IF(#REF!>0,#REF!,0) ->  | I79: =IF(#REF!>0,#REF!,0) ->  | J79: 0
A80: ГРС.г.Вельск | B80: =Лист1!B77 ->  | C80: =Лист1!A77 ->  | D80: =Лист1!C77 ->  | E80: =Лист1!BI77/1000 -> 0 | F80: =Лист1!H78/1000 -> 0 | G80: =IF(#REF!>0,#REF!,0) ->  | I80: =IF(#REF!>0,#REF!,0) ->  | J80: 0
A81: ГРС.г.Вельск | B81: =Лист1!B78 ->  | C81: =Лист1!A78 -> ОАО "Архангельскоблгаз" | D81: =Лист1!C78 -> 7 | E81: =Лист1!BI78/1000 -> 0 | F81: =Лист1!H79/1000 -> 0 | G81: =IF(#REF!>0,#REF!,0) ->  | H81: =IF(G81>0,1,0) ->  | I81: =IF(#REF!>0,#REF!,0) ->  | J81: 0
A82: ГРС.г.Вельск | B82: =Лист1!B79 ->  | C82: =Лист1!A79 ->  | D82: =Лист1!C79 -> 7 | E82: =Лист1!BI79/1000 -> 0 | F82: =Лист1!H80/1000 -> 0 | G82: =IF(#REF!>0,#REF!,0) ->  | H82: =IF(G82>0,1,0) ->  | I82: =IF(#REF!>0,#REF!,0) ->  | J82: 0
A83: ГРС.г.Вельск | B83: =Лист1!B80 ->  | C83: =Лист1!A80 ->  | D83: =Лист1!C80 -> 7 | E83: =Лист1!BI80/1000 -> 0 | F83: =Лист1!H81/1000 -> 0 | G83: =IF(#REF!>0,#REF!,0) ->  | I83: =IF(#REF!>0,#REF!,0) ->  | J83: =E83-F83 -> 0
A84: ГРС.г.Вельск | B84: =Лист1!B81 ->  | C84: =Лист1!A81 ->  | D84: =Лист1!C81 -> 7 | E84: =Лист1!BI81/1000 -> 0 | F84: =Лист1!H82/1000 -> 0 | G84: =IF(#REF!>0,#REF!,0) ->  | I84: =IF(#REF!>0,#REF!,0) ->  | J84: 0
A85: ГРС.г.Вельск | B85: =Лист1!B82 ->  | C85: =Лист1!A82 -> ГКУЗ АО АМЦМР "Резерв" | D85: =Лист1!C82 -> 6 | E85: =Лист1!BI82/1000 -> 0 | F85: =Лист1!H83/1000 -> 0 | G85: =IF(#REF!>0,#REF!,0) ->  | H85: =IF(G85>0,1,0) ->  | I85: =IF(#REF!>0,#REF!,0) ->  | J85: 0
A86: ГРС.г.Вельск | B86: =Лист1!B83 ->  | C86: =Лист1!A83 ->  | D86: =Лист1!C83 -> 6 | E86: =Лист1!BI83/1000 -> 0 | F86: =Лист1!H84/1000 -> 0 | G86: =IF(#REF!>0,#REF!,0) ->  | H86: =IF(G86>0,1,0) ->  | I86: =IF(#REF!>0,#REF!,0) ->  | J86: 0
A87: ГРС.г.Вельск | B87: =Лист1!B84 ->  | C87: =Лист1!A84 ->  | D87: =Лист1!C84 -> 6 | E87: =Лист1!BI84/1000 -> 0 | F87: =Лист1!H85/1000 -> 0 | G87: =IF(#REF!>0,#REF!,0) ->  | I87: =IF(#REF!>0,#REF!,0) ->  | J87: 0
A88: ГРС.г.Вельск | B88: =Лист1!B85 ->  | C88: =Лист1!A85 ->  | D88: =Лист1!C85 -> 6 | E88: =Лист1!BI85/1000 -> 0 | F88: =Лист1!H86/1000 -> 0 | G88: =IF(#REF!>0,#REF!,0) ->  | I88: =IF(#REF!>0,#REF!,0) ->  | J88: 0
A89: ГРС.г.Вельск | B89: =Лист1!B86 ->  | C89: =Лист1!A86 -> ООО "КМТС" | D89: =Лист1!C86 -> 6 | E89: =Лист1!BI86/1000 -> 0 | F89: =Лист1!H87/1000 -> 0 | G89: =IF(#REF!>0,#REF!,0) ->  | H89: =IF(G89>0,1,0) ->  | I89: =IF(#REF!>0,#REF!,0) ->  | J89: 0
A90: ГРС.г.Вельск | B90: =Лист1!B87 ->  | C90: =Лист1!A87 ->  | D90: =Лист1!C87 -> 6 | E90: =Лист1!BI87/1000 -> 0 | F90: =Лист1!H88/1000 -> 0 | G90: =IF(#REF!>0,#REF!,0) ->  | H90: =IF(G90>0,1,0) ->  | I90: =IF(#REF!>0,#REF!,0) ->  | J90: 0
A91: ГРС.г.Вельск | B91: =Лист1!B88 ->  | C91: =Лист1!A88 ->  | D91: =Лист1!C88 -> 6 | E91: =Лист1!BI88/1000 -> 0 | F91: =Лист1!H89/1000 -> 0 | G91: =IF(#REF!>0,#REF!,0) ->  | I91: =IF(#REF!>0,#REF!,0) ->  | J91: 0
A92: ГРС.г.Вельск | B92: =Лист1!B89 ->  | C92: =Лист1!A89 ->  | D92: =Лист1!C89 -> 6 | E92: =Лист1!BI89/1000 -> 0 | F92: =Лист1!H90/1000 -> 0 | G92: =IF(#REF!>0,#REF!,0) ->  | I92: =IF(#REF!>0,#REF!,0) ->  | J92: 0
A93: ГРС.г.Вельск | B93: =Лист1!B90 -> Вельск, ул.50 лет Октября-48, стр.10 | C93: =Лист1!A90 -> ООО "Хлебокомбинат" | D93: =Лист1!C90 -> 5 | E93: =Лист1!BI90/1000 -> 0.006 | F93: =Лист1!H91/1000 -> 0.005389 | G93: =IF(#REF!>0,#REF!,0) ->  | H93: =IF(G93>0,1,0) ->  | I93: =IF(#REF!>0,#REF!,0) ->  | J93: 0.000611
A94: ГРС.г.Вельск | B94: =Лист1!B91 -> Вельск, ул.50 лет Октября-48, стр.10 | C94: =Лист1!A91 -> ООО "Хлебокомбинат" | D94: =Лист1!C91 -> 5 | E94: =Лист1!BI91/1000 -> 0 | F94: =Лист1!H92/1000 -> 0 | G94: =IF(#REF!>0,#REF!,0) ->  | H94: =IF(G94>0,1,0) ->  | I94: =IF(#REF!>0,#REF!,0) ->  | J94: 0
A95: ГРС.г.Вельск | B95: =Лист1!B92 ->  | C95: =Лист1!A92 ->  | D95: =Лист1!C92 -> 5 | E95: =Лист1!BI92/1000 -> 0 | F95: =Лист1!H93/1000 -> 0 | G95: =IF(#REF!>0,#REF!,0) ->  | I95: =IF(#REF!>0,#REF!,0) ->  | J95: 0
A96: ГРС.г.Вельск | B96: =Лист1!B93 ->  | C96: =Лист1!A93 ->  | D96: =Лист1!C93 -> 5 | E96: =Лист1!BI93/1000 -> 0 | F96: =Лист1!H94/1000 -> 0 | G96: =IF(#REF!>0,#REF!,0) ->  | I96: =IF(#REF!>0,#REF!,0) ->  | J96: 0
A97: ГРС.г.Вельск | B97: =Лист1!B94 -> Вельск, ул.50 лет Октября-48 | C97: =Лист1!A94 -> ООО "Диал - Север" | D97: =Лист1!C94 -> 5 | E97: =Лист1!BI94/1000 -> 0 | F97: =Лист1!H95/1000 -> 0 | G97: =IF(#REF!>0,#REF!,0) ->  | H97: =IF(G97>0,1,0) ->  | I97: =IF(#REF!>0,#REF!,0) ->  | J97: 0
A98: ГРС.г.Вельск | B98: =Лист1!B95 ->  | C98: =Лист1!A95 ->  | D98: =Лист1!C95 -> 5 | E98: =Лист1!BI95/1000 -> 0 | F98: =Лист1!H96/1000 -> 0 | G98: =IF(#REF!>0,#REF!,0) ->  | H98: =IF(G98>0,1,0) ->  | I98: =IF(#REF!>0,#REF!,0) ->  | J98: 0
A99: ГРС.г.Вельск | B99: =Лист1!B96 ->  | C99: =Лист1!A96 ->  | D99: =Лист1!C96 -> 5 | E99: =Лист1!BI96/1000 -> 0 | F99: =Лист1!H97/1000 -> 0 | G99: =IF(#REF!>0,#REF!,0) ->  | I99: =IF(#REF!>0,#REF!,0) ->  | J99: 0
A100: ГРС.г.Вельск | B100: =Лист1!B97 ->  | C100: =Лист1!A97 ->  | D100: =Лист1!C97 -> 5 | E100: =Лист1!BI97/1000 -> 0 | F100: =Лист1!H98/1000 -> 0 | G100: =IF(#REF!>0,#REF!,0) ->  | I100: =IF(#REF!>0,#REF!,0) ->  | J100: 0
A101: ГРС.г.Вельск | B101: =Лист1!B98 -> Вельск, ул.50 лет Октября-48 | C101: =Лист1!A98 -> ООО "Диал - Север" | D101: =Лист1!C98 -> 5 | E101: =Лист1!BI98/1000 -> 0.009 | F101: =Лист1!H99/1000 -> 0.000665 | G101: =IF(#REF!>0,#REF!,0) ->  | H101: =IF(G101>0,1,0) ->  | I101: =IF(#REF!>0,#REF!,0) ->  | J101: 0.008335
A102: ГРС.г.Вельск | B102: =Лист1!B99 -> Вельск, ул.50 лет Октября-48 | C102: =Лист1!A99 -> ООО "Диал - Север" | D102: =Лист1!C99 -> 5 | E102: =Лист1!BI99/1000 -> 0 | F102: =Лист1!H100/1000 -> 0 | G102: =IF(#REF!>0,#REF!,0) ->  | H102: =IF(G102>0,1,0) ->  | I102: =IF(#REF!>0,#REF!,0) ->  | J102: 0
A103: ГРС.г.Вельск | B103: =Лист1!B100 ->  | C103: =Лист1!A100 ->  | D103: =Лист1!C100 -> 5 | E103: =Лист1!BI100/1000 -> 0 | F103: =Лист1!H101/1000 -> 0 | G103: =IF(#REF!>0,#REF!,0) ->  | I103: =IF(#REF!>0,#REF!,0) ->  | J103: 0
A104: ГРС.г.Вельск | B104: =Лист1!B101 ->  | C104: =Лист1!A101 ->  | D104: =Лист1!C101 -> 5 | E104: =Лист1!BI101/1000 -> 0 | F104: =Лист1!H102/1000 -> 0 | G104: =IF(#REF!>0,#REF!,0) ->  | I104: =IF(#REF!>0,#REF!,0) ->  | J104: 0
A105: ГРС.г.Вельск | B105: =Лист1!B102 -> Вельск, ул.Советская-80 | C105: =Лист1!A102 -> ООО "Диал - Север" | D105: =Лист1!C102 -> 7 | E105: =Лист1!BI102/1000 -> 0 | F105: =Лист1!H103/1000 -> 0 | G105: =IF(#REF!>0,#REF!,0) ->  | H105: =IF(G105>0,1,0) ->  | I105: =IF(#REF!>0,#REF!,0) ->  | J105: 0
A106: ГРС.г.Вельск | B106: =Лист1!B103 ->  | C106: =Лист1!A103 ->  | D106: =Лист1!C103 -> 7 | E106: =Лист1!BI103/1000 -> 0 | F106: =Лист1!H104/1000 -> 0 | G106: =IF(#REF!>0,#REF!,0) ->  | H106: =IF(G106>0,1,0) ->  | I106: =IF(#REF!>0,#REF!,0) ->  | J106: 0
A107: ГРС.г.Вельск | B107: =Лист1!B104 ->  | C107: =Лист1!A104 ->  | D107: =Лист1!C104 -> 7 | E107: =Лист1!BI104/1000 -> 0 | F107: =Лист1!H105/1000 -> 0 | G107: =IF(#REF!>0,#REF!,0) ->  | I107: =IF(#REF!>0,#REF!,0) ->  | J107: 0
A108: ГРС.г.Вельск | B108: =Лист1!B105 ->  | C108: =Лист1!A105 ->  | D108: =Лист1!C105 -> 7 | E108: =Лист1!BI105/1000 -> 0 | F108: =Лист1!H106/1000 -> 0 | G108: =IF(#REF!>0,#REF!,0) ->  | I108: =IF(#REF!>0,#REF!,0) ->  | J108: 0
A109: ГРС.г.Вельск | B109: =Лист1!B106 -> Вельск, ул.Белинского-30а | C109: =Лист1!A106 -> ООО "Диал - Север" | D109: =Лист1!C106 -> 7 | E109: =Лист1!BI106/1000 -> 0 | F109: =Лист1!H107/1000 -> 1.3e-05 | G109: =IF(#REF!>0,#REF!,0) ->  | H109: =IF(G109>0,1,0) ->  | I109: =IF(#REF!>0,#REF!,0) ->  | J109: -1.3e-05
A110: ГРС.г.Вельск | B110: =Лист1!B107 -> Вельск, ул.Белинского-30а | C110: =Лист1!A107 -> ООО "Диал - Север" | D110: =Лист1!C107 -> 7 | E110: =Лист1!BI107/1000 -> 0 | F110: =Лист1!H108/1000 -> 0 | G110: =IF(#REF!>0,#REF!,0) ->  | H110: =IF(G110>0,1,0) ->  | I110: =IF(#REF!>0,#REF!,0) ->  | J110: 0
A111: ГРС.г.Вельск | B111: =Лист1!B108 ->  | C111: =Лист1!A108 ->  | D111: =Лист1!C108 -> 7 | E111: =Лист1!BI108/1000 -> 0 | F111: =Лист1!H109/1000 -> 0 | G111: =IF(#REF!>0,#REF!,0) ->  | I111: =IF(#REF!>0,#REF!,0) ->  | J111: 0
A112: ГРС.г.Вельск | B112: =Лист1!B109 ->  | C112: =Лист1!A109 ->  | D112: =Лист1!C109 -> 7 | E112: =Лист1!BI109/1000 -> 0 | F112: =Лист1!H110/1000 -> 0 | G112: =IF(#REF!>0,#REF!,0) ->  | I112: =IF(#REF!>0,#REF!,0) ->  | J112: 0
A113: ГРС.г.Вельск | B113: =Лист1!B110 -> Вельск, ул.Дзержинского-147 | C113: =Лист1!A110 -> ООО "Диал - Север" | D113: =Лист1!C110 -> 7 | E113: =Лист1!BI110/1000 -> 0 | F113: =Лист1!H111/1000 -> 2.4e-05 | G113: =IF(#REF!>0,#REF!,0) ->  | H113: =IF(G113>0,1,0) ->  | I113: =IF(#REF!>0,#REF!,0) ->  | J113: -2.4e-05
A114: ГРС.г.Вельск | B114: =Лист1!B111 -> Вельск, ул.Дзержинского-147 | C114: =Лист1!A111 -> ООО "Диал - Север" | D114: =Лист1!C111 -> 7 | E114: =Лист1!BI111/1000 -> 0 | F114: =Лист1!H112/1000 -> 0 | G114: =IF(#REF!>0,#REF!,0) ->  | H114: =IF(G114>0,1,0) ->  | I114: =IF(#REF!>0,#REF!,0) ->  | J114: 0
A115: ГРС.г.Вельск | B115: =Лист1!B112 ->  | C115: =Лист1!A112 ->  | D115: =Лист1!C112 -> 7 | E115: =Лист1!BI112/1000 -> 0 | F115: =Лист1!H113/1000 -> 0 | G115: =IF(#REF!>0,#REF!,0) ->  | I115: =IF(#REF!>0,#REF!,0) ->  | J115: 0
A116: ГРС.г.Вельск | B116: =Лист1!B113 ->  | C116: =Лист1!A113 ->  | D116: =Лист1!C113 -> 7 | E116: =Лист1!BI113/1000 -> 0 | F116: =Лист1!H114/1000 -> 0 | G116: =IF(#REF!>0,#REF!,0) ->  | I116: =IF(#REF!>0,#REF!,0) ->  | J116: 0
A117: ГРС.г.Вельск | B117: =Лист1!B114 -> д.Вороновская-38 | C117: =Лист1!A114 -> ООО "Диал - Север" | D117: =Лист1!C114 -> 6 | E117: =Лист1!BI114/1000 -> 0 | F117: =Лист1!H115/1000 -> 0.000204 | G117: =IF(#REF!>0,#REF!,0) ->  | H117: =IF(G117>0,1,0) ->  | I117: =IF(#REF!>0,#REF!,0) ->  | J117: -0.000204
A118: ГРС.г.Вельск | B118: =Лист1!B115 -> д.Вороновская-38 | C118: =Лист1!A115 -> ООО "Диал - Север" | D118: =Лист1!C115 -> 6 | E118: =Лист1!BI115/1000 -> 0 | F118: =Лист1!H116/1000 -> 0 | G118: =IF(#REF!>0,#REF!,0) ->  | H118: =IF(G118>0,1,0) ->  | I118: =IF(#REF!>0,#REF!,0) ->  | J118: 0
A119: ГРС.г.Вельск | B119: =Лист1!B116 ->  | C119: =Лист1!A116 ->  | D119: =Лист1!C116 -> 6 | E119: =Лист1!BI116/1000 -> 0 | F119: =Лист1!H117/1000 -> 0 | G119: =IF(#REF!>0,#REF!,0) ->  | I119: =IF(#REF!>0,#REF!,0) ->  | J119: 0
A120: ГРС.г.Вельск | B120: =Лист1!B117 ->  | C120: =Лист1!A117 ->  | D120: =Лист1!C117 -> 6 | E120: =Лист1!BI117/1000 -> 0 | F120: =Лист1!H118/1000 -> 0 | G120: =IF(#REF!>0,#REF!,0) ->  | I120: =IF(#REF!>0,#REF!,0) ->  | J120: 0
A121: ГРС.г.Вельск | B121: =Лист1!B118 -> Вельск, ул.Чехова-3в | C121: =Лист1!A118 -> ООО "Диал - Север" | D121: =Лист1!C118 -> 7 | E121: =Лист1!BI118/1000 -> 0 | F121: =Лист1!H119/1000 -> 5e-06 | G121: =IF(#REF!>0,#REF!,0) ->  | H121: =IF(G121>0,1,0) ->  | I121: =IF(#REF!>0,#REF!,0) ->  | J121: -5e-06
A122: ГРС.г.Вельск | B122: =Лист1!B119 -> Вельск, ул.Чехова-3в | C122: =Лист1!A119 -> ООО "Диал - Север" | D122: =Лист1!C119 -> 7 | E122: =Лист1!BI119/1000 -> 0 | F122: =Лист1!H120/1000 -> 0 | G122: =IF(#REF!>0,#REF!,0) ->  | H122: =IF(G122>0,1,0) ->  | I122: =IF(#REF!>0,#REF!,0) ->  | J122: 0
A123: ГРС.г.Вельск | B123: =Лист1!B120 ->  | C123: =Лист1!A120 ->  | D123: =Лист1!C120 -> 7 | E123: =Лист1!BI120/1000 -> 0 | F123: =Лист1!H121/1000 -> 0 | G123: =IF(#REF!>0,#REF!,0) ->  | I123: =IF(#REF!>0,#REF!,0) ->  | J123: 0
A124: ГРС.г.Вельск | B124: =Лист1!B121 ->  | C124: =Лист1!A121 ->  | D124: =Лист1!C121 -> 7 | E124: =Лист1!BI121/1000 -> 0 | F124: =Лист1!H122/1000 -> 0 | G124: =IF(#REF!>0,#REF!,0) ->  | I124: =IF(#REF!>0,#REF!,0) ->  | J124: 0
A125: ГРС.г.Вельск | B125: =Лист1!B122 ->  | C125: =Лист1!A122 -> ГКУ Архангельской области «ОГПС № 1» | D125: =Лист1!C122 -> 6 | E125: =Лист1!BI122/1000 -> 0 | F125: =Лист1!H123/1000 -> 0 | G125: =IF(#REF!>0,#REF!,0) ->  | H125: =IF(G125>0,1,0) ->  | I125: =IF(#REF!>0,#REF!,0) ->  | J125: 0
A126: ГРС.г.Вельск | B126: =Лист1!B123 ->  | C126: =Лист1!A123 ->  | D126: =Лист1!C123 -> 6 | E126: =Лист1!BI123/1000 -> 0 | F126: =Лист1!H124/1000 -> 0 | G126: =IF(#REF!>0,#REF!,0) ->  | H126: =IF(G126>0,1,0) ->  | I126: =IF(#REF!>0,#REF!,0) ->  | J126: 0
A127: ГРС.г.Вельск | B127: =Лист1!B124 ->  | C127: =Лист1!A124 -> Гр. Растегаева Татьяна Борисовна | D127: =Лист1!C124 -> 7 | E127: =Лист1!BI124/1000 -> 0.0002 | F127: =Лист1!H125/1000 -> 2.5e-05 | G127: =IF(#REF!>0,#REF!,0) ->  | I127: =IF(#REF!>0,#REF!,0) ->  | J127: 0.000175
A128: ГРС.г.Вельск | B128: =Лист1!B125 ->  | C128: =Лист1!A125 -> Гр. Растегаева Татьяна Борисовна | D128: =Лист1!C125 -> 7 | E128: =Лист1!BI125/1000 -> 0 | F128: =Лист1!H126/1000 -> 0 | G128: =IF(#REF!>0,#REF!,0) ->  | I128: =IF(#REF!>0,#REF!,0) ->  | J128: 0
A129: ГРС.г.Вельск | B129: =Лист1!B126 ->  | C129: =Лист1!A126 ->  | D129: =Лист1!C126 -> 7 | E129: =Лист1!BI126/1000 -> 0 | F129: =Лист1!H127/1000 -> 0 | G129: =IF(#REF!>0,#REF!,0) ->  | H129: =IF(G129>0,1,0) ->  | I129: =IF(#REF!>0,#REF!,0) ->  | J129: 0
A130: ГРС.г.Вельск | B130: =Лист1!B127 ->  | C130: =Лист1!A127 ->  | D130: =Лист1!C127 -> 7 | E130: =Лист1!BI127/1000 -> 0 | F130: =Лист1!H128/1000 -> 0 | G130: =IF(#REF!>0,#REF!,0) ->  | H130: =IF(G130>0,1,0) ->  | I130: =IF(#REF!>0,#REF!,0) ->  | J130: 0
A131: ГРС.г.Вельск | B131: =Лист1!B128 -> Вельск, ул.Советская-68 | C131: =Лист1!A128 -> ИП Шишов Андрей Викторович (до 01.08 - ИП Шахова Т.Н.) | D131: =Лист1!C128 -> 6 | E131: =Лист1!BI128/1000 -> 0.0007 | F131: =Лист1!H129/1000 -> 0 | G131: =IF(#REF!>0,#REF!,0) ->  | I131: =IF(#REF!>0,#REF!,0) ->  | J131: 0.0007
A132: ГРС.г.Вельск | B132: =Лист1!B129 ->  | C132: =Лист1!A129 ->  | D132: =Лист1!C129 -> 6 | E132: =Лист1!BI129/1000 -> 0 | F132: =Лист1!H130/1000 -> 0 | G132: =IF(#REF!>0,#REF!,0) ->  | I132: =IF(#REF!>0,#REF!,0) ->  | J132: 0
A133: ГРС.г.Вельск | B133: =Лист1!B130 ->  | C133: =Лист1!A130 ->  | D133: =Лист1!C130 -> 6 | E133: =Лист1!BI130/1000 -> 0 | F133: =Лист1!H131/1000 -> 0 | G133: =IF(#REF!>0,#REF!,0) ->  | H133: =IF(G133>0,1,0) ->  | I133: =IF(#REF!>0,#REF!,0) ->  | J133: 0
A134: ГРС.г.Вельск | B134: =Лист1!B131 ->  | C134: =Лист1!A131 ->  | D134: =Лист1!C131 -> 6 | E134: =Лист1!BI131/1000 -> 0 | F134: =Лист1!H132/1000 -> 0 | G134: =IF(#REF!>0,#REF!,0) ->  | H134: =IF(G134>0,1,0) ->  | I134: =IF(#REF!>0,#REF!,0) ->  | J134: 0
A135: ГРС.г.Вельск | B135: =Лист1!B132 -> Вельск, ул.Гагарина-5а | C135: =Лист1!A132 -> ООО "Строймаркет" | D135: =Лист1!C132 -> 6 | E135: =Лист1!BI132/1000 -> 0 | F135: =Лист1!H133/1000 -> 0 | G135: =IF(#REF!>0,#REF!,0) ->  | I135: =IF(#REF!>0,#REF!,0) ->  | J135: 0
A136: ГРС.г.Вельск | B136: =Лист1!B133 ->  | C136: =Лист1!A133 ->  | D136: =Лист1!C133 -> 6 | E136: =Лист1!BI133/1000 -> 0 | F136: =Лист1!H134/1000 -> 0 | G136: =IF(#REF!>0,#REF!,0) ->  | I136: =IF(#REF!>0,#REF!,0) ->  | J136: 0
A137: ГРС.г.Вельск | B137: =Лист1!B134 ->  | C137: =Лист1!A134 ->  | D137: =Лист1!C134 -> 6 | E137: =Лист1!BI134/1000 -> 0 | F137: =Лист1!H135/1000 -> 0 | G137: =IF(#REF!>0,#REF!,0) ->  | H137: =IF(G137>0,1,0) ->  | I137: =IF(#REF!>0,#REF!,0) ->  | J137: 0
A138: ГРС.г.Вельск | B138: =Лист1!B135 ->  | C138: =Лист1!A135 ->  | D138: =Лист1!C135 -> 6 | E138: =Лист1!BI135/1000 -> 0 | F138: =Лист1!H136/1000 -> 0 | G138: =IF(#REF!>0,#REF!,0) ->  | H138: =IF(G138>0,1,0) ->  | I138: =IF(#REF!>0,#REF!,0) ->  | J138: 0
A139: ГРС.г.Вельск | B139: =Лист1!B136 -> Вельск, ул.Гагарина-5а | C139: =Лист1!A136 -> ООО "Строймаркет" | D139: =Лист1!C136 -> 6 | E139: =Лист1!BI136/1000 -> 1e-05 | F139: =Лист1!H137/1000 -> 0.000104 | G139: =IF(#REF!>0,#REF!,0) ->  | I139: =IF(#REF!>0,#REF!,0) ->  | J139: -9.4e-05
A140: ГРС.г.Вельск | B140: =Лист1!B137 -> Вельск, ул.Гагарина-5а | C140: =Лист1!A137 -> ООО "Строймаркет" | D140: =Лист1!C137 -> 6 | E140: =Лист1!BI137/1000 -> 0 | F140: =Лист1!H138/1000 -> 0 | G140: =IF(#REF!>0,#REF!,0) ->  | I140: =IF(#REF!>0,#REF!,0) ->  | J140: 0
A141: ГРС.г.Вельск | B141: =Лист1!B138 ->  | C141: =Лист1!A138 ->  | D141: =Лист1!C138 -> 6 | E141: =Лист1!BI138/1000 -> 0 | F141: =Лист1!H139/1000 -> 0 | G141: =IF(#REF!>0,#REF!,0) ->  | H141: =IF(G141>0,1,0) ->  | I141: =IF(#REF!>0,#REF!,0) ->  | J141: 0
A142: ГРС.г.Вельск | B142: =Лист1!B139 ->  | C142: =Лист1!A139 ->  | D142: =Лист1!C139 -> 6 | E142: =Лист1!BI139/1000 -> 0 | F142: =Лист1!H140/1000 -> 0 | G142: =IF(#REF!>0,#REF!,0) ->  | H142: =IF(G142>0,1,0) ->  | I142: =IF(#REF!>0,#REF!,0) ->  | J142: 0
A143: ГРС.г.Вельск | B143: =Лист1!B140 -> Вельск, ул.Комсомольская-11 | C143: =Лист1!A140 -> ООО "Сервис" | D143: =Лист1!C140 -> 6 | E143: =Лист1!BI140/1000 -> 6.5e-05 | F143: =Лист1!H141/1000 -> 0 | G143: =IF(#REF!>0,#REF!,0) ->  | I143: =IF(#REF!>0,#REF!,0) ->  | J143: 6.5e-05
A144: ГРС.г.Вельск | B144: =Лист1!B141 ->  | C144: =Лист1!A141 ->  | D144: =Лист1!C141 -> 6 | E144: =Лист1!BI141/1000 -> 0 | F144: =Лист1!H142/1000 -> 0 | G144: =IF(#REF!>0,#REF!,0) ->  | I144: =IF(#REF!>0,#REF!,0) ->  | J144: 0
A145: ГРС.г.Вельск | B145: =Лист1!B142 ->  | C145: =Лист1!A142 ->  | D145: =Лист1!C142 -> 6 | E145: =Лист1!BI142/1000 -> 0 | F145: =Лист1!H143/1000 -> 0 | G145: =IF(#REF!>0,#REF!,0) ->  | H145: =IF(G145>0,1,0) ->  | I145: =IF(#REF!>0,#REF!,0) ->  | J145: 0
A146: ГРС.г.Вельск | B146: =Лист1!B143 ->  | C146: =Лист1!A143 ->  | D146: =Лист1!C143 -> 6 | E146: =Лист1!BI143/1000 -> 0 | F146: =Лист1!H144/1000 -> 0 | G146: =IF(#REF!>0,#REF!,0) ->  | H146: =IF(G146>0,1,0) ->  | I146: =IF(#REF!>0,#REF!,0) ->  | J146: 0
A147: ГРС.г.Вельск | B147: =Лист1!B144 -> Вельск, ул.Дзержинского-50 | C147: =Лист1!A144 -> ООО "Сервис" | D147: =Лист1!C144 -> 7 | E147: =Лист1!BI144/1000 -> 0 | F147: =Лист1!H145/1000 -> 0 | G147: =IF(#REF!>0,#REF!,0) ->  | I147: =IF(#REF!>0,#REF!,0) ->  | J147: =E147-F147 -> 0
A148: ГРС.г.Вельск | B148: =Лист1!B145 ->  | C148: =Лист1!A145 ->  | D148: =Лист1!C145 -> 7 | E148: =Лист1!BI145/1000 -> 0 | F148: =Лист1!H146/1000 -> 0 | G148: =IF(#REF!>0,#REF!,0) ->  | I148: =IF(#REF!>0,#REF!,0) ->  | J148: 0
A149: ГРС.г.Вельск | B149: =Лист1!B146 ->  | C149: =Лист1!A146 ->  | D149: =Лист1!C146 -> 7 | E149: =Лист1!BI146/1000 -> 0 | F149: =Лист1!H147/1000 -> 0 | G149: =IF(#REF!>0,#REF!,0) ->  | H149: =IF(G149>0,1,0) ->  | I149: =IF(#REF!>0,#REF!,0) ->  | J149: 0
A150: ГРС.г.Вельск | B150: =Лист1!B147 ->  | C150: =Лист1!A147 ->  | D150: =Лист1!C147 -> 7 | E150: =Лист1!BI147/1000 -> 0 | F150: =Лист1!H148/1000 -> 0 | G150: =IF(#REF!>0,#REF!,0) ->  | H150: =IF(G150>0,1,0) ->  | I150: =IF(#REF!>0,#REF!,0) ->  | J150: 0
A151: ГРС.г.Вельск | B151: =Лист1!B148 -> Вельск, ул.1 мая-63 | C151: =Лист1!A148 -> ООО "Сервис" | D151: =Лист1!C148 -> 7 | E151: =Лист1!BI148/1000 -> 0 | F151: =Лист1!H149/1000 -> 0 | G151: =IF(#REF!>0,#REF!,0) ->  | I151: =IF(#REF!>0,#REF!,0) ->  | J151: 0
A152: ГРС.г.Вельск | B152: =Лист1!B149 ->  | C152: =Лист1!A149 ->  | D152: =Лист1!C149 -> 7 | E152: =Лист1!BI149/1000 -> 0 | F152: =Лист1!H150/1000 -> 0 | G152: =IF(#REF!>0,#REF!,0) ->  | I152: =IF(#REF!>0,#REF!,0) ->  | J152: 0
A153: ГРС.г.Вельск | B153: =Лист1!B150 ->  | C153: =Лист1!A150 ->  | D153: =Лист1!C150 -> 7 | E153: =Лист1!BI150/1000 -> 0 | F153: =Лист1!H151/1000 -> 0 | G153: =IF(#REF!>0,#REF!,0) ->  | H153: =IF(G153>0,1,0) ->  | I153: =IF(#REF!>0,#REF!,0) ->  | J153: 0
A154: ГРС.г.Вельск | B154: =Лист1!B151 ->  | C154: =Лист1!A151 ->  | D154: =Лист1!C151 -> 7 | E154: =Лист1!BI151/1000 -> 0 | F154: =Лист1!H152/1000 -> 0 | G154: =IF(#REF!>0,#REF!,0) ->  | H154: =IF(G154>0,1,0) ->  | I154: =IF(#REF!>0,#REF!,0) ->  | J154: 0
A155: ГРС.г.Вельск | B155: =Лист1!B152 -> Вельск, ул.Гагарина-42, 44 | C155: =Лист1!A152 -> ООО "Сервис" | D155: =Лист1!C152 -> 6 | E155: =Лист1!BI152/1000 -> 5e-05 | F155: =Лист1!H153/1000 -> 0 | G155: =IF(#REF!>0,#REF!,0) ->  | I155: =IF(#REF!>0,#REF!,0) ->  | J155: 5e-05
A156: ГРС.г.Вельск | B156: =Лист1!B153 ->  | C156: =Лист1!A153 ->  | D156: =Лист1!C153 -> 6 | E156: =Лист1!BI153/1000 -> 0 | F156: =Лист1!H154/1000 -> 0 | G156: =IF(#REF!>0,#REF!,0) ->  | I156: =IF(#REF!>0,#REF!,0) ->  | J156: 0
A157: ГРС.г.Вельск | B157: =Лист1!B154 ->  | C157: =Лист1!A154 ->  | D157: =Лист1!C154 -> 6 | E157: =Лист1!BI154/1000 -> 0 | F157: =Лист1!H155/1000 -> 0 | G157: =IF(#REF!>0,#REF!,0) ->  | H157: =IF(G157>0,1,0) ->  | I157: =IF(#REF!>0,#REF!,0) ->  | J157: 0
A158: ГРС.г.Вельск | B158: =Лист1!B155 ->  | C158: =Лист1!A155 ->  | D158: =Лист1!C155 -> 6 | E158: =Лист1!BI155/1000 -> 0 | F158: =Лист1!H156/1000 -> 0 | G158: =IF(#REF!>0,#REF!,0) ->  | H158: =IF(G158>0,1,0) ->  | I158: =IF(#REF!>0,#REF!,0) ->  | J158: 0
A159: ГРС.г.Вельск | B159: =Лист1!B156 -> Вельск, ул.Набережная-58 | C159: =Лист1!A156 -> ИП Тюкин Николай Федорович | D159: =Лист1!C156 -> 7 | E159: =Лист1!BI156/1000 -> 0 | F159: =Лист1!H157/1000 -> 0 | G159: =IF(#REF!>0,#REF!,0) ->  | I159: =IF(#REF!>0,#REF!,0) ->  | J159: 0
A160: ГРС.г.Вельск | B160: =Лист1!B157 ->  | C160: =Лист1!A157 ->  | D160: =Лист1!C157 -> 7 | E160: =Лист1!BI157/1000 -> 0 | F160: =Лист1!H158/1000 -> 0 | G160: =IF(#REF!>0,#REF!,0) ->  | I160: =IF(#REF!>0,#REF!,0) ->  | J160: 0
A161: ГРС.г.Вельск | B161: =Лист1!B158 ->  | C161: =Лист1!A158 ->  | D161: =Лист1!C158 -> 7 | E161: =Лист1!BI158/1000 -> 0 | F161: =Лист1!H159/1000 -> 0 | G161: =IF(#REF!>0,#REF!,0) ->  | H161: =IF(G161>0,1,0) ->  | I161: =IF(#REF!>0,#REF!,0) ->  | J161: 0
A162: ГРС.г.Вельск | B162: =Лист1!B159 ->  | C162: =Лист1!A159 ->  | D162: =Лист1!C159 -> 7 | E162: =Лист1!BI159/1000 -> 0 | F162: =Лист1!H160/1000 -> 0 | G162: =IF(#REF!>0,#REF!,0) ->  | H162: =IF(G162>0,1,0) ->  | I162: =IF(#REF!>0,#REF!,0) ->  | J162: 0
A163: ГРС.г.Вельск | B163: =Лист1!B160 -> Вельск, ул.Революционная-3в | C163: =Лист1!A160 -> ИП Тюкин Николай Федорович | D163: =Лист1!C160 -> 6 | E163: =Лист1!BI160/1000 -> 0.0001 | F163: =Лист1!H161/1000 -> 0 | G163: =IF(#REF!>0,#REF!,0) ->  | I163: =IF(#REF!>0,#REF!,0) ->  | J163: 0.0001
A164: ГРС.г.Вельск | B164: =Лист1!B161 ->  | C164: =Лист1!A161 ->  | D164: =Лист1!C161 -> 6 | E164: =Лист1!BI161/1000 -> 0 | F164: =Лист1!H162/1000 -> 0 | G164: =IF(#REF!>0,#REF!,0) ->  | I164: =IF(#REF!>0,#REF!,0) ->  | J164: 0
A165: ГРС.г.Вельск | B165: =Лист1!B162 ->  | C165: =Лист1!A162 ->  | D165: =Лист1!C162 -> 6 | E165: =Лист1!BI162/1000 -> 0 | F165: =Лист1!H163/1000 -> 0 | G165: =IF(#REF!>0,#REF!,0) ->  | H165: =IF(G165>0,1,0) ->  | I165: =IF(#REF!>0,#REF!,0) ->  | J165: 0
A166: ГРС.г.Вельск | B166: =Лист1!B163 ->  | C166: =Лист1!A163 ->  | D166: =Лист1!C163 -> 6 | E166: =Лист1!BI163/1000 -> 0 | F166: =Лист1!H164/1000 -> 0 | G166: =IF(#REF!>0,#REF!,0) ->  | H166: =IF(G166>0,1,0) ->  | I166: =IF(#REF!>0,#REF!,0) ->  | J166: 0
A167: ГРС.г.Вельск | B167: =Лист1!B164 -> д.Горка Муравьевская, ул.Школьная-4 | C167: =Лист1!A164 -> ИП Тюкин Николай Федорович | D167: =Лист1!C164 -> 7 | E167: =Лист1!BI164/1000 -> 0.0001 | F167: =Лист1!H165/1000 -> 0 | G167: =IF(#REF!>0,#REF!,0) ->  | I167: =IF(#REF!>0,#REF!,0) ->  | J167: 0.0001
A168: ГРС.г.Вельск | B168: =Лист1!B165 ->  | C168: =Лист1!A165 ->  | D168: =Лист1!C165 -> 7 | E168: =Лист1!BI165/1000 -> 0 | F168: =Лист1!H166/1000 -> 0 | G168: =IF(#REF!>0,#REF!,0) ->  | I168: =IF(#REF!>0,#REF!,0) ->  | J168: 0
A169: ГРС.г.Вельск | B169: =Лист1!B166 ->  | C169: =Лист1!A166 ->  | D169: =Лист1!C166 -> 7 | E169: =Лист1!BI166/1000 -> 0 | F169: =Лист1!H167/1000 -> 0 | G169: =IF(#REF!>0,#REF!,0) ->  | H169: =IF(G169>0,1,0) ->  | I169: =IF(#REF!>0,#REF!,0) ->  | J169: 0
A170: ГРС.г.Вельск | B170: =Лист1!B167 ->  | C170: =Лист1!A167 ->  | D170: =Лист1!C167 -> 7 | E170: =Лист1!BI167/1000 -> 0 | F170: =Лист1!H168/1000 -> 0 | G170: =IF(#REF!>0,#REF!,0) ->  | H170: =IF(G170>0,1,0) ->  | I170: =IF(#REF!>0,#REF!,0) ->  | J170: 0
A171: ГРС.г.Вельск | B171: =Лист1!B168 ->  | C171: =Лист1!A168 -> Гр. Козлов Олег Станиславович | D171: =Лист1!C168 -> 7 | E171: =Лист1!BI168/1000 -> 0 | F171: =Лист1!H169/1000 -> 0 | G171: =IF(#REF!>0,#REF!,0) ->  | I171: =IF(#REF!>0,#REF!,0) ->  | J171: 0
A172: ГРС.г.Вельск | B172: =Лист1!B169 ->  | C172: =Лист1!A169 ->  | D172: =Лист1!C169 -> 7 | E172: =Лист1!BI169/1000 -> 0 | F172: =Лист1!H170/1000 -> 0 | G172: =IF(#REF!>0,#REF!,0) ->  | I172: =IF(#REF!>0,#REF!,0) ->  | J172: 0
A173: ГРС.г.Вельск | B173: =Лист1!B170 ->  | C173: =Лист1!A170 ->  | D173: =Лист1!C170 -> 7 | E173: =Лист1!BI170/1000 -> 0 | F173: =Лист1!H171/1000 -> 0 | G173: =IF(#REF!>0,#REF!,0) ->  | H173: =IF(G173>0,1,0) ->  | I173: =IF(#REF!>0,#REF!,0) ->  | J173: 0
A174: ГРС.г.Вельск | B174: =Лист1!B171 ->  | C174: =Лист1!A171 ->  | D174: =Лист1!C171 -> 7 | E174: =Лист1!BI171/1000 -> 0 | F174: =Лист1!H172/1000 -> 0 | G174: =IF(#REF!>0,#REF!,0) ->  | H174: =IF(G174>0,1,0) ->  | I174: =IF(#REF!>0,#REF!,0) ->  | J174: 0
A175: ГРС.г.Вельск | B175: =Лист1!B172 ->  | C175: =Лист1!A172 -> Гр. Вострецов Олег Анатольевич | D175: =Лист1!C172 -> 7 | E175: =Лист1!BI172/1000 -> 0 | F175: =Лист1!H173/1000 -> 0 | G175: =IF(#REF!>0,#REF!,0) ->  | I175: =IF(#REF!>0,#REF!,0) ->  | J175: 0
A176: ГРС.г.Вельск | B176: =Лист1!B173 ->  | C176: =Лист1!A173 ->  | D176: =Лист1!C173 -> 7 | E176: =Лист1!BI173/1000 -> 0 | F176: =Лист1!H174/1000 -> 0 | G176: =IF(#REF!>0,#REF!,0) ->  | I176: =IF(#REF!>0,#REF!,0) ->  | J176: 0
A177: ГРС.г.Вельск | B177: =Лист1!B174 ->  | C177: =Лист1!A174 ->  | D177: =Лист1!C174 -> 7 | E177: =Лист1!BI174/1000 -> 0 | F177: =Лист1!H175/1000 -> 0 | G177: =IF(#REF!>0,#REF!,0) ->  | H177: =IF(G177>0,1,0) ->  | I177: =IF(#REF!>0,#REF!,0) ->  | J177: 0
A178: ГРС.г.Вельск | B178: =Лист1!B175 ->  | C178: =Лист1!A175 ->  | D178: =Лист1!C175 -> 7 | E178: =Лист1!BI175/1000 -> 0 | F178: =Лист1!H176/1000 -> 0 | G178: =IF(#REF!>0,#REF!,0) ->  | H178: =IF(G178>0,1,0) ->  | I178: =IF(#REF!>0,#REF!,0) ->  | J178: 0
A179: ГРС.г.Вельск | B179: =Лист1!B176 ->  | C179: =Лист1!A176 -> Гр. Хобатенков Виктор Николаевич | D179: =Лист1!C176 -> 7 | E179: =Лист1!BI176/1000 -> 0.0006 | F179: =Лист1!H177/1000 -> 3.3e-05 | G179: =IF(#REF!>0,#REF!,0) ->  | I179: =IF(#REF!>0,#REF!,0) ->  | J179: 0.000567
A180: ГРС.г.Вельск | B180: =Лист1!B177 ->  | C180: =Лист1!A177 -> Гр. Хобатенков Виктор Николаевич | D180: =Лист1!C177 -> 7 | E180: =Лист1!BI177/1000 -> 0 | F180: =Лист1!H178/1000 -> 0 | G180: =IF(#REF!>0,#REF!,0) ->  | I180: =IF(#REF!>0,#REF!,0) ->  | J180: 0
A181: ГРС.г.Вельск | B181: =Лист1!B178 ->  | C181: =Лист1!A178 ->  | D181: =Лист1!C178 -> 7 | E181: =Лист1!BI178/1000 -> 0 | F181: =Лист1!H179/1000 -> 0 | G181: =IF(#REF!>0,#REF!,0) ->  | H181: =IF(G181>0,1,0) ->  | I181: =IF(#REF!>0,#REF!,0) ->  | J181: 0
A182: ГРС.г.Вельск | B182: =Лист1!B179 ->  | C182: =Лист1!A179 ->  | D182: =Лист1!C179 -> 7 | E182: =Лист1!BI179/1000 -> 0 | F182: =Лист1!H180/1000 -> 0 | G182: =IF(#REF!>0,#REF!,0) ->  | H182: =IF(G182>0,1,0) ->  | I182: =IF(#REF!>0,#REF!,0) ->  | J182: 0
A183: ГРС.г.Вельск | B183: =Лист1!B180 -> Вельск, ул.1 мая-4 | C183: =Лист1!A180 -> Вельское ГОРПО | D183: =Лист1!C180 -> 6 | E183: =Лист1!BI180/1000 -> 0 | F183: =Лист1!H181/1000 -> 0 | G183: =IF(#REF!>0,#REF!,0) ->  | I183: =IF(#REF!>0,#REF!,0) ->  | J183: 0
A184: ГРС.г.Вельск | B184: =Лист1!B181 ->  | C184: =Лист1!A181 ->  | D184: =Лист1!C181 -> 6 | E184: =Лист1!BI181/1000 -> 0 | F184: =Лист1!H182/1000 -> 0 | G184: =IF(#REF!>0,#REF!,0) ->  | I184: =IF(#REF!>0,#REF!,0) ->  | J184: 0
A185: ГРС.г.Вельск | B185: =Лист1!B182 ->  | C185: =Лист1!A182 ->  | D185: =Лист1!C182 -> 6 | E185: =Лист1!BI182/1000 -> 0 | F185: =Лист1!H183/1000 -> 0 | G185: =IF(#REF!>0,#REF!,0) ->  | H185: =IF(G185>0,1,0) ->  | I185: =IF(#REF!>0,#REF!,0) ->  | J185: 0
A186: ГРС.г.Вельск | B186: =Лист1!B183 ->  | C186: =Лист1!A183 ->  | D186: =Лист1!C183 -> 6 | E186: =Лист1!BI183/1000 -> 0 | F186: =Лист1!H184/1000 -> 0 | G186: =IF(#REF!>0,#REF!,0) ->  | H186: =IF(G186>0,1,0) ->  | I186: =IF(#REF!>0,#REF!,0) ->  | J186: 0
A187: ГРС.г.Вельск | B187: =Лист1!B184 -> Вельск, ул.Фефилова-66 | C187: =Лист1!A184 -> Вельское ГОРПО | D187: =Лист1!C184 -> 7 | E187: =Лист1!BI184/1000 -> 0.0001 | F187: =Лист1!H185/1000 -> 7e-05 | G187: =IF(#REF!>0,#REF!,0) ->  | I187: =IF(#REF!>0,#REF!,0) ->  | J187: 3e-05
A188: ГРС.г.Вельск | B188: =Лист1!B185 -> Вельск, ул.Фефилова-66 | C188: =Лист1!A185 -> Вельское ГОРПО | D188: =Лист1!C185 -> 7 | E188: =Лист1!BI185/1000 -> 0 | F188: =Лист1!H186/1000 -> 0 | G188: =IF(#REF!>0,#REF!,0) ->  | I188: =IF(#REF!>0,#REF!,0) ->  | J188: 0
A189: ГРС.г.Вельск | B189: =Лист1!B186 ->  | C189: =Лист1!A186 ->  | D189: =Лист1!C186 -> 7 | E189: =Лист1!BI186/1000 -> 0 | F189: =Лист1!H187/1000 -> 0 | G189: =IF(#REF!>0,#REF!,0) ->  | H189: =IF(G189>0,1,0) ->  | I189: =IF(#REF!>0,#REF!,0) ->  | J189: 0
A190: ГРС.г.Вельск | B190: =Лист1!B187 ->  | C190: =Лист1!A187 ->  | D190: =Лист1!C187 -> 7 | E190: =Лист1!BI187/1000 -> 0 | F190: =Лист1!H188/1000 -> 0 | G190: =IF(#REF!>0,#REF!,0) ->  | H190: =IF(G190>0,1,0) ->  | I190: =IF(#REF!>0,#REF!,0) ->  | J190: 0
A191: ГРС.г.Вельск | B191: =Лист1!B188 -> Вельск, ул.Ленина-42 | C191: =Лист1!A188 -> Вельское ГОРПО | D191: =Лист1!C188 -> 6 | E191: =Лист1!BI188/1000 -> 0 | F191: =Лист1!H189/1000 -> 0 | G191: =IF(#REF!>0,#REF!,0) ->  | I191: =IF(#REF!>0,#REF!,0) ->  | J191: 0
A192: ГРС.г.Вельск | B192: =Лист1!B189 ->  | C192: =Лист1!A189 ->  | D192: =Лист1!C189 -> 6 | E192: =Лист1!BI189/1000 -> 0 | F192: =Лист1!H190/1000 -> 0 | G192: =IF(#REF!>0,#REF!,0) ->  | I192: =IF(#REF!>0,#REF!,0) ->  | J192: 0
A193: ГРС.г.Вельск | B193: =Лист1!B190 ->  | C193: =Лист1!A190 ->  | D193: =Лист1!C190 -> 6 | E193: =Лист1!BI190/1000 -> 0 | F193: =Лист1!H191/1000 -> 0 | G193: =IF(#REF!>0,#REF!,0) ->  | H193: =IF(G193>0,1,0) ->  | I193: =IF(#REF!>0,#REF!,0) ->  | J193: 0
A194: ГРС.г.Вельск | B194: =Лист1!B191 ->  | C194: =Лист1!A191 ->  | D194: =Лист1!C191 -> 6 | E194: =Лист1!BI191/1000 -> 0 | F194: =Лист1!H192/1000 -> 0 | G194: =IF(#REF!>0,#REF!,0) ->  | H194: =IF(G194>0,1,0) ->  | I194: =IF(#REF!>0,#REF!,0) ->  | J194: 0
A195: ГРС.г.Вельск | B195: =Лист1!B192 -> Вельск, ул.Горького-20 | C195: =Лист1!A192 -> ООО "КМТС плюс" | D195: =Лист1!C192 -> 6 | E195: =Лист1!BI192/1000 -> 0 | F195: =Лист1!H193/1000 -> 0 | G195: =IF(#REF!>0,#REF!,0) ->  | I195: =IF(#REF!>0,#REF!,0) ->  | J195: 0
A196: ГРС.г.Вельск | B196: =Лист1!B193 ->  | C196: =Лист1!A193 ->  | D196: =Лист1!C193 -> 6 | E196: =Лист1!BI193/1000 -> 0 | F196: =Лист1!H194/1000 -> 0 | G196: =IF(#REF!>0,#REF!,0) ->  | I196: =IF(#REF!>0,#REF!,0) ->  | J196: 0
A197: ГРС.г.Вельск | B197: =Лист1!B194 ->  | C197: =Лист1!A194 ->  | D197: =Лист1!C194 -> 6 | E197: =Лист1!BI194/1000 -> 0 | F197: =Лист1!H195/1000 -> 0 | G197: =IF(#REF!>0,#REF!,0) ->  | H197: =IF(G197>0,1,0) ->  | I197: =IF(#REF!>0,#REF!,0) ->  | J197: 0
A198: ГРС.г.Вельск | B198: =Лист1!B195 ->  | C198: =Лист1!A195 ->  | D198: =Лист1!C195 -> 6 | E198: =Лист1!BI195/1000 -> 0 | F198: =Лист1!H196/1000 -> 0 | G198: =IF(#REF!>0,#REF!,0) ->  | H198: =IF(G198>0,1,0) ->  | I198: =IF(#REF!>0,#REF!,0) ->  | J198: 0
A199: ГРС.г.Вельск | B199: =Лист1!B196 -> Вельск, ул.Горького-20 | C199: =Лист1!A196 -> ООО "КМТС плюс" | D199: =Лист1!C196 -> 6 | E199: =Лист1!BI196/1000 -> 0 | F199: =Лист1!H197/1000 -> 0 | G199: =IF(#REF!>0,#REF!,0) ->  | I199: =IF(#REF!>0,#REF!,0) ->  | J199: 0
A200: ГРС.г.Вельск | B200: =Лист1!B197 ->  | C200: =Лист1!A197 ->  | D200: =Лист1!C197 -> 6 | E200: =Лист1!BI197/1000 -> 0 | F200: =Лист1!H198/1000 -> 0 | G200: =IF(#REF!>0,#REF!,0) ->  | I200: =IF(#REF!>0,#REF!,0) ->  | J200: 0
A201: ГРС.г.Вельск | B201: =Лист1!B198 ->  | C201: =Лист1!A198 ->  | D201: =Лист1!C198 -> 6 | E201: =Лист1!BI198/1000 -> 0 | F201: =Лист1!H199/1000 -> 0 | G201: =IF(#REF!>0,#REF!,0) ->  | H201: =IF(G201>0,1,0) ->  | I201: =IF(#REF!>0,#REF!,0) ->  | J201: 0
A202: ГРС.г.Вельск | B202: =Лист1!B199 ->  | C202: =Лист1!A199 ->  | D202: =Лист1!C199 -> 6 | E202: =Лист1!BI199/1000 -> 0 | F202: =Лист1!H200/1000 -> 0 | G202: =IF(#REF!>0,#REF!,0) ->  | H202: =IF(G202>0,1,0) ->  | I202: =IF(#REF!>0,#REF!,0) ->  | J202: 0
A203: ГРС.г.Вельск | B203: =Лист1!B200 ->  | C203: =Лист1!A200 -> ГАУ АО ИД "Вельские вести" | D203: =Лист1!C200 -> 7 | E203: =Лист1!BI200/1000 -> 2e-05 | F203: =Лист1!H201/1000 -> 0 | G203: =IF(#REF!>0,#REF!,0) ->  | I203: =IF(#REF!>0,#REF!,0) ->  | J203: 2e-05
A204: ГРС.г.Вельск | B204: =Лист1!B201 ->  | C204: =Лист1!A201 ->  | D204: =Лист1!C201 -> 7 | E204: =Лист1!BI201/1000 -> 0 | F204: =Лист1!H202/1000 -> 0 | G204: =IF(#REF!>0,#REF!,0) ->  | I204: =IF(#REF!>0,#REF!,0) ->  | J204: 0
A205: ГРС.г.Вельск | B205: =Лист1!B202 ->  | C205: =Лист1!A202 ->  | D205: =Лист1!C202 -> 7 | E205: =Лист1!BI202/1000 -> 0 | F205: =Лист1!H203/1000 -> 0 | G205: =IF(#REF!>0,#REF!,0) ->  | H205: =IF(G205>0,1,0) ->  | I205: =IF(#REF!>0,#REF!,0) ->  | J205: 0
A206: ГРС.г.Вельск | B206: =Лист1!B203 ->  | C206: =Лист1!A203 ->  | D206: =Лист1!C203 -> 7 | E206: =Лист1!BI203/1000 -> 0 | F206: =Лист1!H204/1000 -> 0 | G206: =IF(#REF!>0,#REF!,0) ->  | H206: =IF(G206>0,1,0) ->  | I206: =IF(#REF!>0,#REF!,0) ->  | J206: 0
A207: ГРС.г.Вельск | B207: =Лист1!B204 -> Вельск | C207: =Лист1!A204 -> АО "Тандер" | D207: =Лист1!C204 -> 7 | E207: =Лист1!BI204/1000 -> 0 | F207: =Лист1!H205/1000 -> 0 | G207: =IF(#REF!>0,#REF!,0) ->  | I207: =IF(#REF!>0,#REF!,0) ->  | J207: 0
A208: ГРС.г.Вельск | B208: =Лист1!B205 ->  | C208: =Лист1!A205 ->  | D208: =Лист1!C205 -> 7 | E208: =Лист1!BI205/1000 -> 0 | F208: =Лист1!H206/1000 -> 0 | G208: =IF(#REF!>0,#REF!,0) ->  | I208: =IF(#REF!>0,#REF!,0) ->  | J208: 0
A209: ГРС.г.Вельск | B209: =Лист1!B206 ->  | C209: =Лист1!A206 ->  | D209: =Лист1!C206 -> 7 | E209: =Лист1!BI206/1000 -> 0 | F209: =Лист1!H207/1000 -> 0 | G209: =IF(#REF!>0,#REF!,0) ->  | H209: =IF(G209>0,1,0) ->  | I209: =IF(#REF!>0,#REF!,0) ->  | J209: 0
A210: ГРС.г.Вельск | B210: =Лист1!B207 ->  | C210: =Лист1!A207 ->  | D210: =Лист1!C207 -> 7 | E210: =Лист1!BI207/1000 -> 0 | F210: =Лист1!H208/1000 -> 0 | G210: =IF(#REF!>0,#REF!,0) ->  | H210: =IF(G210>0,1,0) ->  | I210: =IF(#REF!>0,#REF!,0) ->  | J210: 0
A211: ГРС.г.Вельск | B211: =Лист1!B208 -> Вельск, ул.Дзержинского-59 | C211: =Лист1!A208 -> ИП Любарская Анастасия Алексеевна (до 01.09 - Евдокимова) | D211: =Лист1!C208 -> 6 | E211: =Лист1!BI208/1000 -> 0.002 | F211: =Лист1!H209/1000 -> 0.000894 | G211: =IF(#REF!>0,#REF!,0) ->  | I211: =IF(#REF!>0,#REF!,0) ->  | J211: =E211-F211 -> 0.001106
... 940 more rows

Sheet Лист1
A4: Транспортировка газа по сетям ГРО ООО "ВельскГазСервис"
Q6: 479.72 | AI6: 1238.65 | AO6: 1651.49 | AU6: 2064.38 | BA6: 2580.47 | BG6: 966.2
A10: АВГУСТ | C10: Группа | D10: Договор поставки газа | E10: Лимит | F10: Перебор | J10: Транспорт газа | Q10: Инвестиционная составляющая к тарифу ГРО | AI10: объем фактической транспортировки газа, тыс.куб.м | BI10: План транспортировки по договору, тыс.куб.м
E11: объем | G11: объем | H11: Расчетный | I11: Тарифная | J11: сумма услуг | K11: сверх договора | O11: сумма услуг | R11: сумма услуг | S11: сверх договора | W11: сумма услуг | AI11: > 1 000 000 до 10 000 000 | AO11: > 100 000 до 1 000 000 | AU11: > 10 000 до 100 000 | BA11: до 10 000 | BG11: население
A12: Потребитель газа | B12: Точка подключения | F12: К | H12: тариф | I12: ставка , | J12: по лимиту , | K12: тариф | L12: сумма услуг | M12: сумма К | N12: НДС | O12: всего , | Q12: размер, | R12: по лимиту , | S12: размер, | T12: сумма услуг, | U12: сумма К, | V12: НДС | W12: всего , | AI12: лимит | AJ12: перебор | AK12: П | AO12: лимит | AP12: перебор | AQ12: П | AU12: лимит | AV12: перебор | AW12: П | BA12: лимит | BB12: перебор | BC12: П
E13: тыс.куб.м | G13: тыс.куб.м | H13: руб./1000 куб.м | I13: руб./1000 куб.м | J13: руб. | K13: руб./1000 куб.м | L13: руб. | M13: руб. | N13: руб. | O13: руб. | Q13: руб./1000 куб.м | R13: руб. | S13: руб./1000 куб.м | T13: руб. | U13: руб. | V13: руб. | W13: руб.
AI14: 4 | AK14: л | AL14: 1 | AM14: п | AN14: 1 | AO14: 5 | AQ14: л | AR14: 1 | AS14: п | AT14: 1 | AU14: 6 | AW14: л | AX14: 1 | AY14: п | AZ14: 1 | BA14: 7 | BC14: л | BD14: 1 | BE14: п | BF14: 1 | BG14: 8 | BI14: 1000
A16: АО "ГТ Энерго" | B16: Вельск, ул.Гайдара-37б (64 квартал) | C16: =C17 -> 6 | D16: 03-4-24.007 | E16: 0 | F16: 1.5 | G16: 0 | H16: =E16+G16 -> 0 | I16: =SUMIF(Y$14:BA$14,C16,Y$6:BA$6) -> 2064.38 | J16: =IF(H16=0,ROUND(E16*I16,2),IF(H16>0,ROUND(H16*E16,2),0)) -> 0 | K16: =ROUND(F16*I16,2) -> 3096.57 | L16: =IF(H16=0,ROUND(ROUND(F16*I16,2)*G16,2),IF(H16>0,ROUND(G16*H16,2),0)) -> 0 | M16: =IF(H16=0,L16-ROUND(G16*I16,2),0) -> 0 | O16: =J16+L16+N16 -> 0 | Q16: =IF(BI16>0,Q$6,Q$6) -> 479.72 | R16: =ROUND(Q16*(E16+G16),2) -> 0 | W16: =R16+T16+V16 -> 0 | AI16: =IF($I16=AI$6,$E16,0) -> 0 | AJ16: =IF($K16=ROUND(AI$6*$F16,2),$G16,0) -> 0 | AK16: =IF($H16>0,AI16,0) -> 0 | AL16: =IF(AK16>0,1,0) -> 0 | AM16: =IF($H16>0,AJ16,0) -> 0 | AN16: =IF(AM16>0,1,0) -> 0 | AO16: =IF($I16=AO$6,$E16,0) -> 0 | AP16: =IF($K16=ROUND(AO$6*$F16,2),$G16,0) -> 0 | AQ16: =IF($H16>0,AO16,0) -> 0 | AR16: =IF(AQ16>0,1,0) -> 0 | AS16: =IF($H16>0,AP16,0) -> 0 | AT16: =IF(AS16>0,1,0) -> 0 | AU16: =IF($I16=AU$6,$E16,0) -> 0 | AV16: =IF($K16=ROUND(AU$6*$F16,2),$G16,0) -> 0 | AW16: =IF($H16>0,AU16,0) -> 0 | AX16: =IF(AW16>0,1,0) -> 0 | AY16: =IF($H16>0,AV16,0) -> 0 | AZ16: =IF(AY16>0,1,0) -> 0 | BA16: =IF($I16=BA$6,$E16,0) -> 0 | BB16: =IF($K16=ROUND(BA$6*$F16,2),$G16,0) -> 0 | BC16: =IF($H16>0,BA16,0) -> 0 | BD16: =IF(BC16>0,1,0) -> 0 | BE16: =IF($H16>0,BB16,0) -> 0 | BF16: =IF(BE16>0,1,0) -> 0 | BI16: 0 | BL16: =E16-SUM(AI16,AO16,AU16,BA16) -> 0
A17: =IF(E17+G17>0,A16,"") ->  | B17: =IF(E17+G17>0,B16,"") ->  | C17: 6 | D17: 03-4-24.007 | E17: 0 | F17: 1.1 | G17: 0 | H17: =E17+G17 -> 0 | I17: =SUMIF(Y$14:BA$14,C17,Y$6:BA$6) -> 2064.38 | J17: =IF(H17=0,ROUND(E17*I17,2),IF(H17>0,ROUND(H17*E17,2),0)) -> 0 | K17: =ROUND(F17*I17,2) -> 2270.82 | L17: =IF(H17=0,ROUND(ROUND(F17*I17,2)*G17,2),IF(H17>0,ROUND(G17*H17,2),0)) -> 0 | M17: =IF(H17=0,L17-ROUND(G17*I17,2),0) -> 0 | O17: =J17+L17+N17 -> 0 | Q17: 479.72 | R17: =ROUND(Q17*(E17+G17),2) -> 0 | W17: =R17+T17+V17 -> 0 | AI17: =IF($I17=AI$6,$E17,0) -> 0 | AJ17: 0 | AK17: =IF($H17>0,AI17,0) -> 0 | AL17: =IF(AK17>0,1,0) -> 0 | AM17: =IF($H17>0,AJ17,0) -> 0 | AN17: =IF(AM17>0,1,0) -> 0 | AO17: =IF($I17=AO$6,$E17,0) -> 0 | AP17: 0 | AQ17: =IF($H17>0,AO17,0) -> 0 | AR17: =IF(AQ17>0,1,0) -> 0 | AS17: =IF($H17>0,AP17,0) -> 0 | AT17: =IF(AS17>0,1,0) -> 0 | AU17: =IF($I17=AU$6,$E17,0) -> 0 | AV17: 0 | AW17: =IF($H17>0,AU17,0) -> 0 | AX17: =IF(AW17>0,1,0) -> 0 | AY17: =IF($H17>0,AV17,0) -> 0 | AZ17: =IF(AY17>0,1,0) -> 0 | BA17: =IF($I17=BA$6,$E17,0) -> 0 | BB17: 0 | BC17: =IF($H17>0,BA17,0) -> 0 | BD17: =IF(BC17>0,1,0) -> 0 | BE17: =IF($H17>0,BB17,0) -> 0 | BF17: =IF(BE17>0,1,0) -> 0 | BL17: =E17-SUM(AI17,AO17,AU17,BA17) -> 0
A18: АО "ГТ Энерго" | B18: Вельск, ул.Революционная-73 (ПУ-29) | C18: =C19 -> 5 | D18: 03-4-23.007(333) | E18: 0 | F18: 1.5 | G18: 0 | H18: 0 | I18: =SUMIF(Y$14:BA$14,C18,Y$6:BA$6) -> 1651.49 | J18: =IF(H18=0,ROUND(E18*I18,2),IF(H18>0,ROUND(H18*E18,2),0)) -> 0 | K18: =ROUND(F18*I18,2) -> 2477.24 | L18: =IF(H18=0,ROUND(ROUND(F18*I18,2)*G18,2),IF(H18>0,ROUND(G18*H18,2),0)) -> 0 | M18: =IF(H18=0,L18-ROUND(G18*I18,2),0) -> 0 | O18: =J18+L18+N18 -> 0 | Q18: 479.72 | R18: =ROUND(Q18*(E18+G18),2) -> 0 | W18: =R18+T18+V18 -> 0 | AI18: =IF($I18=AI$6,$E18,0) -> 0 | AJ18: 0 | AK18: =IF($H18>0,AI18,0) -> 0 | AL18: =IF(AK18>0,1,0) -> 0 | AM18: =IF($H18>0,AJ18,0) -> 0 | AN18: =IF(AM18>0,1,0) -> 0 | AO18: =IF($I18=AO$6,$E18,0) -> 0 | AP18: 0 | AQ18: =IF($H18>0,AO18,0) -> 0 | AR18: =IF(AQ18>0,1,0) -> 0 | AS18: =IF($H18>0,AP18,0) -> 0 | AT18: =IF(AS18>0,1,0) -> 0 | AU18: =IF($I18=AU$6,$E18,0) -> 0 | AV18: 0 | AW18: =IF($H18>0,AU18,0) -> 0 | AX18: =IF(AW18>0,1,0) -> 0 | AY18: =IF($H18>0,AV18,0) -> 0 | AZ18: =IF(AY18>0,1,0) -> 0 | BA18: =IF($I18=BA$6,$E18,0) -> 0 | BB18: 0 | BC18: =IF($H18>0,BA18,0) -> 0 | BD18: =IF(BC18>0,1,0) -> 0 | BE18: =IF($H18>0,BB18,0) -> 0 | BF18: =IF(BE18>0,1,0) -> 0 | BI18: 0 | BL18: =E18-SUM(AI18,AO18,AU18,BA18) -> 0
A19: =IF(E19+G19>0,A18,"") ->  | B19: =IF(E19+G19>0,B18,"") ->  | C19: 5 | D19: 03-4-23.007(333) | E19: 0 | F19: 1.1 | G19: 0 | H19: 0 | I19: =SUMIF(Y$14:BA$14,C19,Y$6:BA$6) -> 1651.49 | J19: =IF(H19=0,ROUND(E19*I19,2),IF(H19>0,ROUND(H19*E19,2),0)) -> 0 | K19: =ROUND(F19*I19,2) -> 1816.64 | L19: =IF(H19=0,ROUND(ROUND(F19*I19,2)*G19,2),IF(H19>0,ROUND(G19*H19,2),0)) -> 0 | M19: =IF(H19=0,L19-ROUND(G19*I19,2),0) -> 0 | O19: =J19+L19+N19 -> 0 | Q19: 479.72 | R19: =ROUND(Q19*(E19+G19),2) -> 0 | W19: =R19+T19+V19 -> 0 | AI19: 0 | AJ19: 0 | AK19: =IF($H19>0,AI19,0) -> 0 | AL19: =IF(AK19>0,1,0) -> 0 | AM19: =IF($H19>0,AJ19,0) -> 0 | AN19: =IF(AM19>0,1,0) -> 0 | AO19: 0 | AP19: 0 | AQ19: =IF($H19>0,AO19,0) -> 0 | AR19: =IF(AQ19>0,1,0) -> 0 | AS19: =IF($H19>0,AP19,0) -> 0 | AT19: =IF(AS19>0,1,0) -> 0 | AU19: 0 | AV19: 0 | AW19: =IF($H19>0,AU19,0) -> 0 | AX19: =IF(AW19>0,1,0) -> 0 | AY19: =IF($H19>0,AV19,0) -> 0 | AZ19: =IF(AY19>0,1,0) -> 0 | BA19: 0 | BB19: 0 | BC19: =IF($H19>0,BA19,0) -> 0 | BD19: =IF(BC19>0,1,0) -> 0 | BE19: =IF($H19>0,BB19,0) -> 0 | BF19: =IF(BE19>0,1,0) -> 0 | BL19: =E19-SUM(AI19,AO19,AU19,BA19) -> 0
A20: =IF(E20+G20>0,A18,"") ->  | B20: =IF(E20+G20>0,B18,"") ->  | C20: =C19 -> 5 | D20: 03-4-23.007(333) | E20: 0 | F20: 1.5 | G20: 0 | H20: 0 | I20: =SUMIF(Y$14:BA$14,C20,Y$7:BA$7) -> 0 | J20: 0 | K20: 0 | L20: 0 | M20: 0 | O20: 0 | Q20: 479.72 | R20: 0 | W20: 0 | AI20: =IF($I20=AI$7,$E20,0) -> 0 | AJ20: =IF($K20=ROUND(AI$7*$F20,2),$G20,0) -> 0 | AK20: 0 | AL20: 0 | AM20: 0 | AN20: 0 | AO20: =IF($I20=AO$7,$E20,0) -> 0 | AP20: =IF($K20=ROUND(AO$7*$F20,2),$G20,0) -> 0 | AQ20: 0 | AR20: 0 | AS20: 0 | AT20: 0 | AU20: =IF($I20=AU$7,$E20,0) -> 0 | AV20: =IF($K20=ROUND(AU$7*$F20,2),$G20,0) -> 0 | AW20: 0 | AX20: 0 | AY20: 0 | AZ20: 0 | BA20: =IF($I20=BA$7,$E20,0) -> 0 | BB20: =IF($K20=ROUND(BA$7*$F20,2),$G20,0) -> 0 | BC20: 0 | BD20: 0 | BE20: 0 | BF20: 0 | BL20: 0
A21: =IF(E21+G21>0,A18,"") ->  | B21: =IF(E21+G21>0,B18,"") ->  | C21: =C19 -> 5 | D21: 03-4-23.007(333) | E21: 0 | F21: 1.1 | G21: 0 | H21: 0 | I21: =SUMIF(Y$14:BA$14,C21,Y$7:BA$7) -> 0 | J21: 0 | K21: 0 | L21: 0 | M21: 0 | O21: 0 | Q21: 479.72 | R21: 0 | W21: 0 | AI21: =IF($I21=AI$7,$E21,0) -> 0 | AJ21: =IF($K21=ROUND(AI$7*$F21,2),$G21,0) -> 0 | AK21: 0 | AL21: 0 | AM21: 0 | AN21: 0 | AO21: =IF($I21=AO$7,$E21,0) -> 0 | AP21: =IF($K21=ROUND(AO$7*$F21,2),$G21,0) -> 0 | AQ21: 0 | AR21: 0 | AS21: 0 | AT21: 0 | AU21: =IF($I21=AU$7,$E21,0) -> 0 | AV21: =IF($K21=ROUND(AU$7*$F21,2),$G21,0) -> 0 | AW21: 0 | AX21: 0 | AY21: 0 | AZ21: 0 | BA21: =IF($I21=BA$7,$E21,0) -> 0 | BB21: =IF($K21=ROUND(BA$7*$F21,2),$G21,0) -> 0 | BC21: 0 | BD21: 0 | BE21: 0 | BF21: 0 | BL21: 0
A22: АО "ГТ Энерго" | B22: Вельск, ул.Дзержинского-201 (агролицей №45) | C22: =C23 -> 4 | D22: 03-4-23.007(333) | E22: 0 | F22: 1.5 | G22: 0 | H22: 0 | I22: =SUMIF(Y$14:BA$14,C22,Y$6:BA$6) -> 1238.65 | J22: =IF(H22=0,ROUND(E22*I22,2),IF(H22>0,ROUND(H22*E22,2),0)) -> 0 | K22: =ROUND(F22*I22,2) -> 1857.98 | L22: =IF(H22=0,ROUND(ROUND(F22*I22,2)*G22,2),IF(H22>0,ROUND(G22*H22,2),0)) -> 0 | M22: =IF(H22=0,L22-ROUND(G22*I22,2),0) -> 0 | O22: =J22+L22+N22 -> 0 | Q22: 479.72 | R22: =ROUND(Q22*(E22+G22),2) -> 0 | W22: =R22+T22+V22 -> 0 | AI22: =IF($I22=AI$6,$E22,0) -> 0 | AJ22: =IF($K22=ROUND(AI$6*$F22,2),$G22,0) -> 0 | AK22: =IF($H22>0,AI22,0) -> 0 | AL22: =IF(AK22>0,1,0) -> 0 | AM22: =IF($H22>0,AJ22,0) -> 0 | AN22: =IF(AM22>0,1,0) -> 0 | AO22: =IF($I22=AO$6,$E22,0) -> 0 | AP22: =IF($K22=ROUND(AO$6*$F22,2),$G22,0) -> 0 | AQ22: =IF($H22>0,AO22,0) -> 0 | AR22: =IF(AQ22>0,1,0) -> 0 | AS22: =IF($H22>0,AP22,0) -> 0 | AT22: =IF(AS22>0,1,0) -> 0 | AU22: =IF($I22=AU$6,$E22,0) -> 0 | AV22: =IF($K22=ROUND(AU$6*$F22,2),$G22,0) -> 0 | AW22: =IF($H22>0,AU22,0) -> 0 | AX22: =IF(AW22>0,1,0) -> 0 | AY22: =IF($H22>0,AV22,0) -> 0 | AZ22: =IF(AY22>0,1,0) -> 0 | BA22: =IF($I22=BA$6,$E22,0) -> 0 | BB22: =IF($K22=ROUND(BA$6*$F22,2),$G22,0) -> 0 | BC22: =IF($H22>0,BA22,0) -> 0 | BD22: =IF(BC22>0,1,0) -> 0 | BE22: =IF($H22>0,BB22,0) -> 0 | BF22: =IF(BE22>0,1,0) -> 0 | BI22: 56.6 | BL22: =E22-SUM(AI22,AO22,AU22,BA22) -> 0
A23: =IF(E23+G23>0,A22,"") -> АО "ГТ Энерго" | B23: =IF(E23+G23>0,B22,"") -> Вельск, ул.Дзержинского-201 (агролицей №45) | C23: 4 | D23: 03-4-23.007(333) | E23: 8.697 | F23: 1.1 | G23: 0 | H23: 8.697 | I23: =SUMIF(Y$14:BA$14,C23,Y$6:BA$6) -> 1238.65 | J23: =IF(H23=0,ROUND(E23*I23,2),IF(H23>0,ROUND(H23*E23,2),0)) -> 75.64 | K23: =ROUND(F23*I23,2) -> 1362.52 | L23: =IF(H23=0,ROUND(ROUND(F23*I23,2)*G23,2),IF(H23>0,ROUND(G23*H23,2),0)) -> 0 | M23: =IF(H23=0,L23-ROUND(G23*I23,2),0) -> 0 | O23: =J23+L23+N23 -> 75.64 | Q23: 479.72 | R23: =ROUND(Q23*(E23+G23),2) -> 4172.12 | W23: =R23+T23+V23 -> 4172.12 | AI23: 8.697 | AJ23: 0 | AK23: =IF($H23>0,AI23,0) -> 8.697 | AL23: =IF(AK23>0,1,0) -> 1 | AM23: =IF($H23>0,AJ23,0) -> 0 | AN23: =IF(AM23>0,1,0) -> 0 | AO23: 0 | AP23: 0 | AQ23: =IF($H23>0,AO23,0) -> 0 | AR23: =IF(AQ23>0,1,0) -> 0 | AS23: =IF($H23>0,AP23,0) -> 0 | AT23: =IF(AS23>0,1,0) -> 0 | AU23: 0 | AV23: 0 | AW23: =IF($H23>0,AU23,0) -> 0 | AX23: =IF(AW23>0,1,0) -> 0 | AY23: =IF($H23>0,AV23,0) -> 0 | AZ23: =IF(AY23>0,1,0) -> 0 | BA23: 0 | BB23: 0 | BC23: =IF($H23>0,BA23,0) -> 0 | BD23: =IF(BC23>0,1,0) -> 0 | BE23: =IF($H23>0,BB23,0) -> 0 | BF23: =IF(BE23>0,1,0) -> 0 | BL23: =E23-SUM(AI23,AO23,AU23,BA23) -> 0
A24: =IF(E24+G24>0,A22,"") ->  | B24: =IF(E24+G24>0,B22,"") ->  | C24: =C23 -> 4 | D24: 03-4-23.007(333) | E24: 0 | F24: 1.5 | G24: 0 | H24: 0 | I24: =SUMIF(Y$14:BA$14,C24,Y$7:BA$7) -> 0 | J24: 0 | K24: 0 | L24: 0 | M24: 0 | O24: 0 | Q24: 479.72 | R24: 0 | W24: 0 | AI24: =IF($I24=AI$7,$E24,0) -> 0 | AJ24: =IF($K24=ROUND(AI$7*$F24,2),$G24,0) -> 0 | AK24: 0 | AL24: 0 | AM24: 0 | AN24: 0 | AO24: =IF($I24=AO$7,$E24,0) -> 0 | AP24: =IF($K24=ROUND(AO$7*$F24,2),$G24,0) -> 0 | AQ24: 0 | AR24: 0 | AS24: 0 | AT24: 0 | AU24: =IF($I24=AU$7,$E24,0) -> 0 | AV24: =IF($K24=ROUND(AU$7*$F24,2),$G24,0) -> 0 | AW24: 0 | AX24: 0 | AY24: 0 | AZ24: 0 | BA24: =IF($I24=BA$7,$E24,0) -> 0 | BB24: =IF($K24=ROUND(BA$7*$F24,2),$G24,0) -> 0 | BC24: 0 | BD24: 0 | BE24: 0 | BF24: 0 | BL24: 0
A25: =IF(E25+G25>0,A22,"") ->  | B25: =IF(E25+G25>0,B22,"") ->  | C25: =C23 -> 4 | D25: 03-4-23.007(333) | E25: 0 | F25: 1.1 | G25: 0 | H25: 0 | I25: =SUMIF(Y$14:BA$14,C25,Y$7:BA$7) -> 0 | J25: 0 | K25: 0 | L25: 0 | M25: 0 | O25: 0 | Q25: 479.72 | R25: 0 | W25: 0 | AI25: =IF($I25=AI$7,$E25,0) -> 0 | AJ25: =IF($K25=ROUND(AI$7*$F25,2),$G25,0) -> 0 | AK25: 0 | AL25: 0 | AM25: 0 | AN25: 0 | AO25: =IF($I25=AO$7,$E25,0) -> 0 | AP25: =IF($K25=ROUND(AO$7*$F25,2),$G25,0) -> 0 | AQ25: 0 | AR25: 0 | AS25: 0 | AT25: 0 | AU25: =IF($I25=AU$7,$E25,0) -> 0 | AV25: =IF($K25=ROUND(AU$7*$F25,2),$G25,0) -> 0 | AW25: 0 | AX25: 0 | AY25: 0 | AZ25: 0 | BA25: =IF($I25=BA$7,$E25,0) -> 0 | BB25: =IF($K25=ROUND(BA$7*$F25,2),$G25,0) -> 0 | BC25: 0 | BD25: 0 | BE25: 0 | BF25: 0 | BL25: 0
A26: АО "ГТ Энерго" | B26: Вельск, ул.Пушкина-6Б | C26: =C27 -> 5 | D26: 03-4-23.007(333) | E26: 0 | F26: 1.5 | G26: 0 | H26: 0 | I26: =SUMIF(Y$14:BA$14,C26,Y$6:BA$6) -> 1651.49 | J26: =IF(H26=0,ROUND(E26*I26,2),IF(H26>0,ROUND(H26*E26,2),0)) -> 0 | K26: =ROUND(F26*I26,2) -> 2477.24 | L26: =IF(H26=0,ROUND(ROUND(F26*I26,2)*G26,2),IF(H26>0,ROUND(G26*H26,2),0)) -> 0 | M26: =IF(H26=0,L26-ROUND(G26*I26,2),0) -> 0 | O26: =J26+L26+N26 -> 0 | Q26: 479.72 | R26: =ROUND(Q26*(E26+G26),2) -> 0 | W26: =R26+T26+V26 -> 0 | AI26: =IF($I26=AI$6,$E26,0) -> 0 | AJ26: =IF($K26=ROUND(AI$6*$F26,2),$G26,0) -> 0 | AK26: =IF($H26>0,AI26,0) -> 0 | AL26: =IF(AK26>0,1,0) -> 0 | AM26: =IF($H26>0,AJ26,0) -> 0 | AN26: =IF(AM26>0,1,0) -> 0 | AO26: =IF($I26=AO$6,$E26,0) -> 0 | AP26: =IF($K26=ROUND(AO$6*$F26,2),$G26,0) -> 0 | AQ26: =IF($H26>0,AO26,0) -> 0 | AR26: =IF(AQ26>0,1,0) -> 0 | AS26: =IF($H26>0,AP26,0) -> 0 | AT26: =IF(AS26>0,1,0) -> 0 | AU26: =IF($I26=AU$6,$E26,0) -> 0 | AV26: =IF($K26=ROUND(AU$6*$F26,2),$G26,0) -> 0 | AW26: =IF($H26>0,AU26,0) -> 0 | AX26: =IF(AW26>0,1,0) -> 0 | AY26: =IF($H26>0,AV26,0) -> 0 | AZ26: =IF(AY26>0,1,0) -> 0 | BA26: =IF($I26=BA$6,$E26,0) -> 0 | BB26: =IF($K26=ROUND(BA$6*$F26,2),$G26,0) -> 0 | BC26: =IF($H26>0,BA26,0) -> 0 | BD26: =IF(BC26>0,1,0) -> 0 | BE26: =IF($H26>0,BB26,0) -> 0 | BF26: =IF(BE26>0,1,0) -> 0 | BI26: 0 | BL26: =E26-SUM(AI26,AO26,AU26,BA26) -> 0
A27: =IF(E27+G27>0,A26,"") ->  | B27: =IF(E27+G27>0,B26,"") ->  | C27: 5 | D27: 03-4-23.007(333) | E27: 0 | F27: 1.1 | G27: 0 | H27: 0 | I27: =SUMIF(Y$14:BA$14,C27,Y$6:BA$6) -> 1651.49 | J27: =IF(H27=0,ROUND(E27*I27,2),IF(H27>0,ROUND(H27*E27,2),0)) -> 0 | K27: =ROUND(F27*I27,2) -> 1816.64 | L27: =IF(H27=0,ROUND(ROUND(F27*I27,2)*G27,2),IF(H27>0,ROUND(G27*H27,2),0)) -> 0 | M27: =IF(H27=0,L27-ROUND(G27*I27,2),0) -> 0 | O27: =J27+L27+N27 -> 0 | Q27: 479.72 | R27: =ROUND(Q27*(E27+G27),2) -> 0 | W27: =R27+T27+V27 -> 0 | AI27: =IF($I27=AI$6,$E27,0) -> 0 | AJ27: 0 | AK27: =IF($H27>0,AI27,0) -> 0 | AL27: =IF(AK27>0,1,0) -> 0 | AM27: =IF($H27>0,AJ27,0) -> 0 | AN27: =IF(AM27>0,1,0) -> 0 | AO27: =IF($I27=AO$6,$E27,0) -> 0 | AP27: 0 | AQ27: =IF($H27>0,AO27,0) -> 0 | AR27: =IF(AQ27>0,1,0) -> 0 | AS27: =IF($H27>0,AP27,0) -> 0 | AT27: =IF(AS27>0,1,0) -> 0 | AU27: =IF($I27=AU$6,$E27,0) -> 0 | AV27: 0 | AW27: =IF($H27>0,AU27,0) -> 0 | AX27: =IF(AW27>0,1,0) -> 0 | AY27: =IF($H27>0,AV27,0) -> 0 | AZ27: =IF(AY27>0,1,0) -> 0 | BA27: =IF($I27=BA$6,$E27,0) -> 0 | BB27: 0 | BC27: =IF($H27>0,BA27,0) -> 0 | BD27: =IF(BC27>0,1,0) -> 0 | BE27: =IF($H27>0,BB27,0) -> 0 | BF27: =IF(BE27>0,1,0) -> 0 | BL27: =E27-SUM(AI27,AO27,AU27,BA27) -> 0
A28: =IF(E28+G28>0,A26,"") ->  | B28: =IF(E28+G28>0,B26,"") ->  | C28: =C27 -> 5 | D28: 03-4-23.007(333) | E28: 0 | F28: 1.5 | G28: 0 | H28: 0 | I28: =SUMIF(Y$14:BA$14,C28,Y$7:BA$7) -> 0 | J28: 0 | K28: 0 | L28: 0 | M28: 0 | O28: 0 | Q28: 479.72 | R28: 0 | W28: 0 | AI28: =IF($I28=AI$7,$E28,0) -> 0 | AJ28: =IF($K28=ROUND(AI$7*$F28,2),$G28,0) -> 0 | AK28: 0 | AL28: 0 | AM28: 0 | AN28: 0 | AO28: =IF($I28=AO$7,$E28,0) -> 0 | AP28: =IF($K28=ROUND(AO$7*$F28,2),$G28,0) -> 0 | AQ28: 0 | AR28: 0 | AS28: 0 | AT28: 0 | AU28: =IF($I28=AU$7,$E28,0) -> 0 | AV28: =IF($K28=ROUND(AU$7*$F28,2),$G28,0) -> 0 | AW28: 0 | AX28: 0 | AY28: 0 | AZ28: 0 | BA28: =IF($I28=BA$7,$E28,0) -> 0 | BB28: =IF($K28=ROUND(BA$7*$F28,2),$G28,0) -> 0 | BC28: 0 | BD28: 0 | BE28: 0 | BF28: 0 | BL28: 0
A29: =IF(E29+G29>0,A26,"") ->  | B29: =IF(E29+G29>0,B26,"") ->  | C29: =C27 -> 5 | D29: 03-4-23.007(333) | E29: 0 | F29: 1.1 | G29: 0 | H29: 0 | I29: =SUMIF(Y$14:BA$14,C29,Y$7:BA$7) -> 0 | J29: 0 | K29: 0 | L29: 0 | M29: 0 | O29: 0 | Q29: 479.72 | R29: 0 | W29: 0 | AI29: =IF($I29=AI$7,$E29,0) -> 0 | AJ29: =IF($K29=ROUND(AI$7*$F29,2),$G29,0) -> 0 | AK29: 0 | AL29: 0 | AM29: 0 | AN29: 0 | AO29: =IF($I29=AO$7,$E29,0) -> 0 | AP29: =IF($K29=ROUND(AO$7*$F29,2),$G29,0) -> 0 | AQ29: 0 | AR29: 0 | AS29: 0 | AT29: 0 | AU29: =IF($I29=AU$7,$E29,0) -> 0 | AV29: =IF($K29=ROUND(AU$7*$F29,2),$G29,0) -> 0 | AW29: 0 | AX29: 0 | AY29: 0 | AZ29: 0 | BA29: =IF($I29=BA$7,$E29,0) -> 0 | BB29: =IF($K29=ROUND(BA$7*$F29,2),$G29,0) -> 0 | BC29: 0 | BD29: 0 | BE29: 0 | BF29: 0 | BL29: 0
A30: АО "ГТ Энерго" | B30: д.Горка Муравьевская, БМК №2 | C30: =C31 -> 5 | D30: 03-4-23.007(333) | E30: 0 | F30: 1.5 | G30: 0 | H30: 0 | I30: =SUMIF(Y$14:BA$14,C30,Y$6:BA$6) -> 1651.49 | J30: =IF(H30=0,ROUND(E30*I30,2),IF(H30>0,ROUND(H30*E30,2),0)) -> 0 | K30: =ROUND(F30*I30,2) -> 2477.24 | L30: =IF(H30=0,ROUND(ROUND(F30*I30,2)*G30,2),IF(H30>0,ROUND(G30*H30,2),0)) -> 0 | M30: =IF(H30=0,L30-ROUND(G30*I30,2),0) -> 0 | O30: =J30+L30+N30 -> 0 | Q30: 479.72 | R30: =ROUND(Q30*(E30+G30),2) -> 0 | W30: =R30+T30+V30 -> 0 | AI30: =IF($I30=AI$6,$E30,0) -> 0 | AJ30: =IF($K30=ROUND(AI$6*$F30,2),$G30,0) -> 0 | AK30: =IF($H30>0,AI30,0) -> 0 | AL30: =IF(AK30>0,1,0) -> 0 | AM30: =IF($H30>0,AJ30,0) -> 0 | AN30: =IF(AM30>0,1,0) -> 0 | AO30: =IF($I30=AO$6,$E30,0) -> 0 | AP30: =IF($K30=ROUND(AO$6*$F30,2),$G30,0) -> 0 | AQ30: =IF($H30>0,AO30,0) -> 0 | AR30: =IF(AQ30>0,1,0) -> 0 | AS30: =IF($H30>0,AP30,0) -> 0 | AT30: =IF(AS30>0,1,0) -> 0 | AU30: =IF($I30=AU$6,$E30,0) -> 0 | AV30: =IF($K30=ROUND(AU$6*$F30,2),$G30,0) -> 0 | AW30: =IF($H30>0,AU30,0) -> 0 | AX30: =IF(AW30>0,1,0) -> 0 | AY30: =IF($H30>0,AV30,0) -> 0 | AZ30: =IF(AY30>0,1,0) -> 0 | BA30: =IF($I30=BA$6,$E30,0) -> 0 | BB30: =IF($K30=ROUND(BA$6*$F30,2),$G30,0) -> 0 | BC30: =IF($H30>0,BA30,0) -> 0 | BD30: =IF(BC30>0,1,0) -> 0 | BE30: =IF($H30>0,BB30,0) -> 0 | BF30: =IF(BE30>0,1,0) -> 0 | BI30: 0 | BL30: =E30-SUM(AI30,AO30,AU30,BA30) -> 0
A31: =IF(E31+G31>0,A30,"") ->  | B31: =IF(E31+G31>0,B30,"") ->  | C31: 5 | D31: 03-4-23.007(333) | E31: 0 | F31: 1.1 | G31: 0 | H31: 0 | I31: =SUMIF(Y$14:BA$14,C31,Y$6:BA$6) -> 1651.49 | J31: =IF(H31=0,ROUND(E31*I31,2),IF(H31>0,ROUND(H31*E31,2),0)) -> 0 | K31: =ROUND(F31*I31,2) -> 1816.64 | L31: =IF(H31=0,ROUND(ROUND(F31*I31,2)*G31,2),IF(H31>0,ROUND(G31*H31,2),0)) -> 0 | M31: =IF(H31=0,L31-ROUND(G31*I31,2),0) -> 0 | O31: =J31+L31+N31 -> 0 | Q31: 479.72 | R31: =ROUND(Q31*(E31+G31),2) -> 0 | W31: =R31+T31+V31 -> 0 | AI31: =IF($I31=AI$6,$E31,0) -> 0 | AJ31: 0 | AK31: =IF($H31>0,AI31,0) -> 0 | AL31: =IF(AK31>0,1,0) -> 0 | AM31: =IF($H31>0,AJ31,0) -> 0 | AN31: =IF(AM31>0,1,0) -> 0 | AO31: =IF($I31=AO$6,$E31,0) -> 0 | AP31: 0 | AQ31: =IF($H31>0,AO31,0) -> 0 | AR31: =IF(AQ31>0,1,0) -> 0 | AS31: =IF($H31>0,AP31,0) -> 0 | AT31: =IF(AS31>0,1,0) -> 0 | AU31: =IF($I31=AU$6,$E31,0) -> 0 | AV31: 0 | AW31: =IF($H31>0,AU31,0) -> 0 | AX31: =IF(AW31>0,1,0) -> 0 | AY31: =IF($H31>0,AV31,0) -> 0 | AZ31: =IF(AY31>0,1,0) -> 0 | BA31: =IF($I31=BA$6,$E31,0) -> 0 | BB31: 0 | BC31: =IF($H31>0,BA31,0) -> 0 | BD31: =IF(BC31>0,1,0) -> 0 | BE31: =IF($H31>0,BB31,0) -> 0 | BF31: =IF(BE31>0,1,0) -> 0 | BL31: =E31-SUM(AI31,AO31,AU31,BA31) -> 0
A32: =IF(E32+G32>0,A30,"") ->  | B32: =IF(E32+G32>0,B30,"") ->  | C32: =C31 -> 5 | D32: 03-4-23.007(333) | E32: 0 | F32: 1.5 | G32: 0 | H32: 0 | I32: =SUMIF(Y$14:BA$14,C32,Y$7:BA$7) -> 0 | J32: 0 | K32: 0 | L32: 0 | M32: 0 | O32: 0 | Q32: 479.72 | R32: 0 | W32: 0 | AI32: =IF($I32=AI$7,$E32,0) -> 0 | AJ32: =IF($K32=ROUND(AI$7*$F32,2),$G32,0) -> 0 | AK32: 0 | AL32: 0 | AM32: 0 | AN32: 0 | AO32: =IF($I32=AO$7,$E32,0) -> 0 | AP32: =IF($K32=ROUND(AO$7*$F32,2),$G32,0) -> 0 | AQ32: 0 | AR32: 0 | AS32: 0 | AT32: 0 | AU32: =IF($I32=AU$7,$E32,0) -> 0 | AV32: =IF($K32=ROUND(AU$7*$F32,2),$G32,0) -> 0 | AW32: 0 | AX32: 0 | AY32: 0 | AZ32: 0 | BA32: =IF($I32=BA$7,$E32,0) -> 0 | BB32: =IF($K32=ROUND(BA$7*$F32,2),$G32,0) -> 0 | BC32: 0 | BD32: 0 | BE32: 0 | BF32: 0 | BL32: 0
A33: =IF(E33+G33>0,A30,"") ->  | B33: =IF(E33+G33>0,B30,"") ->  | C33: =C31 -> 5 | D33: 03-4-23.007(333) | E33: 0 | F33: 1.1 | G33: 0 | H33: 0 | I33: =SUMIF(Y$14:BA$14,C33,Y$7:BA$7) -> 0 | J33: 0 | K33: 0 | L33: 0 | M33: 0 | O33: 0 | Q33: 479.72 | R33: 0 | W33: 0 | AI33: =IF($I33=AI$7,$E33,0) -> 0 | AJ33: =IF($K33=ROUND(AI$7*$F33,2),$G33,0) -> 0 | AK33: 0 | AL33: 0 | AM33: 0 | AN33: 0 | AO33: =IF($I33=AO$7,$E33,0) -> 0 | AP33: =IF($K33=ROUND(AO$7*$F33,2),$G33,0) -> 0 | AQ33: 0 | AR33: 0 | AS33: 0 | AT33: 0 | AU33: =IF($I33=AU$7,$E33,0) -> 0 | AV33: =IF($K33=ROUND(AU$7*$F33,2),$G33,0) -> 0 | AW33: 0 | AX33: 0 | AY33: 0 | AZ33: 0 | BA33: =IF($I33=BA$7,$E33,0) -> 0 | BB33: =IF($K33=ROUND(BA$7*$F33,2),$G33,0) -> 0 | BC33: 0 | BD33: 0 | BE33: 0 | BF33: 0 | BL33: 0
A34: АО "ГТ Энерго" | B34: д.Вороновская, БМК №3 | C34: =C35 -> 5 | D34: 03-4-23.007(333) | E34: 0 | F34: 1.5 | G34: 0 | H34: 0 | I34: =SUMIF(Y$14:BA$14,C34,Y$6:BA$6) -> 1651.49 | J34: =IF(H34=0,ROUND(E34*I34,2),IF(H34>0,ROUND(H34*E34,2),0)) -> 0 | K34: =ROUND(F34*I34,2) -> 2477.24 | L34: =IF(H34=0,ROUND(ROUND(F34*I34,2)*G34,2),IF(H34>0,ROUND(G34*H34,2),0)) -> 0 | M34: =IF(H34=0,L34-ROUND(G34*I34,2),0) -> 0 | O34: =J34+L34+N34 -> 0 | Q34: 479.72 | R34: =ROUND(Q34*(E34+G34),2) -> 0 | W34: =R34+T34+V34 -> 0 | AI34: =IF($I34=AI$6,$E34,0) -> 0 | AJ34: =IF($K34=ROUND(AI$6*$F34,2),$G34,0) -> 0 | AK34: =IF($H34>0,AI34,0) -> 0 | AL34: =IF(AK34>0,1,0) -> 0 | AM34: =IF($H34>0,AJ34,0) -> 0 | AN34: =IF(AM34>0,1,0) -> 0 | AO34: =IF($I34=AO$6,$E34,0) -> 0 | AP34: =IF($K34=ROUND(AO$6*$F34,2),$G34,0) -> 0 | AQ34: =IF($H34>0,AO34,0) -> 0 | AR34: =IF(AQ34>0,1,0) -> 0 | AS34: =IF($H34>0,AP34,0) -> 0 | AT34: =IF(AS34>0,1,0) -> 0 | AU34: =IF($I34=AU$6,$E34,0) -> 0 | AV34: =IF($K34=ROUND(AU$6*$F34,2),$G34,0) -> 0 | AW34: =IF($H34>0,AU34,0) -> 0 | AX34: =IF(AW34>0,1,0) -> 0 | AY34: =IF($H34>0,AV34,0) -> 0 | AZ34: =IF(AY34>0,1,0) -> 0 | BA34: =IF($I34=BA$6,$E34,0) -> 0 | BB34: =IF($K34=ROUND(BA$6*$F34,2),$G34,0) -> 0 | BC34: =IF($H34>0,BA34,0) -> 0 | BD34: =IF(BC34>0,1,0) -> 0 | BE34: =IF($H34>0,BB34,0) -> 0 | BF34: =IF(BE34>0,1,0) -> 0 | BI34: 0 | BL34: =E34-SUM(AI34,AO34,AU34,BA34) -> 0
A35: =IF(E35+G35>0,A34,"") ->  | B35: =IF(E35+G35>0,B34,"") ->  | C35: 5 | D35: 03-4-23.007(333) | E35: 0 | F35: 1.1 | G35: 0 | H35: 0 | I35: =SUMIF(Y$14:BA$14,C35,Y$6:BA$6) -> 1651.49 | J35: =IF(H35=0,ROUND(E35*I35,2),IF(H35>0,ROUND(H35*E35,2),0)) -> 0 | K35: =ROUND(F35*I35,2) -> 1816.64 | L35: =IF(H35=0,ROUND(ROUND(F35*I35,2)*G35,2),IF(H35>0,ROUND(G35*H35,2),0)) -> 0 | M35: =IF(H35=0,L35-ROUND(G35*I35,2),0) -> 0 | O35: =J35+L35+N35 -> 0 | Q35: 479.72 | R35: =ROUND(Q35*(E35+G35),2) -> 0 | W35: =R35+T35+V35 -> 0 | AI35: =IF($I35=AI$6,$E35,0) -> 0 | AJ35: 0 | AK35: =IF($H35>0,AI35,0) -> 0 | AL35: =IF(AK35>0,1,0) -> 0 | AM35: =IF($H35>0,AJ35,0) -> 0 | AN35: =IF(AM35>0,1,0) -> 0 | AO35: =IF($I35=AO$6,$E35,0) -> 0 | AP35: 0 | AQ35: =IF($H35>0,AO35,0) -> 0 | AR35: =IF(AQ35>0,1,0) -> 0 | AS35: =IF($H35>0,AP35,0) -> 0 | AT35: =IF(AS35>0,1,0) -> 0 | AU35: =IF($I35=AU$6,$E35,0) -> 0 | AV35: 0 | AW35: =IF($H35>0,AU35,0) -> 0 | AX35: =IF(AW35>0,1,0) -> 0 | AY35: =IF($H35>0,AV35,0) -> 0 | AZ35: =IF(AY35>0,1,0) -> 0 | BA35: =IF($I35=BA$6,$E35,0) -> 0 | BB35: 0 | BC35: =IF($H35>0,BA35,0) -> 0 | BD35: =IF(BC35>0,1,0) -> 0 | BE35: =IF($H35>0,BB35,0) -> 0 | BF35: =IF(BE35>0,1,0) -> 0 | BL35: =E35-SUM(AI35,AO35,AU35,BA35) -> 0
A36: =IF(E36+G36>0,A34,"") ->  | B36: =IF(E36+G36>0,B34,"") ->  | C36: =C35 -> 5 | D36: 03-4-23.007(333) | E36: 0 | F36: 1.5 | G36: 0 | H36: 0 | I36: =SUMIF(Y$14:BA$14,C36,Y$7:BA$7) -> 0 | J36: 0 | K36: 0 | L36: 0 | M36: 0 | O36: 0 | Q36: 479.72 | R36: 0 | W36: 0 | AI36: =IF($I36=AI$7,$E36,0) -> 0 | AJ36: =IF($K36=ROUND(AI$7*$F36,2),$G36,0) -> 0 | AK36: 0 | AL36: 0 | AM36: 0 | AN36: 0 | AO36: =IF($I36=AO$7,$E36,0) -> 0 | AP36: =IF($K36=ROUND(AO$7*$F36,2),$G36,0) -> 0 | AQ36: 0 | AR36: 0 | AS36: 0 | AT36: 0 | AU36: =IF($I36=AU$7,$E36,0) -> 0 | AV36: =IF($K36=ROUND(AU$7*$F36,2),$G36,0) -> 0 | AW36: 0 | AX36: 0 | AY36: 0 | AZ36: 0 | BA36: =IF($I36=BA$7,$E36,0) -> 0 | BB36: =IF($K36=ROUND(BA$7*$F36,2),$G36,0) -> 0 | BC36: 0 | BD36: 0 | BE36: 0 | BF36: 0 | BL36: 0
A37: =IF(E37+G37>0,A34,"") ->  | B37: =IF(E37+G37>0,B34,"") ->  | C37: =C35 -> 5 | D37: 03-4-23.007(333) | E37: 0 | F37: 1.1 | G37: 0 | H37: 0 | I37: =SUMIF(Y$14:BA$14,C37,Y$7:BA$7) -> 0 | J37: 0 | K37: 0 | L37: 0 | M37: 0 | O37: 0 | Q37: 479.72 | R37: 0 | W37: 0 | AI37: =IF($I37=AI$7,$E37,0) -> 0 | AJ37: =IF($K37=ROUND(AI$7*$F37,2),$G37,0) -> 0 | AK37: 0 | AL37: 0 | AM37: 0 | AN37: 0 | AO37: =IF($I37=AO$7,$E37,0) -> 0 | AP37: =IF($K37=ROUND(AO$7*$F37,2),$G37,0) -> 0 | AQ37: 0 | AR37: 0 | AS37: 0 | AT37: 0 | AU37: =IF($I37=AU$7,$E37,0) -> 0 | AV37: =IF($K37=ROUND(AU$7*$F37,2),$G37,0) -> 0 | AW37: 0 | AX37: 0 | AY37: 0 | AZ37: 0 | BA37: =IF($I37=BA$7,$E37,0) -> 0 | BB37: =IF($K37=ROUND(BA$7*$F37,2),$G37,0) -> 0 | BC37: 0 | BD37: 0 | BE37: 0 | BF37: 0 | BL37: 0
A38: АО "ГТ Энерго" | B38: Вельск, ул.Гайдара-16В | C38: =C39 -> 4 | D38: 03-4-23.007(333) | E38: 0 | F38: 1.5 | G38: 0 | H38: 0 | I38: =SUMIF(Y$14:BA$14,C38,Y$6:BA$6) -> 1238.65 | J38: =IF(H38=0,ROUND(E38*I38,2),IF(H38>0,ROUND(H38*E38,2),0)) -> 0 | K38: =ROUND(F38*I38,2) -> 1857.98 | L38: =IF(H38=0,ROUND(ROUND(F38*I38,2)*G38,2),IF(H38>0,ROUND(G38*H38,2),0)) -> 0 | M38: =IF(H38=0,L38-ROUND(G38*I38,2),0) -> 0 | O38: =J38+L38+N38 -> 0 | Q38: 479.72 | R38: =ROUND(Q38*(E38+G38),2) -> 0 | W38: =R38+T38+V38 -> 0 | AI38: =IF($I38=AI$6,$E38,0) -> 0 | AJ38: =IF($K38=ROUND(AI$6*$F38,2),$G38,0) -> 0 | AK38: =IF($H38>0,AI38,0) -> 0 | AL38: =IF(AK38>0,1,0) -> 0 | AM38: =IF($H38>0,AJ38,0) -> 0 | AN38: =IF(AM38>0,1,0) -> 0 | AO38: =IF($I38=AO$6,$E38,0) -> 0 | AP38: =IF($K38=ROUND(AO$6*$F38,2),$G38,0) -> 0 | AQ38: =IF($H38>0,AO38,0) -> 0 | AR38: =IF(AQ38>0,1,0) -> 0 | AS38: =IF($H38>0,AP38,0) -> 0 | AT38: =IF(AS38>0,1,0) -> 0 | AU38: =IF($I38=AU$6,$E38,0) -> 0 | AV38: =IF($K38=ROUND(AU$6*$F38,2),$G38,0) -> 0 | AW38: =IF($H38>0,AU38,0) -> 0 | AX38: =IF(AW38>0,1,0) -> 0 | AY38: =IF($H38>0,AV38,0) -> 0 | AZ38: =IF(AY38>0,1,0) -> 0 | BA38: =IF($I38=BA$6,$E38,0) -> 0 | BB38: =IF($K38=ROUND(BA$6*$F38,2),$G38,0) -> 0 | BC38: =IF($H38>0,BA38,0) -> 0 | BD38: =IF(BC38>0,1,0) -> 0 | BE38: =IF($H38>0,BB38,0) -> 0 | BF38: =IF(BE38>0,1,0) -> 0 | BI38: 0 | BL38: =E38-SUM(AI38,AO38,AU38,BA38) -> 0
A39: =IF(E39+G39>0,A38,"") ->  | B39: =IF(E39+G39>0,B38,"") ->  | C39: 4 | D39: 03-4-23.007(333) | E39: 0 | F39: 1.1 | G39: 0 | H39: 0 | I39: =SUMIF(Y$14:BA$14,C39,Y$6:BA$6) -> 1238.65 | J39: =IF(H39=0,ROUND(E39*I39,2),IF(H39>0,ROUND(H39*E39,2),0)) -> 0 | K39: =ROUND(F39*I39,2) -> 1362.52 | L39: =IF(H39=0,ROUND(ROUND(F39*I39,2)*G39,2),IF(H39>0,ROUND(G39*H39,2),0)) -> 0 | M39: =IF(H39=0,L39-ROUND(G39*I39,2),0) -> 0 | O39: =J39+L39+N39 -> 0 | Q39: 479.72 | R39: =ROUND(Q39*(E39+G39),2) -> 0 | W39: =R39+T39+V39 -> 0 | AI39: =IF($I39=AI$6,$E39,0) -> 0 | AJ39: 0 | AK39: =IF($H39>0,AI39,0) -> 0 | AL39: =IF(AK39>0,1,0) -> 0 | AM39: =IF($H39>0,AJ39,0) -> 0 | AN39: =IF(AM39>0,1,0) -> 0 | AO39: =IF($I39=AO$6,$E39,0) -> 0 | AP39: 0 | AQ39: =IF($H39>0,AO39,0) -> 0 | AR39: =IF(AQ39>0,1,0) -> 0 | AS39: =IF($H39>0,AP39,0) -> 0 | AT39: =IF(AS39>0,1,0) -> 0 | AU39: =IF($I39=AU$6,$E39,0) -> 0 | AV39: 0 | AW39: =IF($H39>0,AU39,0) -> 0 | AX39: =IF(AW39>0,1,0) -> 0 | AY39: =IF($H39>0,AV39,0) -> 0 | AZ39: =IF(AY39>0,1,0) -> 0 | BA39: =IF($I39=BA$6,$E39,0) -> 0 | BB39: 0 | BC39: =IF($H39>0,BA39,0) -> 0 | BD39: =IF(BC39>0,1,0) -> 0 | BE39: =IF($H39>0,BB39,0) -> 0 | BF39: =IF(BE39>0,1,0) -> 0 | BL39: =E39-SUM(AI39,AO39,AU39,BA39) -> 0
A40: =IF(E40+G40>0,A38,"") ->  | B40: =IF(E40+G40>0,B38,"") ->  | C40: =C39 -> 4 | D40: 03-4-23.007(333) | E40: 0 | F40: 1.5 | G40: 0 | H40: 0 | I40: =SUMIF(Y$14:BA$14,C40,Y$7:BA$7) -> 0 | J40: 0 | K40: 0 | L40: 0 | M40: 0 | O40: 0 | Q40: 479.72 | R40: 0 | W40: 0 | AI40: =IF($I40=AI$7,$E40,0) -> 0 | AJ40: =IF($K40=ROUND(AI$7*$F40,2),$G40,0) -> 0 | AK40: 0 | AL40: 0 | AM40: 0 | AN40: 0 | AO40: =IF($I40=AO$7,$E40,0) -> 0 | AP40: =IF($K40=ROUND(AO$7*$F40,2),$G40,0) -> 0 | AQ40: 0 | AR40: 0 | AS40: 0 | AT40: 0 | AU40: =IF($I40=AU$7,$E40,0) -> 0 | AV40: =IF($K40=ROUND(AU$7*$F40,2),$G40,0) -> 0 | AW40: 0 | AX40: 0 | AY40: 0 | AZ40: 0 | BA40: =IF($I40=BA$7,$E40,0) -> 0 | BB40: =IF($K40=ROUND(BA$7*$F40,2),$G40,0) -> 0 | BC40: 0 | BD40: 0 | BE40: 0 | BF40: 0 | BL40: 0
A41: =IF(E41+G41>0,A38,"") ->  | B41: =IF(E41+G41>0,B38,"") ->  | C41: =C39 -> 4 | D41: 03-4-23.007(333) | E41: 0 | F41: 1.1 | G41: 0 | H41: 0 | I41: =SUMIF(Y$14:BA$14,C41,Y$7:BA$7) -> 0 | J41: 0 | K41: 0 | L41: 0 | M41: 0 | O41: 0 | Q41: 479.72 | R41: 0 | W41: 0 | AI41: =IF($I41=AI$7,$E41,0) -> 0 | AJ41: =IF($K41=ROUND(AI$7*$F41,2),$G41,0) -> 0 | AK41: 0 | AL41: 0 | AM41: 0 | AN41: 0 | AO41: =IF($I41=AO$7,$E41,0) -> 0 | AP41: =IF($K41=ROUND(AO$7*$F41,2),$G41,0) -> 0 | AQ41: 0 | AR41: 0 | AS41: 0 | AT41: 0 | AU41: =IF($I41=AU$7,$E41,0) -> 0 | AV41: =IF($K41=ROUND(AU$7*$F41,2),$G41,0) -> 0 | AW41: 0 | AX41: 0 | AY41: 0 | AZ41: 0 | BA41: =IF($I41=BA$7,$E41,0) -> 0 | BB41: =IF($K41=ROUND(BA$7*$F41,2),$G41,0) -> 0 | BC41: 0 | BD41: 0 | BE41: 0 | BF41: 0 | BL41: 0
A42: АО "ГТ Энерго" | B42: Вельск, ул.Кирова-6а | C42: =C43 -> 5 | D42: 03-4-23.007(333) | E42: 0 | F42: 1.5 | G42: 0 | H42: 0 | I42: =SUMIF(Y$14:BA$14,C42,Y$6:BA$6) -> 1651.49 | J42: =IF(H42=0,ROUND(E42*I42,2),IF(H42>0,ROUND(H42*E42,2),0)) -> 0 | K42: =ROUND(F42*I42,2) -> 2477.24 | L42: =IF(H42=0,ROUND(ROUND(F42*I42,2)*G42,2),IF(H42>0,ROUND(G42*H42,2),0)) -> 0 | M42: =IF(H42=0,L42-ROUND(G42*I42,2),0) -> 0 | O42: =J42+L42+N42 -> 0 | Q42: 479.72 | R42: =ROUND(Q42*(E42+G42),2) -> 0 | W42: =R42+T42+V42 -> 0 | AI42: =IF($I42=AI$6,$E42,0) -> 0 | AJ42: =IF($K42=ROUND(AI$6*$F42,2),$G42,0) -> 0 | AK42: =IF($H42>0,AI42,0) -> 0 | AL42: =IF(AK42>0,1,0) -> 0 | AM42: =IF($H42>0,AJ42,0) -> 0 | AN42: =IF(AM42>0,1,0) -> 0 | AO42: =IF($I42=AO$6,$E42,0) -> 0 | AP42: =IF($K42=ROUND(AO$6*$F42,2),$G42,0) -> 0 | AQ42: =IF($H42>0,AO42,0) -> 0 | AR42: =IF(AQ42>0,1,0) -> 0 | AS42: =IF($H42>0,AP42,0) -> 0 | AT42: =IF(AS42>0,1,0) -> 0 | AU42: =IF($I42=AU$6,$E42,0) -> 0 | AV42: =IF($K42=ROUND(AU$6*$F42,2),$G42,0) -> 0 | AW42: =IF($H42>0,AU42,0) -> 0 | AX42: =IF(AW42>0,1,0) -> 0 | AY42: =IF($H42>0,AV42,0) -> 0 | AZ42: =IF(AY42>0,1,0) -> 0 | BA42: =IF($I42=BA$6,$E42,0) -> 0 | BB42: =IF($K42=ROUND(BA$6*$F42,2),$G42,0) -> 0 | BC42: =IF($H42>0,BA42,0) -> 0 | BD42: =IF(BC42>0,1,0) -> 0 | BE42: =IF($H42>0,BB42,0) -> 0 | BF42: =IF(BE42>0,1,0) -> 0 | BI42: 0 | BL42: =E42-SUM(AI42,AO42,AU42,BA42) -> 0
A43: =IF(E43+G43>0,A42,"") ->  | B43: =IF(E43+G43>0,B42,"") ->  | C43: 5 | D43: 03-4-23.007(333) | E43: 0 | F43: 1.1 | G43: 0 | H43: 0 | I43: =SUMIF(Y$14:BA$14,C43,Y$6:BA$6) -> 1651.49 | J43: =IF(H43=0,ROUND(E43*I43,2),IF(H43>0,ROUND(H43*E43,2),0)) -> 0 | K43: =ROUND(F43*I43,2) -> 1816.64 | L43: =IF(H43=0,ROUND(ROUND(F43*I43,2)*G43,2),IF(H43>0,ROUND(G43*H43,2),0)) -> 0 | M43: =IF(H43=0,L43-ROUND(G43*I43,2),0) -> 0 | O43: =J43+L43+N43 -> 0 | Q43: 479.72 | R43: =ROUND(Q43*(E43+G43),2) -> 0 | W43: =R43+T43+V43 -> 0 | AI43: =IF($I43=AI$6,$E43,0) -> 0 | AJ43: 0 | AK43: =IF($H43>0,AI43,0) -> 0 | AL43: =IF(AK43>0,1,0) -> 0 | AM43: =IF($H43>0,AJ43,0) -> 0 | AN43: =IF(AM43>0,1,0) -> 0 | AO43: =IF($I43=AO$6,$E43,0) -> 0 | AP43: 0 | AQ43: =IF($H43>0,AO43,0) -> 0 | AR43: =IF(AQ43>0,1,0) -> 0 | AS43: =IF($H43>0,AP43,0) -> 0 | AT43: =IF(AS43>0,1,0) -> 0 | AU43: =IF($I43=AU$6,$E43,0) -> 0 | AV43: 0 | AW43: =IF($H43>0,AU43,0) -> 0 | AX43: =IF(AW43>0,1,0) -> 0 | AY43: =IF($H43>0,AV43,0) -> 0 | AZ43: =IF(AY43>0,1,0) -> 0 | BA43: =IF($I43=BA$6,$E43,0) -> 0 | BB43: 0 | BC43: =IF($H43>0,BA43,0) -> 0 | BD43: =IF(BC43>0,1,0) -> 0 | BE43: =IF($H43>0,BB43,0) -> 0 | BF43: =IF(BE43>0,1,0) -> 0 | BL43: =E43-SUM(AI43,AO43,AU43,BA43) -> 0
A44: =IF(E44+G44>0,A42,"") ->  | B44: =IF(E44+G44>0,B42,"") ->  | C44: =C43 -> 5 | D44: 03-4-23.007(333) | E44: 0 | F44: 1.5 | G44: 0 | H44: 0 | I44: =SUMIF(Y$14:BA$14,C44,Y$7:BA$7) -> 0 | J44: 0 | K44: 0 | L44: 0 | M44: 0 | O44: 0 | Q44: 479.72 | R44: 0 | W44: 0 | AI44: =IF($I44=AI$7,$E44,0) -> 0 | AJ44: =IF($K44=ROUND(AI$7*$F44,2),$G44,0) -> 0 | AK44: 0 | AL44: 0 | AM44: 0 | AN44: 0 | AO44: =IF($I44=AO$7,$E44,0) -> 0 | AP44: =IF($K44=ROUND(AO$7*$F44,2),$G44,0) -> 0 | AQ44: 0 | AR44: 0 | AS44: 0 | AT44: 0 | AU44: =IF($I44=AU$7,$E44,0) -> 0 | AV44: =IF($K44=ROUND(AU$7*$F44,2),$G44,0) -> 0 | AW44: 0 | AX44: 0 | AY44: 0 | AZ44: 0 | BA44: =IF($I44=BA$7,$E44,0) -> 0 | BB44: =IF($K44=ROUND(BA$7*$F44,2),$G44,0) -> 0 | BC44: 0 | BD44: 0 | BE44: 0 | BF44: 0 | BL44: 0
A45: =IF(E45+G45>0,A42,"") ->  | B45: =IF(E45+G45>0,B42,"") ->  | C45: =C43 -> 5 | D45: 03-4-23.007(333) | E45: 0 | F45: 1.1 | G45: 0 | H45: 0 | I45: =SUMIF(Y$14:BA$14,C45,Y$7:BA$7) -> 0 | J45: 0 | K45: 0 | L45: 0 | M45: 0 | O45: 0 | Q45: 479.72 | R45: 0 | W45: 0 | AI45: =IF($I45=AI$7,$E45,0) -> 0 | AJ45: =IF($K45=ROUND(AI$7*$F45,2),$G45,0) -> 0 | AK45: 0 | AL45: 0 | AM45: 0 | AN45: 0 | AO45: =IF($I45=AO$7,$E45,0) -> 0 | AP45: =IF($K45=ROUND(AO$7*$F45,2),$G45,0) -> 0 | AQ45: 0 | AR45: 0 | AS45: 0 | AT45: 0 | AU45: =IF($I45=AU$7,$E45,0) -> 0 | AV45: =IF($K45=ROUND(AU$7*$F45,2),$G45,0) -> 0 | AW45: 0 | AX45: 0 | AY45: 0 | AZ45: 0 | BA45: =IF($I45=BA$7,$E45,0) -> 0 | BB45: =IF($K45=ROUND(BA$7*$F45,2),$G45,0) -> 0 | BC45: 0 | BD45: 0 | BE45: 0 | BF45: 0 | BL45: 0
A46: АО "ГТ Энерго" | B46: Вельск, ул.Дзержинского-201, стр.12 | C46: =C47 -> 4 | D46: 03-4-23.007(333) | E46: 0 | F46: 1.5 | G46: 0 | H46: 0 | I46: =SUMIF(Y$14:BA$14,C46,Y$6:BA$6) -> 1238.65 | J46: =IF(H46=0,ROUND(E46*I46,2),IF(H46>0,ROUND(H46*E46,2),0)) -> 0 | K46: =ROUND(F46*I46,2) -> 1857.98 | L46: =IF(H46=0,ROUND(ROUND(F46*I46,2)*G46,2),IF(H46>0,ROUND(G46*H46,2),0)) -> 0 | M46: =IF(H46=0,L46-ROUND(G46*I46,2),0) -> 0 | O46: =J46+L46+N46 -> 0 | Q46: 479.72 | R46: =ROUND(Q46*(E46+G46),2) -> 0 | W46: =R46+T46+V46 -> 0 | AI46: =IF($I46=AI$6,$E46,0) -> 0 | AJ46: =IF($K46=ROUND(AI$6*$F46,2),$G46,0) -> 0 | AK46: =IF($H46>0,AI46,0) -> 0 | AL46: =IF(AK46>0,1,0) -> 0 | AM46: =IF($H46>0,AJ46,0) -> 0 | AN46: =IF(AM46>0,1,0) -> 0 | AO46: =IF($I46=AO$6,$E46,0) -> 0 | AP46: =IF($K46=ROUND(AO$6*$F46,2),$G46,0) -> 0 | AQ46: =IF($H46>0,AO46,0) -> 0 | AR46: =IF(AQ46>0,1,0) -> 0 | AS46: =IF($H46>0,AP46,0) -> 0 | AT46: =IF(AS46>0,1,0) -> 0 | AU46: =IF($I46=AU$6,$E46,0) -> 0 | AV46: =IF($K46=ROUND(AU$6*$F46,2),$G46,0) -> 0 | AW46: =IF($H46>0,AU46,0) -> 0 | AX46: =IF(AW46>0,1,0) -> 0 | AY46: =IF($H46>0,AV46,0) -> 0 | AZ46: =IF(AY46>0,1,0) -> 0 | BA46: =IF($I46=BA$6,$E46,0) -> 0 | BB46: =IF($K46=ROUND(BA$6*$F46,2),$G46,0) -> 0 | BC46: =IF($H46>0,BA46,0) -> 0 | BD46: =IF(BC46>0,1,0) -> 0 | BE46: =IF($H46>0,BB46,0) -> 0 | BF46: =IF(BE46>0,1,0) -> 0 | BI46: 30.8 | BL46: =E46-SUM(AI46,AO46,AU46,BA46) -> 0
A47: =IF(E47+G47>0,A46,"") ->  | B47: =IF(E47+G47>0,B46,"") ->  | C47: 4 | D47: 03-4-23.007(333) | E47: 0 | F47: 1.1 | G47: 0 | H47: 0 | I47: =SUMIF(Y$14:BA$14,C47,Y$6:BA$6) -> 1238.65 | J47: =IF(H47=0,ROUND(E47*I47,2),IF(H47>0,ROUND(H47*E47,2),0)) -> 0 | K47: =ROUND(F47*I47,2) -> 1362.52 | L47: =IF(H47=0,ROUND(ROUND(F47*I47,2)*G47,2),IF(H47>0,ROUND(G47*H47,2),0)) -> 0 | M47: =IF(H47=0,L47-ROUND(G47*I47,2),0) -> 0 | O47: =J47+L47+N47 -> 0 | Q47: 479.72 | R47: =ROUND(Q47*(E47+G47),2) -> 0 | W47: =R47+T47+V47 -> 0 | AI47: =IF($I47=AI$6,$E47,0) -> 0 | AJ47: 0 | AK47: =IF($H47>0,AI47,0) -> 0 | AL47: =IF(AK47>0,1,0) -> 0 | AM47: =IF($H47>0,AJ47,0) -> 0 | AN47: =IF(AM47>0,1,0) -> 0 | AO47: =IF($I47=AO$6,$E47,0) -> 0 | AP47: 0 | AQ47: =IF($H47>0,AO47,0) -> 0 | AR47: =IF(AQ47>0,1,0) -> 0 | AS47: =IF($H47>0,AP47,0) -> 0 | AT47: =IF(AS47>0,1,0) -> 0 | AU47: =IF($I47=AU$6,$E47,0) -> 0 | AV47: 0 | AW47: =IF($H47>0,AU47,0) -> 0 | AX47: =IF(AW47>0,1,0) -> 0 | AY47: =IF($H47>0,AV47,0) -> 0 | AZ47: =IF(AY47>0,1,0) -> 0 | BA47: =IF($I47=BA$6,$E47,0) -> 0 | BB47: 0 | BC47: =IF($H47>0,BA47,0) -> 0 | BD47: =IF(BC47>0,1,0) -> 0 | BE47: =IF($H47>0,BB47,0) -> 0 | BF47: =IF(BE47>0,1,0) -> 0 | BL47: =E47-SUM(AI47,AO47,AU47,BA47) -> 0
A48: =IF(E48+G48>0,A46,"") ->  | B48: =IF(E48+G48>0,B46,"") ->  | C48: =C47 -> 4 | D48: 03-4-23.007(333) | E48: 0 | F48: 1.5 | G48: 0 | H48: 0 | I48: =SUMIF(Y$14:BA$14,C48,Y$7:BA$7) -> 0 | J48: 0 | K48: 0 | L48: 0 | M48: 0 | O48: 0 | Q48: 479.72 | R48: 0 | W48: 0 | AI48: =IF($I48=AI$7,$E48,0) -> 0 | AJ48: =IF($K48=ROUND(AI$7*$F48,2),$G48,0) -> 0 | AK48: 0 | AL48: 0 | AM48: 0 | AN48: 0 | AO48: =IF($I48=AO$7,$E48,0) -> 0 | AP48: =IF($K48=ROUND(AO$7*$F48,2),$G48,0) -> 0 | AQ48: 0 | AR48: 0 | AS48: 0 | AT48: 0 | AU48: =IF($I48=AU$7,$E48,0) -> 0 | AV48: =IF($K48=ROUND(AU$7*$F48,2),$G48,0) -> 0 | AW48: 0 | AX48: 0 | AY48: 0 | AZ48: 0 | BA48: =IF($I48=BA$7,$E48,0) -> 0 | BB48: =IF($K48=ROUND(BA$7*$F48,2),$G48,0) -> 0 | BC48: 0 | BD48: 0 | BE48: 0 | BF48: 0 | BL48: 0
A49: =IF(E49+G49>0,A46,"") ->  | B49: =IF(E49+G49>0,B46,"") ->  | C49: =C47 -> 4 | D49: 03-4-23.007(333) | E49: 0 | F49: 1.1 | G49: 0 | H49: 0 | I49: =SUMIF(Y$14:BA$14,C49,Y$7:BA$7) -> 0 | J49: 0 | K49: 0 | L49: 0 | M49: 0 | O49: 0 | Q49: 479.72 | R49: 0 | W49: 0 | AI49: =IF($I49=AI$7,$E49,0) -> 0 | AJ49: =IF($K49=ROUND(AI$7*$F49,2),$G49,0) -> 0 | AK49: 0 | AL49: 0 | AM49: 0 | AN49: 0 | AO49: =IF($I49=AO$7,$E49,0) -> 0 | AP49: =IF($K49=ROUND(AO$7*$F49,2),$G49,0) -> 0 | AQ49: 0 | AR49: 0 | AS49: 0 | AT49: 0 | AU49: =IF($I49=AU$7,$E49,0) -> 0 | AV49: =IF($K49=ROUND(AU$7*$F49,2),$G49,0) -> 0 | AW49: 0 | AX49: 0 | AY49: 0 | AZ49: 0 | BA49: =IF($I49=BA$7,$E49,0) -> 0 | BB49: =IF($K49=ROUND(BA$7*$F49,2),$G49,0) -> 0 | BC49: 0 | BD49: 0 | BE49: 0 | BF49: 0 | BL49: 0
A50: АО "ГТ Энерго" | B50: Вельск, ул.Глинница, зем.уч.1Б | C50: =C51 -> 5 | D50: 03-4-23.007(333) | E50: 0 | F50: 1.5 | G50: 0 | H50: 0 | I50: =SUMIF(Y$14:BA$14,C50,Y$6:BA$6) -> 1651.49 | J50: =IF(H50=0,ROUND(E50*I50,2),IF(H50>0,ROUND(H50*E50,2),0)) -> 0 | K50: =ROUND(F50*I50,2) -> 2477.24 | L50: =IF(H50=0,ROUND(ROUND(F50*I50,2)*G50,2),IF(H50>0,ROUND(G50*H50,2),0)) -> 0 | M50: =IF(H50=0,L50-ROUND(G50*I50,2),0) -> 0 | O50: =J50+L50+N50 -> 0 | Q50: 479.72 | R50: =ROUND(Q50*(E50+G50),2) -> 0 | W50: =R50+T50+V50 -> 0 | AI50: =IF($I50=AI$6,$E50,0) -> 0 | AJ50: =IF($K50=ROUND(AI$6*$F50,2),$G50,0) -> 0 | AK50: =IF($H50>0,AI50,0) -> 0 | AL50: =IF(AK50>0,1,0) -> 0 | AM50: =IF($H50>0,AJ50,0) -> 0 | AN50: =IF(AM50>0,1,0) -> 0 | AO50: =IF($I50=AO$6,$E50,0) -> 0 | AP50: =IF($K50=ROUND(AO$6*$F50,2),$G50,0) -> 0 | AQ50: =IF($H50>0,AO50,0) -> 0 | AR50: =IF(AQ50>0,1,0) -> 0 | AS50: =IF($H50>0,AP50,0) -> 0 | AT50: =IF(AS50>0,1,0) -> 0 | AU50: =IF($I50=AU$6,$E50,0) -> 0 | AV50: =IF($K50=ROUND(AU$6*$F50,2),$G50,0) -> 0 | AW50: =IF($H50>0,AU50,0) -> 0 | AX50: =IF(AW50>0,1,0) -> 0 | AY50: =IF($H50>0,AV50,0) -> 0 | AZ50: =IF(AY50>0,1,0) -> 0 | BA50: =IF($I50=BA$6,$E50,0) -> 0 | BB50: =IF($K50=ROUND(BA$6*$F50,2),$G50,0) -> 0 | BC50: =IF($H50>0,BA50,0) -> 0 | BD50: =IF(BC50>0,1,0) -> 0 | BE50: =IF($H50>0,BB50,0) -> 0 | BF50: =IF(BE50>0,1,0) -> 0 | BI50: 22.4 | BL50: =E50-SUM(AI50,AO50,AU50,BA50) -> 0
A51: =IF(E51+G51>0,A50,"") -> АО "ГТ Энерго" | B51: =IF(E51+G51>0,B50,"") -> Вельск, ул.Глинница, зем.уч.1Б | C51: 5 | D51: 03-4-23.007(333) | E51: 49.842 | F51: 1.1 | G51: 0 | H51: 49.842 | I51: =SUMIF(Y$14:BA$14,C51,Y$6:BA$6) -> 1651.49 | J51: =IF(H51=0,ROUND(E51*I51,2),IF(H51>0,ROUND(H51*E51,2),0)) -> 2484.22 | K51: =ROUND(F51*I51,2) -> 1816.64 | L51: =IF(H51=0,ROUND(ROUND(F51*I51,2)*G51,2),IF(H51>0,ROUND(G51*H51,2),0)) -> 0 | M51: =IF(H51=0,L51-ROUND(G51*I51,2),0) -> 0 | O51: =J51+L51+N51 -> 2484.22 | Q51: 479.72 | R51: =ROUND(Q51*(E51+G51),2) -> 23910.2 | W51: =R51+T51+V51 -> 23910.2 | AI51: =IF($I51=AI$6,$E51,0) -> 0 | AJ51: 0 | AK51: =IF($H51>0,AI51,0) -> 0 | AL51: =IF(AK51>0,1,0) -> 0 | AM51: =IF($H51>0,AJ51,0) -> 0 | AN51: =IF(AM51>0,1,0) -> 0 | AO51: =IF($I51=AO$6,$E51,0) -> 49.842 | AP51: 0 | AQ51: =IF($H51>0,AO51,0) -> 49.842 | AR51: =IF(AQ51>0,1,0) -> 1 | AS51: =IF($H51>0,AP51,0) -> 0 | AT51: =IF(AS51>0,1,0) -> 0 | AU51: =IF($I51=AU$6,$E51,0) -> 0 | AV51: 0 | AW51: =IF($H51>0,AU51,0) -> 0 | AX51: =IF(AW51>0,1,0) -> 0 | AY51: =IF($H51>0,AV51,0) -> 0 | AZ51: =IF(AY51>0,1,0) -> 0 | BA51: =IF($I51=BA$6,$E51,0) -> 0 | BB51: 0 | BC51: =IF($H51>0,BA51,0) -> 0 | BD51: =IF(BC51>0,1,0) -> 0 | BE51: =IF($H51>0,BB51,0) -> 0 | BF51: =IF(BE51>0,1,0) -> 0 | BL51: =E51-SUM(AI51,AO51,AU51,BA51) -> 0
A52: =IF(E52+G52>0,A50,"") ->  | B52: =IF(E52+G52>0,B50,"") ->  | C52: =C51 -> 5 | D52: 03-4-23.007(333) | E52: 0 | F52: 1.5 | G52: 0 | H52: 0 | I52: =SUMIF(Y$14:BA$14,C52,Y$7:BA$7) -> 0 | J52: 0 | K52: 0 | L52: 0 | M52: 0 | O52: 0 | Q52: 479.72 | R52: 0 | W52: 0 | AI52: =IF($I52=AI$7,$E52,0) -> 0 | AJ52: =IF($K52=ROUND(AI$7*$F52,2),$G52,0) -> 0 | AK52: 0 | AL52: 0 | AM52: 0 | AN52: 0 | AO52: =IF($I52=AO$7,$E52,0) -> 0 | AP52: =IF($K52=ROUND(AO$7*$F52,2),$G52,0) -> 0 | AQ52: 0 | AR52: 0 | AS52: 0 | AT52: 0 | AU52: =IF($I52=AU$7,$E52,0) -> 0 | AV52: =IF($K52=ROUND(AU$7*$F52,2),$G52,0) -> 0 | AW52: 0 | AX52: 0 | AY52: 0 | AZ52: 0 | BA52: =IF($I52=BA$7,$E52,0) -> 0 | BB52: =IF($K52=ROUND(BA$7*$F52,2),$G52,0) -> 0 | BC52: 0 | BD52: 0 | BE52: 0 | BF52: 0 | BL52: 0
A53: =IF(E53+G53>0,A50,"") ->  | B53: =IF(E53+G53>0,B50,"") ->  | C53: =C51 -> 5 | D53: 03-4-23.007(333) | E53: 0 | F53: 1.1 | G53: 0 | H53: 0 | I53: =SUMIF(Y$14:BA$14,C53,Y$7:BA$7) -> 0 | J53: 0 | K53: 0 | L53: 0 | M53: 0 | O53: 0 | Q53: 479.72 | R53: 0 | W53: 0 | AI53: =IF($I53=AI$7,$E53,0) -> 0 | AJ53: =IF($K53=ROUND(AI$7*$F53,2),$G53,0) -> 0 | AK53: 0 | AL53: 0 | AM53: 0 | AN53: 0 | AO53: =IF($I53=AO$7,$E53,0) -> 0 | AP53: =IF($K53=ROUND(AO$7*$F53,2),$G53,0) -> 0 | AQ53: 0 | AR53: 0 | AS53: 0 | AT53: 0 | AU53: =IF($I53=AU$7,$E53,0) -> 0 | AV53: =IF($K53=ROUND(AU$7*$F53,2),$G53,0) -> 0 | AW53: 0 | AX53: 0 | AY53: 0 | AZ53: 0 | BA53: =IF($I53=BA$7,$E53,0) -> 0 | BB53: =IF($K53=ROUND(BA$7*$F53,2),$G53,0) -> 0 | BC53: 0 | BD53: 0 | BE53: 0 | BF53: 0 | BL53: 0
A54: АО "ГТ Энерго" | B54: Вельск, ул.Чехова-26, 28, 30 (ТГУ) | C54: =C55 -> 5 | D54: 03-4-23.007(333) | E54: 0 | F54: 1.5 | G54: 0 | H54: 0 | I54: =SUMIF(Y$14:BA$14,C54,Y$6:BA$6) -> 1651.49 | J54: =IF(H54=0,ROUND(E54*I54,2),IF(H54>0,ROUND(H54*E54,2),0)) -> 0 | K54: =ROUND(F54*I54,2) -> 2477.24 | L54: =IF(H54=0,ROUND(ROUND(F54*I54,2)*G54,2),IF(H54>0,ROUND(G54*H54,2),0)) -> 0 | M54: =IF(H54=0,L54-ROUND(G54*I54,2),0) -> 0 | O54: =J54+L54+N54 -> 0 | Q54: 479.72 | R54: =ROUND(Q54*(E54+G54),2) -> 0 | W54: =R54+T54+V54 -> 0 | AI54: =IF($I54=AI$6,$E54,0) -> 0 | AJ54: =IF($K54=ROUND(AI$6*$F54,2),$G54,0) -> 0 | AK54: =IF($H54>0,AI54,0) -> 0 | AL54: =IF(AK54>0,1,0) -> 0 | AM54: =IF($H54>0,AJ54,0) -> 0 | AN54: =IF(AM54>0,1,0) -> 0 | AO54: =IF($I54=AO$6,$E54,0) -> 0 | AP54: =IF($K54=ROUND(AO$6*$F54,2),$G54,0) -> 0 | AQ54: =IF($H54>0,AO54,0) -> 0 | AR54: =IF(AQ54>0,1,0) -> 0 | AS54: =IF($H54>0,AP54,0) -> 0 | AT54: =IF(AS54>0,1,0) -> 0 | AU54: =IF($I54=AU$6,$E54,0) -> 0 | AV54: =IF($K54=ROUND(AU$6*$F54,2),$G54,0) -> 0 | AW54: =IF($H54>0,AU54,0) -> 0 | AX54: =IF(AW54>0,1,0) -> 0 | AY54: =IF($H54>0,AV54,0) -> 0 | AZ54: =IF(AY54>0,1,0) -> 0 | BA54: =IF($I54=BA$6,$E54,0) -> 0 | BB54: =IF($K54=ROUND(BA$6*$F54,2),$G54,0) -> 0 | BC54: =IF($H54>0,BA54,0) -> 0 | BD54: =IF(BC54>0,1,0) -> 0 | BE54: =IF($H54>0,BB54,0) -> 0 | BF54: =IF(BE54>0,1,0) -> 0 | BI54: 13.4 | BL54: =E54-SUM(AI54,AO54,AU54,BA54) -> 0
A55: =IF(E55+G55>0,A54,"") -> АО "ГТ Энерго" | B55: =IF(E55+G55>0,B54,"") -> Вельск, ул.Чехова-26, 28, 30 (ТГУ) | C55: 5 | D55: 03-4-23.007(333) | E55: 3.535 | F55: 1.1 | G55: 0 | H55: 3.535 | I55: =SUMIF(Y$14:BA$14,C55,Y$6:BA$6) -> 1651.49 | J55: =IF(H55=0,ROUND(E55*I55,2),IF(H55>0,ROUND(H55*E55,2),0)) -> 12.5 | K55: =ROUND(F55*I55,2) -> 1816.64 | L55: =IF(H55=0,ROUND(ROUND(F55*I55,2)*G55,2),IF(H55>0,ROUND(G55*H55,2),0)) -> 0 | M55: =IF(H55=0,L55-ROUND(G55*I55,2),0) -> 0 | O55: =J55+L55+N55 -> 12.5 | Q55: 479.72 | R55: =ROUND(Q55*(E55+G55),2) -> 1695.81 | W55: =R55+T55+V55 -> 1695.81 | AI55: =IF($I55=AI$6,$E55,0) -> 0 | AJ55: 0 | AK55: =IF($H55>0,AI55,0) -> 0 | AL55: =IF(AK55>0,1,0) -> 0 | AM55: =IF($H55>0,AJ55,0) -> 0 | AN55: =IF(AM55>0,1,0) -> 0 | AO55: =IF($I55=AO$6,$E55,0) -> 3.535 | AP55: 0 | AQ55: =IF($H55>0,AO55,0) -> 3.535 | AR55: =IF(AQ55>0,1,0) -> 1 | AS55: =IF($H55>0,AP55,0) -> 0 | AT55: =IF(AS55>0,1,0) -> 0 | AU55: =IF($I55=AU$6,$E55,0) -> 0 | AV55: 0 | AW55: =IF($H55>0,AU55,0) -> 0 | AX55: =IF(AW55>0,1,0) -> 0 | AY55: =IF($H55>0,AV55,0) -> 0 | AZ55: =IF(AY55>0,1,0) -> 0 | BA55: =IF($I55=BA$6,$E55,0) -> 0 | BB55: 0 | BC55: =IF($H55>0,BA55,0) -> 0 | BD55: =IF(BC55>0,1,0) -> 0 | BE55: =IF($H55>0,BB55,0) -> 0 | BF55: =IF(BE55>0,1,0) -> 0 | BL55: =E55-SUM(AI55,AO55,AU55,BA55) -> 0
A56: =IF(E56+G56>0,A54,"") ->  | B56: =IF(E56+G56>0,B54,"") ->  | C56: =C55 -> 5 | D56: 03-4-23.007(333) | E56: 0 | F56: 1.5 | G56: 0 | H56: 0 | I56: =SUMIF(Y$14:BA$14,C56,Y$7:BA$7) -> 0 | J56: 0 | K56: 0 | L56: 0 | M56: 0 | O56: 0 | Q56: 479.72 | R56: 0 | W56: 0 | AI56: =IF($I56=AI$7,$E56,0) -> 0 | AJ56: =IF($K56=ROUND(AI$7*$F56,2),$G56,0) -> 0 | AK56: 0 | AL56: 0 | AM56: 0 | AN56: 0 | AO56: =IF($I56=AO$7,$E56,0) -> 0 | AP56: =IF($K56=ROUND(AO$7*$F56,2),$G56,0) -> 0 | AQ56: 0 | AR56: 0 | AS56: 0 | AT56: 0 | AU56: =IF($I56=AU$7,$E56,0) -> 0 | AV56: =IF($K56=ROUND(AU$7*$F56,2),$G56,0) -> 0 | AW56: 0 | AX56: 0 | AY56: 0 | AZ56: 0 | BA56: =IF($I56=BA$7,$E56,0) -> 0 | BB56: =IF($K56=ROUND(BA$7*$F56,2),$G56,0) -> 0 | BC56: 0 | BD56: 0 | BE56: 0 | BF56: 0 | BL56: 0
A57: =IF(E57+G57>0,A54,"") ->  | B57: =IF(E57+G57>0,B54,"") ->  | C57: =C55 -> 5 | D57: 03-4-23.007(333) | E57: 0 | F57: 1.1 | G57: 0 | H57: 0 | I57: =SUMIF(Y$14:BA$14,C57,Y$7:BA$7) -> 0 | J57: 0 | K57: 0 | L57: 0 | M57: 0 | O57: 0 | Q57: 479.72 | R57: 0 | W57: 0 | AI57: =IF($I57=AI$7,$E57,0) -> 0 | AJ57: =IF($K57=ROUND(AI$7*$F57,2),$G57,0) -> 0 | AK57: 0 | AL57: 0 | AM57: 0 | AN57: 0 | AO57: =IF($I57=AO$7,$E57,0) -> 0 | AP57: =IF($K57=ROUND(AO$7*$F57,2),$G57,0) -> 0 | AQ57: 0 | AR57: 0 | AS57: 0 | AT57: 0 | AU57: =IF($I57=AU$7,$E57,0) -> 0 | AV57: =IF($K57=ROUND(AU$7*$F57,2),$G57,0) -> 0 | AW57: 0 | AX57: 0 | AY57: 0 | AZ57: 0 | BA57: =IF($I57=BA$7,$E57,0) -> 0 | BB57: =IF($K57=ROUND(BA$7*$F57,2),$G57,0) -> 0 | BC57: 0 | BD57: 0 | BE57: 0 | BF57: 0 | BL57: 0
A58: АО "ГТ Энерго" | B58: Вельск, ул.Комсомольская-49Б (ТГУ) | C58: =C59 -> 6 | D58: 03-4-23.007(333) | E58: 0 | F58: 1.5 | G58: 0 | H58: 0 | I58: =SUMIF(Y$14:BA$14,C58,Y$6:BA$6) -> 2064.38 | J58: =IF(H58=0,ROUND(E58*I58,2),IF(H58>0,ROUND(H58*E58,2),0)) -> 0 | K58: =ROUND(F58*I58,2) -> 3096.57 | L58: =IF(H58=0,ROUND(ROUND(F58*I58,2)*G58,2),IF(H58>0,ROUND(G58*H58,2),0)) -> 0 | M58: =IF(H58=0,L58-ROUND(G58*I58,2),0) -> 0 | O58: =J58+L58+N58 -> 0 | Q58: 479.72 | R58: =ROUND(Q58*(E58+G58),2) -> 0 | W58: =R58+T58+V58 -> 0 | AI58: =IF($I58=AI$6,$E58,0) -> 0 | AJ58: =IF($K58=ROUND(AI$6*$F58,2),$G58,0) -> 0 | AK58: =IF($H58>0,AI58,0) -> 0 | AL58: =IF(AK58>0,1,0) -> 0 | AM58: =IF($H58>0,AJ58,0) -> 0 | AN58: =IF(AM58>0,1,0) -> 0 | AO58: =IF($I58=AO$6,$E58,0) -> 0 | AP58: =IF($K58=ROUND(AO$6*$F58,2),$G58,0) -> 0 | AQ58: =IF($H58>0,AO58,0) -> 0 | AR58: =IF(AQ58>0,1,0) -> 0 | AS58: =IF($H58>0,AP58,0) -> 0 | AT58: =IF(AS58>0,1,0) -> 0 | AU58: =IF($I58=AU$6,$E58,0) -> 0 | AV58: =IF($K58=ROUND(AU$6*$F58,2),$G58,0) -> 0 | AW58: =IF($H58>0,AU58,0) -> 0 | AX58: =IF(AW58>0,1,0) -> 0 | AY58: =IF($H58>0,AV58,0) -> 0 | AZ58: =IF(AY58>0,1,0) -> 0 | BA58: =IF($I58=BA$6,$E58,0) -> 0 | BB58: =IF($K58=ROUND(BA$6*$F58,2),$G58,0) -> 0 | BC58: =IF($H58>0,BA58,0) -> 0 | BD58: =IF(BC58>0,1,0) -> 0 | BE58: =IF($H58>0,BB58,0) -> 0 | BF58: =IF(BE58>0,1,0) -> 0 | BI58: 0 | BL58: =E58-SUM(AI58,AO58,AU58,BA58) -> 0
A59: =IF(E59+G59>0,A58,"") ->  | B59: =IF(E59+G59>0,B58,"") ->  | C59: 6 | D59: 03-4-23.007(333) | E59: 0 | F59: 1.1 | G59: 0 | H59: 0 | I59: =SUMIF(Y$14:BA$14,C59,Y$6:BA$6) -> 2064.38 | J59: =IF(H59=0,ROUND(E59*I59,2),IF(H59>0,ROUND(H59*E59,2),0)) -> 0 | K59: =ROUND(F59*I59,2) -> 2270.82 | L59: =IF(H59=0,ROUND(ROUND(F59*I59,2)*G59,2),IF(H59>0,ROUND(G59*H59,2),0)) -> 0 | M59: =IF(H59=0,L59-ROUND(G59*I59,2),0) -> 0 | O59: =J59+L59+N59 -> 0 | Q59: 479.72 | R59: =ROUND(Q59*(E59+G59),2) -> 0 | W59: =R59+T59+V59 -> 0 | AI59: =IF($I59=AI$6,$E59,0) -> 0 | AJ59: 0 | AK59: =IF($H59>0,AI59,0) -> 0 | AL59: =IF(AK59>0,1,0) -> 0 | AM59: =IF($H59>0,AJ59,0) -> 0 | AN59: =IF(AM59>0,1,0) -> 0 | AO59: =IF($I59=AO$6,$E59,0) -> 0 | AP59: 0 | AQ59: =IF($H59>0,AO59,0) -> 0 | AR59: =IF(AQ59>0,1,0) -> 0 | AS59: =IF($H59>0,AP59,0) -> 0 | AT59: =IF(AS59>0,1,0) -> 0 | AU59: =IF($I59=AU$6,$E59,0) -> 0 | AV59: 0 | AW59: =IF($H59>0,AU59,0) -> 0 | AX59: =IF(AW59>0,1,0) -> 0 | AY59: =IF($H59>0,AV59,0) -> 0 | AZ59: =IF(AY59>0,1,0) -> 0 | BA59: =IF($I59=BA$6,$E59,0) -> 0 | BB59: 0 | BC59: =IF($H59>0,BA59,0) -> 0 | BD59: =IF(BC59>0,1,0) -> 0 | BE59: =IF($H59>0,BB59,0) -> 0 | BF59: =IF(BE59>0,1,0) -> 0 | BL59: =E59-SUM(AI59,AO59,AU59,BA59) -> 0
A60: =IF(E60+G60>0,A58,"") ->  | B60: =IF(E60+G60>0,B58,"") ->  | C60: =C59 -> 6 | D60: 03-4-23.007(333) | E60: 0 | F60: 1.5 | G60: 0 | H60: 0 | I60: =SUMIF(Y$14:BA$14,C60,Y$7:BA$7) -> 0 | J60: 0 | K60: 0 | L60: 0 | M60: 0 | O60: 0 | Q60: 479.72 | R60: 0 | W60: 0 | AI60: =IF($I60=AI$7,$E60,0) -> 0 | AJ60: =IF($K60=ROUND(AI$7*$F60,2),$G60,0) -> 0 | AK60: 0 | AL60: 0 | AM60: 0 | AN60: 0 | AO60: =IF($I60=AO$7,$E60,0) -> 0 | AP60: =IF($K60=ROUND(AO$7*$F60,2),$G60,0) -> 0 | AQ60: 0 | AR60: 0 | AS60: 0 | AT60: 0 | AU60: =IF($I60=AU$7,$E60,0) -> 0 | AV60: =IF($K60=ROUND(AU$7*$F60,2),$G60,0) -> 0 | AW60: 0 | AX60: 0 | AY60: 0 | AZ60: 0 | BA60: =IF($I60=BA$7,$E60,0) -> 0 | BB60: =IF($K60=ROUND(BA$7*$F60,2),$G60,0) -> 0 | BC60: 0 | BD60: 0 | BE60: 0 | BF60: 0 | BL60: 0
A61: =IF(E61+G61>0,A58,"") ->  | B61: =IF(E61+G61>0,B58,"") ->  | C61: =C59 -> 6 | D61: 03-4-23.007(333) | E61: 0 | F61: 1.1 | G61: 0 | H61: 0 | I61: =SUMIF(Y$14:BA$14,C61,Y$7:BA$7) -> 0 | J61: 0 | K61: 0 | L61: 0 | M61: 0 | O61: 0 | Q61: 479.72 | R61: 0 | W61: 0 | AI61: =IF($I61=AI$7,$E61,0) -> 0 | AJ61: =IF($K61=ROUND(AI$7*$F61,2),$G61,0) -> 0 | AK61: 0 | AL61: 0 | AM61: 0 | AN61: 0 | AO61: =IF($I61=AO$7,$E61,0) -> 0 | AP61: =IF($K61=ROUND(AO$7*$F61,2),$G61,0) -> 0 | AQ61: 0 | AR61: 0 | AS61: 0 | AT61: 0 | AU61: =IF($I61=AU$7,$E61,0) -> 0 | AV61: =IF($K61=ROUND(AU$7*$F61,2),$G61,0) -> 0 | AW61: 0 | AX61: 0 | AY61: 0 | AZ61: 0 | BA61: =IF($I61=BA$7,$E61,0) -> 0 | BB61: =IF($K61=ROUND(BA$7*$F61,2),$G61,0) -> 0 | BC61: 0 | BD61: 0 | BE61: 0 | BF61: 0 | BL61: 0
A62: АО "ГТ Энерго" | B62: Вельск, ул.Тракторная-80, стр.8 | C62: =C63 -> 6 | D62: 03-4-23.007(333) | E62: 0 | F62: 1.5 | G62: 0 | H62: 0 | I62: =SUMIF(Y$14:BA$14,C62,Y$6:BA$6) -> 2064.38 | J62: =IF(H62=0,ROUND(E62*I62,2),IF(H62>0,ROUND(H62*E62,2),0)) -> 0 | K62: =ROUND(F62*I62,2) -> 3096.57 | L62: =IF(H62=0,ROUND(ROUND(F62*I62,2)*G62,2),IF(H62>0,ROUND(G62*H62,2),0)) -> 0 | M62: =IF(H62=0,L62-ROUND(G62*I62,2),0) -> 0 | O62: =J62+L62+N62 -> 0 | Q62: 479.72 | R62: =ROUND(Q62*(E62+G62),2) -> 0 | W62: =R62+T62+V62 -> 0 | AI62: =IF($I62=AI$6,$E62,0) -> 0 | AJ62: =IF($K62=ROUND(AI$6*$F62,2),$G62,0) -> 0 | AK62: =IF($H62>0,AI62,0) -> 0 | AL62: =IF(AK62>0,1,0) -> 0 | AM62: =IF($H62>0,AJ62,0) -> 0 | AN62: =IF(AM62>0,1,0) -> 0 | AO62: =IF($I62=AO$6,$E62,0) -> 0 | AP62: =IF($K62=ROUND(AO$6*$F62,2),$G62,0) -> 0 | AQ62: =IF($H62>0,AO62,0) -> 0 | AR62: =IF(AQ62>0,1,0) -> 0 | AS62: =IF($H62>0,AP62,0) -> 0 | AT62: =IF(AS62>0,1,0) -> 0 | AU62: =IF($I62=AU$6,$E62,0) -> 0 | AV62: =IF($K62=ROUND(AU$6*$F62,2),$G62,0) -> 0 | AW62: =IF($H62>0,AU62,0) -> 0 | AX62: =IF(AW62>0,1,0) -> 0 | AY62: =IF($H62>0,AV62,0) -> 0 | AZ62: =IF(AY62>0,1,0) -> 0 | BA62: =IF($I62=BA$6,$E62,0) -> 0 | BB62: =IF($K62=ROUND(BA$6*$F62,2),$G62,0) -> 0 | BC62: =IF($H62>0,BA62,0) -> 0 | BD62: =IF(BC62>0,1,0) -> 0 | BE62: =IF($H62>0,BB62,0) -> 0 | BF62: =IF(BE62>0,1,0) -> 0 | BI62: 0 | BL62: =E62-SUM(AI62,AO62,AU62,BA62) -> 0
A63: =IF(E63+G63>0,A62,"") ->  | B63: =IF(E63+G63>0,B62,"") ->  | C63: 6 | D63: 03-4-23.007(333) | E63: 0 | F63: 1.1 | G63: 0 | H63: 0 | I63: =SUMIF(Y$14:BA$14,C63,Y$6:BA$6) -> 2064.38 | J63: =IF(H63=0,ROUND(E63*I63,2),IF(H63>0,ROUND(H63*E63,2),0)) -> 0 | K63: =ROUND(F63*I63,2) -> 2270.82 | L63: =IF(H63=0,ROUND(ROUND(F63*I63,2)*G63,2),IF(H63>0,ROUND(G63*H63,2),0)) -> 0 | M63: =IF(H63=0,L63-ROUND(G63*I63,2),0) -> 0 | O63: =J63+L63+N63 -> 0 | Q63: 479.72 | R63: =ROUND(Q63*(E63+G63),2) -> 0 | W63: =R63+T63+V63 -> 0 | AI63: =IF($I63=AI$6,$E63,0) -> 0 | AJ63: 0 | AK63: =IF($H63>0,AI63,0) -> 0 | AL63: =IF(AK63>0,1,0) -> 0 | AM63: =IF($H63>0,AJ63,0) -> 0 | AN63: =IF(AM63>0,1,0) -> 0 | AO63: =IF($I63=AO$6,$E63,0) -> 0 | AP63: 0 | AQ63: =IF($H63>0,AO63,0) -> 0 | AR63: =IF(AQ63>0,1,0) -> 0 | AS63: =IF($H63>0,AP63,0) -> 0 | AT63: =IF(AS63>0,1,0) -> 0 | AU63: =IF($I63=AU$6,$E63,0) -> 0 | AV63: 0 | AW63: =IF($H63>0,AU63,0) -> 0 | AX63: =IF(AW63>0,1,0) -> 0 | AY63: =IF($H63>0,AV63,0) -> 0 | AZ63: =IF(AY63>0,1,0) -> 0 | BA63: =IF($I63=BA$6,$E63,0) -> 0 | BB63: 0 | BC63: =IF($H63>0,BA63,0) -> 0 | BD63: =IF(BC63>0,1,0) -> 0 | BE63: =IF($H63>0,BB63,0) -> 0 | BF63: =IF(BE63>0,1,0) -> 0 | BL63: =E63-SUM(AI63,AO63,AU63,BA63) -> 0
A64: =IF(E64+G64>0,A62,"") ->  | B64: =IF(E64+G64>0,B62,"") ->  | C64: =C63 -> 6 | D64: 03-4-23.007(333) | E64: 0 | F64: 1.5 | G64: 0 | H64: 0 | I64: =SUMIF(Y$14:BA$14,C64,Y$7:BA$7) -> 0 | J64: 0 | K64: 0 | L64: 0 | M64: 0 | O64: 0 | Q64: 479.72 | R64: 0 | W64: 0 | AI64: =IF($I64=AI$7,$E64,0) -> 0 | AJ64: =IF($K64=ROUND(AI$7*$F64,2),$G64,0) -> 0 | AK64: 0 | AL64: 0 | AM64: 0 | AN64: 0 | AO64: =IF($I64=AO$7,$E64,0) -> 0 | AP64: =IF($K64=ROUND(AO$7*$F64,2),$G64,0) -> 0 | AQ64: 0 | AR64: 0 | AS64: 0 | AT64: 0 | AU64: =IF($I64=AU$7,$E64,0) -> 0 | AV64: =IF($K64=ROUND(AU$7*$F64,2),$G64,0) -> 0 | AW64: 0 | AX64: 0 | AY64: 0 | AZ64: 0 | BA64: =IF($I64=BA$7,$E64,0) -> 0 | BB64: =IF($K64=ROUND(BA$7*$F64,2),$G64,0) -> 0 | BC64: 0 | BD64: 0 | BE64: 0 | BF64: 0 | BL64: 0
A65: =IF(E65+G65>0,A62,"") ->  | B65: =IF(E65+G65>0,B62,"") ->  | C65: =C63 -> 6 | D65: 03-4-23.007(333) | E65: 0 | F65: 1.1 | G65: 0 | H65: 0 | I65: =SUMIF(Y$14:BA$14,C65,Y$7:BA$7) -> 0 | J65: 0 | K65: 0 | L65: 0 | M65: 0 | O65: 0 | Q65: 479.72 | R65: 0 | W65: 0 | AI65: =IF($I65=AI$7,$E65,0) -> 0 | AJ65: =IF($K65=ROUND(AI$7*$F65,2),$G65,0) -> 0 | AK65: 0 | AL65: 0 | AM65: 0 | AN65: 0 | AO65: =IF($I65=AO$7,$E65,0) -> 0 | AP65: =IF($K65=ROUND(AO$7*$F65,2),$G65,0) -> 0 | AQ65: 0 | AR65: 0 | AS65: 0 | AT65: 0 | AU65: =IF($I65=AU$7,$E65,0) -> 0 | AV65: =IF($K65=ROUND(AU$7*$F65,2),$G65,0) -> 0 | AW65: 0 | AX65: 0 | AY65: 0 | AZ65: 0 | BA65: =IF($I65=BA$7,$E65,0) -> 0 | BB65: =IF($K65=ROUND(BA$7*$F65,2),$G65,0) -> 0 | BC65: 0 | BD65: 0 | BE65: 0 | BF65: 0 | BL65: 0
A66: АО "ГТ Энерго" | B66: Вельск, ул.Набережная-58а | C66: =C67 -> 6 | D66: 03-4-23.007(333) | E66: 0 | F66: 1.5 | G66: 0 | H66: 0 | I66: =SUMIF(Y$14:BA$14,C66,Y$6:BA$6) -> 2064.38 | J66: =IF(H66=0,ROUND(E66*I66,2),IF(H66>0,ROUND(H66*E66,2),0)) -> 0 | K66: =ROUND(F66*I66,2) -> 3096.57 | L66: =IF(H66=0,ROUND(ROUND(F66*I66,2)*G66,2),IF(H66>0,ROUND(G66*H66,2),0)) -> 0 | M66: =IF(H66=0,L66-ROUND(G66*I66,2),0) -> 0 | O66: =J66+L66+N66 -> 0 | Q66: 479.72 | R66: =ROUND(Q66*(E66+G66),2) -> 0 | W66: =R66+T66+V66 -> 0 | AI66: =IF($I66=AI$6,$E66,0) -> 0 | AJ66: =IF($K66=ROUND(AI$6*$F66,2),$G66,0) -> 0 | AK66: =IF($H66>0,AI66,0) -> 0 | AL66: =IF(AK66>0,1,0) -> 0 | AM66: =IF($H66>0,AJ66,0) -> 0 | AN66: =IF(AM66>0,1,0) -> 0 | AO66: =IF($I66=AO$6,$E66,0) -> 0 | AP66: =IF($K66=ROUND(AO$6*$F66,2),$G66,0) -> 0 | AQ66: =IF($H66>0,AO66,0) -> 0 | AR66: =IF(AQ66>0,1,0) -> 0 | AS66: =IF($H66>0,AP66,0) -> 0 | AT66: =IF(AS66>0,1,0) -> 0 | AU66: =IF($I66=AU$6,$E66,0) -> 0 | AV66: =IF($K66=ROUND(AU$6*$F66,2),$G66,0) -> 0 | AW66: =IF($H66>0,AU66,0) -> 0 | AX66: =IF(AW66>0,1,0) -> 0 | AY66: =IF($H66>0,AV66,0) -> 0 | AZ66: =IF(AY66>0,1,0) -> 0 | BA66: =IF($I66=BA$6,$E66,0) -> 0 | BB66: =IF($K66=ROUND(BA$6*$F66,2),$G66,0) -> 0 | BC66: =IF($H66>0,BA66,0) -> 0 | BD66: =IF(BC66>0,1,0) -> 0 | BE66: =IF($H66>0,BB66,0) -> 0 | BF66: =IF(BE66>0,1,0) -> 0 | BI66: 0 | BL66: =E66-SUM(AI66,AO66,AU66,BA66) -> 0
A67: =IF(E67+G67>0,A66,"") ->  | B67: =IF(E67+G67>0,B66,"") ->  | C67: 6 | D67: 03-4-23.007(333) | E67: 0 | F67: 1.1 | G67: 0 | H67: 0 | I67: =SUMIF(Y$14:BA$14,C67,Y$6:BA$6) -> 2064.38 | J67: =IF(H67=0,ROUND(E67*I67,2),IF(H67>0,ROUND(H67*E67,2),0)) -> 0 | K67: =ROUND(F67*I67,2) -> 2270.82 | L67: =IF(H67=0,ROUND(ROUND(F67*I67,2)*G67,2),IF(H67>0,ROUND(G67*H67,2),0)) -> 0 | M67: =IF(H67=0,L67-ROUND(G67*I67,2),0) -> 0 | O67: =J67+L67+N67 -> 0 | Q67: 479.72 | R67: =ROUND(Q67*(E67+G67),2) -> 0 | W67: =R67+T67+V67 -> 0 | AI67: =IF($I67=AI$6,$E67,0) -> 0 | AJ67: 0 | AK67: =IF($H67>0,AI67,0) -> 0 | AL67: =IF(AK67>0,1,0) -> 0 | AM67: =IF($H67>0,AJ67,0) -> 0 | AN67: =IF(AM67>0,1,0) -> 0 | AO67: =IF($I67=AO$6,$E67,0) -> 0 | AP67: 0 | AQ67: =IF($H67>0,AO67,0) -> 0 | AR67: =IF(AQ67>0,1,0) -> 0 | AS67: =IF($H67>0,AP67,0) -> 0 | AT67: =IF(AS67>0,1,0) -> 0 | AU67: =IF($I67=AU$6,$E67,0) -> 0 | AV67: 0 | AW67: =IF($H67>0,AU67,0) -> 0 | AX67: =IF(AW67>0,1,0) -> 0 | AY67: =IF($H67>0,AV67,0) -> 0 | AZ67: =IF(AY67>0,1,0) -> 0 | BA67: =IF($I67=BA$6,$E67,0) -> 0 | BB67: 0 | BC67: =IF($H67>0,BA67,0) -> 0 | BD67: =IF(BC67>0,1,0) -> 0 | BE67: =IF($H67>0,BB67,0) -> 0 | BF67: =IF(BE67>0,1,0) -> 0 | BL67: =E67-SUM(AI67,AO67,AU67,BA67) -> 0
A68: =IF(E68+G68>0,A66,"") ->  | B68: =IF(E68+G68>0,B66,"") ->  | C68: =C67 -> 6 | D68: 03-4-23.007(333) | E68: 0 | F68: 1.5 | G68: 0 | H68: 0 | I68: =SUMIF(Y$14:BA$14,C68,Y$7:BA$7) -> 0 | J68: 0 | K68: 0 | L68: 0 | M68: 0 | O68: 0 | Q68: 479.72 | R68: 0 | W68: 0 | AI68: =IF($I68=AI$7,$E68,0) -> 0 | AJ68: =IF($K68=ROUND(AI$7*$F68,2),$G68,0) -> 0 | AK68: 0 | AL68: 0 | AM68: 0 | AN68: 0 | AO68: =IF($I68=AO$7,$E68,0) -> 0 | AP68: =IF($K68=ROUND(AO$7*$F68,2),$G68,0) -> 0 | AQ68: 0 | AR68: 0 | AS68: 0 | AT68: 0 | AU68: =IF($I68=AU$7,$E68,0) -> 0 | AV68: =IF($K68=ROUND(AU$7*$F68,2),$G68,0) -> 0 | AW68: 0 | AX68: 0 | AY68: 0 | AZ68: 0 | BA68: =IF($I68=BA$7,$E68,0) -> 0 | BB68: =IF($K68=ROUND(BA$7*$F68,2),$G68,0) -> 0 | BC68: 0 | BD68: 0 | BE68: 0 | BF68: 0 | BL68: 0
A69: =IF(E69+G69>0,A66,"") ->  | B69: =IF(E69+G69>0,B66,"") ->  | C69: =C67 -> 6 | D69: 03-4-23.007(333) | E69: 0 | F69: 1.1 | G69: 0 | H69: 0 | I69: =SUMIF(Y$14:BA$14,C69,Y$7:BA$7) -> 0 | J69: 0 | K69: 0 | L69: 0 | M69: 0 | O69: 0 | Q69: 479.72 | R69: 0 | W69: 0 | AI69: =IF($I69=AI$7,$E69,0) -> 0 | AJ69: =IF($K69=ROUND(AI$7*$F69,2),$G69,0) -> 0 | AK69: 0 | AL69: 0 | AM69: 0 | AN69: 0 | AO69: =IF($I69=AO$7,$E69,0) -> 0 | AP69: =IF($K69=ROUND(AO$7*$F69,2),$G69,0) -> 0 | AQ69: 0 | AR69: 0 | AS69: 0 | AT69: 0 | AU69: =IF($I69=AU$7,$E69,0) -> 0 | AV69: =IF($K69=ROUND(AU$7*$F69,2),$G69,0) -> 0 | AW69: 0 | AX69: 0 | AY69: 0 | AZ69: 0 | BA69: =IF($I69=BA$7,$E69,0) -> 0 | BB69: =IF($K69=ROUND(BA$7*$F69,2),$G69,0) -> 0 | BC69: 0 | BD69: 0 | BE69: 0 | BF69: 0 | BL69: 0
A70: АО "ГТ Энерго" | C70: =C71 ->  | E70: 0 | F70: 1.5 | G70: 0 | H70: 0 | I70: =SUMIF(Y$14:BA$14,C70,Y$6:BA$6) -> 0 | J70: =IF(H70=0,ROUND(E70*I70,2),IF(H70>0,ROUND(H70*E70,2),0)) -> 0 | K70: =ROUND(F70*I70,2) -> 0 | L70: =IF(H70=0,ROUND(ROUND(F70*I70,2)*G70,2),IF(H70>0,ROUND(G70*H70,2),0)) -> 0 | M70: =IF(H70=0,L70-ROUND(G70*I70,2),0) -> 0 | O70: =J70+L70+N70 -> 0 | Q70: 479.72 | R70: =ROUND(Q70*(E70+G70),2) -> 0 | W70: =R70+T70+V70 -> 0 | AI70: =IF($I70=AI$6,$E70,0) -> 0 | AJ70: =IF($K70=ROUND(AI$6*$F70,2),$G70,0) -> 0 | AK70: =IF($H70>0,AI70,0) -> 0 | AL70: =IF(AK70>0,1,0) -> 0 | AM70: =IF($H70>0,AJ70,0) -> 0 | AN70: =IF(AM70>0,1,0) -> 0 | AO70: =IF($I70=AO$6,$E70,0) -> 0 | AP70: =IF($K70=ROUND(AO$6*$F70,2),$G70,0) -> 0 | AQ70: =IF($H70>0,AO70,0) -> 0 | AR70: =IF(AQ70>0,1,0) -> 0 | AS70: =IF($H70>0,AP70,0) -> 0 | AT70: =IF(AS70>0,1,0) -> 0 | AU70: =IF($I70=AU$6,$E70,0) -> 0 | AV70: =IF($K70=ROUND(AU$6*$F70,2),$G70,0) -> 0 | AW70: =IF($H70>0,AU70,0) -> 0 | AX70: =IF(AW70>0,1,0) -> 0 | AY70: =IF($H70>0,AV70,0) -> 0 | AZ70: =IF(AY70>0,1,0) -> 0 | BA70: =IF($I70=BA$6,$E70,0) -> 0 | BB70: =IF($K70=ROUND(BA$6*$F70,2),$G70,0) -> 0 | BC70: =IF($H70>0,BA70,0) -> 0 | BD70: =IF(BC70>0,1,0) -> 0 | BE70: =IF($H70>0,BB70,0) -> 0 | BF70: =IF(BE70>0,1,0) -> 0 | BI70: 0 | BL70: =E70-SUM(AI70,AO70,AU70,BA70) -> 0
A71: =IF(E71+G71>0,A70,"") ->  | B71: =IF(E71+G71>0,B70,"") ->  | E71: 0 | F71: 1.1 | G71: 0 | H71: 0 | I71: =SUMIF(Y$14:BA$14,C71,Y$6:BA$6) -> 0 | J71: =IF(H71=0,ROUND(E71*I71,2),IF(H71>0,ROUND(H71*E71,2),0)) -> 0 | K71: =ROUND(F71*I71,2) -> 0 | L71: =IF(H71=0,ROUND(ROUND(F71*I71,2)*G71,2),IF(H71>0,ROUND(G71*H71,2),0)) -> 0 | M71: =IF(H71=0,L71-ROUND(G71*I71,2),0) -> 0 | O71: =J71+L71+N71 -> 0 | Q71: 479.72 | R71: =ROUND(Q71*(E71+G71),2) -> 0 | W71: =R71+T71+V71 -> 0 | AI71: =IF($I71=AI$6,$E71,0) -> 0 | AJ71: 0 | AK71: =IF($H71>0,AI71,0) -> 0 | AL71: =IF(AK71>0,1,0) -> 0 | AM71: =IF($H71>0,AJ71,0) -> 0 | AN71: =IF(AM71>0,1,0) -> 0 | AO71: =IF($I71=AO$6,$E71,0) -> 0 | AP71: 0 | AQ71: =IF($H71>0,AO71,0) -> 0 | AR71: =IF(AQ71>0,1,0) -> 0 | AS71: =IF($H71>0,AP71,0) -> 0 | AT71: =IF(AS71>0,1,0) -> 0 | AU71: =IF($I71=AU$6,$E71,0) -> 0 | AV71: 0 | AW71: =IF($H71>0,AU71,0) -> 0 | AX71: =IF(AW71>0,1,0) -> 0 | AY71: =IF($H71>0,AV71,0) -> 0 | AZ71: =IF(AY71>0,1,0) -> 0 | BA71: =IF($I71=BA$6,$E71,0) -> 0 | BB71: 0 | BC71: =IF($H71>0,BA71,0) -> 0 | BD71: =IF(BC71>0,1,0) -> 0 | BE71: =IF($H71>0,BB71,0) -> 0 | BF71: =IF(BE71>0,1,0) -> 0 | BL71: =E71-SUM(AI71,AO71,AU71,BA71) -> 0
A72: =IF(E72+G72>0,A70,"") ->  | B72: =IF(E72+G72>0,B70,"") ->  | C72: =C71 ->  | E72: 0 | F72: 1.5 | G72: 0 | H72: 0 | I72: =SUMIF(Y$14:BA$14,C72,Y$7:BA$7) -> 0 | J72: 0 | K72: 0 | L72: 0 | M72: 0 | O72: 0 | Q72: 479.72 | R72: 0 | W72: 0 | AI72: =IF($I72=AI$7,$E72,0) -> 0 | AJ72: =IF($K72=ROUND(AI$7*$F72,2),$G72,0) -> 0 | AK72: 0 | AL72: 0 | AM72: 0 | AN72: 0 | AO72: =IF($I72=AO$7,$E72,0) -> 0 | AP72: =IF($K72=ROUND(AO$7*$F72,2),$G72,0) -> 0 | AQ72: 0 | AR72: 0 | AS72: 0 | AT72: 0 | AU72: =IF($I72=AU$7,$E72,0) -> 0 | AV72: =IF($K72=ROUND(AU$7*$F72,2),$G72,0) -> 0 | AW72: 0 | AX72: 0 | AY72: 0 | AZ72: 0 | BA72: =IF($I72=BA$7,$E72,0) -> 0 | BB72: =IF($K72=ROUND(BA$7*$F72,2),$G72,0) -> 0 | BC72: 0 | BD72: 0 | BE72: 0 | BF72: 0 | BL72: 0
A73: =IF(E73+G73>0,A70,"") ->  | B73: =IF(E73+G73>0,B70,"") ->  | C73: =C71 ->  | E73: 0 | F73: 1.1 | G73: 0 | H73: 0 | I73: =SUMIF(Y$14:BA$14,C73,Y$7:BA$7) -> 0 | J73: 0 | K73: 0 | L73: 0 | M73: 0 | O73: 0 | Q73: 479.72 | R73: 0 | W73: 0 | AI73: =IF($I73=AI$7,$E73,0) -> 0 | AJ73: =IF($K73=ROUND(AI$7*$F73,2),$G73,0) -> 0 | AK73: 0 | AL73: 0 | AM73: 0 | AN73: 0 | AO73: =IF($I73=AO$7,$E73,0) -> 0 | AP73: =IF($K73=ROUND(AO$7*$F73,2),$G73,0) -> 0 | AQ73: 0 | AR73: 0 | AS73: 0 | AT73: 0 | AU73: =IF($I73=AU$7,$E73,0) -> 0 | AV73: =IF($K73=ROUND(AU$7*$F73,2),$G73,0) -> 0 | AW73: 0 | AX73: 0 | AY73: 0 | AZ73: 0 | BA73: =IF($I73=BA$7,$E73,0) -> 0 | BB73: =IF($K73=ROUND(BA$7*$F73,2),$G73,0) -> 0 | BC73: 0 | BD73: 0 | BE73: 0 | BF73: 0 | BL73: 0
A74: АО "ГТ Энерго" | C74: =C75 ->  | E74: 0 | F74: 1.5 | G74: 0 | H74: 0 | I74: =SUMIF(Y$14:BA$14,C74,Y$6:BA$6) -> 0 | J74: =IF(H74=0,ROUND(E74*I74,2),IF(H74>0,ROUND(H74*E74,2),0)) -> 0 | K74: =ROUND(F74*I74,2) -> 0 | L74: =IF(H74=0,ROUND(ROUND(F74*I74,2)*G74,2),IF(H74>0,ROUND(G74*H74,2),0)) -> 0 | M74: =IF(H74=0,L74-ROUND(G74*I74,2),0) -> 0 | O74: =J74+L74+N74 -> 0 | Q74: 479.72 | R74: =ROUND(Q74*(E74+G74),2) -> 0 | W74: =R74+T74+V74 -> 0 | AI74: =IF($I74=AI$6,$E74,0) -> 0 | AJ74: =IF($K74=ROUND(AI$6*$F74,2),$G74,0) -> 0 | AK74: =IF($H74>0,AI74,0) -> 0 | AL74: =IF(AK74>0,1,0) -> 0 | AM74: =IF($H74>0,AJ74,0) -> 0 | AN74: =IF(AM74>0,1,0) -> 0 | AO74: =IF($I74=AO$6,$E74,0) -> 0 | AP74: =IF($K74=ROUND(AO$6*$F74,2),$G74,0) -> 0 | AQ74: =IF($H74>0,AO74,0) -> 0 | AR74: =IF(AQ74>0,1,0) -> 0 | AS74: =IF($H74>0,AP74,0) -> 0 | AT74: =IF(AS74>0,1,0) -> 0 | AU74: =IF($I74=AU$6,$E74,0) -> 0 | AV74: =IF($K74=ROUND(AU$6*$F74,2),$G74,0) -> 0 | AW74: =IF($H74>0,AU74,0) -> 0 | AX74: =IF(AW74>0,1,0) -> 0 | AY74: =IF($H74>0,AV74,0) -> 0 | AZ74: =IF(AY74>0,1,0) -> 0 | BA74: =IF($I74=BA$6,$E74,0) -> 0 | BB74: =IF($K74=ROUND(BA$6*$F74,2),$G74,0) -> 0 | BC74: =IF($H74>0,BA74,0) -> 0 | BD74: =IF(BC74>0,1,0) -> 0 | BE74: =IF($H74>0,BB74,0) -> 0 | BF74: =IF(BE74>0,1,0) -> 0 | BI74: 0 | BL74: =E74-SUM(AI74,AO74,AU74,BA74) -> 0
A75: =IF(E75+G75>0,A74,"") ->  | B75: =IF(E75+G75>0,B74,"") ->  | E75: 0 | F75: 1.1 | G75: 0 | H75: 0 | I75: =SUMIF(Y$14:BA$14,C75,Y$6:BA$6) -> 0 | J75: =IF(H75=0,ROUND(E75*I75,2),IF(H75>0,ROUND(H75*E75,2),0)) -> 0 | K75: =ROUND(F75*I75,2) -> 0 | L75: =IF(H75=0,ROUND(ROUND(F75*I75,2)*G75,2),IF(H75>0,ROUND(G75*H75,2),0)) -> 0 | M75: =IF(H75=0,L75-ROUND(G75*I75,2),0) -> 0 | O75: =J75+L75+N75 -> 0 | Q75: 479.72 | R75: =ROUND(Q75*(E75+G75),2) -> 0 | W75: =R75+T75+V75 -> 0 | AI75: =IF($I75=AI$6,$E75,0) -> 0 | AJ75: 0 | AK75: =IF($H75>0,AI75,0) -> 0 | AL75: =IF(AK75>0,1,0) -> 0 | AM75: =IF($H75>0,AJ75,0) -> 0 | AN75: =IF(AM75>0,1,0) -> 0 | AO75: =IF($I75=AO$6,$E75,0) -> 0 | AP75: 0 | AQ75: =IF($H75>0,AO75,0) -> 0 | AR75: =IF(AQ75>0,1,0) -> 0 | AS75: =IF($H75>0,AP75,0) -> 0 | AT75: =IF(AS75>0,1,0) -> 0 | AU75: =IF($I75=AU$6,$E75,0) -> 0 | AV75: 0 | AW75: =IF($H75>0,AU75,0) -> 0 | AX75: =IF(AW75>0,1,0) -> 0 | AY75: =IF($H75>0,AV75,0) -> 0 | AZ75: =IF(AY75>0,1,0) -> 0 | BA75: =IF($I75=BA$6,$E75,0) -> 0 | BB75: 0 | BC75: =IF($H75>0,BA75,0) -> 0 | BD75: =IF(BC75>0,1,0) -> 0 | BE75: =IF($H75>0,BB75,0) -> 0 | BF75: =IF(BE75>0,1,0) -> 0 | BL75: =E75-SUM(AI75,AO75,AU75,BA75) -> 0
A76: =IF(E76+G76>0,A74,"") ->  | B76: =IF(E76+G76>0,B74,"") ->  | C76: =C75 ->  | E76: 0 | F76: 1.5 | G76: 0 | H76: 0 | I76: =SUMIF(Y$14:BA$14,C76,Y$7:BA$7) -> 0 | J76: 0 | K76: 0 | L76: 0 | M76: 0 | O76: 0 | Q76: 479.72 | R76: 0 | W76: 0 | AI76: =IF($I76=AI$7,$E76,0) -> 0 | AJ76: =IF($K76=ROUND(AI$7*$F76,2),$G76,0) -> 0 | AK76: 0 | AL76: 0 | AM76: 0 | AN76: 0 | AO76: =IF($I76=AO$7,$E76,0) -> 0 | AP76: =IF($K76=ROUND(AO$7*$F76,2),$G76,0) -> 0 | AQ76: 0 | AR76: 0 | AS76: 0 | AT76: 0 | AU76: =IF($I76=AU$7,$E76,0) -> 0 | AV76: =IF($K76=ROUND(AU$7*$F76,2),$G76,0) -> 0 | AW76: 0 | AX76: 0 | AY76: 0 | AZ76: 0 | BA76: =IF($I76=BA$7,$E76,0) -> 0 | BB76: =IF($K76=ROUND(BA$7*$F76,2),$G76,0) -> 0 | BC76: 0 | BD76: 0 | BE76: 0 | BF76: 0 | BL76: 0
A77: =IF(E77+G77>0,A74,"") ->  | B77: =IF(E77+G77>0,B74,"") ->  | C77: =C75 ->  | E77: 0 | F77: 1.1 | G77: 0 | H77: 0 | I77: =SUMIF(Y$14:BA$14,C77,Y$7:BA$7) -> 0 | J77: 0 | K77: 0 | L77: 0 | M77: 0 | O77: 0 | Q77: 479.72 | R77: 0 | W77: 0 | AI77: =IF($I77=AI$7,$E77,0) -> 0 | AJ77: =IF($K77=ROUND(AI$7*$F77,2),$G77,0) -> 0 | AK77: 0 | AL77: 0 | AM77: 0 | AN77: 0 | AO77: =IF($I77=AO$7,$E77,0) -> 0 | AP77: =IF($K77=ROUND(AO$7*$F77,2),$G77,0) -> 0 | AQ77: 0 | AR77: 0 | AS77: 0 | AT77: 0 | AU77: =IF($I77=AU$7,$E77,0) -> 0 | AV77: =IF($K77=ROUND(AU$7*$F77,2),$G77,0) -> 0 | AW77: 0 | AX77: 0 | AY77: 0 | AZ77: 0 | BA77: =IF($I77=BA$7,$E77,0) -> 0 | BB77: =IF($K77=ROUND(BA$7*$F77,2),$G77,0) -> 0 | BC77: 0 | BD77: 0 | BE77: 0 | BF77: 0 | BL77: 0
A78: ОАО "Архангельскоблгаз" | C78: =C79 -> 7 | D78: 03-4-23.011(333) | E78: 0 | F78: 1.5 | G78: 0 | H78: 0 | I78: =SUMIF(Y$14:BA$14,C78,Y$6:BA$6) -> 2580.47 | J78: =IF(H78=0,ROUND(E78*I78,2),IF(H78>0,ROUND(H78*E78,2),0)) -> 0 | K78: =ROUND(F78*I78,2) -> 3870.71 | L78: =IF(H78=0,ROUND(ROUND(F78*I78,2)*G78,2),IF(H78>0,ROUND(G78*H78,2),0)) -> 0 | M78: =IF(H78=0,L78-ROUND(G78*I78,2),0) -> 0 | O78: =J78+L78+N78 -> 0 | Q78: 479.72 | R78: =ROUND(Q78*(E78+G78),2) -> 0 | W78: =R78+T78+V78 -> 0 | AI78: =IF($I78=AI$6,$E78,0) -> 0 | AJ78: =IF($K78=ROUND(AI$6*$F78,2),$G78,0) -> 0 | AK78: =IF($H78>0,AI78,0) -> 0 | AL78: =IF(AK78>0,1,0) -> 0 | AM78: =IF($H78>0,AJ78,0) -> 0 | AN78: =IF(AM78>0,1,0) -> 0 | AO78: =IF($I78=AO$6,$E78,0) -> 0 | AP78: =IF($K78=ROUND(AO$6*$F78,2),$G78,0) -> 0 | AQ78: =IF($H78>0,AO78,0) -> 0 | AR78: =IF(AQ78>0,1,0) -> 0 | AS78: =IF($H78>0,AP78,0) -> 0 | AT78: =IF(AS78>0,1,0) -> 0 | AU78: =IF($I78=AU$6,$E78,0) -> 0 | AV78: =IF($K78=ROUND(AU$6*$F78,2),$G78,0) -> 0 | AW78: =IF($H78>0,AU78,0) -> 0 | AX78: =IF(AW78>0,1,0) -> 0 | AY78: =IF($H78>0,AV78,0) -> 0 | AZ78: =IF(AY78>0,1,0) -> 0 | BA78: =IF($I78=BA$6,$E78,0) -> 0 | BB78: =IF($K78=ROUND(BA$6*$F78,2),$G78,0) -> 0 | BC78: =IF($H78>0,BA78,0) -> 0 | BD78: =IF(BC78>0,1,0) -> 0 | BE78: =IF($H78>0,BB78,0) -> 0 | BF78: =IF(BE78>0,1,0) -> 0 | BI78: 0 | BL78: =E78-SUM(AI78,AO78,AU78,BA78) -> 0
A79: =IF(E79+G79>0,A78,"") ->  | B79: =IF(E79+G79>0,B78,"") ->  | C79: 7 | D79: 03-4-23.011(333) | E79: 0 | F79: 1.1 | G79: 0 | H79: 0 | I79: =SUMIF(Y$14:BA$14,C79,Y$6:BA$6) -> 2580.47 | J79: =IF(H79=0,ROUND(E79*I79,2),IF(H79>0,ROUND(H79*E79,2),0)) -> 0 | K79: =ROUND(F79*I79,2) -> 2838.52 | L79: =IF(H79=0,ROUND(ROUND(F79*I79,2)*G79,2),IF(H79>0,ROUND(G79*H79,2),0)) -> 0 | M79: =IF(H79=0,L79-ROUND(G79*I79,2),0) -> 0 | O79: =J79+L79+N79 -> 0 | Q79: 479.72 | R79: =ROUND(Q79*(E79+G79),2) -> 0 | W79: =R79+T79+V79 -> 0 | AI79: =IF($I79=AI$6,$E79,0) -> 0 | AJ79: 0 | AK79: =IF($H79>0,AI79,0) -> 0 | AL79: =IF(AK79>0,1,0) -> 0 | AM79: =IF($H79>0,AJ79,0) -> 0 | AN79: =IF(AM79>0,1,0) -> 0 | AO79: =IF($I79=AO$6,$E79,0) -> 0 | AP79: 0 | AQ79: =IF($H79>0,AO79,0) -> 0 | AR79: =IF(AQ79>0,1,0) -> 0 | AS79: =IF($H79>0,AP79,0) -> 0 | AT79: =IF(AS79>0,1,0) -> 0 | AU79: =IF($I79=AU$6,$E79,0) -> 0 | AV79: 0 | AW79: =IF($H79>0,AU79,0) -> 0 | AX79: =IF(AW79>0,1,0) -> 0 | AY79: =IF($H79>0,AV79,0) -> 0 | AZ79: =IF(AY79>0,1,0) -> 0 | BA79: =IF($I79=BA$6,$E79,0) -> 0 | BB79: 0 | BC79: =IF($H79>0,BA79,0) -> 0 | BD79: =IF(BC79>0,1,0) -> 0 | BE79: =IF($H79>0,BB79,0) -> 0 | BF79: =IF(BE79>0,1,0) -> 0 | BL79: =E79-SUM(AI79,AO79,AU79,BA79) -> 0
A80: =IF(E80+G80>0,A78,"") ->  | B80: =IF(E80+G80>0,B78,"") ->  | C80: =C79 -> 7 | D80: 03-4-23.011(333) | E80: 0 | F80: 1.5 | G80: 0 | H80: 0 | I80: =SUMIF(Y$14:BA$14,C80,Y$7:BA$7) -> 0 | J80: 0 | K80: 0 | L80: 0 | M80: 0 | O80: 0 | Q80: =IF(BI80>0,Q$6,Q$6) -> 479.72 | R80: 0 | W80: 0 | AI80: =IF($I80=AI$7,$E80,0) -> 0 | AJ80: =IF($K80=ROUND(AI$7*$F80,2),$G80,0) -> 0 | AK80: 0 | AL80: 0 | AM80: 0 | AN80: 0 | AO80: =IF($I80=AO$7,$E80,0) -> 0 | AP80: =IF($K80=ROUND(AO$7*$F80,2),$G80,0) -> 0 | AQ80: 0 | AR80: 0 | AS80: 0 | AT80: 0 | AU80: =IF($I80=AU$7,$E80,0) -> 0 | AV80: =IF($K80=ROUND(AU$7*$F80,2),$G80,0) -> 0 | AW80: 0 | AX80: 0 | AY80: 0 | AZ80: 0 | BA80: =IF($I80=BA$7,$E80,0) -> 0 | BB80: =IF($K80=ROUND(BA$7*$F80,2),$G80,0) -> 0 | BC80: 0 | BD80: 0 | BE80: 0 | BF80: 0 | BL80: 0
A81: =IF(E81+G81>0,A78,"") ->  | B81: =IF(E81+G81>0,B78,"") ->  | C81: =C79 -> 7 | D81: 03-4-23.011(333) | E81: 0 | F81: 1.1 | G81: 0 | H81: =E81+G81 -> 0 | I81: =SUMIF(Y$14:BA$14,C81,Y$7:BA$7) -> 0 | J81: 0 | K81: 0 | L81: 0 | M81: 0 | O81: 0 | Q81: 479.72 | R81: 0 | W81: 0 | AI81: =IF($I81=AI$7,$E81,0) -> 0 | AJ81: =IF($K81=ROUND(AI$7*$F81,2),$G81,0) -> 0 | AK81: 0 | AL81: 0 | AM81: 0 | AN81: 0 | AO81: =IF($I81=AO$7,$E81,0) -> 0 | AP81: =IF($K81=ROUND(AO$7*$F81,2),$G81,0) -> 0 | AQ81: 0 | AR81: 0 | AS81: 0 | AT81: 0 | AU81: =IF($I81=AU$7,$E81,0) -> 0 | AV81: =IF($K81=ROUND(AU$7*$F81,2),$G81,0) -> 0 | AW81: 0 | AX81: 0 | AY81: 0 | AZ81: 0 | BA81: =IF($I81=BA$7,$E81,0) -> 0 | BB81: =IF($K81=ROUND(BA$7*$F81,2),$G81,0) -> 0 | BC81: 0 | BD81: 0 | BE81: 0 | BF81: 0 | BL81: 0
A82: ГКУЗ АО АМЦМР "Резерв" | C82: =C83 -> 6 | D82: 03-4-25.012Б(333) | E82: 0 | F82: 1.5 | G82: 0 | H82: 0 | I82: =SUMIF(Y$14:BA$14,C82,Y$6:BA$6) -> 2064.38 | J82: =IF(H82=0,ROUND(E82*I82,2),IF(H82>0,ROUND(H82*E82,2),0)) -> 0 | K82: =ROUND(F82*I82,2) -> 3096.57 | L82: =IF(H82=0,ROUND(ROUND(F82*I82,2)*G82,2),IF(H82>0,ROUND(G82*H82,2),0)) -> 0 | M82: =IF(H82=0,L82-ROUND(G82*I82,2),0) -> 0 | O82: =J82+L82+N82 -> 0 | Q82: 479.72 | R82: =ROUND(Q82*(E82+G82),2) -> 0 | W82: =R82+T82+V82 -> 0 | AI82: =IF($I82=AI$6,$E82,0) -> 0 | AJ82: =IF($K82=ROUND(AI$6*$F82,2),$G82,0) -> 0 | AK82: =IF($H82>0,AI82,0) -> 0 | AL82: =IF(AK82>0,1,0) -> 0 | AM82: =IF($H82>0,AJ82,0) -> 0 | AN82: =IF(AM82>0,1,0) -> 0 | AO82: =IF($I82=AO$6,$E82,0) -> 0 | AP82: =IF($K82=ROUND(AO$6*$F82,2),$G82,0) -> 0 | AQ82: =IF($H82>0,AO82,0) -> 0 | AR82: =IF(AQ82>0,1,0) -> 0 | AS82: =IF($H82>0,AP82,0) -> 0 | AT82: =IF(AS82>0,1,0) -> 0 | AU82: =IF($I82=AU$6,$E82,0) -> 0 | AV82: =IF($K82=ROUND(AU$6*$F82,2),$G82,0) -> 0 | AW82: =IF($H82>0,AU82,0) -> 0 | AX82: =IF(AW82>0,1,0) -> 0 | AY82: =IF($H82>0,AV82,0) -> 0 | AZ82: =IF(AY82>0,1,0) -> 0 | BA82: =IF($I82=BA$6,$E82,0) -> 0 | BB82: =IF($K82=ROUND(BA$6*$F82,2),$G82,0) -> 0 | BC82: =IF($H82>0,BA82,0) -> 0 | BD82: =IF(BC82>0,1,0) -> 0 | BE82: =IF($H82>0,BB82,0) -> 0 | BF82: =IF(BE82>0,1,0) -> 0 | BI82: 0 | BL82: =E82-SUM(AI82,AO82,AU82,BA82) -> 0
A83: =IF(E83+G83>0,A82,"") ->  | B83: =IF(E83+G83>0,B82,"") ->  | C83: 6 | D83: 03-4-25.012Б(333) | E83: 0 | F83: 1.1 | G83: 0 | H83: 0 | I83: =SUMIF(Y$14:BA$14,C83,Y$6:BA$6) -> 2064.38 | J83: =IF(H83=0,ROUND(E83*I83,2),IF(H83>0,ROUND(H83*E83,2),0)) -> 0 | K83: =ROUND(F83*I83,2) -> 2270.82 | L83: =IF(H83=0,ROUND(ROUND(F83*I83,2)*G83,2),IF(H83>0,ROUND(G83*H83,2),0)) -> 0 | M83: =IF(H83=0,L83-ROUND(G83*I83,2),0) -> 0 | O83: =J83+L83+N83 -> 0 | Q83: 479.72 | R83: =ROUND(Q83*(E83+G83),2) -> 0 | W83: =R83+T83+V83 -> 0 | AI83: =IF($I83=AI$6,$E83,0) -> 0 | AJ83: 0 | AK83: =IF($H83>0,AI83,0) -> 0 | AL83: =IF(AK83>0,1,0) -> 0 | AM83: =IF($H83>0,AJ83,0) -> 0 | AN83: =IF(AM83>0,1,0) -> 0 | AO83: =IF($I83=AO$6,$E83,0) -> 0 | AP83: 0 | AQ83: =IF($H83>0,AO83,0) -> 0 | AR83: =IF(AQ83>0,1,0) -> 0 | AS83: =IF($H83>0,AP83,0) -> 0 | AT83: =IF(AS83>0,1,0) -> 0 | AU83: =IF($I83=AU$6,$E83,0) -> 0 | AV83: 0 | AW83: =IF($H83>0,AU83,0) -> 0 | AX83: =IF(AW83>0,1,0) -> 0 | AY83: =IF($H83>0,AV83,0) -> 0 | AZ83: =IF(AY83>0,1,0) -> 0 | BA83: =IF($I83=BA$6,$E83,0) -> 0 | BB83: 0 | BC83: =IF($H83>0,BA83,0) -> 0 | BD83: =IF(BC83>0,1,0) -> 0 | BE83: =IF($H83>0,BB83,0) -> 0 | BF83: =IF(BE83>0,1,0) -> 0 | BL83: =E83-SUM(AI83,AO83,AU83,BA83) -> 0
A84: =IF(E84+G84>0,A82,"") ->  | B84: =IF(E84+G84>0,B82,"") ->  | C84: =C83 -> 6 | D84: 03-4-25.012Б(333) | E84: 0 | F84: 1.5 | G84: 0 | H84: 0 | I84: =SUMIF(Y$14:BA$14,C84,Y$7:BA$7) -> 0 | J84: 0 | K84: 0 | L84: 0 | M84: 0 | O84: 0 | Q84: 479.72 | R84: 0 | W84: 0 | AI84: =IF($I84=AI$7,$E84,0) -> 0 | AJ84: =IF($K84=ROUND(AI$7*$F84,2),$G84,0) -> 0 | AK84: 0 | AL84: 0 | AM84: 0 | AN84: 0 | AO84: =IF($I84=AO$7,$E84,0) -> 0 | AP84: =IF($K84=ROUND(AO$7*$F84,2),$G84,0) -> 0 | AQ84: 0 | AR84: 0 | AS84: 0 | AT84: 0 | AU84: =IF($I84=AU$7,$E84,0) -> 0 | AV84: =IF($K84=ROUND(AU$7*$F84,2),$G84,0) -> 0 | AW84: 0 | AX84: 0 | AY84: 0 | AZ84: 0 | BA84: =IF($I84=BA$7,$E84,0) -> 0 | BB84: =IF($K84=ROUND(BA$7*$F84,2),$G84,0) -> 0 | BC84: 0 | BD84: 0 | BE84: 0 | BF84: 0 | BL84: 0
A85: =IF(E85+G85>0,A82,"") ->  | B85: =IF(E85+G85>0,B82,"") ->  | C85: =C83 -> 6 | D85: 03-4-25.012Б(333) | E85: 0 | F85: 1.1 | G85: 0 | H85: 0 | I85: =SUMIF(Y$14:BA$14,C85,Y$7:BA$7) -> 0 | J85: 0 | K85: 0 | L85: 0 | M85: 0 | O85: 0 | Q85: 479.72 | R85: 0 | W85: 0 | AI85: =IF($I85=AI$7,$E85,0) -> 0 | AJ85: =IF($K85=ROUND(AI$7*$F85,2),$G85,0) -> 0 | AK85: 0 | AL85: 0 | AM85: 0 | AN85: 0 | AO85: =IF($I85=AO$7,$E85,0) -> 0 | AP85: =IF($K85=ROUND(AO$7*$F85,2),$G85,0) -> 0 | AQ85: 0 | AR85: 0 | AS85: 0 | AT85: 0 | AU85: =IF($I85=AU$7,$E85,0) -> 0 | AV85: =IF($K85=ROUND(AU$7*$F85,2),$G85,0) -> 0 | AW85: 0 | AX85: 0 | AY85: 0 | AZ85: 0 | BA85: =IF($I85=BA$7,$E85,0) -> 0 | BB85: =IF($K85=ROUND(BA$7*$F85,2),$G85,0) -> 0 | BC85: 0 | BD85: 0 | BE85: 0 | BF85: 0 | BL85: 0
A86: ООО "КМТС" | C86: =C87 -> 6 | D86: 03-4-23.364 | E86: 0 | F86: 1.5 | G86: 0 | H86: 0 | I86: =SUMIF(Y$14:BA$14,C86,Y$6:BA$6) -> 2064.38 | J86: =IF(H86=0,ROUND(E86*I86,2),IF(H86>0,ROUND(H86*E86,2),0)) -> 0 | K86: =ROUND(F86*I86,2) -> 3096.57 | L86: =IF(H86=0,ROUND(ROUND(F86*I86,2)*G86,2),IF(H86>0,ROUND(G86*H86,2),0)) -> 0 | M86: =IF(H86=0,L86-ROUND(G86*I86,2),0) -> 0 | O86: =J86+L86+N86 -> 0 | Q86: 479.72 | R86: =ROUND(Q86*(E86+G86),2) -> 0 | W86: =R86+T86+V86 -> 0 | AI86: =IF($I86=AI$6,$E86,0) -> 0 | AJ86: =IF($K86=ROUND(AI$6*$F86,2),$G86,0) -> 0 | AK86: =IF($H86>0,AI86,0) -> 0 | AL86: =IF(AK86>0,1,0) -> 0 | AM86: =IF($H86>0,AJ86,0) -> 0 | AN86: =IF(AM86>0,1,0) -> 0 | AO86: =IF($I86=AO$6,$E86,0) -> 0 | AP86: =IF($K86=ROUND(AO$6*$F86,2),$G86,0) -> 0 | AQ86: =IF($H86>0,AO86,0) -> 0 | AR86: =IF(AQ86>0,1,0) -> 0 | AS86: =IF($H86>0,AP86,0) -> 0 | AT86: =IF(AS86>0,1,0) -> 0 | AU86: =IF($I86=AU$6,$E86,0) -> 0 | AV86: =IF($K86=ROUND(AU$6*$F86,2),$G86,0) -> 0 | AW86: =IF($H86>0,AU86,0) -> 0 | AX86: =IF(AW86>0,1,0) -> 0 | AY86: =IF($H86>0,AV86,0) -> 0 | AZ86: =IF(AY86>0,1,0) -> 0 | BA86: =IF($I86=BA$6,$E86,0) -> 0 | BB86: =IF($K86=ROUND(BA$6*$F86,2),$G86,0) -> 0 | BC86: =IF($H86>0,BA86,0) -> 0 | BD86: =IF(BC86>0,1,0) -> 0 | BE86: =IF($H86>0,BB86,0) -> 0 | BF86: =IF(BE86>0,1,0) -> 0 | BI86: 0 | BL86: =E86-SUM(AI86,AO86,AU86,BA86) -> 0
A87: =IF(E87+G87>0,A86,"") ->  | B87: =IF(E87+G87>0,B86,"") ->  | C87: 6 | D87: 03-4-23.364 | E87: 0 | F87: 1.1 | G87: 0 | H87: 0 | I87: =SUMIF(Y$14:BA$14,C87,Y$6:BA$6) -> 2064.38 | J87: =IF(H87=0,ROUND(E87*I87,2),IF(H87>0,ROUND(H87*E87,2),0)) -> 0 | K87: =ROUND(F87*I87,2) -> 2270.82 | L87: =IF(H87=0,ROUND(ROUND(F87*I87,2)*G87,2),IF(H87>0,ROUND(G87*H87,2),0)) -> 0 | M87: =IF(H87=0,L87-ROUND(G87*I87,2),0) -> 0 | O87: =J87+L87+N87 -> 0 | Q87: 479.72 | R87: =ROUND(Q87*(E87+G87),2) -> 0 | W87: =R87+T87+V87 -> 0 | AI87: =IF($I87=AI$6,$E87,0) -> 0 | AJ87: 0 | AK87: =IF($H87>0,AI87,0) -> 0 | AL87: =IF(AK87>0,1,0) -> 0 | AM87: =IF($H87>0,AJ87,0) -> 0 | AN87: =IF(AM87>0,1,0) -> 0 | AO87: =IF($I87=AO$6,$E87,0) -> 0 | AP87: 0 | AQ87: =IF($H87>0,AO87,0) -> 0 | AR87: =IF(AQ87>0,1,0) -> 0 | AS87: =IF($H87>0,AP87,0) -> 0 | AT87: =IF(AS87>0,1,0) -> 0 | AU87: =IF($I87=AU$6,$E87,0) -> 0 | AV87: 0 | AW87: =IF($H87>0,AU87,0) -> 0 | AX87: =IF(AW87>0,1,0) -> 0 | AY87: =IF($H87>0,AV87,0) -> 0 | AZ87: =IF(AY87>0,1,0) -> 0 | BA87: =IF($I87=BA$6,$E87,0) -> 0 | BB87: 0 | BC87: =IF($H87>0,BA87,0) -> 0 | BD87: =IF(BC87>0,1,0) -> 0 | BE87: =IF($H87>0,BB87,0) -> 0 | BF87: =IF(BE87>0,1,0) -> 0 | BL87: =E87-SUM(AI87,AO87,AU87,BA87) -> 0
A88: =IF(E88+G88>0,A86,"") ->  | B88: =IF(E88+G88>0,B86,"") ->  | C88: =C87 -> 6 | D88: 03-4-23.364 | E88: 0 | F88: 1.5 | G88: 0 | H88: 0 | I88: =SUMIF(Y$14:BA$14,C88,Y$7:BA$7) -> 0 | J88: 0 | K88: 0 | L88: 0 | M88: 0 | O88: 0 | Q88: 479.72 | R88: 0 | W88: 0 | AI88: =IF($I88=AI$7,$E88,0) -> 0 | AJ88: =IF($K88=ROUND(AI$7*$F88,2),$G88,0) -> 0 | AK88: 0 | AL88: 0 | AM88: 0 | AN88: 0 | AO88: =IF($I88=AO$7,$E88,0) -> 0 | AP88: =IF($K88=ROUND(AO$7*$F88,2),$G88,0) -> 0 | AQ88: 0 | AR88: 0 | AS88: 0 | AT88: 0 | AU88: =IF($I88=AU$7,$E88,0) -> 0 | AV88: =IF($K88=ROUND(AU$7*$F88,2),$G88,0) -> 0 | AW88: 0 | AX88: 0 | AY88: 0 | AZ88: 0 | BA88: =IF($I88=BA$7,$E88,0) -> 0 | BB88: =IF($K88=ROUND(BA$7*$F88,2),$G88,0) -> 0 | BC88: 0 | BD88: 0 | BE88: 0 | BF88: 0 | BL88: 0
A89: =IF(E89+G89>0,A86,"") ->  | B89: =IF(E89+G89>0,B86,"") ->  | C89: =C87 -> 6 | D89: 03-4-23.364 | E89: 0 | F89: 1.1 | G89: 0 | H89: 0 | I89: =SUMIF(Y$14:BA$14,C89,Y$7:BA$7) -> 0 | J89: 0 | K89: 0 | L89: 0 | M89: 0 | O89: 0 | Q89: 479.72 | R89: 0 | W89: 0 | AI89: =IF($I89=AI$7,$E89,0) -> 0 | AJ89: =IF($K89=ROUND(AI$7*$F89,2),$G89,0) -> 0 | AK89: 0 | AL89: 0 | AM89: 0 | AN89: 0 | AO89: =IF($I89=AO$7,$E89,0) -> 0 | AP89: =IF($K89=ROUND(AO$7*$F89,2),$G89,0) -> 0 | AQ89: 0 | AR89: 0 | AS89: 0 | AT89: 0 | AU89: =IF($I89=AU$7,$E89,0) -> 0 | AV89: =IF($K89=ROUND(AU$7*$F89,2),$G89,0) -> 0 | AW89: 0 | AX89: 0 | AY89: 0 | AZ89: 0 | BA89: =IF($I89=BA$7,$E89,0) -> 0 | BB89: =IF($K89=ROUND(BA$7*$F89,2),$G89,0) -> 0 | BC89: 0 | BD89: 0 | BE89: 0 | BF89: 0 | BL89: 0
A90: ООО "Хлебокомбинат" | B90: Вельск, ул.50 лет Октября-48, стр.10 | C90: =C91 -> 5 | D90: 03-4-24.365(333) | E90: 0 | F90: 1.5 | G90: 0 | H90: 0 | I90: =SUMIF(Y$14:BA$14,C90,Y$6:BA$6) -> 1651.49 | J90: =IF(H90=0,ROUND(E90*I90,2),IF(H90>0,ROUND(H90*E90,2),0)) -> 0 | K90: =ROUND(F90*I90,2) -> 2477.24 | L90: =IF(H90=0,ROUND(ROUND(F90*I90,2)*G90,2),IF(H90>0,ROUND(G90*H90,2),0)) -> 0 | M90: =IF(H90=0,L90-ROUND(G90*I90,2),0) -> 0 | O90: =J90+L90+N90 -> 0 | Q90: 479.72 | R90: =ROUND(Q90*(E90+G90),2) -> 0 | W90: =R90+T90+V90 -> 0 | AI90: =IF($I90=AI$6,$E90,0) -> 0 | AJ90: =IF($K90=ROUND(AI$6*$F90,2),$G90,0) -> 0 | AK90: =IF($H90>0,AI90,0) -> 0 | AL90: =IF(AK90>0,1,0) -> 0 | AM90: =IF($H90>0,AJ90,0) -> 0 | AN90: =IF(AM90>0,1,0) -> 0 | AO90: =IF($I90=AO$6,$E90,0) -> 0 | AP90: =IF($K90=ROUND(AO$6*$F90,2),$G90,0) -> 0 | AQ90: =IF($H90>0,AO90,0) -> 0 | AR90: =IF(AQ90>0,1,0) -> 0 | AS90: =IF($H90>0,AP90,0) -> 0 | AT90: =IF(AS90>0,1,0) -> 0 | AU90: =IF($I90=AU$6,$E90,0) -> 0 | AV90: =IF($K90=ROUND(AU$6*$F90,2),$G90,0) -> 0 | AW90: =IF($H90>0,AU90,0) -> 0 | AX90: =IF(AW90>0,1,0) -> 0 | AY90: =IF($H90>0,AV90,0) -> 0 | AZ90: =IF(AY90>0,1,0) -> 0 | BA90: =IF($I90=BA$6,$E90,0) -> 0 | BB90: =IF($K90=ROUND(BA$6*$F90,2),$G90,0) -> 0 | BC90: =IF($H90>0,BA90,0) -> 0 | BD90: =IF(BC90>0,1,0) -> 0 | BE90: =IF($H90>0,BB90,0) -> 0 | BF90: =IF(BE90>0,1,0) -> 0 | BI90: 6 | BL90: =E90-SUM(AI90,AO90,AU90,BA90) -> 0
A91: =IF(E91+G91>0,A90,"") -> ООО "Хлебокомбинат" | B91: =IF(E91+G91>0,B90,"") -> Вельск, ул.50 лет Октября-48, стр.10 | C91: 5 | D91: 03-4-24.365(333) | E91: 5.389 | F91: 1.1 | G91: 0 | H91: 5.389 | I91: =SUMIF(Y$14:BA$14,C91,Y$6:BA$6) -> 1651.49 | J91: =IF(H91=0,ROUND(E91*I91,2),IF(H91>0,ROUND(H91*E91,2),0)) -> 29.04 | K91: =ROUND(F91*I91,2) -> 1816.64 | L91: =IF(H91=0,ROUND(ROUND(F91*I91,2)*G91,2),IF(H91>0,ROUND(G91*H91,2),0)) -> 0 | M91: =IF(H91=0,L91-ROUND(G91*I91,2),0) -> 0 | O91: =J91+L91+N91 -> 29.04 | Q91: 479.72 | R91: =ROUND(Q91*(E91+G91),2) -> 2585.21 | W91: =R91+T91+V91 -> 2585.21 | AI91: =IF($I91=AI$6,$E91,0) -> 0 | AJ91: 0 | AK91: =IF($H91>0,AI91,0) -> 0 | AL91: =IF(AK91>0,1,0) -> 0 | AM91: =IF($H91>0,AJ91,0) -> 0 | AN91: =IF(AM91>0,1,0) -> 0 | AO91: =IF($I91=AO$6,$E91,0) -> 5.389 | AP91: 0 | AQ91: =IF($H91>0,AO91,0) -> 5.389 | AR91: =IF(AQ91>0,1,0) -> 1 | AS91: =IF($H91>0,AP91,0) -> 0 | AT91: =IF(AS91>0,1,0) -> 0 | AU91: =IF($I91=AU$6,$E91,0) -> 0 | AV91: 0 | AW91: =IF($H91>0,AU91,0) -> 0 | AX91: =IF(AW91>0,1,0) -> 0 | AY91: =IF($H91>0,AV91,0) -> 0 | AZ91: =IF(AY91>0,1,0) -> 0 | BA91: =IF($I91=BA$6,$E91,0) -> 0 | BB91: 0 | BC91: =IF($H91>0,BA91,0) -> 0 | BD91: =IF(BC91>0,1,0) -> 0 | BE91: =IF($H91>0,BB91,0) -> 0 | BF91: =IF(BE91>0,1,0) -> 0 | BL91: =E91-SUM(AI91,AO91,AU91,BA91) -> 0
A92: =IF(E92+G92>0,A90,"") ->  | B92: =IF(E92+G92>0,B90,"") ->  | C92: =C91 -> 5 | D92: 03-4-24.365(333) | E92: 0 | F92: 1.5 | G92: 0 | H92: 0 | I92: =SUMIF(Y$14:BA$14,C92,Y$7:BA$7) -> 0 | J92: 0 | K92: 0 | L92: 0 | M92: 0 | O92: 0 | Q92: 479.72 | R92: 0 | W92: 0 | AI92: =IF($I92=AI$7,$E92,0) -> 0 | AJ92: =IF($K92=ROUND(AI$7*$F92,2),$G92,0) -> 0 | AK92: 0 | AL92: 0 | AM92: 0 | AN92: 0 | AO92: =IF($I92=AO$7,$E92,0) -> 0 | AP92: =IF($K92=ROUND(AO$7*$F92,2),$G92,0) -> 0 | AQ92: 0 | AR92: 0 | AS92: 0 | AT92: 0 | AU92: =IF($I92=AU$7,$E92,0) -> 0 | AV92: =IF($K92=ROUND(AU$7*$F92,2),$G92,0) -> 0 | AW92: 0 | AX92: 0 | AY92: 0 | AZ92: 0 | BA92: =IF($I92=BA$7,$E92,0) -> 0 | BB92: =IF($K92=ROUND(BA$7*$F92,2),$G92,0) -> 0 | BC92: 0 | BD92: 0 | BE92: 0 | BF92: 0 | BL92: 0
A93: =IF(E93+G93>0,A90,"") ->  | B93: =IF(E93+G93>0,B90,"") ->  | C93: =C91 -> 5 | D93: 03-4-24.365(333) | E93: 0 | F93: 1.1 | G93: 0 | H93: 0 | I93: =SUMIF(Y$14:BA$14,C93,Y$7:BA$7) -> 0 | J93: 0 | K93: 0 | L93: 0 | M93: 0 | O93: 0 | Q93: 479.72 | R93: 0 | W93: 0 | AI93: =IF($I93=AI$7,$E93,0) -> 0 | AJ93: =IF($K93=ROUND(AI$7*$F93,2),$G93,0) -> 0 | AK93: 0 | AL93: 0 | AM93: 0 | AN93: 0 | AO93: =IF($I93=AO$7,$E93,0) -> 0 | AP93: =IF($K93=ROUND(AO$7*$F93,2),$G93,0) -> 0 | AQ93: 0 | AR93: 0 | AS93: 0 | AT93: 0 | AU93: =IF($I93=AU$7,$E93,0) -> 0 | AV93: =IF($K93=ROUND(AU$7*$F93,2),$G93,0) -> 0 | AW93: 0 | AX93: 0 | AY93: 0 | AZ93: 0 | BA93: =IF($I93=BA$7,$E93,0) -> 0 | BB93: =IF($K93=ROUND(BA$7*$F93,2),$G93,0) -> 0 | BC93: 0 | BD93: 0 | BE93: 0 | BF93: 0 | BL93: 0
A94: ООО "Диал - Север" | B94: Вельск, ул.50 лет Октября-48 | C94: =C95 -> 5 | D94: 03-4-23.366 | E94: 0 | F94: 1.5 | G94: 0 | H94: 0 | I94: =SUMIF(Y$14:BA$14,C94,Y$6:BA$6) -> 1651.49 | J94: =IF(H94=0,ROUND(E94*I94,2),IF(H94>0,ROUND(H94*E94,2),0)) -> 0 | K94: =ROUND(F94*I94,2) -> 2477.24 | L94: =IF(H94=0,ROUND(ROUND(F94*I94,2)*G94,2),IF(H94>0,ROUND(G94*H94,2),0)) -> 0 | M94: =IF(H94=0,L94-ROUND(G94*I94,2),0) -> 0 | O94: =J94+L94+N94 -> 0 | Q94: 479.72 | R94: =ROUND(Q94*(E94+G94),2) -> 0 | W94: =R94+T94+V94 -> 0 | AI94: =IF($I94=AI$6,$E94,0) -> 0 | AJ94: =IF($K94=ROUND(AI$6*$F94,2),$G94,0) -> 0 | AK94: =IF($H94>0,AI94,0) -> 0 | AL94: =IF(AK94>0,1,0) -> 0 | AM94: =IF($H94>0,AJ94,0) -> 0 | AN94: =IF(AM94>0,1,0) -> 0 | AO94: =IF($I94=AO$6,$E94,0) -> 0 | AP94: =IF($K94=ROUND(AO$6*$F94,2),$G94,0) -> 0 | AQ94: =IF($H94>0,AO94,0) -> 0 | AR94: =IF(AQ94>0,1,0) -> 0 | AS94: =IF($H94>0,AP94,0) -> 0 | AT94: =IF(AS94>0,1,0) -> 0 | AU94: =IF($I94=AU$6,$E94,0) -> 0 | AV94: =IF($K94=ROUND(AU$6*$F94,2),$G94,0) -> 0 | AW94: =IF($H94>0,AU94,0) -> 0 | AX94: =IF(AW94>0,1,0) -> 0 | AY94: =IF($H94>0,AV94,0) -> 0 | AZ94: =IF(AY94>0,1,0) -> 0 | BA94: =IF($I94=BA$6,$E94,0) -> 0 | BB94: =IF($K94=ROUND(BA$6*$F94,2),$G94,0) -> 0 | BC94: =IF($H94>0,BA94,0) -> 0 | BD94: =IF(BC94>0,1,0) -> 0 | BE94: =IF($H94>0,BB94,0) -> 0 | BF94: =IF(BE94>0,1,0) -> 0 | BI94: 0 | BL94: =E94-SUM(AI94,AO94,AU94,BA94) -> 0
A95: =IF(E95+G95>0,A94,"") ->  | B95: =IF(E95+G95>0,B94,"") ->  | C95: 5 | D95: 03-4-23.366 | E95: 0 | F95: 1.1 | G95: 0 | H95: 0 | I95: =SUMIF(Y$14:BA$14,C95,Y$6:BA$6) -> 1651.49 | J95: =IF(H95=0,ROUND(E95*I95,2),IF(H95>0,ROUND(H95*E95,2),0)) -> 0 | K95: =ROUND(F95*I95,2) -> 1816.64 | L95: =IF(H95=0,ROUND(ROUND(F95*I95,2)*G95,2),IF(H95>0,ROUND(G95*H95,2),0)) -> 0 | M95: =IF(H95=0,L95-ROUND(G95*I95,2),0) -> 0 | O95: =J95+L95+N95 -> 0 | Q95: 479.72 | R95: =ROUND(Q95*(E95+G95),2) -> 0 | W95: =R95+T95+V95 -> 0 | AI95: =IF($I95=AI$6,$E95,0) -> 0 | AJ95: 0 | AK95: =IF($H95>0,AI95,0) -> 0 | AL95: =IF(AK95>0,1,0) -> 0 | AM95: =IF($H95>0,AJ95,0) -> 0 | AN95: =IF(AM95>0,1,0) -> 0 | AO95: =IF($I95=AO$6,$E95,0) -> 0 | AP95: 0 | AQ95: =IF($H95>0,AO95,0) -> 0 | AR95: =IF(AQ95>0,1,0) -> 0 | AS95: =IF($H95>0,AP95,0) -> 0 | AT95: =IF(AS95>0,1,0) -> 0 | AU95: =IF($I95=AU$6,$E95,0) -> 0 | AV95: 0 | AW95: =IF($H95>0,AU95,0) -> 0 | AX95: =IF(AW95>0,1,0) -> 0 | AY95: =IF($H95>0,AV95,0) -> 0 | AZ95: =IF(AY95>0,1,0) -> 0 | BA95: =IF($I95=BA$6,$E95,0) -> 0 | BB95: 0 | BC95: =IF($H95>0,BA95,0) -> 0 | BD95: =IF(BC95>0,1,0) -> 0 | BE95: =IF($H95>0,BB95,0) -> 0 | BF95: =IF(BE95>0,1,0) -> 0 | BL95: =E95-SUM(AI95,AO95,AU95,BA95) -> 0
A96: =IF(E96+G96>0,A94,"") ->  | B96: =IF(E96+G96>0,B94,"") ->  | C96: =C95 -> 5 | D96: 03-4-23.366 | E96: 0 | F96: 1.5 | G96: 0 | H96: 0 | I96: =SUMIF(Y$14:BA$14,C96,Y$7:BA$7) -> 0 | J96: 0 | K96: 0 | L96: 0 | M96: 0 | O96: 0 | Q96: 479.72 | R96: 0 | W96: 0 | AI96: =IF($I96=AI$7,$E96,0) -> 0 | AJ96: =IF($K96=ROUND(AI$7*$F96,2),$G96,0) -> 0 | AK96: 0 | AL96: 0 | AM96: 0 | AN96: 0 | AO96: =IF($I96=AO$7,$E96,0) -> 0 | AP96: =IF($K96=ROUND(AO$7*$F96,2),$G96,0) -> 0 | AQ96: 0 | AR96: 0 | AS96: 0 | AT96: 0 | AU96: =IF($I96=AU$7,$E96,0) -> 0 | AV96: =IF($K96=ROUND(AU$7*$F96,2),$G96,0) -> 0 | AW96: 0 | AX96: 0 | AY96: 0 | AZ96: 0 | BA96: =IF($I96=BA$7,$E96,0) -> 0 | BB96: =IF($K96=ROUND(BA$7*$F96,2),$G96,0) -> 0 | BC96: 0 | BD96: 0 | BE96: 0 | BF96: 0 | BL96: 0
A97: =IF(E97+G97>0,A94,"") ->  | B97: =IF(E97+G97>0,B94,"") ->  | C97: =C95 -> 5 | D97: 03-4-23.366 | E97: 0 | F97: 1.1 | G97: 0 | H97: 0 | I97: =SUMIF(Y$14:BA$14,C97,Y$7:BA$7) -> 0 | J97: 0 | K97: 0 | L97: 0 | M97: 0 | O97: 0 | Q97: 479.72 | R97: 0 | W97: 0 | AI97: =IF($I97=AI$7,$E97,0) -> 0 | AJ97: =IF($K97=ROUND(AI$7*$F97,2),$G97,0) -> 0 | AK97: 0 | AL97: 0 | AM97: 0 | AN97: 0 | AO97: =IF($I97=AO$7,$E97,0) -> 0 | AP97: =IF($K97=ROUND(AO$7*$F97,2),$G97,0) -> 0 | AQ97: 0 | AR97: 0 | AS97: 0 | AT97: 0 | AU97: =IF($I97=AU$7,$E97,0) -> 0 | AV97: =IF($K97=ROUND(AU$7*$F97,2),$G97,0) -> 0 | AW97: 0 | AX97: 0 | AY97: 0 | AZ97: 0 | BA97: =IF($I97=BA$7,$E97,0) -> 0 | BB97: =IF($K97=ROUND(BA$7*$F97,2),$G97,0) -> 0 | BC97: 0 | BD97: 0 | BE97: 0 | BF97: 0 | BL97: 0
A98: ООО "Диал - Север" | B98: Вельск, ул.50 лет Октября-48 | C98: =C99 -> 5 | D98: 03-4-23.366(333) | E98: 0 | F98: 1.5 | G98: 0 | H98: 0 | I98: =SUMIF(Y$14:BA$14,C98,Y$6:BA$6) -> 1651.49 | J98: =IF(H98=0,ROUND(E98*I98,2),IF(H98>0,ROUND(H98*E98,2),0)) -> 0 | K98: =ROUND(F98*I98,2) -> 2477.24 | L98: =IF(H98=0,ROUND(ROUND(F98*I98,2)*G98,2),IF(H98>0,ROUND(G98*H98,2),0)) -> 0 | M98: =IF(H98=0,L98-ROUND(G98*I98,2),0) -> 0 | O98: =J98+L98+N98 -> 0 | Q98: 479.72 | R98: =ROUND(Q98*(E98+G98),2) -> 0 | W98: =R98+T98+V98 -> 0 | AI98: =IF($I98=AI$6,$E98,0) -> 0 | AJ98: =IF($K98=ROUND(AI$6*$F98,2),$G98,0) -> 0 | AK98: =IF($H98>0,AI98,0) -> 0 | AL98: =IF(AK98>0,1,0) -> 0 | AM98: =IF($H98>0,AJ98,0) -> 0 | AN98: =IF(AM98>0,1,0) -> 0 | AO98: =IF($I98=AO$6,$E98,0) -> 0 | AP98: =IF($K98=ROUND(AO$6*$F98,2),$G98,0) -> 0 | AQ98: =IF($H98>0,AO98,0) -> 0 | AR98: =IF(AQ98>0,1,0) -> 0 | AS98: =IF($H98>0,AP98,0) -> 0 | AT98: =IF(AS98>0,1,0) -> 0 | AU98: =IF($I98=AU$6,$E98,0) -> 0 | AV98: =IF($K98=ROUND(AU$6*$F98,2),$G98,0) -> 0 | AW98: =IF($H98>0,AU98,0) -> 0 | AX98: =IF(AW98>0,1,0) -> 0 | AY98: =IF($H98>0,AV98,0) -> 0 | AZ98: =IF(AY98>0,1,0) -> 0 | BA98: =IF($I98=BA$6,$E98,0) -> 0 | BB98: =IF($K98=ROUND(BA$6*$F98,2),$G98,0) -> 0 | BC98: =IF($H98>0,BA98,0) -> 0 | BD98: =IF(BC98>0,1,0) -> 0 | BE98: =IF($H98>0,BB98,0) -> 0 | BF98: =IF(BE98>0,1,0) -> 0 | BI98: 9 | BL98: =E98-SUM(AI98,AO98,AU98,BA98) -> 0
A99: =IF(E99+G99>0,A98,"") -> ООО "Диал - Север" | B99: =IF(E99+G99>0,B98,"") -> Вельск, ул.50 лет Октября-48 | C99: 5 | D99: 03-4-23.366(333) | E99: 0.665 | F99: 1.1 | G99: 0 | H99: 0.665 | I99: =SUMIF(Y$14:BA$14,C99,Y$6:BA$6) -> 1651.49 | J99: =IF(H99=0,ROUND(E99*I99,2),IF(H99>0,ROUND(H99*E99,2),0)) -> 0.44 | K99: =ROUND(F99*I99,2) -> 1816.64 | L99: =IF(H99=0,ROUND(ROUND(F99*I99,2)*G99,2),IF(H99>0,ROUND(G99*H99,2),0)) -> 0 | M99: =IF(H99=0,L99-ROUND(G99*I99,2),0) -> 0 | O99: =J99+L99+N99 -> 0.44 | Q99: 479.72 | R99: =ROUND(Q99*(E99+G99),2) -> 319.01 | W99: =R99+T99+V99 -> 319.01 | AI99: =IF($I99=AI$6,$E99,0) -> 0 | AJ99: 0 | AK99: =IF($H99>0,AI99,0) -> 0 | AL99: =IF(AK99>0,1,0) -> 0 | AM99: =IF($H99>0,AJ99,0) -> 0 | AN99: =IF(AM99>0,1,0) -> 0 | AO99: =IF($I99=AO$6,$E99,0) -> 0.665 | AP99: 0 | AQ99: =IF($H99>0,AO99,0) -> 0.665 | AR99: =IF(AQ99>0,1,0) -> 1 | AS99: =IF($H99>0,AP99,0) -> 0 | AT99: =IF(AS99>0,1,0) -> 0 | AU99: =IF($I99=AU$6,$E99,0) -> 0 | AV99: 0 | AW99: =IF($H99>0,AU99,0) -> 0 | AX99: =IF(AW99>0,1,0) -> 0 | AY99: =IF($H99>0,AV99,0) -> 0 | AZ99: =IF(AY99>0,1,0) -> 0 | BA99: =IF($I99=BA$6,$E99,0) -> 0 | BB99: 0 | BC99: =IF($H99>0,BA99,0) -> 0 | BD99: =IF(BC99>0,1,0) -> 0 | BE99: =IF($H99>0,BB99,0) -> 0 | BF99: =IF(BE99>0,1,0) -> 0 | BL99: =E99-SUM(AI99,AO99,AU99,BA99) -> 0
A100: =IF(E100+G100>0,A98,"") ->  | B100: =IF(E100+G100>0,B98,"") ->  | C100: =C99 -> 5 | D100: 03-4-23.366(333) | E100: 0 | F100: 1.5 | G100: 0 | H100: 0 | I100: =SUMIF(Y$14:BA$14,C100,Y$7:BA$7) -> 0 | J100: 0 | K100: 0 | L100: 0 | M100: 0 | O100: 0 | Q100: 479.72 | R100: 0 | W100: 0 | AI100: =IF($I100=AI$7,$E100,0) -> 0 | AJ100: =IF($K100=ROUND(AI$7*$F100,2),$G100,0) -> 0 | AK100: 0 | AL100: 0 | AM100: 0 | AN100: 0 | AO100: =IF($I100=AO$7,$E100,0) -> 0 | AP100: =IF($K100=ROUND(AO$7*$F100,2),$G100,0) -> 0 | AQ100: 0 | AR100: 0 | AS100: 0 | AT100: 0 | AU100: =IF($I100=AU$7,$E100,0) -> 0 | AV100: =IF($K100=ROUND(AU$7*$F100,2),$G100,0) -> 0 | AW100: 0 | AX100: 0 | AY100: 0 | AZ100: 0 | BA100: =IF($I100=BA$7,$E100,0) -> 0 | BB100: =IF($K100=ROUND(BA$7*$F100,2),$G100,0) -> 0 | BC100: 0 | BD100: 0 | BE100: 0 | BF100: 0 | BL100: 0
A101: =IF(E101+G101>0,A98,"") ->  | B101: =IF(E101+G101>0,B98,"") ->  | C101: =C99 -> 5 | D101: 03-4-23.366(333) | E101: 0 | F101: 1.1 | G101: 0 | H101: 0 | I101: =SUMIF(Y$14:BA$14,C101,Y$7:BA$7) -> 0 | J101: 0 | K101: 0 | L101: 0 | M101: 0 | O101: 0 | Q101: 479.72 | R101: 0 | W101: 0 | AI101: =IF($I101=AI$7,$E101,0) -> 0 | AJ101: =IF($K101=ROUND(AI$7*$F101,2),$G101,0) -> 0 | AK101: 0 | AL101: 0 | AM101: 0 | AN101: 0 | AO101: =IF($I101=AO$7,$E101,0) -> 0 | AP101: =IF($K101=ROUND(AO$7*$F101,2),$G101,0) -> 0 | AQ101: 0 | AR101: 0 | AS101: 0 | AT101: 0 | AU101: =IF($I101=AU$7,$E101,0) -> 0 | AV101: =IF($K101=ROUND(AU$7*$F101,2),$G101,0) -> 0 | AW101: 0 | AX101: 0 | AY101: 0 | AZ101: 0 | BA101: =IF($I101=BA$7,$E101,0) -> 0 | BB101: =IF($K101=ROUND(BA$7*$F101,2),$G101,0) -> 0 | BC101: 0 | BD101: 0 | BE101: 0 | BF101: 0 | BL101: 0
A102: ООО "Диал - Север" | B102: Вельск, ул.Советская-80 | C102: =C103 -> 7 | D102: 03-4-23.366(333) | E102: 0 | F102: 1.5 | G102: 0 | H102: 0 | I102: =SUMIF(Y$14:BA$14,C102,Y$6:BA$6) -> 2580.47 | J102: =IF(H102=0,ROUND(E102*I102,2),IF(H102>0,ROUND(H102*E102,2),0)) -> 0 | K102: =ROUND(F102*I102,2) -> 3870.71 | L102: =IF(H102=0,ROUND(ROUND(F102*I102,2)*G102,2),IF(H102>0,ROUND(G102*H102,2),0)) -> 0 | M102: =IF(H102=0,L102-ROUND(G102*I102,2),0) -> 0 | O102: =J102+L102+N102 -> 0 | Q102: 479.72 | R102: =ROUND(Q102*(E102+G102),2) -> 0 | W102: =R102+T102+V102 -> 0 | AI102: =IF($I102=AI$6,$E102,0) -> 0 | AJ102: =IF($K102=ROUND(AI$6*$F102,2),$G102,0) -> 0 | AK102: =IF($H102>0,AI102,0) -> 0 | AL102: =IF(AK102>0,1,0) -> 0 | AM102: =IF($H102>0,AJ102,0) -> 0 | AN102: =IF(AM102>0,1,0) -> 0 | AO102: =IF($I102=AO$6,$E102,0) -> 0 | AP102: =IF($K102=ROUND(AO$6*$F102,2),$G102,0) -> 0 | AQ102: =IF($H102>0,AO102,0) -> 0 | AR102: =IF(AQ102>0,1,0) -> 0 | AS102: =IF($H102>0,AP102,0) -> 0 | AT102: =IF(AS102>0,1,0) -> 0 | AU102: =IF($I102=AU$6,$E102,0) -> 0 | AV102: =IF($K102=ROUND(AU$6*$F102,2),$G102,0) -> 0 | AW102: =IF($H102>0,AU102,0) -> 0 | AX102: =IF(AW102>0,1,0) -> 0 | AY102: =IF($H102>0,AV102,0) -> 0 | AZ102: =IF(AY102>0,1,0) -> 0 | BA102: =IF($I102=BA$6,$E102,0) -> 0 | BB102: =IF($K102=ROUND(BA$6*$F102,2),$G102,0) -> 0 | BC102: =IF($H102>0,BA102,0) -> 0 | BD102: =IF(BC102>0,1,0) -> 0 | BE102: =IF($H102>0,BB102,0) -> 0 | BF102: =IF(BE102>0,1,0) -> 0 | BI102: 0 | BL102: =E102-SUM(AI102,AO102,AU102,BA102) -> 0
A103: =IF(E103+G103>0,A102,"") ->  | B103: =IF(E103+G103>0,B102,"") ->  | C103: 7 | D103: 03-4-23.366(333) | E103: 0 | F103: 1.1 | G103: 0 | H103: 0 | I103: =SUMIF(Y$14:BA$14,C103,Y$6:BA$6) -> 2580.47 | J103: =IF(H103=0,ROUND(E103*I103,2),IF(H103>0,ROUND(H103*E103,2),0)) -> 0 | K103: =ROUND(F103*I103,2) -> 2838.52 | L103: =IF(H103=0,ROUND(ROUND(F103*I103,2)*G103,2),IF(H103>0,ROUND(G103*H103,2),0)) -> 0 | M103: =IF(H103=0,L103-ROUND(G103*I103,2),0) -> 0 | O103: =J103+L103+N103 -> 0 | Q103: 479.72 | R103: =ROUND(Q103*(E103+G103),2) -> 0 | W103: =R103+T103+V103 -> 0 | AI103: =IF($I103=AI$6,$E103,0) -> 0 | AJ103: 0 | AK103: =IF($H103>0,AI103,0) -> 0 | AL103: =IF(AK103>0,1,0) -> 0 | AM103: =IF($H103>0,AJ103,0) -> 0 | AN103: =IF(AM103>0,1,0) -> 0 | AO103: =IF($I103=AO$6,$E103,0) -> 0 | AP103: 0 | AQ103: =IF($H103>0,AO103,0) -> 0 | AR103: =IF(AQ103>0,1,0) -> 0 | AS103: =IF($H103>0,AP103,0) -> 0 | AT103: =IF(AS103>0,1,0) -> 0 | AU103: =IF($I103=AU$6,$E103,0) -> 0 | AV103: 0 | AW103: =IF($H103>0,AU103,0) -> 0 | AX103: =IF(AW103>0,1,0) -> 0 | AY103: =IF($H103>0,AV103,0) -> 0 | AZ103: =IF(AY103>0,1,0) -> 0 | BA103: =IF($I103=BA$6,$E103,0) -> 0 | BB103: 0 | BC103: =IF($H103>0,BA103,0) -> 0 | BD103: =IF(BC103>0,1,0) -> 0 | BE103: =IF($H103>0,BB103,0) -> 0 | BF103: =IF(BE103>0,1,0) -> 0 | BL103: =E103-SUM(AI103,AO103,AU103,BA103) -> 0
A104: =IF(E104+G104>0,A102,"") ->  | B104: =IF(E104+G104>0,B102,"") ->  | C104: =C103 -> 7 | D104: 03-4-23.366(333) | E104: 0 | F104: 1.5 | G104: 0 | H104: 0 | I104: =SUMIF(Y$14:BA$14,C104,Y$7:BA$7) -> 0 | J104: 0 | K104: 0 | L104: 0 | M104: 0 | O104: 0 | Q104: 479.72 | R104: 0 | W104: 0 | AI104: =IF($I104=AI$7,$E104,0) -> 0 | AJ104: =IF($K104=ROUND(AI$7*$F104,2),$G104,0) -> 0 | AK104: 0 | AL104: 0 | AM104: 0 | AN104: 0 | AO104: =IF($I104=AO$7,$E104,0) -> 0 | AP104: =IF($K104=ROUND(AO$7*$F104,2),$G104,0) -> 0 | AQ104: 0 | AR104: 0 | AS104: 0 | AT104: 0 | AU104: =IF($I104=AU$7,$E104,0) -> 0 | AV104: =IF($K104=ROUND(AU$7*$F104,2),$G104,0) -> 0 | AW104: 0 | AX104: 0 | AY104: 0 | AZ104: 0 | BA104: =IF($I104=BA$7,$E104,0) -> 0 | BB104: =IF($K104=ROUND(BA$7*$F104,2),$G104,0) -> 0 | BC104: 0 | BD104: 0 | BE104: 0 | BF104: 0 | BL104: 0
A105: =IF(E105+G105>0,A102,"") ->  | B105: =IF(E105+G105>0,B102,"") ->  | C105: =C103 -> 7 | D105: 03-4-23.366(333) | E105: 0 | F105: 1.1 | G105: 0 | H105: 0 | I105: =SUMIF(Y$14:BA$14,C105,Y$7:BA$7) -> 0 | J105: 0 | K105: 0 | L105: 0 | M105: 0 | O105: 0 | Q105: 479.72 | R105: 0 | W105: 0 | AI105: =IF($I105=AI$7,$E105,0) -> 0 | AJ105: =IF($K105=ROUND(AI$7*$F105,2),$G105,0) -> 0 | AK105: 0 | AL105: 0 | AM105: 0 | AN105: 0 | AO105: =IF($I105=AO$7,$E105,0) -> 0 | AP105: =IF($K105=ROUND(AO$7*$F105,2),$G105,0) -> 0 | AQ105: 0 | AR105: 0 | AS105: 0 | AT105: 0 | AU105: =IF($I105=AU$7,$E105,0) -> 0 | AV105: =IF($K105=ROUND(AU$7*$F105,2),$G105,0) -> 0 | AW105: 0 | AX105: 0 | AY105: 0 | AZ105: 0 | BA105: =IF($I105=BA$7,$E105,0) -> 0 | BB105: =IF($K105=ROUND(BA$7*$F105,2),$G105,0) -> 0 | BC105: 0 | BD105: 0 | BE105: 0 | BF105: 0 | BL105: 0
A106: ООО "Диал - Север" | B106: Вельск, ул.Белинского-30а | C106: =C107 -> 7 | D106: 03-4-23.366(333) | E106: 0 | F106: 1.5 | G106: 0 | H106: 0 | I106: =SUMIF(Y$14:BA$14,C106,Y$6:BA$6) -> 2580.47 | J106: =IF(H106=0,ROUND(E106*I106,2),IF(H106>0,ROUND(H106*E106,2),0)) -> 0 | K106: =ROUND(F106*I106,2) -> 3870.71 | L106: =IF(H106=0,ROUND(ROUND(F106*I106,2)*G106,2),IF(H106>0,ROUND(G106*H106,2),0)) -> 0 | M106: =IF(H106=0,L106-ROUND(G106*I106,2),0) -> 0 | O106: =J106+L106+N106 -> 0 | Q106: 479.72 | R106: =ROUND(Q106*(E106+G106),2) -> 0 | W106: =R106+T106+V106 -> 0 | AI106: =IF($I106=AI$6,$E106,0) -> 0 | AJ106: =IF($K106=ROUND(AI$6*$F106,2),$G106,0) -> 0 | AK106: =IF($H106>0,AI106,0) -> 0 | AL106: =IF(AK106>0,1,0) -> 0 | AM106: =IF($H106>0,AJ106,0) -> 0 | AN106: =IF(AM106>0,1,0) -> 0 | AO106: =IF($I106=AO$6,$E106,0) -> 0 | AP106: =IF($K106=ROUND(AO$6*$F106,2),$G106,0) -> 0 | AQ106: =IF($H106>0,AO106,0) -> 0 | AR106: =IF(AQ106>0,1,0) -> 0 | AS106: =IF($H106>0,AP106,0) -> 0 | AT106: =IF(AS106>0,1,0) -> 0 | AU106: =IF($I106=AU$6,$E106,0) -> 0 | AV106: =IF($K106=ROUND(AU$6*$F106,2),$G106,0) -> 0 | AW106: =IF($H106>0,AU106,0) -> 0 | AX106: =IF(AW106>0,1,0) -> 0 | AY106: =IF($H106>0,AV106,0) -> 0 | AZ106: =IF(AY106>0,1,0) -> 0 | BA106: =IF($I106=BA$6,$E106,0) -> 0 | BB106: =IF($K106=ROUND(BA$6*$F106,2),$G106,0) -> 0 | BC106: =IF($H106>0,BA106,0) -> 0 | BD106: =IF(BC106>0,1,0) -> 0 | BE106: =IF($H106>0,BB106,0) -> 0 | BF106: =IF(BE106>0,1,0) -> 0 | BI106: 0 | BL106: =E106-SUM(AI106,AO106,AU106,BA106) -> 0
A107: =IF(E107+G107>0,A106,"") -> ООО "Диал - Север" | B107: =IF(E107+G107>0,B106,"") -> Вельск, ул.Белинского-30а | C107: 7 | D107: 03-4-23.366(333) | E107: 0.013 | F107: 1.1 | G107: 0 | H107: 0.013 | I107: =SUMIF(Y$14:BA$14,C107,Y$6:BA$6) -> 2580.47 | J107: =IF(H107=0,ROUND(E107*I107,2),IF(H107>0,ROUND(H107*E107,2),0)) -> 0 | K107: =ROUND(F107*I107,2) -> 2838.52 | L107: =IF(H107=0,ROUND(ROUND(F107*I107,2)*G107,2),IF(H107>0,ROUND(G107*H107,2),0)) -> 0 | M107: =IF(H107=0,L107-ROUND(G107*I107,2),0) -> 0 | O107: =J107+L107+N107 -> 0 | Q107: 479.72 | R107: =ROUND(Q107*(E107+G107),2) -> 6.24 | W107: =R107+T107+V107 -> 6.24 | AI107: =IF($I107=AI$6,$E107,0) -> 0 | AJ107: 0 | AK107: =IF($H107>0,AI107,0) -> 0 | AL107: =IF(AK107>0,1,0) -> 0 | AM107: =IF($H107>0,AJ107,0) -> 0 | AN107: =IF(AM107>0,1,0) -> 0 | AO107: =IF($I107=AO$6,$E107,0) -> 0 | AP107: 0 | AQ107: =IF($H107>0,AO107,0) -> 0 | AR107: =IF(AQ107>0,1,0) -> 0 | AS107: =IF($H107>0,AP107,0) -> 0 | AT107: =IF(AS107>0,1,0) -> 0 | AU107: =IF($I107=AU$6,$E107,0) -> 0 | AV107: 0 | AW107: =IF($H107>0,AU107,0) -> 0 | AX107: =IF(AW107>0,1,0) -> 0 | AY107: =IF($H107>0,AV107,0) -> 0 | AZ107: =IF(AY107>0,1,0) -> 0 | BA107: =IF($I107=BA$6,$E107,0) -> 0.013 | BB107: 0 | BC107: =IF($H107>0,BA107,0) -> 0.013 | BD107: =IF(BC107>0,1,0) -> 1 | BE107: =IF($H107>0,BB107,0) -> 0 | BF107: =IF(BE107>0,1,0) -> 0 | BL107: =E107-SUM(AI107,AO107,AU107,BA107) -> 0
A108: =IF(E108+G108>0,A106,"") ->  | B108: =IF(E108+G108>0,B106,"") ->  | C108: =C107 -> 7 | D108: 03-4-23.366(333) | E108: 0 | F108: 1.5 | G108: 0 | H108: 0 | I108: =SUMIF(Y$14:BA$14,C108,Y$7:BA$7) -> 0 | J108: 0 | K108: 0 | L108: 0 | M108: 0 | O108: 0 | Q108: 479.72 | R108: 0 | W108: 0 | AI108: =IF($I108=AI$7,$E108,0) -> 0 | AJ108: =IF($K108=ROUND(AI$7*$F108,2),$G108,0) -> 0 | AK108: 0 | AL108: 0 | AM108: 0 | AN108: 0 | AO108: =IF($I108=AO$7,$E108,0) -> 0 | AP108: =IF($K108=ROUND(AO$7*$F108,2),$G108,0) -> 0 | AQ108: 0 | AR108: 0 | AS108: 0 | AT108: 0 | AU108: =IF($I108=AU$7,$E108,0) -> 0 | AV108: =IF($K108=ROUND(AU$7*$F108,2),$G108,0) -> 0 | AW108: 0 | AX108: 0 | AY108: 0 | AZ108: 0 | BA108: =IF($I108=BA$7,$E108,0) -> 0 | BB108: =IF($K108=ROUND(BA$7*$F108,2),$G108,0) -> 0 | BC108: 0 | BD108: 0 | BE108: 0 | BF108: 0 | BL108: 0
A109: =IF(E109+G109>0,A106,"") ->  | B109: =IF(E109+G109>0,B106,"") ->  | C109: =C107 -> 7 | D109: 03-4-23.366(333) | E109: 0 | F109: 1.1 | G109: 0 | H109: 0 | I109: =SUMIF(Y$14:BA$14,C109,Y$7:BA$7) -> 0 | J109: 0 | K109: 0 | L109: 0 | M109: 0 | O109: 0 | Q109: 479.72 | R109: 0 | W109: 0 | AI109: =IF($I109=AI$7,$E109,0) -> 0 | AJ109: =IF($K109=ROUND(AI$7*$F109,2),$G109,0) -> 0 | AK109: 0 | AL109: 0 | AM109: 0 | AN109: 0 | AO109: =IF($I109=AO$7,$E109,0) -> 0 | AP109: =IF($K109=ROUND(AO$7*$F109,2),$G109,0) -> 0 | AQ109: 0 | AR109: 0 | AS109: 0 | AT109: 0 | AU109: =IF($I109=AU$7,$E109,0) -> 0 | AV109: =IF($K109=ROUND(AU$7*$F109,2),$G109,0) -> 0 | AW109: 0 | AX109: 0 | AY109: 0 | AZ109: 0 | BA109: =IF($I109=BA$7,$E109,0) -> 0 | BB109: =IF($K109=ROUND(BA$7*$F109,2),$G109,0) -> 0 | BC109: 0 | BD109: 0 | BE109: 0 | BF109: 0 | BL109: 0
A110: ООО "Диал - Север" | B110: Вельск, ул.Дзержинского-147 | C110: =C111 -> 7 | D110: 03-4-23.366(333) | E110: 0 | F110: 1.5 | G110: 0 | H110: 0 | I110: =SUMIF(Y$14:BA$14,C110,Y$6:BA$6) -> 2580.47 | J110: =IF(H110=0,ROUND(E110*I110,2),IF(H110>0,ROUND(H110*E110,2),0)) -> 0 | K110: =ROUND(F110*I110,2) -> 3870.71 | L110: =IF(H110=0,ROUND(ROUND(F110*I110,2)*G110,2),IF(H110>0,ROUND(G110*H110,2),0)) -> 0 | M110: =IF(H110=0,L110-ROUND(G110*I110,2),0) -> 0 | O110: =J110+L110+N110 -> 0 | Q110: 479.72 | R110: =ROUND(Q110*(E110+G110),2) -> 0 | W110: =R110+T110+V110 -> 0 | AI110: =IF($I110=AI$6,$E110,0) -> 0 | AJ110: =IF($K110=ROUND(AI$6*$F110,2),$G110,0) -> 0 | AK110: =IF($H110>0,AI110,0) -> 0 | AL110: =IF(AK110>0,1,0) -> 0 | AM110: =IF($H110>0,AJ110,0) -> 0 | AN110: =IF(AM110>0,1,0) -> 0 | AO110: =IF($I110=AO$6,$E110,0) -> 0 | AP110: =IF($K110=ROUND(AO$6*$F110,2),$G110,0) -> 0 | AQ110: =IF($H110>0,AO110,0) -> 0 | AR110: =IF(AQ110>0,1,0) -> 0 | AS110: =IF($H110>0,AP110,0) -> 0 | AT110: =IF(AS110>0,1,0) -> 0 | AU110: =IF($I110=AU$6,$E110,0) -> 0 | AV110: =IF($K110=ROUND(AU$6*$F110,2),$G110,0) -> 0 | AW110: =IF($H110>0,AU110,0) -> 0 | AX110: =IF(AW110>0,1,0) -> 0 | AY110: =IF($H110>0,AV110,0) -> 0 | AZ110: =IF(AY110>0,1,0) -> 0 | BA110: =IF($I110=BA$6,$E110,0) -> 0 | BB110: =IF($K110=ROUND(BA$6*$F110,2),$G110,0) -> 0 | BC110: =IF($H110>0,BA110,0) -> 0 | BD110: =IF(BC110>0,1,0) -> 0 | BE110: =IF($H110>0,BB110,0) -> 0 | BF110: =IF(BE110>0,1,0) -> 0 | BI110: 0 | BL110: =E110-SUM(AI110,AO110,AU110,BA110) -> 0
A111: =IF(E111+G111>0,A110,"") -> ООО "Диал - Север" | B111: =IF(E111+G111>0,B110,"") -> Вельск, ул.Дзержинского-147 | C111: 7 | D111: 03-4-23.366(333) | E111: 0.024 | F111: 1.1 | G111: 0 | H111: 0.024 | I111: =SUMIF(Y$14:BA$14,C111,Y$6:BA$6) -> 2580.47 | J111: =IF(H111=0,ROUND(E111*I111,2),IF(H111>0,ROUND(H111*E111,2),0)) -> 0 | K111: =ROUND(F111*I111,2) -> 2838.52 | L111: =IF(H111=0,ROUND(ROUND(F111*I111,2)*G111,2),IF(H111>0,ROUND(G111*H111,2),0)) -> 0 | M111: =IF(H111=0,L111-ROUND(G111*I111,2),0) -> 0 | O111: =J111+L111+N111 -> 0 | Q111: 479.72 | R111: =ROUND(Q111*(E111+G111),2) -> 11.51 | W111: =R111+T111+V111 -> 11.51 | AI111: =IF($I111=AI$6,$E111,0) -> 0 | AJ111: 0 | AK111: =IF($H111>0,AI111,0) -> 0 | AL111: =IF(AK111>0,1,0) -> 0 | AM111: =IF($H111>0,AJ111,0) -> 0 | AN111: =IF(AM111>0,1,0) -> 0 | AO111: =IF($I111=AO$6,$E111,0) -> 0 | AP111: 0 | AQ111: =IF($H111>0,AO111,0) -> 0 | AR111: =IF(AQ111>0,1,0) -> 0 | AS111: =IF($H111>0,AP111,0) -> 0 | AT111: =IF(AS111>0,1,0) -> 0 | AU111: =IF($I111=AU$6,$E111,0) -> 0 | AV111: 0 | AW111: =IF($H111>0,AU111,0) -> 0 | AX111: =IF(AW111>0,1,0) -> 0 | AY111: =IF($H111>0,AV111,0) -> 0 | AZ111: =IF(AY111>0,1,0) -> 0 | BA111: =IF($I111=BA$6,$E111,0) -> 0.024 | BB111: 0 | BC111: =IF($H111>0,BA111,0) -> 0.024 | BD111: =IF(BC111>0,1,0) -> 1 | BE111: =IF($H111>0,BB111,0) -> 0 | BF111: =IF(BE111>0,1,0) -> 0 | BL111: =E111-SUM(AI111,AO111,AU111,BA111) -> 0
A112: =IF(E112+G112>0,A110,"") ->  | B112: =IF(E112+G112>0,B110,"") ->  | C112: =C111 -> 7 | D112: 03-4-23.366(333) | E112: 0 | F112: 1.5 | G112: 0 | H112: 0 | I112: =SUMIF(Y$14:BA$14,C112,Y$7:BA$7) -> 0 | J112: 0 | K112: 0 | L112: 0 | M112: 0 | O112: 0 | Q112: 479.72 | R112: 0 | W112: 0 | AI112: =IF($I112=AI$7,$E112,0) -> 0 | AJ112: =IF($K112=ROUND(AI$7*$F112,2),$G112,0) -> 0 | AK112: 0 | AL112: 0 | AM112: 0 | AN112: 0 | AO112: =IF($I112=AO$7,$E112,0) -> 0 | AP112: =IF($K112=ROUND(AO$7*$F112,2),$G112,0) -> 0 | AQ112: 0 | AR112: 0 | AS112: 0 | AT112: 0 | AU112: =IF($I112=AU$7,$E112,0) -> 0 | AV112: =IF($K112=ROUND(AU$7*$F112,2),$G112,0) -> 0 | AW112: 0 | AX112: 0 | AY112: 0 | AZ112: 0 | BA112: =IF($I112=BA$7,$E112,0) -> 0 | BB112: =IF($K112=ROUND(BA$7*$F112,2),$G112,0) -> 0 | BC112: 0 | BD112: 0 | BE112: 0 | BF112: 0 | BL112: 0
A113: =IF(E113+G113>0,A110,"") ->  | B113: =IF(E113+G113>0,B110,"") ->  | C113: =C111 -> 7 | D113: 03-4-23.366(333) | E113: 0 | F113: 1.1 | G113: 0 | H113: 0 | I113: =SUMIF(Y$14:BA$14,C113,Y$7:BA$7) -> 0 | J113: 0 | K113: 0 | L113: 0 | M113: 0 | O113: 0 | Q113: 479.72 | R113: 0 | W113: 0 | AI113: =IF($I113=AI$7,$E113,0) -> 0 | AJ113: =IF($K113=ROUND(AI$7*$F113,2),$G113,0) -> 0 | AK113: 0 | AL113: 0 | AM113: 0 | AN113: 0 | AO113: =IF($I113=AO$7,$E113,0) -> 0 | AP113: =IF($K113=ROUND(AO$7*$F113,2),$G113,0) -> 0 | AQ113: 0 | AR113: 0 | AS113: 0 | AT113: 0 | AU113: =IF($I113=AU$7,$E113,0) -> 0 | AV113: =IF($K113=ROUND(AU$7*$F113,2),$G113,0) -> 0 | AW113: 0 | AX113: 0 | AY113: 0 | AZ113: 0 | BA113: =IF($I113=BA$7,$E113,0) -> 0 | BB113: =IF($K113=ROUND(BA$7*$F113,2),$G113,0) -> 0 | BC113: 0 | BD113: 0 | BE113: 0 | BF113: 0 | BL113: 0
A114: ООО "Диал - Север" | B114: д.Вороновская-38 | C114: =C115 -> 6 | D114: 03-4-23.366(333) | E114: 0 | F114: 1.5 | G114: 0 | H114: 0 | I114: =SUMIF(Y$14:BA$14,C114,Y$6:BA$6) -> 2064.38 | J114: =IF(H114=0,ROUND(E114*I114,2),IF(H114>0,ROUND(H114*E114,2),0)) -> 0 | K114: =ROUND(F114*I114,2) -> 3096.57 | L114: =IF(H114=0,ROUND(ROUND(F114*I114,2)*G114,2),IF(H114>0,ROUND(G114*H114,2),0)) -> 0 | M114: =IF(H114=0,L114-ROUND(G114*I114,2),0) -> 0 | O114: =J114+L114+N114 -> 0 | Q114: 479.72 | R114: =ROUND(Q114*(E114+G114),2) -> 0 | W114: =R114+T114+V114 -> 0 | AI114: =IF($I114=AI$6,$E114,0) -> 0 | AJ114: =IF($K114=ROUND(AI$6*$F114,2),$G114,0) -> 0 | AK114: =IF($H114>0,AI114,0) -> 0 | AL114: =IF(AK114>0,1,0) -> 0 | AM114: =IF($H114>0,AJ114,0) -> 0 | AN114: =IF(AM114>0,1,0) -> 0 | AO114: =IF($I114=AO$6,$E114,0) -> 0 | AP114: =IF($K114=ROUND(AO$6*$F114,2),$G114,0) -> 0 | AQ114: =IF($H114>0,AO114,0) -> 0 | AR114: =IF(AQ114>0,1,0) -> 0 | AS114: =IF($H114>0,AP114,0) -> 0 | AT114: =IF(AS114>0,1,0) -> 0 | AU114: =IF($I114=AU$6,$E114,0) -> 0 | AV114: =IF($K114=ROUND(AU$6*$F114,2),$G114,0) -> 0 | AW114: =IF($H114>0,AU114,0) -> 0 | AX114: =IF(AW114>0,1,0) -> 0 | AY114: =IF($H114>0,AV114,0) -> 0 | AZ114: =IF(AY114>0,1,0) -> 0 | BA114: =IF($I114=BA$6,$E114,0) -> 0 | BB114: =IF($K114=ROUND(BA$6*$F114,2),$G114,0) -> 0 | BC114: =IF($H114>0,BA114,0) -> 0 | BD114: =IF(BC114>0,1,0) -> 0 | BE114: =IF($H114>0,BB114,0) -> 0 | BF114: =IF(BE114>0,1,0) -> 0 | BI114: 0 | BL114: =E114-SUM(AI114,AO114,AU114,BA114) -> 0
A115: =IF(E115+G115>0,A114,"") -> ООО "Диал - Север" | B115: =IF(E115+G115>0,B114,"") -> д.Вороновская-38 | C115: 6 | D115: 03-4-23.366(333) | E115: 0.204 | F115: 1.1 | G115: 0 | H115: 0.204 | I115: =SUMIF(Y$14:BA$14,C115,Y$6:BA$6) -> 2064.38 | J115: =IF(H115=0,ROUND(E115*I115,2),IF(H115>0,ROUND(H115*E115,2),0)) -> 0.04 | K115: =ROUND(F115*I115,2) -> 2270.82 | L115: =IF(H115=0,ROUND(ROUND(F115*I115,2)*G115,2),IF(H115>0,ROUND(G115*H115,2),0)) -> 0 | M115: =IF(H115=0,L115-ROUND(G115*I115,2),0) -> 0 | O115: =J115+L115+N115 -> 0.04 | Q115: 479.72 | R115: =ROUND(Q115*(E115+G115),2) -> 97.86 | W115: =R115+T115+V115 -> 97.86 | AI115: =IF($I115=AI$6,$E115,0) -> 0 | AJ115: 0 | AK115: =IF($H115>0,AI115,0) -> 0 | AL115: =IF(AK115>0,1,0) -> 0 | AM115: =IF($H115>0,AJ115,0) -> 0 | AN115: =IF(AM115>0,1,0) -> 0 | AO115: =IF($I115=AO$6,$E115,0) -> 0 | AP115: 0 | AQ115: =IF($H115>0,AO115,0) -> 0 | AR115: =IF(AQ115>0,1,0) -> 0 | AS115: =IF($H115>0,AP115,0) -> 0 | AT115: =IF(AS115>0,1,0) -> 0 | AU115: =IF($I115=AU$6,$E115,0) -> 0.204 | AV115: 0 | AW115: =IF($H115>0,AU115,0) -> 0.204 | AX115: =IF(AW115>0,1,0) -> 1 | AY115: =IF($H115>0,AV115,0) -> 0 | AZ115: =IF(AY115>0,1,0) -> 0 | BA115: =IF($I115=BA$6,$E115,0) -> 0 | BB115: 0 | BC115: =IF($H115>0,BA115,0) -> 0 | BD115: =IF(BC115>0,1,0) -> 0 | BE115: =IF($H115>0,BB115,0) -> 0 | BF115: =IF(BE115>0,1,0) -> 0 | BL115: =E115-SUM(AI115,AO115,AU115,BA115) -> 0
A116: =IF(E116+G116>0,A114,"") ->  | B116: =IF(E116+G116>0,B114,"") ->  | C116: =C115 -> 6 | D116: 03-4-23.366(333) | E116: 0 | F116: 1.5 | G116: 0 | H116: 0 | I116: =SUMIF(Y$14:BA$14,C116,Y$7:BA$7) -> 0 | J116: 0 | K116: 0 | L116: 0 | M116: 0 | O116: 0 | Q116: 479.72 | R116: 0 | W116: 0 | AI116: =IF($I116=AI$7,$E116,0) -> 0 | AJ116: =IF($K116=ROUND(AI$7*$F116,2),$G116,0) -> 0 | AK116: 0 | AL116: 0 | AM116: 0 | AN116: 0 | AO116: =IF($I116=AO$7,$E116,0) -> 0 | AP116: =IF($K116=ROUND(AO$7*$F116,2),$G116,0) -> 0 | AQ116: 0 | AR116: 0 | AS116: 0 | AT116: 0 | AU116: =IF($I116=AU$7,$E116,0) -> 0 | AV116: =IF($K116=ROUND(AU$7*$F116,2),$G116,0) -> 0 | AW116: 0 | AX116: 0 | AY116: 0 | AZ116: 0 | BA116: =IF($I116=BA$7,$E116,0) -> 0 | BB116: =IF($K116=ROUND(BA$7*$F116,2),$G116,0) -> 0 | BC116: 0 | BD116: 0 | BE116: 0 | BF116: 0 | BL116: 0
A117: =IF(E117+G117>0,A114,"") ->  | B117: =IF(E117+G117>0,B114,"") ->  | C117: =C115 -> 6 | D117: 03-4-23.366(333) | E117: 0 | F117: 1.1 | G117: 0 | H117: 0 | I117: =SUMIF(Y$14:BA$14,C117,Y$7:BA$7) -> 0 | J117: 0 | K117: 0 | L117: 0 | M117: 0 | O117: 0 | Q117: 479.72 | R117: 0 | W117: 0 | AI117: =IF($I117=AI$7,$E117,0) -> 0 | AJ117: =IF($K117=ROUND(AI$7*$F117,2),$G117,0) -> 0 | AK117: 0 | AL117: 0 | AM117: 0 | AN117: 0 | AO117: =IF($I117=AO$7,$E117,0) -> 0 | AP117: =IF($K117=ROUND(AO$7*$F117,2),$G117,0) -> 0 | AQ117: 0 | AR117: 0 | AS117: 0 | AT117: 0 | AU117: =IF($I117=AU$7,$E117,0) -> 0 | AV117: =IF($K117=ROUND(AU$7*$F117,2),$G117,0) -> 0 | AW117: 0 | AX117: 0 | AY117: 0 | AZ117: 0 | BA117: =IF($I117=BA$7,$E117,0) -> 0 | BB117: =IF($K117=ROUND(BA$7*$F117,2),$G117,0) -> 0 | BC117: 0 | BD117: 0 | BE117: 0 | BF117: 0 | BL117: 0
A118: ООО "Диал - Север" | B118: Вельск, ул.Чехова-3в | C118: =C119 -> 7 | D118: 03-4-23.366(333) | E118: 0 | F118: 1.5 | G118: 0 | H118: 0 | I118: =SUMIF(Y$14:BA$14,C118,Y$6:BA$6) -> 2580.47 | J118: =IF(H118=0,ROUND(E118*I118,2),IF(H118>0,ROUND(H118*E118,2),0)) -> 0 | K118: =ROUND(F118*I118,2) -> 3870.71 | L118: =IF(H118=0,ROUND(ROUND(F118*I118,2)*G118,2),IF(H118>0,ROUND(G118*H118,2),0)) -> 0 | M118: =IF(H118=0,L118-ROUND(G118*I118,2),0) -> 0 | O118: =J118+L118+N118 -> 0 | Q118: 479.72 | R118: =ROUND(Q118*(E118+G118),2) -> 0 | W118: =R118+T118+V118 -> 0 | AI118: =IF($I118=AI$6,$E118,0) -> 0 | AJ118: =IF($K118=ROUND(AI$6*$F118,2),$G118,0) -> 0 | AK118: =IF($H118>0,AI118,0) -> 0 | AL118: =IF(AK118>0,1,0) -> 0 | AM118: =IF($H118>0,AJ118,0) -> 0 | AN118: =IF(AM118>0,1,0) -> 0 | AO118: =IF($I118=AO$6,$E118,0) -> 0 | AP118: =IF($K118=ROUND(AO$6*$F118,2),$G118,0) -> 0 | AQ118: =IF($H118>0,AO118,0) -> 0 | AR118: =IF(AQ118>0,1,0) -> 0 | AS118: =IF($H118>0,AP118,0) -> 0 | AT118: =IF(AS118>0,1,0) -> 0 | AU118: =IF($I118=AU$6,$E118,0) -> 0 | AV118: =IF($K118=ROUND(AU$6*$F118,2),$G118,0) -> 0 | AW118: =IF($H118>0,AU118,0) -> 0 | AX118: =IF(AW118>0,1,0) -> 0 | AY118: =IF($H118>0,AV118,0) -> 0 | AZ118: =IF(AY118>0,1,0) -> 0 | BA118: =IF($I118=BA$6,$E118,0) -> 0 | BB118: =IF($K118=ROUND(BA$6*$F118,2),$G118,0) -> 0 | BC118: =IF($H118>0,BA118,0) -> 0 | BD118: =IF(BC118>0,1,0) -> 0 | BE118: =IF($H118>0,BB118,0) -> 0 | BF118: =IF(BE118>0,1,0) -> 0 | BI118: 0 | BL118: =E118-SUM(AI118,AO118,AU118,BA118) -> 0
A119: =IF(E119+G119>0,A118,"") -> ООО "Диал - Север" | B119: =IF(E119+G119>0,B118,"") -> Вельск, ул.Чехова-3в | C119: 7 | D119: 03-4-23.366(333) | E119: 0.005 | F119: 1.1 | G119: 0 | H119: 0.005 | I119: =SUMIF(Y$14:BA$14,C119,Y$6:BA$6) -> 2580.47 | J119: =IF(H119=0,ROUND(E119*I119,2),IF(H119>0,ROUND(H119*E119,2),0)) -> 0 | K119: =ROUND(F119*I119,2) -> 2838.52 | L119: =IF(H119=0,ROUND(ROUND(F119*I119,2)*G119,2),IF(H119>0,ROUND(G119*H119,2),0)) -> 0 | M119: =IF(H119=0,L119-ROUND(G119*I119,2),0) -> 0 | O119: =J119+L119+N119 -> 0 | Q119: 479.72 | R119: =ROUND(Q119*(E119+G119),2) -> 2.4 | W119: =R119+T119+V119 -> 2.4 | AI119: =IF($I119=AI$6,$E119,0) -> 0 | AJ119: 0 | AK119: =IF($H119>0,AI119,0) -> 0 | AL119: =IF(AK119>0,1,0) -> 0 | AM119: =IF($H119>0,AJ119,0) -> 0 | AN119: =IF(AM119>0,1,0) -> 0 | AO119: =IF($I119=AO$6,$E119,0) -> 0 | AP119: 0 | AQ119: =IF($H119>0,AO119,0) -> 0 | AR119: =IF(AQ119>0,1,0) -> 0 | AS119: =IF($H119>0,AP119,0) -> 0 | AT119: =IF(AS119>0,1,0) -> 0 | AU119: =IF($I119=AU$6,$E119,0) -> 0 | AV119: 0 | AW119: =IF($H119>0,AU119,0) -> 0 | AX119: =IF(AW119>0,1,0) -> 0 | AY119: =IF($H119>0,AV119,0) -> 0 | AZ119: =IF(AY119>0,1,0) -> 0 | BA119: =IF($I119=BA$6,$E119,0) -> 0.005 | BB119: 0 | BC119: =IF($H119>0,BA119,0) -> 0.005 | BD119: =IF(BC119>0,1,0) -> 1 | BE119: =IF($H119>0,BB119,0) -> 0 | BF119: =IF(BE119>0,1,0) -> 0 | BL119: =E119-SUM(AI119,AO119,AU119,BA119) -> 0
A120: =IF(E120+G120>0,A118,"") ->  | B120: =IF(E120+G120>0,B118,"") ->  | C120: =C119 -> 7 | D120: 03-4-23.366(333) | E120: 0 | F120: 1.5 | G120: 0 | H120: 0 | I120: =SUMIF(Y$14:BA$14,C120,Y$7:BA$7) -> 0 | J120: 0 | K120: 0 | L120: 0 | M120: 0 | O120: 0 | Q120: 479.72 | R120: 0 | W120: 0 | AI120: =IF($I120=AI$7,$E120,0) -> 0 | AJ120: =IF($K120=ROUND(AI$7*$F120,2),$G120,0) -> 0 | AK120: 0 | AL120: 0 | AM120: 0 | AN120: 0 | AO120: =IF($I120=AO$7,$E120,0) -> 0 | AP120: =IF($K120=ROUND(AO$7*$F120,2),$G120,0) -> 0 | AQ120: 0 | AR120: 0 | AS120: 0 | AT120: 0 | AU120: =IF($I120=AU$7,$E120,0) -> 0 | AV120: =IF($K120=ROUND(AU$7*$F120,2),$G120,0) -> 0 | AW120: 0 | AX120: 0 | AY120: 0 | AZ120: 0 | BA120: =IF($I120=BA$7,$E120,0) -> 0 | BB120: =IF($K120=ROUND(BA$7*$F120,2),$G120,0) -> 0 | BC120: 0 | BD120: 0 | BE120: 0 | BF120: 0 | BL120: 0
A121: =IF(E121+G121>0,A118,"") ->  | B121: =IF(E121+G121>0,B118,"") ->  | C121: =C119 -> 7 | D121: 03-4-23.366(333) | E121: 0 | F121: 1.1 | G121: 0 | H121: 0 | I121: =SUMIF(Y$14:BA$14,C121,Y$7:BA$7) -> 0 | J121: 0 | K121: 0 | L121: 0 | M121: 0 | O121: 0 | Q121: 479.72 | R121: 0 | W121: 0 | AI121: =IF($I121=AI$7,$E121,0) -> 0 | AJ121: =IF($K121=ROUND(AI$7*$F121,2),$G121,0) -> 0 | AK121: 0 | AL121: 0 | AM121: 0 | AN121: 0 | AO121: =IF($I121=AO$7,$E121,0) -> 0 | AP121: =IF($K121=ROUND(AO$7*$F121,2),$G121,0) -> 0 | AQ121: 0 | AR121: 0 | AS121: 0 | AT121: 0 | AU121: =IF($I121=AU$7,$E121,0) -> 0 | AV121: =IF($K121=ROUND(AU$7*$F121,2),$G121,0) -> 0 | AW121: 0 | AX121: 0 | AY121: 0 | AZ121: 0 | BA121: =IF($I121=BA$7,$E121,0) -> 0 | BB121: =IF($K121=ROUND(BA$7*$F121,2),$G121,0) -> 0 | BC121: 0 | BD121: 0 | BE121: 0 | BF121: 0 | BL121: 0
A122: ГКУ Архангельской области «ОГПС № 1» | C122: =C123 -> 6 | D122: 03-4-25.367Б | E122: 0 | F122: 1.5 | G122: 0 | H122: 0 | I122: =SUMIF(Y$14:BA$14,C122,Y$6:BA$6) -> 2064.38 | J122: =IF(H122=0,ROUND(E122*I122,2),IF(H122>0,ROUND(H122*E122,2),0)) -> 0 | K122: =ROUND(F122*I122,2) -> 3096.57 | L122: =IF(H122=0,ROUND(ROUND(F122*I122,2)*G122,2),IF(H122>0,ROUND(G122*H122,2),0)) -> 0 | M122: =IF(H122=0,L122-ROUND(G122*I122,2),0) -> 0 | O122: =J122+L122+N122 -> 0 | Q122: 479.72 | R122: =ROUND(Q122*(E122+G122),2) -> 0 | W122: =R122+T122+V122 -> 0 | AI122: =IF($I122=AI$6,$E122,0) -> 0 | AJ122: =IF($K122=ROUND(AI$6*$F122,2),$G122,0) -> 0 | AK122: =IF($H122>0,AI122,0) -> 0 | AL122: =IF(AK122>0,1,0) -> 0 | AM122: =IF($H122>0,AJ122,0) -> 0 | AN122: =IF(AM122>0,1,0) -> 0 | AO122: =IF($I122=AO$6,$E122,0) -> 0 | AP122: =IF($K122=ROUND(AO$6*$F122,2),$G122,0) -> 0 | AQ122: =IF($H122>0,AO122,0) -> 0 | AR122: =IF(AQ122>0,1,0) -> 0 | AS122: =IF($H122>0,AP122,0) -> 0 | AT122: =IF(AS122>0,1,0) -> 0 | AU122: =IF($I122=AU$6,$E122,0) -> 0 | AV122: =IF($K122=ROUND(AU$6*$F122,2),$G122,0) -> 0 | AW122: =IF($H122>0,AU122,0) -> 0 | AX122: =IF(AW122>0,1,0) -> 0 | AY122: =IF($H122>0,AV122,0) -> 0 | AZ122: =IF(AY122>0,1,0) -> 0 | BA122: =IF($I122=BA$6,$E122,0) -> 0 | BB122: =IF($K122=ROUND(BA$6*$F122,2),$G122,0) -> 0 | BC122: =IF($H122>0,BA122,0) -> 0 | BD122: =IF(BC122>0,1,0) -> 0 | BE122: =IF($H122>0,BB122,0) -> 0 | BF122: =IF(BE122>0,1,0) -> 0 | BI122: 0 | BL122: =E122-SUM(AI122,AO122,AU122,BA122) -> 0
A123: =IF(E123+G123>0,A122,"") ->  | B123: =IF(E123+G123>0,B122,"") ->  | C123: 6 | D123: 03-4-25.367Б | E123: 0 | F123: 1.1 | G123: 0 | H123: 0 | I123: =SUMIF(Y$14:BA$14,C123,Y$6:BA$6) -> 2064.38 | J123: =IF(H123=0,ROUND(E123*I123,2),IF(H123>0,ROUND(H123*E123,2),0)) -> 0 | K123: =ROUND(F123*I123,2) -> 2270.82 | L123: =IF(H123=0,ROUND(ROUND(F123*I123,2)*G123,2),IF(H123>0,ROUND(G123*H123,2),0)) -> 0 | M123: =IF(H123=0,L123-ROUND(G123*I123,2),0) -> 0 | O123: =J123+L123+N123 -> 0 | Q123: 479.72 | R123: =ROUND(Q123*(E123+G123),2) -> 0 | W123: =R123+T123+V123 -> 0 | AI123: 0 | AJ123: 0 | AK123: =IF($H123>0,AI123,0) -> 0 | AL123: =IF(AK123>0,1,0) -> 0 | AM123: =IF($H123>0,AJ123,0) -> 0 | AN123: =IF(AM123>0,1,0) -> 0 | AO123: 0 | AP123: 0 | AQ123: =IF($H123>0,AO123,0) -> 0 | AR123: =IF(AQ123>0,1,0) -> 0 | AS123: =IF($H123>0,AP123,0) -> 0 | AT123: =IF(AS123>0,1,0) -> 0 | AU123: 0 | AV123: 0 | AW123: =IF($H123>0,AU123,0) -> 0 | AX123: =IF(AW123>0,1,0) -> 0 | AY123: =IF($H123>0,AV123,0) -> 0 | AZ123: =IF(AY123>0,1,0) -> 0 | BA123: 0 | BB123: 0 | BC123: =IF($H123>0,BA123,0) -> 0 | BD123: =IF(BC123>0,1,0) -> 0 | BE123: =IF($H123>0,BB123,0) -> 0 | BF123: =IF(BE123>0,1,0) -> 0 | BL123: =E123-SUM(AI123,AO123,AU123,BA123) -> 0
A124: Гр. Растегаева Татьяна Борисовна | C124: =C125 -> 7 | D124: 03-4-23.371(333) | E124: 0 | F124: 1.5 | G124: 0 | H124: 0 | I124: =SUMIF(Y$14:BA$14,C124,Y$6:BA$6) -> 2580.47 | J124: =IF(H124=0,ROUND(E124*I124,2),IF(H124>0,ROUND(H124*E124,2),0)) -> 0 | K124: =ROUND(F124*I124,2) -> 3870.71 | L124: =IF(H124=0,ROUND(ROUND(F124*I124,2)*G124,2),IF(H124>0,ROUND(G124*H124,2),0)) -> 0 | M124: =IF(H124=0,L124-ROUND(G124*I124,2),0) -> 0 | O124: =J124+L124+N124 -> 0 | Q124: 479.72 | R124: =ROUND(Q124*(E124+G124),2) -> 0 | W124: =R124+T124+V124 -> 0 | AI124: =IF($I124=AI$6,$E124,0) -> 0 | AJ124: 0 | AK124: =IF($H124>0,AI124,0) -> 0 | AL124: =IF(AK124>0,1,0) -> 0 | AM124: =IF($H124>0,AJ124,0) -> 0 | AN124: =IF(AM124>0,1,0) -> 0 | AO124: =IF($I124=AO$6,$E124,0) -> 0 | AP124: 0 | AQ124: =IF($H124>0,AO124,0) -> 0 | AR124: =IF(AQ124>0,1,0) -> 0 | AS124: =IF($H124>0,AP124,0) -> 0 | AT124: =IF(AS124>0,1,0) -> 0 | AU124: =IF($I124=AU$6,$E124,0) -> 0 | AV124: 0 | AW124: =IF($H124>0,AU124,0) -> 0 | AX124: =IF(AW124>0,1,0) -> 0 | AY124: =IF($H124>0,AV124,0) -> 0 | AZ124: =IF(AY124>0,1,0) -> 0 | BA124: =IF($I124=BA$6,$E124,0) -> 0 | BB124: 0 | BC124: =IF($H124>0,BA124,0) -> 0 | BD124: =IF(BC124>0,1,0) -> 0 | BE124: =IF($H124>0,BB124,0) -> 0 | BF124: =IF(BE124>0,1,0) -> 0 | BI124: 0.2 | BL124: =E124-SUM(AI124,AO124,AU124,BA124) -> 0
A125: =IF(E125+G125>0,A124,"") -> Гр. Растегаева Татьяна Борисовна | B125: =IF(E125+G125>0,B124,"") ->  | C125: 7 | D125: 03-4-23.371(333) | E125: 0.025 | F125: 1.1 | G125: 0 | H125: 0.025 | I125: =SUMIF(Y$14:BA$14,C125,Y$6:BA$6) -> 2580.47 | J125: =IF(H125=0,ROUND(E125*I125,2),IF(H125>0,ROUND(H125*E125,2),0)) -> 0 | K125: =ROUND(F125*I125,2) -> 2838.52 | L125: =IF(H125=0,ROUND(ROUND(F125*I125,2)*G125,2),IF(H125>0,ROUND(G125*H125,2),0)) -> 0 | M125: =IF(H125=0,L125-ROUND(G125*I125,2),0) -> 0 | O125: =J125+L125+N125 -> 0 | Q125: 479.72 | R125: =ROUND(Q125*(E125+G125),2) -> 11.99 | W125: =R125+T125+V125 -> 11.99 | AI125: 0 | AJ125: 0 | AK125: =IF($H125>0,AI125,0) -> 0 | AL125: =IF(AK125>0,1,0) -> 0 | AM125: =IF($H125>0,AJ125,0) -> 0 | AN125: =IF(AM125>0,1,0) -> 0 | AO125: 0 | AP125: 0 | AQ125: =IF($H125>0,AO125,0) -> 0 | AR125: =IF(AQ125>0,1,0) -> 0 | AS125: =IF($H125>0,AP125,0) -> 0 | AT125: =IF(AS125>0,1,0) -> 0 | AU125: 0 | AV125: 0 | AW125: =IF($H125>0,AU125,0) -> 0 | AX125: =IF(AW125>0,1,0) -> 0 | AY125: =IF($H125>0,AV125,0) -> 0 | AZ125: =IF(AY125>0,1,0) -> 0 | BA125: 0.025 | BB125: 0 | BC125: =IF($H125>0,BA125,0) -> 0.025 | BD125: =IF(BC125>0,1,0) -> 1 | BE125: =IF($H125>0,BB125,0) -> 0 | BF125: =IF(BE125>0,1,0) -> 0 | BL125: =E125-SUM(AI125,AO125,AU125,BA125) -> 0
A126: =IF(E126+G126>0,A124,"") ->  | B126: =IF(E126+G126>0,B124,"") ->  | C126: =C125 -> 7 | D126: 03-4-23.371(333) | E126: 0 | F126: 1.5 | G126: 0 | H126: 0 | I126: =SUMIF(Y$14:BA$14,C126,Y$7:BA$7) -> 0 | J126: 0 | K126: 0 | L126: 0 | M126: 0 | O126: 0 | Q126: 479.72 | R126: 0 | W126: 0 | AI126: =IF($I126=AI$7,$E126,0) -> 0 | AJ126: =IF($K126=ROUND(AI$7*$F126,2),$G126,0) -> 0 | AK126: 0 | AL126: 0 | AM126: 0 | AN126: 0 | AO126: =IF($I126=AO$7,$E126,0) -> 0 | AP126: =IF($K126=ROUND(AO$7*$F126,2),$G126,0) -> 0 | AQ126: 0 | AR126: 0 | AS126: 0 | AT126: 0 | AU126: =IF($I126=AU$7,$E126,0) -> 0 | AV126: =IF($K126=ROUND(AU$7*$F126,2),$G126,0) -> 0 | AW126: 0 | AX126: 0 | AY126: 0 | AZ126: 0 | BA126: =IF($I126=BA$7,$E126,0) -> 0 | BB126: =IF($K126=ROUND(BA$7*$F126,2),$G126,0) -> 0 | BC126: 0 | BD126: 0 | BE126: 0 | BF126: 0 | BL126: 0
A127: =IF(E127+G127>0,A124,"") ->  | B127: =IF(E127+G127>0,B124,"") ->  | C127: =C125 -> 7 | D127: 03-4-23.371(333) | E127: 0 | F127: 1.1 | G127: 0 | H127: 0 | I127: =SUMIF(Y$14:BA$14,C127,Y$7:BA$7) -> 0 | J127: 0 | K127: 0 | L127: 0 | M127: 0 | O127: 0 | Q127: 479.72 | R127: 0 | W127: 0 | AI127: =IF($I127=AI$7,$E127,0) -> 0 | AJ127: =IF($K127=ROUND(AI$7*$F127,2),$G127,0) -> 0 | AK127: 0 | AL127: 0 | AM127: 0 | AN127: 0 | AO127: =IF($I127=AO$7,$E127,0) -> 0 | AP127: =IF($K127=ROUND(AO$7*$F127,2),$G127,0) -> 0 | AQ127: 0 | AR127: 0 | AS127: 0 | AT127: 0 | AU127: =IF($I127=AU$7,$E127,0) -> 0 | AV127: =IF($K127=ROUND(AU$7*$F127,2),$G127,0) -> 0 | AW127: 0 | AX127: 0 | AY127: 0 | AZ127: 0 | BA127: =IF($I127=BA$7,$E127,0) -> 0 | BB127: =IF($K127=ROUND(BA$7*$F127,2),$G127,0) -> 0 | BC127: 0 | BD127: 0 | BE127: 0 | BF127: 0 | BL127: 0
A128: ИП Шишов Андрей Викторович (до 01.08 - ИП Шахова Т.Н.) | B128: Вельск, ул.Советская-68 | C128: =C129 -> 6 | D128: 03-4-25.743/03-4-23.372 | E128: 0 | F128: 1.5 | G128: 0 | H128: 0 | I128: =SUMIF(Y$14:BA$14,C128,Y$6:BA$6) -> 2064.38 | J128: =IF(H128=0,ROUND(E128*I128,2),IF(H128>0,ROUND(H128*E128,2),0)) -> 0 | K128: =ROUND(F128*I128,2) -> 3096.57 | L128: =IF(H128=0,ROUND(ROUND(F128*I128,2)*G128,2),IF(H128>0,ROUND(G128*H128,2),0)) -> 0 | M128: =IF(H128=0,L128-ROUND(G128*I128,2),0) -> 0 | O128: =J128+L128+N128 -> 0 | Q128: 479.72 | R128: =ROUND(Q128*(E128+G128),2) -> 0 | W128: =R128+T128+V128 -> 0 | AI128: =IF($I128=AI$6,$E128,0) -> 0 | AJ128: =IF($K128=ROUND(AI$6*$F128,2),$G128,0) -> 0 | AK128: =IF($H128>0,AI128,0) -> 0 | AL128: =IF(AK128>0,1,0) -> 0 | AM128: =IF($H128>0,AJ128,0) -> 0 | AN128: =IF(AM128>0,1,0) -> 0 | AO128: =IF($I128=AO$6,$E128,0) -> 0 | AP128: =IF($K128=ROUND(AO$6*$F128,2),$G128,0) -> 0 | AQ128: =IF($H128>0,AO128,0) -> 0 | AR128: =IF(AQ128>0,1,0) -> 0 | AS128: =IF($H128>0,AP128,0) -> 0 | AT128: =IF(AS128>0,1,0) -> 0 | AU128: =IF($I128=AU$6,$E128,0) -> 0 | AV128: =IF($K128=ROUND(AU$6*$F128,2),$G128,0) -> 0 | AW128: =IF($H128>0,AU128,0) -> 0 | AX128: =IF(AW128>0,1,0) -> 0 | AY128: =IF($H128>0,AV128,0) -> 0 | AZ128: =IF(AY128>0,1,0) -> 0 | BA128: =IF($I128=BA$6,$E128,0) -> 0 | BB128: =IF($K128=ROUND(BA$6*$F128,2),$G128,0) -> 0 | BC128: =IF($H128>0,BA128,0) -> 0 | BD128: =IF(BC128>0,1,0) -> 0 | BE128: =IF($H128>0,BB128,0) -> 0 | BF128: =IF(BE128>0,1,0) -> 0 | BI128: 0.7 | BL128: =E128-SUM(AI128,AO128,AU128,BA128) -> 0
A129: =IF(E129+G129>0,A128,"") ->  | B129: =IF(E129+G129>0,B128,"") ->  | C129: 6 | D129: 03-4-25.743/03-4-23.372 | E129: 0 | F129: 1.1 | G129: 0 | H129: 0 | I129: =SUMIF(Y$14:BA$14,C129,Y$6:BA$6) -> 2064.38 | J129: =IF(H129=0,ROUND(E129*I129,2),IF(H129>0,ROUND(H129*E129,2),0)) -> 0 | K129: =ROUND(F129*I129,2) -> 2270.82 | L129: =IF(H129=0,ROUND(ROUND(F129*I129,2)*G129,2),IF(H129>0,ROUND(G129*H129,2),0)) -> 0 | M129: =IF(H129=0,L129-ROUND(G129*I129,2),0) -> 0 | O129: =J129+L129+N129 -> 0 | Q129: 479.72 | R129: =ROUND(Q129*(E129+G129),2) -> 0 | W129: =R129+T129+V129 -> 0 | AI129: =IF($I129=AI$6,$E129,0) -> 0 | AJ129: 0 | AK129: =IF($H129>0,AI129,0) -> 0 | AL129: =IF(AK129>0,1,0) -> 0 | AM129: =IF($H129>0,AJ129,0) -> 0 | AN129: =IF(AM129>0,1,0) -> 0 | AO129: =IF($I129=AO$6,$E129,0) -> 0 | AP129: 0 | AQ129: =IF($H129>0,AO129,0) -> 0 | AR129: =IF(AQ129>0,1,0) -> 0 | AS129: =IF($H129>0,AP129,0) -> 0 | AT129: =IF(AS129>0,1,0) -> 0 | AU129: =IF($I129=AU$6,$E129,0) -> 0 | AV129: 0 | AW129: =IF($H129>0,AU129,0) -> 0 | AX129: =IF(AW129>0,1,0) -> 0 | AY129: =IF($H129>0,AV129,0) -> 0 | AZ129: =IF(AY129>0,1,0) -> 0 | BA129: =IF($I129=BA$6,$E129,0) -> 0 | BB129: 0 | BC129: =IF($H129>0,BA129,0) -> 0 | BD129: =IF(BC129>0,1,0) -> 0 | BE129: =IF($H129>0,BB129,0) -> 0 | BF129: =IF(BE129>0,1,0) -> 0 | BL129: =E129-SUM(AI129,AO129,AU129,BA129) -> 0
A130: =IF(E130+G130>0,A128,"") ->  | B130: =IF(E130+G130>0,B128,"") ->  | C130: =C129 -> 6 | D130: 03-4-25.743/03-4-23.372 | E130: 0 | F130: 1.5 | G130: 0 | H130: 0 | I130: =SUMIF(Y$14:BA$14,C130,Y$7:BA$7) -> 0 | J130: 0 | K130: 0 | L130: 0 | M130: 0 | O130: 0 | Q130: 479.72 | R130: 0 | W130: 0 | AI130: =IF($I130=AI$7,$E130,0) -> 0 | AJ130: =IF($K130=ROUND(AI$7*$F130,2),$G130,0) -> 0 | AK130: 0 | AL130: 0 | AM130: 0 | AN130: 0 | AO130: =IF($I130=AO$7,$E130,0) -> 0 | AP130: =IF($K130=ROUND(AO$7*$F130,2),$G130,0) -> 0 | AQ130: 0 | AR130: 0 | AS130: 0 | AT130: 0 | AU130: =IF($I130=AU$7,$E130,0) -> 0 | AV130: =IF($K130=ROUND(AU$7*$F130,2),$G130,0) -> 0 | AW130: 0 | AX130: 0 | AY130: 0 | AZ130: 0 | BA130: =IF($I130=BA$7,$E130,0) -> 0 | BB130: =IF($K130=ROUND(BA$7*$F130,2),$G130,0) -> 0 | BC130: 0 | BD130: 0 | BE130: 0 | BF130: 0 | BL130: 0
A131: =IF(E131+G131>0,A128,"") ->  | B131: =IF(E131+G131>0,B128,"") ->  | C131: =C129 -> 6 | D131: 03-4-25.743/03-4-23.372 | E131: 0 | F131: 1.1 | G131: 0 | H131: 0 | I131: =SUMIF(Y$14:BA$14,C131,Y$7:BA$7) -> 0 | J131: 0 | K131: 0 | L131: 0 | M131: 0 | O131: 0 | Q131: 479.72 | R131: 0 | W131: 0 | AI131: =IF($I131=AI$7,$E131,0) -> 0 | AJ131: =IF($K131=ROUND(AI$7*$F131,2),$G131,0) -> 0 | AK131: 0 | AL131: 0 | AM131: 0 | AN131: 0 | AO131: =IF($I131=AO$7,$E131,0) -> 0 | AP131: =IF($K131=ROUND(AO$7*$F131,2),$G131,0) -> 0 | AQ131: 0 | AR131: 0 | AS131: 0 | AT131: 0 | AU131: =IF($I131=AU$7,$E131,0) -> 0 | AV131: =IF($K131=ROUND(AU$7*$F131,2),$G131,0) -> 0 | AW131: 0 | AX131: 0 | AY131: 0 | AZ131: 0 | BA131: =IF($I131=BA$7,$E131,0) -> 0 | BB131: =IF($K131=ROUND(BA$7*$F131,2),$G131,0) -> 0 | BC131: 0 | BD131: 0 | BE131: 0 | BF131: 0 | BL131: 0
A132: ООО "Строймаркет" | B132: Вельск, ул.Гагарина-5а | C132: =C133 -> 6 | D132: 03-4-23.375 | E132: 0 | F132: 1.5 | G132: 0 | H132: 0 | I132: =SUMIF(Y$14:BA$14,C132,Y$6:BA$6) -> 2064.38 | J132: =IF(H132=0,ROUND(E132*I132,2),IF(H132>0,ROUND(H132*E132,2),0)) -> 0 | K132: =ROUND(F132*I132,2) -> 3096.57 | L132: =IF(H132=0,ROUND(ROUND(F132*I132,2)*G132,2),IF(H132>0,ROUND(G132*H132,2),0)) -> 0 | M132: =IF(H132=0,L132-ROUND(G132*I132,2),0) -> 0 | O132: =J132+L132+N132 -> 0 | Q132: 479.72 | R132: =ROUND(Q132*(E132+G132),2) -> 0 | W132: =R132+T132+V132 -> 0 | AI132: =IF($I132=AI$6,$E132,0) -> 0 | AJ132: =IF($K132=ROUND(AI$6*$F132,2),$G132,0) -> 0 | AK132: =IF($H132>0,AI132,0) -> 0 | AL132: =IF(AK132>0,1,0) -> 0 | AM132: =IF($H132>0,AJ132,0) -> 0 | AN132: =IF(AM132>0,1,0) -> 0 | AO132: =IF($I132=AO$6,$E132,0) -> 0 | AP132: =IF($K132=ROUND(AO$6*$F132,2),$G132,0) -> 0 | AQ132: =IF($H132>0,AO132,0) -> 0 | AR132: =IF(AQ132>0,1,0) -> 0 | AS132: =IF($H132>0,AP132,0) -> 0 | AT132: =IF(AS132>0,1,0) -> 0 | AU132: =IF($I132=AU$6,$E132,0) -> 0 | AV132: =IF($K132=ROUND(AU$6*$F132,2),$G132,0) -> 0 | AW132: =IF($H132>0,AU132,0) -> 0 | AX132: =IF(AW132>0,1,0) -> 0 | AY132: =IF($H132>0,AV132,0) -> 0 | AZ132: =IF(AY132>0,1,0) -> 0 | BA132: =IF($I132=BA$6,$E132,0) -> 0 | BB132: =IF($K132=ROUND(BA$6*$F132,2),$G132,0) -> 0 | BC132: =IF($H132>0,BA132,0) -> 0 | BD132: =IF(BC132>0,1,0) -> 0 | BE132: =IF($H132>0,BB132,0) -> 0 | BF132: =IF(BE132>0,1,0) -> 0 | BI132: 0 | BL132: =E132-SUM(AI132,AO132,AU132,BA132) -> 0
A133: =IF(E133+G133>0,A132,"") ->  | B133: =IF(E133+G133>0,B132,"") ->  | C133: 6 | D133: 03-4-23.375 | E133: 0 | F133: 1.1 | G133: 0 | H133: 0 | I133: =SUMIF(Y$14:BA$14,C133,Y$6:BA$6) -> 2064.38 | J133: =IF(H133=0,ROUND(E133*I133,2),IF(H133>0,ROUND(H133*E133,2),0)) -> 0 | K133: =ROUND(F133*I133,2) -> 2270.82 | L133: =IF(H133=0,ROUND(ROUND(F133*I133,2)*G133,2),IF(H133>0,ROUND(G133*H133,2),0)) -> 0 | M133: =IF(H133=0,L133-ROUND(G133*I133,2),0) -> 0 | O133: =J133+L133+N133 -> 0 | Q133: 479.72 | R133: =ROUND(Q133*(E133+G133),2) -> 0 | W133: =R133+T133+V133 -> 0 | AI133: =IF($I133=AI$6,$E133,0) -> 0 | AJ133: 0 | AK133: =IF($H133>0,AI133,0) -> 0 | AL133: =IF(AK133>0,1,0) -> 0 | AM133: =IF($H133>0,AJ133,0) -> 0 | AN133: =IF(AM133>0,1,0) -> 0 | AO133: =IF($I133=AO$6,$E133,0) -> 0 | AP133: 0 | AQ133: =IF($H133>0,AO133,0) -> 0 | AR133: =IF(AQ133>0,1,0) -> 0 | AS133: =IF($H133>0,AP133,0) -> 0 | AT133: =IF(AS133>0,1,0) -> 0 | AU133: =IF($I133=AU$6,$E133,0) -> 0 | AV133: 0 | AW133: =IF($H133>0,AU133,0) -> 0 | AX133: =IF(AW133>0,1,0) -> 0 | AY133: =IF($H133>0,AV133,0) -> 0 | AZ133: =IF(AY133>0,1,0) -> 0 | BA133: =IF($I133=BA$6,$E133,0) -> 0 | BB133: 0 | BC133: =IF($H133>0,BA133,0) -> 0 | BD133: =IF(BC133>0,1,0) -> 0 | BE133: =IF($H133>0,BB133,0) -> 0 | BF133: =IF(BE133>0,1,0) -> 0 | BL133: =E133-SUM(AI133,AO133,AU133,BA133) -> 0
A134: =IF(E134+G134>0,A132,"") ->  | B134: =IF(E134+G134>0,B132,"") ->  | C134: =C133 -> 6 | D134: 03-4-23.375 | E134: 0 | F134: 1.5 | G134: 0 | H134: 0 | I134: =SUMIF(Y$14:BA$14,C134,Y$7:BA$7) -> 0 | J134: 0 | K134: 0 | L134: 0 | M134: 0 | O134: 0 | Q134: 479.72 | R134: 0 | W134: 0 | AI134: =IF($I134=AI$7,$E134,0) -> 0 | AJ134: =IF($K134=ROUND(AI$7*$F134,2),$G134,0) -> 0 | AK134: 0 | AL134: 0 | AM134: 0 | AN134: 0 | AO134: =IF($I134=AO$7,$E134,0) -> 0 | AP134: =IF($K134=ROUND(AO$7*$F134,2),$G134,0) -> 0 | AQ134: 0 | AR134: 0 | AS134: 0 | AT134: 0 | AU134: =IF($I134=AU$7,$E134,0) -> 0 | AV134: =IF($K134=ROUND(AU$7*$F134,2),$G134,0) -> 0 | AW134: 0 | AX134: 0 | AY134: 0 | AZ134: 0 | BA134: =IF($I134=BA$7,$E134,0) -> 0 | BB134: =IF($K134=ROUND(BA$7*$F134,2),$G134,0) -> 0 | BC134: 0 | BD134: 0 | BE134: 0 | BF134: 0 | BL134: 0
A135: =IF(E135+G135>0,A132,"") ->  | B135: =IF(E135+G135>0,B132,"") ->  | C135: =C133 -> 6 | D135: 03-4-23.375 | E135: 0 | F135: 1.1 | G135: 0 | H135: 0 | I135: =SUMIF(Y$14:BA$14,C135,Y$7:BA$7) -> 0 | J135: 0 | K135: 0 | L135: 0 | M135: 0 | O135: 0 | Q135: 479.72 | R135: 0 | W135: 0 | AI135: =IF($I135=AI$7,$E135,0) -> 0 | AJ135: =IF($K135=ROUND(AI$7*$F135,2),$G135,0) -> 0 | AK135: 0 | AL135: 0 | AM135: 0 | AN135: 0 | AO135: =IF($I135=AO$7,$E135,0) -> 0 | AP135: =IF($K135=ROUND(AO$7*$F135,2),$G135,0) -> 0 | AQ135: 0 | AR135: 0 | AS135: 0 | AT135: 0 | AU135: =IF($I135=AU$7,$E135,0) -> 0 | AV135: =IF($K135=ROUND(AU$7*$F135,2),$G135,0) -> 0 | AW135: 0 | AX135: 0 | AY135: 0 | AZ135: 0 | BA135: =IF($I135=BA$7,$E135,0) -> 0 | BB135: =IF($K135=ROUND(BA$7*$F135,2),$G135,0) -> 0 | BC135: 0 | BD135: 0 | BE135: 0 | BF135: 0 | BL135: 0
A136: ООО "Строймаркет" | B136: Вельск, ул.Гагарина-5а | C136: =C137 -> 6 | D136: 03-4-23.375(333) | E136: 0 | F136: 1.5 | G136: 0 | H136: 0 | I136: =SUMIF(Y$14:BA$14,C136,Y$6:BA$6) -> 2064.38 | J136: =IF(H136=0,ROUND(E136*I136,2),IF(H136>0,ROUND(H136*E136,2),0)) -> 0 | K136: =ROUND(F136*I136,2) -> 3096.57 | L136: =IF(H136=0,ROUND(ROUND(F136*I136,2)*G136,2),IF(H136>0,ROUND(G136*H136,2),0)) -> 0 | M136: =IF(H136=0,L136-ROUND(G136*I136,2),0) -> 0 | O136: =J136+L136+N136 -> 0 | Q136: 479.72 | R136: =ROUND(Q136*(E136+G136),2) -> 0 | W136: =R136+T136+V136 -> 0 | AI136: =IF($I136=AI$6,$E136,0) -> 0 | AJ136: =IF($K136=ROUND(AI$6*$F136,2),$G136,0) -> 0 | AK136: =IF($H136>0,AI136,0) -> 0 | AL136: =IF(AK136>0,1,0) -> 0 | AM136: =IF($H136>0,AJ136,0) -> 0 | AN136: =IF(AM136>0,1,0) -> 0 | AO136: =IF($I136=AO$6,$E136,0) -> 0 | AP136: =IF($K136=ROUND(AO$6*$F136,2),$G136,0) -> 0 | AQ136: =IF($H136>0,AO136,0) -> 0 | AR136: =IF(AQ136>0,1,0) -> 0 | AS136: =IF($H136>0,AP136,0) -> 0 | AT136: =IF(AS136>0,1,0) -> 0 | AU136: =IF($I136=AU$6,$E136,0) -> 0 | AV136: =IF($K136=ROUND(AU$6*$F136,2),$G136,0) -> 0 | AW136: =IF($H136>0,AU136,0) -> 0 | AX136: =IF(AW136>0,1,0) -> 0 | AY136: =IF($H136>0,AV136,0) -> 0 | AZ136: =IF(AY136>0,1,0) -> 0 | BA136: =IF($I136=BA$6,$E136,0) -> 0 | BB136: =IF($K136=ROUND(BA$6*$F136,2),$G136,0) -> 0 | BC136: =IF($H136>0,BA136,0) -> 0 | BD136: =IF(BC136>0,1,0) -> 0 | BE136: =IF($H136>0,BB136,0) -> 0 | BF136: =IF(BE136>0,1,0) -> 0 | BI136: 0.01 | BL136: =E136-SUM(AI136,AO136,AU136,BA136) -> 0
A137: =IF(E137+G137>0,A136,"") -> ООО "Строймаркет" | B137: =IF(E137+G137>0,B136,"") -> Вельск, ул.Гагарина-5а | C137: 6 | D137: 03-4-23.375(333) | E137: 0.011 | F137: 1.1 | G137: 0.093 | H137: 0.104 | I137: =SUMIF(Y$14:BA$14,C137,Y$6:BA$6) -> 2064.38 | J137: =IF(H137=0,ROUND(E137*I137,2),IF(H137>0,ROUND(H137*E137,2),0)) -> 0 | K137: =ROUND(F137*I137,2) -> 2270.82 | L137: =IF(H137=0,ROUND(ROUND(F137*I137,2)*G137,2),IF(H137>0,ROUND(G137*H137,2),0)) -> 0.01 | M137: =IF(H137=0,L137-ROUND(G137*I137,2),0) -> 0 | O137: =J137+L137+N137 -> 0.01 | Q137: 479.72 | R137: =ROUND(Q137*(E137+G137),2) -> 49.89 | W137: =R137+T137+V137 -> 49.89 | AI137: =IF($I137=AI$6,$E137,0) -> 0 | AJ137: 0 | AK137: =IF($H137>0,AI137,0) -> 0 | AL137: =IF(AK137>0,1,0) -> 0 | AM137: =IF($H137>0,AJ137,0) -> 0 | AN137: =IF(AM137>0,1,0) -> 0 | AO137: =IF($I137=AO$6,$E137,0) -> 0 | AP137: 0 | AQ137: =IF($H137>0,AO137,0) -> 0 | AR137: =IF(AQ137>0,1,0) -> 0 | AS137: =IF($H137>0,AP137,0) -> 0 | AT137: =IF(AS137>0,1,0) -> 0 | AU137: =IF($I137=AU$6,$E137,0) -> 0.011 | AV137: 0.093 | AW137: =IF($H137>0,AU137,0) -> 0.011 | AX137: =IF(AW137>0,1,0) -> 1 | AY137: =IF($H137>0,AV137,0) -> 0.093 | AZ137: =IF(AY137>0,1,0) -> 1 | BA137: =IF($I137=BA$6,$E137,0) -> 0 | BB137: 0 | BC137: =IF($H137>0,BA137,0) -> 0 | BD137: =IF(BC137>0,1,0) -> 0 | BE137: =IF($H137>0,BB137,0) -> 0 | BF137: =IF(BE137>0,1,0) -> 0 | BL137: =E137-SUM(AI137,AO137,AU137,BA137) -> 0
A138: =IF(E138+G138>0,A136,"") ->  | B138: =IF(E138+G138>0,B136,"") ->  | C138: =C137 -> 6 | D138: 03-4-23.375(333) | E138: 0 | F138: 1.5 | G138: 0 | H138: 0 | I138: =SUMIF(Y$14:BA$14,C138,Y$7:BA$7) -> 0 | J138: 0 | K138: 0 | L138: 0 | M138: 0 | O138: 0 | Q138: 479.72 | R138: 0 | W138: 0 | AI138: =IF($I138=AI$7,$E138,0) -> 0 | AJ138: =IF($K138=ROUND(AI$7*$F138,2),$G138,0) -> 0 | AK138: 0 | AL138: 0 | AM138: 0 | AN138: 0 | AO138: =IF($I138=AO$7,$E138,0) -> 0 | AP138: =IF($K138=ROUND(AO$7*$F138,2),$G138,0) -> 0 | AQ138: 0 | AR138: 0 | AS138: 0 | AT138: 0 | AU138: =IF($I138=AU$7,$E138,0) -> 0 | AV138: =IF($K138=ROUND(AU$7*$F138,2),$G138,0) -> 0 | AW138: 0 | AX138: 0 | AY138: 0 | AZ138: 0 | BA138: =IF($I138=BA$7,$E138,0) -> 0 | BB138: =IF($K138=ROUND(BA$7*$F138,2),$G138,0) -> 0 | BC138: 0 | BD138: 0 | BE138: 0 | BF138: 0 | BL138: 0
A139: =IF(E139+G139>0,A136,"") ->  | B139: =IF(E139+G139>0,B136,"") ->  | C139: =C137 -> 6 | D139: 03-4-23.375(333) | E139: 0 | F139: 1.1 | G139: 0 | H139: 0 | I139: =SUMIF(Y$14:BA$14,C139,Y$7:BA$7) -> 0 | J139: 0 | K139: 0 | L139: 0 | M139: 0 | O139: 0 | Q139: 479.72 | R139: 0 | W139: 0 | AI139: =IF($I139=AI$7,$E139,0) -> 0 | AJ139: =IF($K139=ROUND(AI$7*$F139,2),$G139,0) -> 0 | AK139: 0 | AL139: 0 | AM139: 0 | AN139: 0 | AO139: =IF($I139=AO$7,$E139,0) -> 0 | AP139: =IF($K139=ROUND(AO$7*$F139,2),$G139,0) -> 0 | AQ139: 0 | AR139: 0 | AS139: 0 | AT139: 0 | AU139: =IF($I139=AU$7,$E139,0) -> 0 | AV139: =IF($K139=ROUND(AU$7*$F139,2),$G139,0) -> 0 | AW139: 0 | AX139: 0 | AY139: 0 | AZ139: 0 | BA139: =IF($I139=BA$7,$E139,0) -> 0 | BB139: =IF($K139=ROUND(BA$7*$F139,2),$G139,0) -> 0 | BC139: 0 | BD139: 0 | BE139: 0 | BF139: 0 | BL139: 0
A140: ООО "Сервис" | B140: Вельск, ул.Комсомольская-11 | C140: =C141 -> 6 | D140: 03-4-23.381 | E140: 0 | F140: 1.5 | G140: 0 | H140: 0 | I140: =SUMIF(Y$14:BA$14,C140,Y$6:BA$6) -> 2064.38 | J140: =IF(H140=0,ROUND(E140*I140,2),IF(H140>0,ROUND(H140*E140,2),0)) -> 0 | K140: =ROUND(F140*I140,2) -> 3096.57 | L140: =IF(H140=0,ROUND(ROUND(F140*I140,2)*G140,2),IF(H140>0,ROUND(G140*H140,2),0)) -> 0 | M140: =IF(H140=0,L140-ROUND(G140*I140,2),0) -> 0 | O140: =J140+L140+N140 -> 0 | Q140: 479.72 | R140: =ROUND(Q140*(E140+G140),2) -> 0 | W140: =R140+T140+V140 -> 0 | AI140: =IF($I140=AI$6,$E140,0) -> 0 | AJ140: =IF($K140=ROUND(AI$6*$F140,2),$G140,0) -> 0 | AK140: =IF($H140>0,AI140,0) -> 0 | AL140: =IF(AK140>0,1,0) -> 0 | AM140: =IF($H140>0,AJ140,0) -> 0 | AN140: =IF(AM140>0,1,0) -> 0 | AO140: =IF($I140=AO$6,$E140,0) -> 0 | AP140: =IF($K140=ROUND(AO$6*$F140,2),$G140,0) -> 0 | AQ140: =IF($H140>0,AO140,0) -> 0 | AR140: =IF(AQ140>0,1,0) -> 0 | AS140: =IF($H140>0,AP140,0) -> 0 | AT140: =IF(AS140>0,1,0) -> 0 | AU140: =IF($I140=AU$6,$E140,0) -> 0 | AV140: =IF($K140=ROUND(AU$6*$F140,2),$G140,0) -> 0 | AW140: =IF($H140>0,AU140,0) -> 0 | AX140: =IF(AW140>0,1,0) -> 0 | AY140: =IF($H140>0,AV140,0) -> 0 | AZ140: =IF(AY140>0,1,0) -> 0 | BA140: =IF($I140=BA$6,$E140,0) -> 0 | BB140: =IF($K140=ROUND(BA$6*$F140,2),$G140,0) -> 0 | BC140: =IF($H140>0,BA140,0) -> 0 | BD140: =IF(BC140>0,1,0) -> 0 | BE140: =IF($H140>0,BB140,0) -> 0 | BF140: =IF(BE140>0,1,0) -> 0 | BI140: 0.065 | BL140: =E140-SUM(AI140,AO140,AU140,BA140) -> 0
A141: =IF(E141+G141>0,A140,"") ->  | B141: =IF(E141+G141>0,B140,"") ->  | C141: 6 | D141: 03-4-23.381 | E141: 0 | F141: 1.1 | G141: 0 | H141: 0 | I141: =SUMIF(Y$14:BA$14,C141,Y$6:BA$6) -> 2064.38 | J141: =IF(H141=0,ROUND(E141*I141,2),IF(H141>0,ROUND(H141*E141,2),0)) -> 0 | K141: =ROUND(F141*I141,2) -> 2270.82 | L141: =IF(H141=0,ROUND(ROUND(F141*I141,2)*G141,2),IF(H141>0,ROUND(G141*H141,2),0)) -> 0 | M141: =IF(H141=0,L141-ROUND(G141*I141,2),0) -> 0 | O141: =J141+L141+N141 -> 0 | Q141: 479.72 | R141: =ROUND(Q141*(E141+G141),2) -> 0 | W141: =R141+T141+V141 -> 0 | AI141: =IF($I141=AI$6,$E141,0) -> 0 | AJ141: 0 | AK141: =IF($H141>0,AI141,0) -> 0 | AL141: =IF(AK141>0,1,0) -> 0 | AM141: =IF($H141>0,AJ141,0) -> 0 | AN141: =IF(AM141>0,1,0) -> 0 | AO141: =IF($I141=AO$6,$E141,0) -> 0 | AP141: 0 | AQ141: =IF($H141>0,AO141,0) -> 0 | AR141: =IF(AQ141>0,1,0) -> 0 | AS141: =IF($H141>0,AP141,0) -> 0 | AT141: =IF(AS141>0,1,0) -> 0 | AU141: =IF($I141=AU$6,$E141,0) -> 0 | AV141: 0 | AW141: =IF($H141>0,AU141,0) -> 0 | AX141: =IF(AW141>0,1,0) -> 0 | AY141: =IF($H141>0,AV141,0) -> 0 | AZ141: =IF(AY141>0,1,0) -> 0 | BA141: =IF($I141=BA$6,$E141,0) -> 0 | BB141: 0 | BC141: =IF($H141>0,BA141,0) -> 0 | BD141: =IF(BC141>0,1,0) -> 0 | BE141: =IF($H141>0,BB141,0) -> 0 | BF141: =IF(BE141>0,1,0) -> 0 | BL141: =E141-SUM(AI141,AO141,AU141,BA141) -> 0
A142: =IF(E142+G142>0,A140,"") ->  | B142: =IF(E142+G142>0,B140,"") ->  | C142: =C141 -> 6 | D142: 03-4-23.381 | E142: 0 | F142: 1.5 | G142: 0 | H142: 0 | I142: =SUMIF(Y$14:BA$14,C142,Y$7:BA$7) -> 0 | J142: 0 | K142: 0 | L142: 0 | M142: 0 | O142: 0 | Q142: 479.72 | R142: 0 | W142: 0 | AI142: =IF($I142=AI$7,$E142,0) -> 0 | AJ142: =IF($K142=ROUND(AI$7*$F142,2),$G142,0) -> 0 | AK142: 0 | AL142: 0 | AM142: 0 | AN142: 0 | AO142: =IF($I142=AO$7,$E142,0) -> 0 | AP142: =IF($K142=ROUND(AO$7*$F142,2),$G142,0) -> 0 | AQ142: 0 | AR142: 0 | AS142: 0 | AT142: 0 | AU142: =IF($I142=AU$7,$E142,0) -> 0 | AV142: =IF($K142=ROUND(AU$7*$F142,2),$G142,0) -> 0 | AW142: 0 | AX142: 0 | AY142: 0 | AZ142: 0 | BA142: =IF($I142=BA$7,$E142,0) -> 0 | BB142: =IF($K142=ROUND(BA$7*$F142,2),$G142,0) -> 0 | BC142: 0 | BD142: 0 | BE142: 0 | BF142: 0 | BL142: 0
A143: =IF(E143+G143>0,A140,"") ->  | B143: =IF(E143+G143>0,B140,"") ->  | C143: =C141 -> 6 | D143: 03-4-23.381 | E143: 0 | F143: 1.1 | G143: 0 | H143: 0 | I143: =SUMIF(Y$14:BA$14,C143,Y$7:BA$7) -> 0 | J143: 0 | K143: 0 | L143: 0 | M143: 0 | O143: 0 | Q143: 479.72 | R143: 0 | W143: 0 | AI143: =IF($I143=AI$7,$E143,0) -> 0 | AJ143: =IF($K143=ROUND(AI$7*$F143,2),$G143,0) -> 0 | AK143: 0 | AL143: 0 | AM143: 0 | AN143: 0 | AO143: =IF($I143=AO$7,$E143,0) -> 0 | AP143: =IF($K143=ROUND(AO$7*$F143,2),$G143,0) -> 0 | AQ143: 0 | AR143: 0 | AS143: 0 | AT143: 0 | AU143: =IF($I143=AU$7,$E143,0) -> 0 | AV143: =IF($K143=ROUND(AU$7*$F143,2),$G143,0) -> 0 | AW143: 0 | AX143: 0 | AY143: 0 | AZ143: 0 | BA143: =IF($I143=BA$7,$E143,0) -> 0 | BB143: =IF($K143=ROUND(BA$7*$F143,2),$G143,0) -> 0 | BC143: 0 | BD143: 0 | BE143: 0 | BF143: 0 | BL143: 0
A144: ООО "Сервис" | B144: Вельск, ул.Дзержинского-50 | C144: =C145 -> 7 | D144: 03-4-23.381(333) | E144: 0 | F144: 1.5 | G144: 0 | H144: 0 | I144: =SUMIF(Y$14:BA$14,C144,Y$6:BA$6) -> 2580.47 | J144: =IF(H144=0,ROUND(E144*I144,2),IF(H144>0,ROUND(H144*E144,2),0)) -> 0 | K144: =ROUND(F144*I144,2) -> 3870.71 | L144: =IF(H144=0,ROUND(ROUND(F144*I144,2)*G144,2),IF(H144>0,ROUND(G144*H144,2),0)) -> 0 | M144: =IF(H144=0,L144-ROUND(G144*I144,2),0) -> 0 | O144: =J144+L144+N144 -> 0 | Q144: =IF(BI144>0,Q$6,Q$6) -> 479.72 | R144: =ROUND(Q144*(E144+G144),2) -> 0 | W144: =R144+T144+V144 -> 0 | AI144: =IF($I144=AI$6,$E144,0) -> 0 | AJ144: =IF($K144=ROUND(AI$6*$F144,2),$G144,0) -> 0 | AK144: =IF($H144>0,AI144,0) -> 0 | AL144: =IF(AK144>0,1,0) -> 0 | AM144: =IF($H144>0,AJ144,0) -> 0 | AN144: =IF(AM144>0,1,0) -> 0 | AO144: =IF($I144=AO$6,$E144,0) -> 0 | AP144: =IF($K144=ROUND(AO$6*$F144,2),$G144,0) -> 0 | AQ144: =IF($H144>0,AO144,0) -> 0 | AR144: =IF(AQ144>0,1,0) -> 0 | AS144: =IF($H144>0,AP144,0) -> 0 | AT144: =IF(AS144>0,1,0) -> 0 | AU144: =IF($I144=AU$6,$E144,0) -> 0 | AV144: =IF($K144=ROUND(AU$6*$F144,2),$G144,0) -> 0 | AW144: =IF($H144>0,AU144,0) -> 0 | AX144: =IF(AW144>0,1,0) -> 0 | AY144: =IF($H144>0,AV144,0) -> 0 | AZ144: =IF(AY144>0,1,0) -> 0 | BA144: =IF($I144=BA$6,$E144,0) -> 0 | BB144: =IF($K144=ROUND(BA$6*$F144,2),$G144,0) -> 0 | BC144: =IF($H144>0,BA144,0) -> 0 | BD144: =IF(BC144>0,1,0) -> 0 | BE144: =IF($H144>0,BB144,0) -> 0 | BF144: =IF(BE144>0,1,0) -> 0 | BI144: 0 | BL144: =E144-SUM(AI144,AO144,AU144,BA144) -> 0
A145: =IF(E145+G145>0,A144,"") ->  | B145: =IF(E145+G145>0,B144,"") ->  | C145: 7 | D145: 03-4-23.381(333) | E145: 0 | F145: 1.1 | G145: 0 | H145: =E145+G145 -> 0 | I145: =SUMIF(Y$14:BA$14,C145,Y$6:BA$6) -> 2580.47 | J145: =IF(H145=0,ROUND(E145*I145,2),IF(H145>0,ROUND(H145*E145,2),0)) -> 0 | K145: =ROUND(F145*I145,2) -> 2838.52 | L145: =IF(H145=0,ROUND(ROUND(F145*I145,2)*G145,2),IF(H145>0,ROUND(G145*H145,2),0)) -> 0 | M145: =IF(H145=0,L145-ROUND(G145*I145,2),0) -> 0 | O145: =J145+L145+N145 -> 0 | Q145: 479.72 | R145: =ROUND(Q145*(E145+G145),2) -> 0 | W145: =R145+T145+V145 -> 0 | AI145: =IF($I145=AI$6,$E145,0) -> 0 | AJ145: 0 | AK145: =IF($H145>0,AI145,0) -> 0 | AL145: =IF(AK145>0,1,0) -> 0 | AM145: =IF($H145>0,AJ145,0) -> 0 | AN145: =IF(AM145>0,1,0) -> 0 | AO145: =IF($I145=AO$6,$E145,0) -> 0 | AP145: 0 | AQ145: =IF($H145>0,AO145,0) -> 0 | AR145: =IF(AQ145>0,1,0) -> 0 | AS145: =IF($H145>0,AP145,0) -> 0 | AT145: =IF(AS145>0,1,0) -> 0 | AU145: =IF($I145=AU$6,$E145,0) -> 0 | AV145: 0 | AW145: =IF($H145>0,AU145,0) -> 0 | AX145: =IF(AW145>0,1,0) -> 0 | AY145: =IF($H145>0,AV145,0) -> 0 | AZ145: =IF(AY145>0,1,0) -> 0 | BA145: =IF($I145=BA$6,$E145,0) -> 0 | BB145: 0 | BC145: =IF($H145>0,BA145,0) -> 0 | BD145: =IF(BC145>0,1,0) -> 0 | BE145: =IF($H145>0,BB145,0) -> 0 | BF145: =IF(BE145>0,1,0) -> 0 | BL145: =E145-SUM(AI145,AO145,AU145,BA145) -> 0
A146: =IF(E146+G146>0,A144,"") ->  | B146: =IF(E146+G146>0,B144,"") ->  | C146: =C145 -> 7 | D146: 03-4-23.381(333) | E146: 0 | F146: 1.5 | G146: 0 | H146: 0 | I146: =SUMIF(Y$14:BA$14,C146,Y$7:BA$7) -> 0 | J146: 0 | K146: 0 | L146: 0 | M146: 0 | O146: 0 | Q146: 479.72 | R146: 0 | W146: 0 | AI146: =IF($I146=AI$7,$E146,0) -> 0 | AJ146: =IF($K146=ROUND(AI$7*$F146,2),$G146,0) -> 0 | AK146: 0 | AL146: 0 | AM146: 0 | AN146: 0 | AO146: =IF($I146=AO$7,$E146,0) -> 0 | AP146: =IF($K146=ROUND(AO$7*$F146,2),$G146,0) -> 0 | AQ146: 0 | AR146: 0 | AS146: 0 | AT146: 0 | AU146: =IF($I146=AU$7,$E146,0) -> 0 | AV146: =IF($K146=ROUND(AU$7*$F146,2),$G146,0) -> 0 | AW146: 0 | AX146: 0 | AY146: 0 | AZ146: 0 | BA146: =IF($I146=BA$7,$E146,0) -> 0 | BB146: =IF($K146=ROUND(BA$7*$F146,2),$G146,0) -> 0 | BC146: 0 | BD146: 0 | BE146: 0 | BF146: 0 | BL146: 0
A147: =IF(E147+G147>0,A144,"") ->  | B147: =IF(E147+G147>0,B144,"") ->  | C147: =C145 -> 7 | D147: 03-4-23.381(333) | E147: 0 | F147: 1.1 | G147: 0 | H147: 0 | I147: =SUMIF(Y$14:BA$14,C147,Y$7:BA$7) -> 0 | J147: 0 | K147: 0 | L147: 0 | M147: 0 | O147: 0 | Q147: 479.72 | R147: 0 | W147: 0 | AI147: =IF($I147=AI$7,$E147,0) -> 0 | AJ147: =IF($K147=ROUND(AI$7*$F147,2),$G147,0) -> 0 | AK147: 0 | AL147: 0 | AM147: 0 | AN147: 0 | AO147: =IF($I147=AO$7,$E147,0) -> 0 | AP147: =IF($K147=ROUND(AO$7*$F147,2),$G147,0) -> 0 | AQ147: 0 | AR147: 0 | AS147: 0 | AT147: 0 | AU147: =IF($I147=AU$7,$E147,0) -> 0 | AV147: =IF($K147=ROUND(AU$7*$F147,2),$G147,0) -> 0 | AW147: 0 | AX147: 0 | AY147: 0 | AZ147: 0 | BA147: =IF($I147=BA$7,$E147,0) -> 0 | BB147: =IF($K147=ROUND(BA$7*$F147,2),$G147,0) -> 0 | BC147: 0 | BD147: 0 | BE147: 0 | BF147: 0 | BL147: 0
A148: ООО "Сервис" | B148: Вельск, ул.1 мая-63 | C148: =C149 -> 7 | D148: 03-4-23.381(333) | E148: 0 | F148: 1.5 | G148: 0 | H148: 0 | I148: =SUMIF(Y$14:BA$14,C148,Y$6:BA$6) -> 2580.47 | J148: =IF(H148=0,ROUND(E148*I148,2),IF(H148>0,ROUND(H148*E148,2),0)) -> 0 | K148: =ROUND(F148*I148,2) -> 3870.71 | L148: =IF(H148=0,ROUND(ROUND(F148*I148,2)*G148,2),IF(H148>0,ROUND(G148*H148,2),0)) -> 0 | M148: =IF(H148=0,L148-ROUND(G148*I148,2),0) -> 0 | O148: =J148+L148+N148 -> 0 | Q148: 479.72 | R148: =ROUND(Q148*(E148+G148),2) -> 0 | W148: =R148+T148+V148 -> 0 | AI148: =IF($I148=AI$6,$E148,0) -> 0 | AJ148: =IF($K148=ROUND(AI$6*$F148,2),$G148,0) -> 0 | AK148: =IF($H148>0,AI148,0) -> 0 | AL148: =IF(AK148>0,1,0) -> 0 | AM148: =IF($H148>0,AJ148,0) -> 0 | AN148: =IF(AM148>0,1,0) -> 0 | AO148: =IF($I148=AO$6,$E148,0) -> 0 | AP148: =IF($K148=ROUND(AO$6*$F148,2),$G148,0) -> 0 | AQ148: =IF($H148>0,AO148,0) -> 0 | AR148: =IF(AQ148>0,1,0) -> 0 | AS148: =IF($H148>0,AP148,0) -> 0 | AT148: =IF(AS148>0,1,0) -> 0 | AU148: =IF($I148=AU$6,$E148,0) -> 0 | AV148: =IF($K148=ROUND(AU$6*$F148,2),$G148,0) -> 0 | AW148: =IF($H148>0,AU148,0) -> 0 | AX148: =IF(AW148>0,1,0) -> 0 | AY148: =IF($H148>0,AV148,0) -> 0 | AZ148: =IF(AY148>0,1,0) -> 0 | BA148: =IF($I148=BA$6,$E148,0) -> 0 | BB148: =IF($K148=ROUND(BA$6*$F148,2),$G148,0) -> 0 | BC148: =IF($H148>0,BA148,0) -> 0 | BD148: =IF(BC148>0,1,0) -> 0 | BE148: =IF($H148>0,BB148,0) -> 0 | BF148: =IF(BE148>0,1,0) -> 0 | BI148: 0 | BL148: =E148-SUM(AI148,AO148,AU148,BA148) -> 0
A149: =IF(E149+G149>0,A148,"") ->  | B149: =IF(E149+G149>0,B148,"") ->  | C149: 7 | D149: 03-4-23.381(333) | E149: 0 | F149: 1.1 | G149: 0 | H149: 0 | I149: =SUMIF(Y$14:BA$14,C149,Y$6:BA$6) -> 2580.47 | J149: =IF(H149=0,ROUND(E149*I149,2),IF(H149>0,ROUND(H149*E149,2),0)) -> 0 | K149: =ROUND(F149*I149,2) -> 2838.52 | L149: =IF(H149=0,ROUND(ROUND(F149*I149,2)*G149,2),IF(H149>0,ROUND(G149*H149,2),0)) -> 0 | M149: =IF(H149=0,L149-ROUND(G149*I149,2),0) -> 0 | O149: =J149+L149+N149 -> 0 | Q149: 479.72 | R149: =ROUND(Q149*(E149+G149),2) -> 0 | W149: =R149+T149+V149 -> 0 | AI149: =IF($I149=AI$6,$E149,0) -> 0 | AJ149: 0 | AK149: =IF($H149>0,AI149,0) -> 0 | AL149: =IF(AK149>0,1,0) -> 0 | AM149: =IF($H149>0,AJ149,0) -> 0 | AN149: =IF(AM149>0,1,0) -> 0 | AO149: =IF($I149=AO$6,$E149,0) -> 0 | AP149: 0 | AQ149: =IF($H149>0,AO149,0) -> 0 | AR149: =IF(AQ149>0,1,0) -> 0 | AS149: =IF($H149>0,AP149,0) -> 0 | AT149: =IF(AS149>0,1,0) -> 0 | AU149: =IF($I149=AU$6,$E149,0) -> 0 | AV149: 0 | AW149: =IF($H149>0,AU149,0) -> 0 | AX149: =IF(AW149>0,1,0) -> 0 | AY149: =IF($H149>0,AV149,0) -> 0 | AZ149: =IF(AY149>0,1,0) -> 0 | BA149: =IF($I149=BA$6,$E149,0) -> 0 | BB149: 0 | BC149: =IF($H149>0,BA149,0) -> 0 | BD149: =IF(BC149>0,1,0) -> 0 | BE149: =IF($H149>0,BB149,0) -> 0 | BF149: =IF(BE149>0,1,0) -> 0 | BL149: =E149-SUM(AI149,AO149,AU149,BA149) -> 0
A150: =IF(E150+G150>0,A148,"") ->  | B150: =IF(E150+G150>0,B148,"") ->  | C150: =C149 -> 7 | D150: 03-4-23.381(333) | E150: 0 | F150: 1.5 | G150: 0 | H150: 0 | I150: =SUMIF(Y$14:BA$14,C150,Y$7:BA$7) -> 0 | J150: 0 | K150: 0 | L150: 0 | M150: 0 | O150: 0 | Q150: 479.72 | R150: 0 | W150: 0 | AI150: =IF($I150=AI$7,$E150,0) -> 0 | AJ150: =IF($K150=ROUND(AI$7*$F150,2),$G150,0) -> 0 | AK150: 0 | AL150: 0 | AM150: 0 | AN150: 0 | AO150: =IF($I150=AO$7,$E150,0) -> 0 | AP150: =IF($K150=ROUND(AO$7*$F150,2),$G150,0) -> 0 | AQ150: 0 | AR150: 0 | AS150: 0 | AT150: 0 | AU150: =IF($I150=AU$7,$E150,0) -> 0 | AV150: =IF($K150=ROUND(AU$7*$F150,2),$G150,0) -> 0 | AW150: 0 | AX150: 0 | AY150: 0 | AZ150: 0 | BA150: =IF($I150=BA$7,$E150,0) -> 0 | BB150: =IF($K150=ROUND(BA$7*$F150,2),$G150,0) -> 0 | BC150: 0 | BD150: 0 | BE150: 0 | BF150: 0 | BL150: 0
A151: =IF(E151+G151>0,A148,"") ->  | B151: =IF(E151+G151>0,B148,"") ->  | C151: =C149 -> 7 | D151: 03-4-23.381(333) | E151: 0 | F151: 1.1 | G151: 0 | H151: 0 | I151: =SUMIF(Y$14:BA$14,C151,Y$7:BA$7) -> 0 | J151: 0 | K151: 0 | L151: 0 | M151: 0 | O151: 0 | Q151: 479.72 | R151: 0 | W151: 0 | AI151: =IF($I151=AI$7,$E151,0) -> 0 | AJ151: =IF($K151=ROUND(AI$7*$F151,2),$G151,0) -> 0 | AK151: 0 | AL151: 0 | AM151: 0 | AN151: 0 | AO151: =IF($I151=AO$7,$E151,0) -> 0 | AP151: =IF($K151=ROUND(AO$7*$F151,2),$G151,0) -> 0 | AQ151: 0 | AR151: 0 | AS151: 0 | AT151: 0 | AU151: =IF($I151=AU$7,$E151,0) -> 0 | AV151: =IF($K151=ROUND(AU$7*$F151,2),$G151,0) -> 0 | AW151: 0 | AX151: 0 | AY151: 0 | AZ151: 0 | BA151: =IF($I151=BA$7,$E151,0) -> 0 | BB151: =IF($K151=ROUND(BA$7*$F151,2),$G151,0) -> 0 | BC151: 0 | BD151: 0 | BE151: 0 | BF151: 0 | BL151: 0
A152: ООО "Сервис" | B152: Вельск, ул.Гагарина-42, 44 | C152: =C153 -> 6 | D152: 03-4-23.381(333) | E152: 0 | F152: 1.5 | G152: 0 | H152: 0 | I152: =SUMIF(Y$14:BA$14,C152,Y$6:BA$6) -> 2064.38 | J152: =IF(H152=0,ROUND(E152*I152,2),IF(H152>0,ROUND(H152*E152,2),0)) -> 0 | K152: =ROUND(F152*I152,2) -> 3096.57 | L152: =IF(H152=0,ROUND(ROUND(F152*I152,2)*G152,2),IF(H152>0,ROUND(G152*H152,2),0)) -> 0 | M152: =IF(H152=0,L152-ROUND(G152*I152,2),0) -> 0 | O152: =J152+L152+N152 -> 0 | Q152: 479.72 | R152: =ROUND(Q152*(E152+G152),2) -> 0 | W152: =R152+T152+V152 -> 0 | AI152: =IF($I152=AI$6,$E152,0) -> 0 | AJ152: =IF($K152=ROUND(AI$6*$F152,2),$G152,0) -> 0 | AK152: =IF($H152>0,AI152,0) -> 0 | AL152: =IF(AK152>0,1,0) -> 0 | AM152: =IF($H152>0,AJ152,0) -> 0 | AN152: =IF(AM152>0,1,0) -> 0 | AO152: =IF($I152=AO$6,$E152,0) -> 0 | AP152: =IF($K152=ROUND(AO$6*$F152,2),$G152,0) -> 0 | AQ152: =IF($H152>0,AO152,0) -> 0 | AR152: =IF(AQ152>0,1,0) -> 0 | AS152: =IF($H152>0,AP152,0) -> 0 | AT152: =IF(AS152>0,1,0) -> 0 | AU152: =IF($I152=AU$6,$E152,0) -> 0 | AV152: =IF($K152=ROUND(AU$6*$F152,2),$G152,0) -> 0 | AW152: =IF($H152>0,AU152,0) -> 0 | AX152: =IF(AW152>0,1,0) -> 0 | AY152: =IF($H152>0,AV152,0) -> 0 | AZ152: =IF(AY152>0,1,0) -> 0 | BA152: =IF($I152=BA$6,$E152,0) -> 0 | BB152: =IF($K152=ROUND(BA$6*$F152,2),$G152,0) -> 0 | BC152: =IF($H152>0,BA152,0) -> 0 | BD152: =IF(BC152>0,1,0) -> 0 | BE152: =IF($H152>0,BB152,0) -> 0 | BF152: =IF(BE152>0,1,0) -> 0 | BI152: 0.05 | BL152: =E152-SUM(AI152,AO152,AU152,BA152) -> 0
A153: =IF(E153+G153>0,A152,"") ->  | B153: =IF(E153+G153>0,B152,"") ->  | C153: 6 | D153: 03-4-23.381(333) | E153: 0 | F153: 1.1 | G153: 0 | H153: 0 | I153: =SUMIF(Y$14:BA$14,C153,Y$6:BA$6) -> 2064.38 | J153: =IF(H153=0,ROUND(E153*I153,2),IF(H153>0,ROUND(H153*E153,2),0)) -> 0 | K153: =ROUND(F153*I153,2) -> 2270.82 | L153: =IF(H153=0,ROUND(ROUND(F153*I153,2)*G153,2),IF(H153>0,ROUND(G153*H153,2),0)) -> 0 | M153: =IF(H153=0,L153-ROUND(G153*I153,2),0) -> 0 | O153: =J153+L153+N153 -> 0 | Q153: 479.72 | R153: =ROUND(Q153*(E153+G153),2) -> 0 | W153: =R153+T153+V153 -> 0 | AI153: =IF($I153=AI$6,$E153,0) -> 0 | AJ153: 0 | AK153: =IF($H153>0,AI153,0) -> 0 | AL153: =IF(AK153>0,1,0) -> 0 | AM153: =IF($H153>0,AJ153,0) -> 0 | AN153: =IF(AM153>0,1,0) -> 0 | AO153: =IF($I153=AO$6,$E153,0) -> 0 | AP153: 0 | AQ153: =IF($H153>0,AO153,0) -> 0 | AR153: =IF(AQ153>0,1,0) -> 0 | AS153: =IF($H153>0,AP153,0) -> 0 | AT153: =IF(AS153>0,1,0) -> 0 | AU153: =IF($I153=AU$6,$E153,0) -> 0 | AV153: 0 | AW153: =IF($H153>0,AU153,0) -> 0 | AX153: =IF(AW153>0,1,0) -> 0 | AY153: =IF($H153>0,AV153,0) -> 0 | AZ153: =IF(AY153>0,1,0) -> 0 | BA153: =IF($I153=BA$6,$E153,0) -> 0 | BB153: 0 | BC153: =IF($H153>0,BA153,0) -> 0 | BD153: =IF(BC153>0,1,0) -> 0 | BE153: =IF($H153>0,BB153,0) -> 0 | BF153: =IF(BE153>0,1,0) -> 0 | BL153: =E153-SUM(AI153,AO153,AU153,BA153) -> 0
A154: =IF(E154+G154>0,A152,"") ->  | B154: =IF(E154+G154>0,B152,"") ->  | C154: =C153 -> 6 | D154: 03-4-23.381(333) | E154: 0 | F154: 1.5 | G154: 0 | H154: 0 | I154: =SUMIF(Y$14:BA$14,C154,Y$7:BA$7) -> 0 | J154: 0 | K154: 0 | L154: 0 | M154: 0 | O154: 0 | Q154: 479.72 | R154: 0 | W154: 0 | AI154: =IF($I154=AI$7,$E154,0) -> 0 | AJ154: =IF($K154=ROUND(AI$7*$F154,2),$G154,0) -> 0 | AK154: 0 | AL154: 0 | AM154: 0 | AN154: 0 | AO154: =IF($I154=AO$7,$E154,0) -> 0 | AP154: =IF($K154=ROUND(AO$7*$F154,2),$G154,0) -> 0 | AQ154: 0 | AR154: 0 | AS154: 0 | AT154: 0 | AU154: =IF($I154=AU$7,$E154,0) -> 0 | AV154: =IF($K154=ROUND(AU$7*$F154,2),$G154,0) -> 0 | AW154: 0 | AX154: 0 | AY154: 0 | AZ154: 0 | BA154: =IF($I154=BA$7,$E154,0) -> 0 | BB154: =IF($K154=ROUND(BA$7*$F154,2),$G154,0) -> 0 | BC154: 0 | BD154: 0 | BE154: 0 | BF154: 0 | BL154: 0
A155: =IF(E155+G155>0,A152,"") ->  | B155: =IF(E155+G155>0,B152,"") ->  | C155: =C153 -> 6 | D155: 03-4-23.381(333) | E155: 0 | F155: 1.1 | G155: 0 | H155: 0 | I155: =SUMIF(Y$14:BA$14,C155,Y$7:BA$7) -> 0 | J155: 0 | K155: 0 | L155: 0 | M155: 0 | O155: 0 | Q155: 479.72 | R155: 0 | W155: 0 | AI155: =IF($I155=AI$7,$E155,0) -> 0 | AJ155: =IF($K155=ROUND(AI$7*$F155,2),$G155,0) -> 0 | AK155: 0 | AL155: 0 | AM155: 0 | AN155: 0 | AO155: =IF($I155=AO$7,$E155,0) -> 0 | AP155: =IF($K155=ROUND(AO$7*$F155,2),$G155,0) -> 0 | AQ155: 0 | AR155: 0 | AS155: 0 | AT155: 0 | AU155: =IF($I155=AU$7,$E155,0) -> 0 | AV155: =IF($K155=ROUND(AU$7*$F155,2),$G155,0) -> 0 | AW155: 0 | AX155: 0 | AY155: 0 | AZ155: 0 | BA155: =IF($I155=BA$7,$E155,0) -> 0 | BB155: =IF($K155=ROUND(BA$7*$F155,2),$G155,0) -> 0 | BC155: 0 | BD155: 0 | BE155: 0 | BF155: 0 | BL155: 0
A156: ИП Тюкин Николай Федорович | B156: Вельск, ул.Набережная-58 | C156: =C157 -> 7 | D156: 03-4-23.382 | E156: 0 | F156: 1.5 | G156: 0 | H156: 0 | I156: =SUMIF(Y$14:BA$14,C156,Y$6:BA$6) -> 2580.47 | J156: =IF(H156=0,ROUND(E156*I156,2),IF(H156>0,ROUND(H156*E156,2),0)) -> 0 | K156: =ROUND(F156*I156,2) -> 3870.71 | L156: =IF(H156=0,ROUND(ROUND(F156*I156,2)*G156,2),IF(H156>0,ROUND(G156*H156,2),0)) -> 0 | M156: =IF(H156=0,L156-ROUND(G156*I156,2),0) -> 0 | O156: =J156+L156+N156 -> 0 | Q156: 479.72 | R156: =ROUND(Q156*(E156+G156),2) -> 0 | W156: =R156+T156+V156 -> 0 | AI156: =IF($I156=AI$6,$E156,0) -> 0 | AJ156: =IF($K156=ROUND(AI$6*$F156,2),$G156,0) -> 0 | AK156: =IF($H156>0,AI156,0) -> 0 | AL156: =IF(AK156>0,1,0) -> 0 | AM156: =IF($H156>0,AJ156,0) -> 0 | AN156: =IF(AM156>0,1,0) -> 0 | AO156: =IF($I156=AO$6,$E156,0) -> 0 | AP156: =IF($K156=ROUND(AO$6*$F156,2),$G156,0) -> 0 | AQ156: =IF($H156>0,AO156,0) -> 0 | AR156: =IF(AQ156>0,1,0) -> 0 | AS156: =IF($H156>0,AP156,0) -> 0 | AT156: =IF(AS156>0,1,0) -> 0 | AU156: =IF($I156=AU$6,$E156,0) -> 0 | AV156: =IF($K156=ROUND(AU$6*$F156,2),$G156,0) -> 0 | AW156: =IF($H156>0,AU156,0) -> 0 | AX156: =IF(AW156>0,1,0) -> 0 | AY156: =IF($H156>0,AV156,0) -> 0 | AZ156: =IF(AY156>0,1,0) -> 0 | BA156: =IF($I156=BA$6,$E156,0) -> 0 | BB156: =IF($K156=ROUND(BA$6*$F156,2),$G156,0) -> 0 | BC156: =IF($H156>0,BA156,0) -> 0 | BD156: =IF(BC156>0,1,0) -> 0 | BE156: =IF($H156>0,BB156,0) -> 0 | BF156: =IF(BE156>0,1,0) -> 0 | BI156: 0 | BL156: =E156-SUM(AI156,AO156,AU156,BA156) -> 0
A157: =IF(E157+G157>0,A156,"") ->  | B157: =IF(E157+G157>0,B156,"") ->  | C157: 7 | D157: 03-4-23.382 | E157: 0 | F157: 1.1 | G157: 0 | H157: 0 | I157: =SUMIF(Y$14:BA$14,C157,Y$6:BA$6) -> 2580.47 | J157: =IF(H157=0,ROUND(E157*I157,2),IF(H157>0,ROUND(H157*E157,2),0)) -> 0 | K157: =ROUND(F157*I157,2) -> 2838.52 | L157: =IF(H157=0,ROUND(ROUND(F157*I157,2)*G157,2),IF(H157>0,ROUND(G157*H157,2),0)) -> 0 | M157: =IF(H157=0,L157-ROUND(G157*I157,2),0) -> 0 | O157: =J157+L157+N157 -> 0 | Q157: 479.72 | R157: =ROUND(Q157*(E157+G157),2) -> 0 | W157: =R157+T157+V157 -> 0 | AI157: =IF($I157=AI$6,$E157,0) -> 0 | AJ157: 0 | AK157: =IF($H157>0,AI157,0) -> 0 | AL157: =IF(AK157>0,1,0) -> 0 | AM157: =IF($H157>0,AJ157,0) -> 0 | AN157: =IF(AM157>0,1,0) -> 0 | AO157: =IF($I157=AO$6,$E157,0) -> 0 | AP157: 0 | AQ157: =IF($H157>0,AO157,0) -> 0 | AR157: =IF(AQ157>0,1,0) -> 0 | AS157: =IF($H157>0,AP157,0) -> 0 | AT157: =IF(AS157>0,1,0) -> 0 | AU157: =IF($I157=AU$6,$E157,0) -> 0 | AV157: 0 | AW157: =IF($H157>0,AU157,0) -> 0 | AX157: =IF(AW157>0,1,0) -> 0 | AY157: =IF($H157>0,AV157,0) -> 0 | AZ157: =IF(AY157>0,1,0) -> 0 | BA157: =IF($I157=BA$6,$E157,0) -> 0 | BB157: 0 | BC157: =IF($H157>0,BA157,0) -> 0 | BD157: =IF(BC157>0,1,0) -> 0 | BE157: =IF($H157>0,BB157,0) -> 0 | BF157: =IF(BE157>0,1,0) -> 0 | BL157: =E157-SUM(AI157,AO157,AU157,BA157) -> 0
A158: =IF(E158+G158>0,A156,"") ->  | B158: =IF(E158+G158>0,B156,"") ->  | C158: =C157 -> 7 | D158: 03-4-23.382 | E158: 0 | F158: 1.5 | G158: 0 | H158: 0 | I158: =SUMIF(Y$14:BA$14,C158,Y$7:BA$7) -> 0 | J158: 0 | K158: 0 | L158: 0 | M158: 0 | O158: 0 | Q158: 479.72 | R158: 0 | W158: 0 | AI158: =IF($I158=AI$7,$E158,0) -> 0 | AJ158: =IF($K158=ROUND(AI$7*$F158,2),$G158,0) -> 0 | AK158: 0 | AL158: 0 | AM158: 0 | AN158: 0 | AO158: =IF($I158=AO$7,$E158,0) -> 0 | AP158: =IF($K158=ROUND(AO$7*$F158,2),$G158,0) -> 0 | AQ158: 0 | AR158: 0 | AS158: 0 | AT158: 0 | AU158: =IF($I158=AU$7,$E158,0) -> 0 | AV158: =IF($K158=ROUND(AU$7*$F158,2),$G158,0) -> 0 | AW158: 0 | AX158: 0 | AY158: 0 | AZ158: 0 | BA158: =IF($I158=BA$7,$E158,0) -> 0 | BB158: =IF($K158=ROUND(BA$7*$F158,2),$G158,0) -> 0 | BC158: 0 | BD158: 0 | BE158: 0 | BF158: 0 | BL158: 0
A159: =IF(E159+G159>0,A156,"") ->  | B159: =IF(E159+G159>0,B156,"") ->  | C159: =C157 -> 7 | D159: 03-4-23.382 | E159: 0 | F159: 1.1 | G159: 0 | H159: 0 | I159: =SUMIF(Y$14:BA$14,C159,Y$7:BA$7) -> 0 | J159: 0 | K159: 0 | L159: 0 | M159: 0 | O159: 0 | Q159: 479.72 | R159: 0 | W159: 0 | AI159: =IF($I159=AI$7,$E159,0) -> 0 | AJ159: =IF($K159=ROUND(AI$7*$F159,2),$G159,0) -> 0 | AK159: 0 | AL159: 0 | AM159: 0 | AN159: 0 | AO159: =IF($I159=AO$7,$E159,0) -> 0 | AP159: =IF($K159=ROUND(AO$7*$F159,2),$G159,0) -> 0 | AQ159: 0 | AR159: 0 | AS159: 0 | AT159: 0 | AU159: =IF($I159=AU$7,$E159,0) -> 0 | AV159: =IF($K159=ROUND(AU$7*$F159,2),$G159,0) -> 0 | AW159: 0 | AX159: 0 | AY159: 0 | AZ159: 0 | BA159: =IF($I159=BA$7,$E159,0) -> 0 | BB159: =IF($K159=ROUND(BA$7*$F159,2),$G159,0) -> 0 | BC159: 0 | BD159: 0 | BE159: 0 | BF159: 0 | BL159: 0
A160: ИП Тюкин Николай Федорович | B160: Вельск, ул.Революционная-3в | C160: =C161 -> 6 | D160: 03-4-23.382(333) | E160: 0 | F160: 1.5 | G160: 0 | H160: 0 | I160: =SUMIF(Y$14:BA$14,C160,Y$6:BA$6) -> 2064.38 | J160: =IF(H160=0,ROUND(E160*I160,2),IF(H160>0,ROUND(H160*E160,2),0)) -> 0 | K160: =ROUND(F160*I160,2) -> 3096.57 | L160: =IF(H160=0,ROUND(ROUND(F160*I160,2)*G160,2),IF(H160>0,ROUND(G160*H160,2),0)) -> 0 | M160: =IF(H160=0,L160-ROUND(G160*I160,2),0) -> 0 | O160: =J160+L160+N160 -> 0 | Q160: 479.72 | R160: =ROUND(Q160*(E160+G160),2) -> 0 | W160: =R160+T160+V160 -> 0 | AI160: =IF($I160=AI$6,$E160,0) -> 0 | AJ160: =IF($K160=ROUND(AI$6*$F160,2),$G160,0) -> 0 | AK160: =IF($H160>0,AI160,0) -> 0 | AL160: =IF(AK160>0,1,0) -> 0 | AM160: =IF($H160>0,AJ160,0) -> 0 | AN160: =IF(AM160>0,1,0) -> 0 | AO160: =IF($I160=AO$6,$E160,0) -> 0 | AP160: =IF($K160=ROUND(AO$6*$F160,2),$G160,0) -> 0 | AQ160: =IF($H160>0,AO160,0) -> 0 | AR160: =IF(AQ160>0,1,0) -> 0 | AS160: =IF($H160>0,AP160,0) -> 0 | AT160: =IF(AS160>0,1,0) -> 0 | AU160: =IF($I160=AU$6,$E160,0) -> 0 | AV160: =IF($K160=ROUND(AU$6*$F160,2),$G160,0) -> 0 | AW160: =IF($H160>0,AU160,0) -> 0 | AX160: =IF(AW160>0,1,0) -> 0 | AY160: =IF($H160>0,AV160,0) -> 0 | AZ160: =IF(AY160>0,1,0) -> 0 | BA160: =IF($I160=BA$6,$E160,0) -> 0 | BB160: =IF($K160=ROUND(BA$6*$F160,2),$G160,0) -> 0 | BC160: =IF($H160>0,BA160,0) -> 0 | BD160: =IF(BC160>0,1,0) -> 0 | BE160: =IF($H160>0,BB160,0) -> 0 | BF160: =IF(BE160>0,1,0) -> 0 | BI160: 0.1 | BL160: =E160-SUM(AI160,AO160,AU160,BA160) -> 0
A161: =IF(E161+G161>0,A160,"") ->  | B161: =IF(E161+G161>0,B160,"") ->  | C161: 6 | D161: 03-4-23.382(333) | E161: 0 | F161: 1.1 | G161: 0 | H161: 0 | I161: =SUMIF(Y$14:BA$14,C161,Y$6:BA$6) -> 2064.38 | J161: =IF(H161=0,ROUND(E161*I161,2),IF(H161>0,ROUND(H161*E161,2),0)) -> 0 | K161: =ROUND(F161*I161,2) -> 2270.82 | L161: =IF(H161=0,ROUND(ROUND(F161*I161,2)*G161,2),IF(H161>0,ROUND(G161*H161,2),0)) -> 0 | M161: =IF(H161=0,L161-ROUND(G161*I161,2),0) -> 0 | O161: =J161+L161+N161 -> 0 | Q161: 479.72 | R161: =ROUND(Q161*(E161+G161),2) -> 0 | W161: =R161+T161+V161 -> 0 | AI161: =IF($I161=AI$6,$E161,0) -> 0 | AJ161: 0 | AK161: =IF($H161>0,AI161,0) -> 0 | AL161: =IF(AK161>0,1,0) -> 0 | AM161: =IF($H161>0,AJ161,0) -> 0 | AN161: =IF(AM161>0,1,0) -> 0 | AO161: =IF($I161=AO$6,$E161,0) -> 0 | AP161: 0 | AQ161: =IF($H161>0,AO161,0) -> 0 | AR161: =IF(AQ161>0,1,0) -> 0 | AS161: =IF($H161>0,AP161,0) -> 0 | AT161: =IF(AS161>0,1,0) -> 0 | AU161: =IF($I161=AU$6,$E161,0) -> 0 | AV161: 0 | AW161: =IF($H161>0,AU161,0) -> 0 | AX161: =IF(AW161>0,1,0) -> 0 | AY161: =IF($H161>0,AV161,0) -> 0 | AZ161: =IF(AY161>0,1,0) -> 0 | BA161: =IF($I161=BA$6,$E161,0) -> 0 | BB161: 0 | BC161: =IF($H161>0,BA161,0) -> 0 | BD161: =IF(BC161>0,1,0) -> 0 | BE161: =IF($H161>0,BB161,0) -> 0 | BF161: =IF(BE161>0,1,0) -> 0 | BL161: =E161-SUM(AI161,AO161,AU161,BA161) -> 0
A162: =IF(E162+G162>0,A160,"") ->  | B162: =IF(E162+G162>0,B160,"") ->  | C162: =C161 -> 6 | D162: 03-4-23.382(333) | E162: 0 | F162: 1.5 | G162: 0 | H162: 0 | I162: =SUMIF(Y$14:BA$14,C162,Y$7:BA$7) -> 0 | J162: 0 | K162: 0 | L162: 0 | M162: 0 | O162: 0 | Q162: 479.72 | R162: 0 | W162: 0 | AI162: =IF($I162=AI$7,$E162,0) -> 0 | AJ162: =IF($K162=ROUND(AI$7*$F162,2),$G162,0) -> 0 | AK162: 0 | AL162: 0 | AM162: 0 | AN162: 0 | AO162: =IF($I162=AO$7,$E162,0) -> 0 | AP162: =IF($K162=ROUND(AO$7*$F162,2),$G162,0) -> 0 | AQ162: 0 | AR162: 0 | AS162: 0 | AT162: 0 | AU162: =IF($I162=AU$7,$E162,0) -> 0 | AV162: =IF($K162=ROUND(AU$7*$F162,2),$G162,0) -> 0 | AW162: 0 | AX162: 0 | AY162: 0 | AZ162: 0 | BA162: =IF($I162=BA$7,$E162,0) -> 0 | BB162: =IF($K162=ROUND(BA$7*$F162,2),$G162,0) -> 0 | BC162: 0 | BD162: 0 | BE162: 0 | BF162: 0 | BL162: 0
A163: =IF(E163+G163>0,A160,"") ->  | B163: =IF(E163+G163>0,B160,"") ->  | C163: =C161 -> 6 | D163: 03-4-23.382(333) | E163: 0 | F163: 1.1 | G163: 0 | H163: 0 | I163: =SUMIF(Y$14:BA$14,C163,Y$7:BA$7) -> 0 | J163: 0 | K163: 0 | L163: 0 | M163: 0 | O163: 0 | Q163: 479.72 | R163: 0 | W163: 0 | AI163: =IF($I163=AI$7,$E163,0) -> 0 | AJ163: =IF($K163=ROUND(AI$7*$F163,2),$G163,0) -> 0 | AK163: 0 | AL163: 0 | AM163: 0 | AN163: 0 | AO163: =IF($I163=AO$7,$E163,0) -> 0 | AP163: =IF($K163=ROUND(AO$7*$F163,2),$G163,0) -> 0 | AQ163: 0 | AR163: 0 | AS163: 0 | AT163: 0 | AU163: =IF($I163=AU$7,$E163,0) -> 0 | AV163: =IF($K163=ROUND(AU$7*$F163,2),$G163,0) -> 0 | AW163: 0 | AX163: 0 | AY163: 0 | AZ163: 0 | BA163: =IF($I163=BA$7,$E163,0) -> 0 | BB163: =IF($K163=ROUND(BA$7*$F163,2),$G163,0) -> 0 | BC163: 0 | BD163: 0 | BE163: 0 | BF163: 0 | BL163: 0
A164: ИП Тюкин Николай Федорович | B164: д.Горка Муравьевская, ул.Школьная-4 | C164: =C165 -> 7 | D164: 03-4-23.382(333) | E164: 0 | F164: 1.5 | G164: 0 | H164: 0 | I164: =SUMIF(Y$14:BA$14,C164,Y$6:BA$6) -> 2580.47 | J164: =IF(H164=0,ROUND(E164*I164,2),IF(H164>0,ROUND(H164*E164,2),0)) -> 0 | K164: =ROUND(F164*I164,2) -> 3870.71 | L164: =IF(H164=0,ROUND(ROUND(F164*I164,2)*G164,2),IF(H164>0,ROUND(G164*H164,2),0)) -> 0 | M164: =IF(H164=0,L164-ROUND(G164*I164,2),0) -> 0 | O164: =J164+L164+N164 -> 0 | Q164: 479.72 | R164: =ROUND(Q164*(E164+G164),2) -> 0 | W164: =R164+T164+V164 -> 0 | AI164: =IF($I164=AI$6,$E164,0) -> 0 | AJ164: =IF($K164=ROUND(AI$6*$F164,2),$G164,0) -> 0 | AK164: =IF($H164>0,AI164,0) -> 0 | AL164: =IF(AK164>0,1,0) -> 0 | AM164: =IF($H164>0,AJ164,0) -> 0 | AN164: =IF(AM164>0,1,0) -> 0 | AO164: =IF($I164=AO$6,$E164,0) -> 0 | AP164: =IF($K164=ROUND(AO$6*$F164,2),$G164,0) -> 0 | AQ164: =IF($H164>0,AO164,0) -> 0 | AR164: =IF(AQ164>0,1,0) -> 0 | AS164: =IF($H164>0,AP164,0) -> 0 | AT164: =IF(AS164>0,1,0) -> 0 | AU164: =IF($I164=AU$6,$E164,0) -> 0 | AV164: =IF($K164=ROUND(AU$6*$F164,2),$G164,0) -> 0 | AW164: =IF($H164>0,AU164,0) -> 0 | AX164: =IF(AW164>0,1,0) -> 0 | AY164: =IF($H164>0,AV164,0) -> 0 | AZ164: =IF(AY164>0,1,0) -> 0 | BA164: =IF($I164=BA$6,$E164,0) -> 0 | BB164: =IF($K164=ROUND(BA$6*$F164,2),$G164,0) -> 0 | BC164: =IF($H164>0,BA164,0) -> 0 | BD164: =IF(BC164>0,1,0) -> 0 | BE164: =IF($H164>0,BB164,0) -> 0 | BF164: =IF(BE164>0,1,0) -> 0 | BI164: 0.1 | BL164: =E164-SUM(AI164,AO164,AU164,BA164) -> 0
A165: =IF(E165+G165>0,A164,"") ->  | B165: =IF(E165+G165>0,B164,"") ->  | C165: 7 | D165: 03-4-23.382(333) | E165: 0 | F165: 1.1 | G165: 0 | H165: 0 | I165: =SUMIF(Y$14:BA$14,C165,Y$6:BA$6) -> 2580.47 | J165: =IF(H165=0,ROUND(E165*I165,2),IF(H165>0,ROUND(H165*E165,2),0)) -> 0 | K165: =ROUND(F165*I165,2) -> 2838.52 | L165: =IF(H165=0,ROUND(ROUND(F165*I165,2)*G165,2),IF(H165>0,ROUND(G165*H165,2),0)) -> 0 | M165: =IF(H165=0,L165-ROUND(G165*I165,2),0) -> 0 | O165: =J165+L165+N165 -> 0 | Q165: 479.72 | R165: =ROUND(Q165*(E165+G165),2) -> 0 | W165: =R165+T165+V165 -> 0 | AI165: =IF($I165=AI$6,$E165,0) -> 0 | AJ165: 0 | AK165: =IF($H165>0,AI165,0) -> 0 | AL165: =IF(AK165>0,1,0) -> 0 | AM165: =IF($H165>0,AJ165,0) -> 0 | AN165: =IF(AM165>0,1,0) -> 0 | AO165: =IF($I165=AO$6,$E165,0) -> 0 | AP165: 0 | AQ165: =IF($H165>0,AO165,0) -> 0 | AR165: =IF(AQ165>0,1,0) -> 0 | AS165: =IF($H165>0,AP165,0) -> 0 | AT165: =IF(AS165>0,1,0) -> 0 | AU165: =IF($I165=AU$6,$E165,0) -> 0 | AV165: 0 | AW165: =IF($H165>0,AU165,0) -> 0 | AX165: =IF(AW165>0,1,0) -> 0 | AY165: =IF($H165>0,AV165,0) -> 0 | AZ165: =IF(AY165>0,1,0) -> 0 | BA165: =IF($I165=BA$6,$E165,0) -> 0 | BB165: 0 | BC165: =IF($H165>0,BA165,0) -> 0 | BD165: =IF(BC165>0,1,0) -> 0 | BE165: =IF($H165>0,BB165,0) -> 0 | BF165: =IF(BE165>0,1,0) -> 0 | BL165: =E165-SUM(AI165,AO165,AU165,BA165) -> 0
A166: =IF(E166+G166>0,A164,"") ->  | B166: =IF(E166+G166>0,B164,"") ->  | C166: =C165 -> 7 | D166: 03-4-23.382(333) | E166: 0 | F166: 1.5 | G166: 0 | H166: 0 | I166: =SUMIF(Y$14:BA$14,C166,Y$7:BA$7) -> 0 | J166: 0 | K166: 0 | L166: 0 | M166: 0 | O166: 0 | Q166: 479.72 | R166: 0 | W166: 0 | AI166: =IF($I166=AI$7,$E166,0) -> 0 | AJ166: =IF($K166=ROUND(AI$7*$F166,2),$G166,0) -> 0 | AK166: 0 | AL166: 0 | AM166: 0 | AN166: 0 | AO166: =IF($I166=AO$7,$E166,0) -> 0 | AP166: =IF($K166=ROUND(AO$7*$F166,2),$G166,0) -> 0 | AQ166: 0 | AR166: 0 | AS166: 0 | AT166: 0 | AU166: =IF($I166=AU$7,$E166,0) -> 0 | AV166: =IF($K166=ROUND(AU$7*$F166,2),$G166,0) -> 0 | AW166: 0 | AX166: 0 | AY166: 0 | AZ166: 0 | BA166: =IF($I166=BA$7,$E166,0) -> 0 | BB166: =IF($K166=ROUND(BA$7*$F166,2),$G166,0) -> 0 | BC166: 0 | BD166: 0 | BE166: 0 | BF166: 0 | BL166: 0
A167: =IF(E167+G167>0,A164,"") ->  | B167: =IF(E167+G167>0,B164,"") ->  | C167: =C165 -> 7 | D167: 03-4-23.382(333) | E167: 0 | F167: 1.1 | G167: 0 | H167: 0 | I167: =SUMIF(Y$14:BA$14,C167,Y$7:BA$7) -> 0 | J167: 0 | K167: 0 | L167: 0 | M167: 0 | O167: 0 | Q167: 479.72 | R167: 0 | W167: 0 | AI167: =IF($I167=AI$7,$E167,0) -> 0 | AJ167: =IF($K167=ROUND(AI$7*$F167,2),$G167,0) -> 0 | AK167: 0 | AL167: 0 | AM167: 0 | AN167: 0 | AO167: =IF($I167=AO$7,$E167,0) -> 0 | AP167: =IF($K167=ROUND(AO$7*$F167,2),$G167,0) -> 0 | AQ167: 0 | AR167: 0 | AS167: 0 | AT167: 0 | AU167: =IF($I167=AU$7,$E167,0) -> 0 | AV167: =IF($K167=ROUND(AU$7*$F167,2),$G167,0) -> 0 | AW167: 0 | AX167: 0 | AY167: 0 | AZ167: 0 | BA167: =IF($I167=BA$7,$E167,0) -> 0 | BB167: =IF($K167=ROUND(BA$7*$F167,2),$G167,0) -> 0 | BC167: 0 | BD167: 0 | BE167: 0 | BF167: 0 | BL167: 0
A168: Гр. Козлов Олег Станиславович | C168: =C169 -> 7 | D168: 03-4-23.394(333) | E168: 0 | F168: 1.5 | G168: 0 | H168: 0 | I168: =SUMIF(Y$14:BA$14,C168,Y$6:BA$6) -> 2580.47 | J168: =IF(H168=0,ROUND(E168*I168,2),IF(H168>0,ROUND(H168*E168,2),0)) -> 0 | K168: =ROUND(F168*I168,2) -> 3870.71 | L168: =IF(H168=0,ROUND(ROUND(F168*I168,2)*G168,2),IF(H168>0,ROUND(G168*H168,2),0)) -> 0 | M168: =IF(H168=0,L168-ROUND(G168*I168,2),0) -> 0 | O168: =J168+L168+N168 -> 0 | Q168: 479.72 | R168: =ROUND(Q168*(E168+G168),2) -> 0 | W168: =R168+T168+V168 -> 0 | AI168: =IF($I168=AI$6,$E168,0) -> 0 | AJ168: =IF($K168=ROUND(AI$6*$F168,2),$G168,0) -> 0 | AK168: =IF($H168>0,AI168,0) -> 0 | AL168: =IF(AK168>0,1,0) -> 0 | AM168: =IF($H168>0,AJ168,0) -> 0 | AN168: =IF(AM168>0,1,0) -> 0 | AO168: =IF($I168=AO$6,$E168,0) -> 0 | AP168: =IF($K168=ROUND(AO$6*$F168,2),$G168,0) -> 0 | AQ168: =IF($H168>0,AO168,0) -> 0 | AR168: =IF(AQ168>0,1,0) -> 0 | AS168: =IF($H168>0,AP168,0) -> 0 | AT168: =IF(AS168>0,1,0) -> 0 | AU168: =IF($I168=AU$6,$E168,0) -> 0 | AV168: =IF($K168=ROUND(AU$6*$F168,2),$G168,0) -> 0 | AW168: =IF($H168>0,AU168,0) -> 0 | AX168: =IF(AW168>0,1,0) -> 0 | AY168: =IF($H168>0,AV168,0) -> 0 | AZ168: =IF(AY168>0,1,0) -> 0 | BA168: =IF($I168=BA$6,$E168,0) -> 0 | BB168: =IF($K168=ROUND(BA$6*$F168,2),$G168,0) -> 0 | BC168: =IF($H168>0,BA168,0) -> 0 | BD168: =IF(BC168>0,1,0) -> 0 | BE168: =IF($H168>0,BB168,0) -> 0 | BF168: =IF(BE168>0,1,0) -> 0 | BI168: 0 | BL168: =E168-SUM(AI168,AO168,AU168,BA168) -> 0
A169: =IF(E169+G169>0,A168,"") ->  | B169: =IF(E169+G169>0,B168,"") ->  | C169: 7 | D169: 03-4-23.394(333) | E169: 0 | F169: 1.1 | G169: 0 | H169: 0 | I169: =SUMIF(Y$14:BA$14,C169,Y$6:BA$6) -> 2580.47 | J169: =IF(H169=0,ROUND(E169*I169,2),IF(H169>0,ROUND(H169*E169,2),0)) -> 0 | K169: =ROUND(F169*I169,2) -> 2838.52 | L169: =IF(H169=0,ROUND(ROUND(F169*I169,2)*G169,2),IF(H169>0,ROUND(G169*H169,2),0)) -> 0 | M169: =IF(H169=0,L169-ROUND(G169*I169,2),0) -> 0 | O169: =J169+L169+N169 -> 0 | Q169: 479.72 | R169: =ROUND(Q169*(E169+G169),2) -> 0 | W169: =R169+T169+V169 -> 0 | AI169: =IF($I169=AI$6,$E169,0) -> 0 | AJ169: 0 | AK169: =IF($H169>0,AI169,0) -> 0 | AL169: =IF(AK169>0,1,0) -> 0 | AM169: =IF($H169>0,AJ169,0) -> 0 | AN169: =IF(AM169>0,1,0) -> 0 | AO169: =IF($I169=AO$6,$E169,0) -> 0 | AP169: 0 | AQ169: =IF($H169>0,AO169,0) -> 0 | AR169: =IF(AQ169>0,1,0) -> 0 | AS169: =IF($H169>0,AP169,0) -> 0 | AT169: =IF(AS169>0,1,0) -> 0 | AU169: =IF($I169=AU$6,$E169,0) -> 0 | AV169: 0 | AW169: =IF($H169>0,AU169,0) -> 0 | AX169: =IF(AW169>0,1,0) -> 0 | AY169: =IF($H169>0,AV169,0) -> 0 | AZ169: =IF(AY169>0,1,0) -> 0 | BA169: =IF($I169=BA$6,$E169,0) -> 0 | BB169: 0 | BC169: =IF($H169>0,BA169,0) -> 0 | BD169: =IF(BC169>0,1,0) -> 0 | BE169: =IF($H169>0,BB169,0) -> 0 | BF169: =IF(BE169>0,1,0) -> 0 | BL169: =E169-SUM(AI169,AO169,AU169,BA169) -> 0
A170: =IF(E170+G170>0,A168,"") ->  | B170: =IF(E170+G170>0,B168,"") ->  | C170: =C169 -> 7 | D170: 03-4-23.394(333) | E170: 0 | F170: 1.5 | G170: 0 | H170: 0 | I170: =SUMIF(Y$14:BA$14,C170,Y$7:BA$7) -> 0 | J170: 0 | K170: 0 | L170: 0 | M170: 0 | O170: 0 | Q170: 479.72 | R170: 0 | W170: 0 | AI170: =IF($I170=AI$7,$E170,0) -> 0 | AJ170: =IF($K170=ROUND(AI$7*$F170,2),$G170,0) -> 0 | AK170: 0 | AL170: 0 | AM170: 0 | AN170: 0 | AO170: =IF($I170=AO$7,$E170,0) -> 0 | AP170: =IF($K170=ROUND(AO$7*$F170,2),$G170,0) -> 0 | AQ170: 0 | AR170: 0 | AS170: 0 | AT170: 0 | AU170: =IF($I170=AU$7,$E170,0) -> 0 | AV170: =IF($K170=ROUND(AU$7*$F170,2),$G170,0) -> 0 | AW170: 0 | AX170: 0 | AY170: 0 | AZ170: 0 | BA170: =IF($I170=BA$7,$E170,0) -> 0 | BB170: =IF($K170=ROUND(BA$7*$F170,2),$G170,0) -> 0 | BC170: 0 | BD170: 0 | BE170: 0 | BF170: 0 | BL170: 0
A171: =IF(E171+G171>0,A168,"") ->  | B171: =IF(E171+G171>0,B168,"") ->  | C171: =C169 -> 7 | D171: 03-4-23.394(333) | E171: 0 | F171: 1.1 | G171: 0 | H171: 0 | I171: =SUMIF(Y$14:BA$14,C171,Y$7:BA$7) -> 0 | J171: 0 | K171: 0 | L171: 0 | M171: 0 | O171: 0 | Q171: 479.72 | R171: 0 | W171: 0 | AI171: =IF($I171=AI$7,$E171,0) -> 0 | AJ171: =IF($K171=ROUND(AI$7*$F171,2),$G171,0) -> 0 | AK171: 0 | AL171: 0 | AM171: 0 | AN171: 0 | AO171: =IF($I171=AO$7,$E171,0) -> 0 | AP171: =IF($K171=ROUND(AO$7*$F171,2),$G171,0) -> 0 | AQ171: 0 | AR171: 0 | AS171: 0 | AT171: 0 | AU171: =IF($I171=AU$7,$E171,0) -> 0 | AV171: =IF($K171=ROUND(AU$7*$F171,2),$G171,0) -> 0 | AW171: 0 | AX171: 0 | AY171: 0 | AZ171: 0 | BA171: =IF($I171=BA$7,$E171,0) -> 0 | BB171: =IF($K171=ROUND(BA$7*$F171,2),$G171,0) -> 0 | BC171: 0 | BD171: 0 | BE171: 0 | BF171: 0 | BL171: 0
A172: Гр. Вострецов Олег Анатольевич | C172: =C173 -> 7 | D172: 03-4-23.408 | E172: 0 | F172: 1.5 | G172: 0 | H172: 0 | I172: =SUMIF(Y$14:BA$14,C172,Y$6:BA$6) -> 2580.47 | J172: =IF(H172=0,ROUND(E172*I172,2),IF(H172>0,ROUND(H172*E172,2),0)) -> 0 | K172: =ROUND(F172*I172,2) -> 3870.71 | L172: =IF(H172=0,ROUND(ROUND(F172*I172,2)*G172,2),IF(H172>0,ROUND(G172*H172,2),0)) -> 0 | M172: =IF(H172=0,L172-ROUND(G172*I172,2),0) -> 0 | O172: =J172+L172+N172 -> 0 | Q172: 479.72 | R172: =ROUND(Q172*(E172+G172),2) -> 0 | W172: =R172+T172+V172 -> 0 | AI172: =IF($I172=AI$6,$E172,0) -> 0 | AJ172: =IF($K172=ROUND(AI$6*$F172,2),$G172,0) -> 0 | AK172: =IF($H172>0,AI172,0) -> 0 | AL172: =IF(AK172>0,1,0) -> 0 | AM172: =IF($H172>0,AJ172,0) -> 0 | AN172: =IF(AM172>0,1,0) -> 0 | AO172: =IF($I172=AO$6,$E172,0) -> 0 | AP172: =IF($K172=ROUND(AO$6*$F172,2),$G172,0) -> 0 | AQ172: =IF($H172>0,AO172,0) -> 0 | AR172: =IF(AQ172>0,1,0) -> 0 | AS172: =IF($H172>0,AP172,0) -> 0 | AT172: =IF(AS172>0,1,0) -> 0 | AU172: =IF($I172=AU$6,$E172,0) -> 0 | AV172: =IF($K172=ROUND(AU$6*$F172,2),$G172,0) -> 0 | AW172: =IF($H172>0,AU172,0) -> 0 | AX172: =IF(AW172>0,1,0) -> 0 | AY172: =IF($H172>0,AV172,0) -> 0 | AZ172: =IF(AY172>0,1,0) -> 0 | BA172: =IF($I172=BA$6,$E172,0) -> 0 | BB172: =IF($K172=ROUND(BA$6*$F172,2),$G172,0) -> 0 | BC172: =IF($H172>0,BA172,0) -> 0 | BD172: =IF(BC172>0,1,0) -> 0 | BE172: =IF($H172>0,BB172,0) -> 0 | BF172: =IF(BE172>0,1,0) -> 0 | BI172: 0 | BL172: =E172-SUM(AI172,AO172,AU172,BA172) -> 0
A173: =IF(E173+G173>0,A172,"") ->  | B173: =IF(E173+G173>0,B172,"") ->  | C173: 7 | D173: 03-4-23.408 | E173: 0 | F173: 1.1 | G173: 0 | H173: 0 | I173: =SUMIF(Y$14:BA$14,C173,Y$6:BA$6) -> 2580.47 | J173: =IF(H173=0,ROUND(E173*I173,2),IF(H173>0,ROUND(H173*E173,2),0)) -> 0 | K173: =ROUND(F173*I173,2) -> 2838.52 | L173: =IF(H173=0,ROUND(ROUND(F173*I173,2)*G173,2),IF(H173>0,ROUND(G173*H173,2),0)) -> 0 | M173: =IF(H173=0,L173-ROUND(G173*I173,2),0) -> 0 | O173: =J173+L173+N173 -> 0 | Q173: 479.72 | R173: =ROUND(Q173*(E173+G173),2) -> 0 | W173: =R173+T173+V173 -> 0 | AI173: =IF($I173=AI$6,$E173,0) -> 0 | AJ173: 0 | AK173: =IF($H173>0,AI173,0) -> 0 | AL173: =IF(AK173>0,1,0) -> 0 | AM173: =IF($H173>0,AJ173,0) -> 0 | AN173: =IF(AM173>0,1,0) -> 0 | AO173: =IF($I173=AO$6,$E173,0) -> 0 | AP173: 0 | AQ173: =IF($H173>0,AO173,0) -> 0 | AR173: =IF(AQ173>0,1,0) -> 0 | AS173: =IF($H173>0,AP173,0) -> 0 | AT173: =IF(AS173>0,1,0) -> 0 | AU173: =IF($I173=AU$6,$E173,0) -> 0 | AV173: 0 | AW173: =IF($H173>0,AU173,0) -> 0 | AX173: =IF(AW173>0,1,0) -> 0 | AY173: =IF($H173>0,AV173,0) -> 0 | AZ173: =IF(AY173>0,1,0) -> 0 | BA173: =IF($I173=BA$6,$E173,0) -> 0 | BB173: 0 | BC173: =IF($H173>0,BA173,0) -> 0 | BD173: =IF(BC173>0,1,0) -> 0 | BE173: =IF($H173>0,BB173,0) -> 0 | BF173: =IF(BE173>0,1,0) -> 0 | BL173: =E173-SUM(AI173,AO173,AU173,BA173) -> 0
A174: =IF(E174+G174>0,A172,"") ->  | B174: =IF(E174+G174>0,B172,"") ->  | C174: =C173 -> 7 | D174: 03-4-23.408 | E174: 0 | F174: 1.5 | G174: 0 | H174: 0 | I174: =SUMIF(Y$14:BA$14,C174,Y$7:BA$7) -> 0 | J174: 0 | K174: 0 | L174: 0 | M174: 0 | O174: 0 | Q174: 479.72 | R174: 0 | W174: 0 | AI174: =IF($I174=AI$7,$E174,0) -> 0 | AJ174: =IF($K174=ROUND(AI$7*$F174,2),$G174,0) -> 0 | AK174: 0 | AL174: 0 | AM174: 0 | AN174: 0 | AO174: =IF($I174=AO$7,$E174,0) -> 0 | AP174: =IF($K174=ROUND(AO$7*$F174,2),$G174,0) -> 0 | AQ174: 0 | AR174: 0 | AS174: 0 | AT174: 0 | AU174: =IF($I174=AU$7,$E174,0) -> 0 | AV174: =IF($K174=ROUND(AU$7*$F174,2),$G174,0) -> 0 | AW174: 0 | AX174: 0 | AY174: 0 | AZ174: 0 | BA174: =IF($I174=BA$7,$E174,0) -> 0 | BB174: =IF($K174=ROUND(BA$7*$F174,2),$G174,0) -> 0 | BC174: 0 | BD174: 0 | BE174: 0 | BF174: 0 | BL174: 0
A175: =IF(E175+G175>0,A172,"") ->  | B175: =IF(E175+G175>0,B172,"") ->  | C175: =C173 -> 7 | D175: 03-4-23.408 | E175: 0 | F175: 1.1 | G175: 0 | H175: 0 | I175: =SUMIF(Y$14:BA$14,C175,Y$7:BA$7) -> 0 | J175: 0 | K175: 0 | L175: 0 | M175: 0 | O175: 0 | Q175: 479.72 | R175: 0 | W175: 0 | AI175: =IF($I175=AI$7,$E175,0) -> 0 | AJ175: =IF($K175=ROUND(AI$7*$F175,2),$G175,0) -> 0 | AK175: 0 | AL175: 0 | AM175: 0 | AN175: 0 | AO175: =IF($I175=AO$7,$E175,0) -> 0 | AP175: =IF($K175=ROUND(AO$7*$F175,2),$G175,0) -> 0 | AQ175: 0 | AR175: 0 | AS175: 0 | AT175: 0 | AU175: =IF($I175=AU$7,$E175,0) -> 0 | AV175: =IF($K175=ROUND(AU$7*$F175,2),$G175,0) -> 0 | AW175: 0 | AX175: 0 | AY175: 0 | AZ175: 0 | BA175: =IF($I175=BA$7,$E175,0) -> 0 | BB175: =IF($K175=ROUND(BA$7*$F175,2),$G175,0) -> 0 | BC175: 0 | BD175: 0 | BE175: 0 | BF175: 0 | BL175: 0
A176: Гр. Хобатенков Виктор Николаевич | C176: =C177 -> 7 | D176: 03-4-23.442(333) | E176: 0 | F176: 1.5 | G176: 0 | H176: 0 | I176: =SUMIF(Y$14:BA$14,C176,Y$6:BA$6) -> 2580.47 | J176: =IF(H176=0,ROUND(E176*I176,2),IF(H176>0,ROUND(H176*E176,2),0)) -> 0 | K176: =ROUND(F176*I176,2) -> 3870.71 | L176: =IF(H176=0,ROUND(ROUND(F176*I176,2)*G176,2),IF(H176>0,ROUND(G176*H176,2),0)) -> 0 | M176: =IF(H176=0,L176-ROUND(G176*I176,2),0) -> 0 | O176: =J176+L176+N176 -> 0 | Q176: 479.72 | R176: =ROUND(Q176*(E176+G176),2) -> 0 | W176: =R176+T176+V176 -> 0 | AI176: =IF($I176=AI$6,$E176,0) -> 0 | AJ176: =IF($K176=ROUND(AI$6*$F176,2),$G176,0) -> 0 | AK176: =IF($H176>0,AI176,0) -> 0 | AL176: =IF(AK176>0,1,0) -> 0 | AM176: =IF($H176>0,AJ176,0) -> 0 | AN176: =IF(AM176>0,1,0) -> 0 | AO176: =IF($I176=AO$6,$E176,0) -> 0 | AP176: =IF($K176=ROUND(AO$6*$F176,2),$G176,0) -> 0 | AQ176: =IF($H176>0,AO176,0) -> 0 | AR176: =IF(AQ176>0,1,0) -> 0 | AS176: =IF($H176>0,AP176,0) -> 0 | AT176: =IF(AS176>0,1,0) -> 0 | AU176: =IF($I176=AU$6,$E176,0) -> 0 | AV176: =IF($K176=ROUND(AU$6*$F176,2),$G176,0) -> 0 | AW176: =IF($H176>0,AU176,0) -> 0 | AX176: =IF(AW176>0,1,0) -> 0 | AY176: =IF($H176>0,AV176,0) -> 0 | AZ176: =IF(AY176>0,1,0) -> 0 | BA176: =IF($I176=BA$6,$E176,0) -> 0 | BB176: =IF($K176=ROUND(BA$6*$F176,2),$G176,0) -> 0 | BC176: =IF($H176>0,BA176,0) -> 0 | BD176: =IF(BC176>0,1,0) -> 0 | BE176: =IF($H176>0,BB176,0) -> 0 | BF176: =IF(BE176>0,1,0) -> 0 | BI176: 0.6 | BL176: =E176-SUM(AI176,AO176,AU176,BA176) -> 0
A177: =IF(E177+G177>0,A176,"") -> Гр. Хобатенков Виктор Николаевич | B177: =IF(E177+G177>0,B176,"") ->  | C177: 7 | D177: 03-4-23.442(333) | E177: 0.033 | F177: 1.1 | G177: 0 | H177: 0.033 | I177: =SUMIF(Y$14:BA$14,C177,Y$6:BA$6) -> 2580.47 | J177: =IF(H177=0,ROUND(E177*I177,2),IF(H177>0,ROUND(H177*E177,2),0)) -> 0 | K177: =ROUND(F177*I177,2) -> 2838.52 | L177: =IF(H177=0,ROUND(ROUND(F177*I177,2)*G177,2),IF(H177>0,ROUND(G177*H177,2),0)) -> 0 | M177: =IF(H177=0,L177-ROUND(G177*I177,2),0) -> 0 | O177: =J177+L177+N177 -> 0 | Q177: 479.72 | R177: =ROUND(Q177*(E177+G177),2) -> 15.83 | W177: =R177+T177+V177 -> 15.83 | AI177: =IF($I177=AI$6,$E177,0) -> 0 | AJ177: 0 | AK177: =IF($H177>0,AI177,0) -> 0 | AL177: =IF(AK177>0,1,0) -> 0 | AM177: =IF($H177>0,AJ177,0) -> 0 | AN177: =IF(AM177>0,1,0) -> 0 | AO177: =IF($I177=AO$6,$E177,0) -> 0 | AP177: 0 | AQ177: =IF($H177>0,AO177,0) -> 0 | AR177: =IF(AQ177>0,1,0) -> 0 | AS177: =IF($H177>0,AP177,0) -> 0 | AT177: =IF(AS177>0,1,0) -> 0 | AU177: =IF($I177=AU$6,$E177,0) -> 0 | AV177: 0 | AW177: =IF($H177>0,AU177,0) -> 0 | AX177: =IF(AW177>0,1,0) -> 0 | AY177: =IF($H177>0,AV177,0) -> 0 | AZ177: =IF(AY177>0,1,0) -> 0 | BA177: =IF($I177=BA$6,$E177,0) -> 0.033 | BB177: 0 | BC177: =IF($H177>0,BA177,0) -> 0.033 | BD177: =IF(BC177>0,1,0) -> 1 | BE177: =IF($H177>0,BB177,0) -> 0 | BF177: =IF(BE177>0,1,0) -> 0 | BL177: =E177-SUM(AI177,AO177,AU177,BA177) -> 0
A178: =IF(E178+G178>0,A176,"") ->  | B178: =IF(E178+G178>0,B176,"") ->  | C178: =C177 -> 7 | D178: 03-4-23.442(333) | E178: 0 | F178: 1.5 | G178: 0 | H178: 0 | I178: =SUMIF(Y$14:BA$14,C178,Y$7:BA$7) -> 0 | J178: 0 | K178: 0 | L178: 0 | M178: 0 | O178: 0 | Q178: 479.72 | R178: 0 | W178: 0 | AI178: =IF($I178=AI$7,$E178,0) -> 0 | AJ178: =IF($K178=ROUND(AI$7*$F178,2),$G178,0) -> 0 | AK178: 0 | AL178: 0 | AM178: 0 | AN178: 0 | AO178: =IF($I178=AO$7,$E178,0) -> 0 | AP178: =IF($K178=ROUND(AO$7*$F178,2),$G178,0) -> 0 | AQ178: 0 | AR178: 0 | AS178: 0 | AT178: 0 | AU178: =IF($I178=AU$7,$E178,0) -> 0 | AV178: =IF($K178=ROUND(AU$7*$F178,2),$G178,0) -> 0 | AW178: 0 | AX178: 0 | AY178: 0 | AZ178: 0 | BA178: =IF($I178=BA$7,$E178,0) -> 0 | BB178: =IF($K178=ROUND(BA$7*$F178,2),$G178,0) -> 0 | BC178: 0 | BD178: 0 | BE178: 0 | BF178: 0 | BL178: 0
A179: =IF(E179+G179>0,A176,"") ->  | B179: =IF(E179+G179>0,B176,"") ->  | C179: =C177 -> 7 | D179: 03-4-23.442(333) | E179: 0 | F179: 1.1 | G179: 0 | H179: 0 | I179: =SUMIF(Y$14:BA$14,C179,Y$7:BA$7) -> 0 | J179: 0 | K179: 0 | L179: 0 | M179: 0 | O179: 0 | Q179: 479.72 | R179: 0 | W179: 0 | AI179: =IF($I179=AI$7,$E179,0) -> 0 | AJ179: =IF($K179=ROUND(AI$7*$F179,2),$G179,0) -> 0 | AK179: 0 | AL179: 0 | AM179: 0 | AN179: 0 | AO179: =IF($I179=AO$7,$E179,0) -> 0 | AP179: =IF($K179=ROUND(AO$7*$F179,2),$G179,0) -> 0 | AQ179: 0 | AR179: 0 | AS179: 0 | AT179: 0 | AU179: =IF($I179=AU$7,$E179,0) -> 0 | AV179: =IF($K179=ROUND(AU$7*$F179,2),$G179,0) -> 0 | AW179: 0 | AX179: 0 | AY179: 0 | AZ179: 0 | BA179: =IF($I179=BA$7,$E179,0) -> 0 | BB179: =IF($K179=ROUND(BA$7*$F179,2),$G179,0) -> 0 | BC179: 0 | BD179: 0 | BE179: 0 | BF179: 0 | BL179: 0
A180: Вельское ГОРПО | B180: Вельск, ул.1 мая-4 | C180: =C181 -> 6 | D180: 03-4-23.461(333) | E180: 0 | F180: 1.5 | G180: 0 | H180: 0 | I180: =SUMIF(Y$14:BA$14,C180,Y$6:BA$6) -> 2064.38 | J180: =IF(H180=0,ROUND(E180*I180,2),IF(H180>0,ROUND(H180*E180,2),0)) -> 0 | K180: =ROUND(F180*I180,2) -> 3096.57 | L180: =IF(H180=0,ROUND(ROUND(F180*I180,2)*G180,2),IF(H180>0,ROUND(G180*H180,2),0)) -> 0 | M180: =IF(H180=0,L180-ROUND(G180*I180,2),0) -> 0 | O180: =J180+L180+N180 -> 0 | Q180: 479.72 | R180: =ROUND(Q180*(E180+G180),2) -> 0 | W180: =R180+T180+V180 -> 0 | AI180: =IF($I180=AI$6,$E180,0) -> 0 | AJ180: =IF($K180=ROUND(AI$6*$F180,2),$G180,0) -> 0 | AK180: =IF($H180>0,AI180,0) -> 0 | AL180: =IF(AK180>0,1,0) -> 0 | AM180: =IF($H180>0,AJ180,0) -> 0 | AN180: =IF(AM180>0,1,0) -> 0 | AO180: =IF($I180=AO$6,$E180,0) -> 0 | AP180: =IF($K180=ROUND(AO$6*$F180,2),$G180,0) -> 0 | AQ180: =IF($H180>0,AO180,0) -> 0 | AR180: =IF(AQ180>0,1,0) -> 0 | AS180: =IF($H180>0,AP180,0) -> 0 | AT180: =IF(AS180>0,1,0) -> 0 | AU180: =IF($I180=AU$6,$E180,0) -> 0 | AV180: =IF($K180=ROUND(AU$6*$F180,2),$G180,0) -> 0 | AW180: =IF($H180>0,AU180,0) -> 0 | AX180: =IF(AW180>0,1,0) -> 0 | AY180: =IF($H180>0,AV180,0) -> 0 | AZ180: =IF(AY180>0,1,0) -> 0 | BA180: =IF($I180=BA$6,$E180,0) -> 0 | BB180: =IF($K180=ROUND(BA$6*$F180,2),$G180,0) -> 0 | BC180: =IF($H180>0,BA180,0) -> 0 | BD180: =IF(BC180>0,1,0) -> 0 | BE180: =IF($H180>0,BB180,0) -> 0 | BF180: =IF(BE180>0,1,0) -> 0 | BI180: 0 | BL180: =E180-SUM(AI180,AO180,AU180,BA180) -> 0
A181: =IF(E181+G181>0,A180,"") ->  | B181: =IF(E181+G181>0,B180,"") ->  | C181: 6 | D181: 03-4-23.461(333) | E181: 0 | F181: 1.1 | G181: 0 | H181: 0 | I181: =SUMIF(Y$14:BA$14,C181,Y$6:BA$6) -> 2064.38 | J181: =IF(H181=0,ROUND(E181*I181,2),IF(H181>0,ROUND(H181*E181,2),0)) -> 0 | K181: =ROUND(F181*I181,2) -> 2270.82 | L181: =IF(H181=0,ROUND(ROUND(F181*I181,2)*G181,2),IF(H181>0,ROUND(G181*H181,2),0)) -> 0 | M181: =IF(H181=0,L181-ROUND(G181*I181,2),0) -> 0 | O181: =J181+L181+N181 -> 0 | Q181: 479.72 | R181: =ROUND(Q181*(E181+G181),2) -> 0 | W181: =R181+T181+V181 -> 0 | AI181: =IF($I181=AI$6,$E181,0) -> 0 | AJ181: 0 | AK181: =IF($H181>0,AI181,0) -> 0 | AL181: =IF(AK181>0,1,0) -> 0 | AM181: =IF($H181>0,AJ181,0) -> 0 | AN181: =IF(AM181>0,1,0) -> 0 | AO181: =IF($I181=AO$6,$E181,0) -> 0 | AP181: 0 | AQ181: =IF($H181>0,AO181,0) -> 0 | AR181: =IF(AQ181>0,1,0) -> 0 | AS181: =IF($H181>0,AP181,0) -> 0 | AT181: =IF(AS181>0,1,0) -> 0 | AU181: =IF($I181=AU$6,$E181,0) -> 0 | AV181: 0 | AW181: =IF($H181>0,AU181,0) -> 0 | AX181: =IF(AW181>0,1,0) -> 0 | AY181: =IF($H181>0,AV181,0) -> 0 | AZ181: =IF(AY181>0,1,0) -> 0 | BA181: =IF($I181=BA$6,$E181,0) -> 0 | BB181: 0 | BC181: =IF($H181>0,BA181,0) -> 0 | BD181: =IF(BC181>0,1,0) -> 0 | BE181: =IF($H181>0,BB181,0) -> 0 | BF181: =IF(BE181>0,1,0) -> 0 | BL181: =E181-SUM(AI181,AO181,AU181,BA181) -> 0
A182: =IF(E182+G182>0,A180,"") ->  | B182: =IF(E182+G182>0,B180,"") ->  | C182: =C181 -> 6 | D182: 03-4-23.461(333) | E182: 0 | F182: 1.5 | G182: 0 | H182: 0 | I182: =SUMIF(Y$14:BA$14,C182,Y$7:BA$7) -> 0 | J182: 0 | K182: 0 | L182: 0 | M182: 0 | O182: 0 | Q182: 479.72 | R182: 0 | W182: 0 | AI182: =IF($I182=AI$7,$E182,0) -> 0 | AJ182: =IF($K182=ROUND(AI$7*$F182,2),$G182,0) -> 0 | AK182: 0 | AL182: 0 | AM182: 0 | AN182: 0 | AO182: =IF($I182=AO$7,$E182,0) -> 0 | AP182: =IF($K182=ROUND(AO$7*$F182,2),$G182,0) -> 0 | AQ182: 0 | AR182: 0 | AS182: 0 | AT182: 0 | AU182: =IF($I182=AU$7,$E182,0) -> 0 | AV182: =IF($K182=ROUND(AU$7*$F182,2),$G182,0) -> 0 | AW182: 0 | AX182: 0 | AY182: 0 | AZ182: 0 | BA182: =IF($I182=BA$7,$E182,0) -> 0 | BB182: =IF($K182=ROUND(BA$7*$F182,2),$G182,0) -> 0 | BC182: 0 | BD182: 0 | BE182: 0 | BF182: 0 | BL182: 0
A183: =IF(E183+G183>0,A180,"") ->  | B183: =IF(E183+G183>0,B180,"") ->  | C183: =C181 -> 6 | D183: 03-4-23.461(333) | E183: 0 | F183: 1.1 | G183: 0 | H183: 0 | I183: =SUMIF(Y$14:BA$14,C183,Y$7:BA$7) -> 0 | J183: 0 | K183: 0 | L183: 0 | M183: 0 | O183: 0 | Q183: 479.72 | R183: 0 | W183: 0 | AI183: =IF($I183=AI$7,$E183,0) -> 0 | AJ183: =IF($K183=ROUND(AI$7*$F183,2),$G183,0) -> 0 | AK183: 0 | AL183: 0 | AM183: 0 | AN183: 0 | AO183: =IF($I183=AO$7,$E183,0) -> 0 | AP183: =IF($K183=ROUND(AO$7*$F183,2),$G183,0) -> 0 | AQ183: 0 | AR183: 0 | AS183: 0 | AT183: 0 | AU183: =IF($I183=AU$7,$E183,0) -> 0 | AV183: =IF($K183=ROUND(AU$7*$F183,2),$G183,0) -> 0 | AW183: 0 | AX183: 0 | AY183: 0 | AZ183: 0 | BA183: =IF($I183=BA$7,$E183,0) -> 0 | BB183: =IF($K183=ROUND(BA$7*$F183,2),$G183,0) -> 0 | BC183: 0 | BD183: 0 | BE183: 0 | BF183: 0 | BL183: 0
A184: Вельское ГОРПО | B184: Вельск, ул.Фефилова-66 | C184: =C185 -> 7 | D184: 03-4-23.461(333) | E184: 0 | F184: 1.5 | G184: 0 | H184: 0 | I184: =SUMIF(Y$14:BA$14,C184,Y$6:BA$6) -> 2580.47 | J184: =IF(H184=0,ROUND(E184*I184,2),IF(H184>0,ROUND(H184*E184,2),0)) -> 0 | K184: =ROUND(F184*I184,2) -> 3870.71 | L184: =IF(H184=0,ROUND(ROUND(F184*I184,2)*G184,2),IF(H184>0,ROUND(G184*H184,2),0)) -> 0 | M184: =IF(H184=0,L184-ROUND(G184*I184,2),0) -> 0 | O184: =J184+L184+N184 -> 0 | Q184: 479.72 | R184: =ROUND(Q184*(E184+G184),2) -> 0 | W184: =R184+T184+V184 -> 0 | AI184: =IF($I184=AI$6,$E184,0) -> 0 | AJ184: =IF($K184=ROUND(AI$6*$F184,2),$G184,0) -> 0 | AK184: =IF($H184>0,AI184,0) -> 0 | AL184: =IF(AK184>0,1,0) -> 0 | AM184: =IF($H184>0,AJ184,0) -> 0 | AN184: =IF(AM184>0,1,0) -> 0 | AO184: =IF($I184=AO$6,$E184,0) -> 0 | AP184: =IF($K184=ROUND(AO$6*$F184,2),$G184,0) -> 0 | AQ184: =IF($H184>0,AO184,0) -> 0 | AR184: =IF(AQ184>0,1,0) -> 0 | AS184: =IF($H184>0,AP184,0) -> 0 | AT184: =IF(AS184>0,1,0) -> 0 | AU184: =IF($I184=AU$6,$E184,0) -> 0 | AV184: =IF($K184=ROUND(AU$6*$F184,2),$G184,0) -> 0 | AW184: =IF($H184>0,AU184,0) -> 0 | AX184: =IF(AW184>0,1,0) -> 0 | AY184: =IF($H184>0,AV184,0) -> 0 | AZ184: =IF(AY184>0,1,0) -> 0 | BA184: =IF($I184=BA$6,$E184,0) -> 0 | BB184: =IF($K184=ROUND(BA$6*$F184,2),$G184,0) -> 0 | BC184: =IF($H184>0,BA184,0) -> 0 | BD184: =IF(BC184>0,1,0) -> 0 | BE184: =IF($H184>0,BB184,0) -> 0 | BF184: =IF(BE184>0,1,0) -> 0 | BI184: 0.1 | BL184: =E184-SUM(AI184,AO184,AU184,BA184) -> 0
A185: =IF(E185+G185>0,A184,"") -> Вельское ГОРПО | B185: =IF(E185+G185>0,B184,"") -> Вельск, ул.Фефилова-66 | C185: 7 | D185: 03-4-23.461(333) | E185: 0.07 | F185: 1.1 | G185: 0 | H185: 0.07 | I185: =SUMIF(Y$14:BA$14,C185,Y$6:BA$6) -> 2580.47 | J185: =IF(H185=0,ROUND(E185*I185,2),IF(H185>0,ROUND(H185*E185,2),0)) -> 0 | K185: =ROUND(F185*I185,2) -> 2838.52 | L185: =IF(H185=0,ROUND(ROUND(F185*I185,2)*G185,2),IF(H185>0,ROUND(G185*H185,2),0)) -> 0 | M185: =IF(H185=0,L185-ROUND(G185*I185,2),0) -> 0 | O185: =J185+L185+N185 -> 0 | Q185: 479.72 | R185: =ROUND(Q185*(E185+G185),2) -> 33.58 | W185: =R185+T185+V185 -> 33.58 | AI185: =IF($I185=AI$6,$E185,0) -> 0 | AJ185: 0 | AK185: =IF($H185>0,AI185,0) -> 0 | AL185: =IF(AK185>0,1,0) -> 0 | AM185: =IF($H185>0,AJ185,0) -> 0 | AN185: =IF(AM185>0,1,0) -> 0 | AO185: =IF($I185=AO$6,$E185,0) -> 0 | AP185: 0 | AQ185: =IF($H185>0,AO185,0) -> 0 | AR185: =IF(AQ185>0,1,0) -> 0 | AS185: =IF($H185>0,AP185,0) -> 0 | AT185: =IF(AS185>0,1,0) -> 0 | AU185: =IF($I185=AU$6,$E185,0) -> 0 | AV185: 0 | AW185: =IF($H185>0,AU185,0) -> 0 | AX185: =IF(AW185>0,1,0) -> 0 | AY185: =IF($H185>0,AV185,0) -> 0 | AZ185: =IF(AY185>0,1,0) -> 0 | BA185: =IF($I185=BA$6,$E185,0) -> 0.07 | BB185: 0 | BC185: =IF($H185>0,BA185,0) -> 0.07 | BD185: =IF(BC185>0,1,0) -> 1 | BE185: =IF($H185>0,BB185,0) -> 0 | BF185: =IF(BE185>0,1,0) -> 0 | BL185: =E185-SUM(AI185,AO185,AU185,BA185) -> 0
A186: =IF(E186+G186>0,A184,"") ->  | B186: =IF(E186+G186>0,B184,"") ->  | C186: =C185 -> 7 | D186: 03-4-23.461(333) | E186: 0 | F186: 1.5 | G186: 0 | H186: 0 | I186: =SUMIF(Y$14:BA$14,C186,Y$7:BA$7) -> 0 | J186: 0 | K186: 0 | L186: 0 | M186: 0 | O186: 0 | Q186: 479.72 | R186: 0 | W186: 0 | AI186: =IF($I186=AI$7,$E186,0) -> 0 | AJ186: =IF($K186=ROUND(AI$7*$F186,2),$G186,0) -> 0 | AK186: 0 | AL186: 0 | AM186: 0 | AN186: 0 | AO186: =IF($I186=AO$7,$E186,0) -> 0 | AP186: =IF($K186=ROUND(AO$7*$F186,2),$G186,0) -> 0 | AQ186: 0 | AR186: 0 | AS186: 0 | AT186: 0 | AU186: =IF($I186=AU$7,$E186,0) -> 0 | AV186: =IF($K186=ROUND(AU$7*$F186,2),$G186,0) -> 0 | AW186: 0 | AX186: 0 | AY186: 0 | AZ186: 0 | BA186: =IF($I186=BA$7,$E186,0) -> 0 | BB186: =IF($K186=ROUND(BA$7*$F186,2),$G186,0) -> 0 | BC186: 0 | BD186: 0 | BE186: 0 | BF186: 0 | BL186: 0
A187: =IF(E187+G187>0,A184,"") ->  | B187: =IF(E187+G187>0,B184,"") ->  | C187: =C185 -> 7 | D187: 03-4-23.461(333) | E187: 0 | F187: 1.1 | G187: 0 | H187: 0 | I187: =SUMIF(Y$14:BA$14,C187,Y$7:BA$7) -> 0 | J187: 0 | K187: 0 | L187: 0 | M187: 0 | O187: 0 | Q187: 479.72 | R187: 0 | W187: 0 | AI187: =IF($I187=AI$7,$E187,0) -> 0 | AJ187: =IF($K187=ROUND(AI$7*$F187,2),$G187,0) -> 0 | AK187: 0 | AL187: 0 | AM187: 0 | AN187: 0 | AO187: =IF($I187=AO$7,$E187,0) -> 0 | AP187: =IF($K187=ROUND(AO$7*$F187,2),$G187,0) -> 0 | AQ187: 0 | AR187: 0 | AS187: 0 | AT187: 0 | AU187: =IF($I187=AU$7,$E187,0) -> 0 | AV187: =IF($K187=ROUND(AU$7*$F187,2),$G187,0) -> 0 | AW187: 0 | AX187: 0 | AY187: 0 | AZ187: 0 | BA187: =IF($I187=BA$7,$E187,0) -> 0 | BB187: =IF($K187=ROUND(BA$7*$F187,2),$G187,0) -> 0 | BC187: 0 | BD187: 0 | BE187: 0 | BF187: 0 | BL187: 0
A188: Вельское ГОРПО | B188: Вельск, ул.Ленина-42 | C188: =C189 -> 6 | D188: 03-4-23.461(333) | E188: 0 | F188: 1.5 | G188: 0 | H188: 0 | I188: =SUMIF(Y$14:BA$14,C188,Y$6:BA$6) -> 2064.38 | J188: =IF(H188=0,ROUND(E188*I188,2),IF(H188>0,ROUND(H188*E188,2),0)) -> 0 | K188: =ROUND(F188*I188,2) -> 3096.57 | L188: =IF(H188=0,ROUND(ROUND(F188*I188,2)*G188,2),IF(H188>0,ROUND(G188*H188,2),0)) -> 0 | M188: =IF(H188=0,L188-ROUND(G188*I188,2),0) -> 0 | O188: =J188+L188+N188 -> 0 | Q188: 479.72 | R188: =ROUND(Q188*(E188+G188),2) -> 0 | W188: =R188+T188+V188 -> 0 | AI188: =IF($I188=AI$6,$E188,0) -> 0 | AJ188: =IF($K188=ROUND(AI$6*$F188,2),$G188,0) -> 0 | AK188: =IF($H188>0,AI188,0) -> 0 | AL188: =IF(AK188>0,1,0) -> 0 | AM188: =IF($H188>0,AJ188,0) -> 0 | AN188: =IF(AM188>0,1,0) -> 0 | AO188: =IF($I188=AO$6,$E188,0) -> 0 | AP188: =IF($K188=ROUND(AO$6*$F188,2),$G188,0) -> 0 | AQ188: =IF($H188>0,AO188,0) -> 0 | AR188: =IF(AQ188>0,1,0) -> 0 | AS188: =IF($H188>0,AP188,0) -> 0 | AT188: =IF(AS188>0,1,0) -> 0 | AU188: =IF($I188=AU$6,$E188,0) -> 0 | AV188: =IF($K188=ROUND(AU$6*$F188,2),$G188,0) -> 0 | AW188: =IF($H188>0,AU188,0) -> 0 | AX188: =IF(AW188>0,1,0) -> 0 | AY188: =IF($H188>0,AV188,0) -> 0 | AZ188: =IF(AY188>0,1,0) -> 0 | BA188: =IF($I188=BA$6,$E188,0) -> 0 | BB188: =IF($K188=ROUND(BA$6*$F188,2),$G188,0) -> 0 | BC188: =IF($H188>0,BA188,0) -> 0 | BD188: =IF(BC188>0,1,0) -> 0 | BE188: =IF($H188>0,BB188,0) -> 0 | BF188: =IF(BE188>0,1,0) -> 0 | BI188: 0 | BL188: =E188-SUM(AI188,AO188,AU188,BA188) -> 0
A189: =IF(E189+G189>0,A188,"") ->  | B189: =IF(E189+G189>0,B188,"") ->  | C189: 6 | D189: 03-4-23.461(333) | E189: 0 | F189: 1.1 | G189: 0 | H189: 0 | I189: =SUMIF(Y$14:BA$14,C189,Y$6:BA$6) -> 2064.38 | J189: =IF(H189=0,ROUND(E189*I189,2),IF(H189>0,ROUND(H189*E189,2),0)) -> 0 | K189: =ROUND(F189*I189,2) -> 2270.82 | L189: =IF(H189=0,ROUND(ROUND(F189*I189,2)*G189,2),IF(H189>0,ROUND(G189*H189,2),0)) -> 0 | M189: =IF(H189=0,L189-ROUND(G189*I189,2),0) -> 0 | O189: =J189+L189+N189 -> 0 | Q189: 479.72 | R189: =ROUND(Q189*(E189+G189),2) -> 0 | W189: =R189+T189+V189 -> 0 | AI189: =IF($I189=AI$6,$E189,0) -> 0 | AJ189: 0 | AK189: =IF($H189>0,AI189,0) -> 0 | AL189: =IF(AK189>0,1,0) -> 0 | AM189: =IF($H189>0,AJ189,0) -> 0 | AN189: =IF(AM189>0,1,0) -> 0 | AO189: =IF($I189=AO$6,$E189,0) -> 0 | AP189: 0 | AQ189: =IF($H189>0,AO189,0) -> 0 | AR189: =IF(AQ189>0,1,0) -> 0 | AS189: =IF($H189>0,AP189,0) -> 0 | AT189: =IF(AS189>0,1,0) -> 0 | AU189: =IF($I189=AU$6,$E189,0) -> 0 | AV189: 0 | AW189: =IF($H189>0,AU189,0) -> 0 | AX189: =IF(AW189>0,1,0) -> 0 | AY189: =IF($H189>0,AV189,0) -> 0 | AZ189: =IF(AY189>0,1,0) -> 0 | BA189: =IF($I189=BA$6,$E189,0) -> 0 | BB189: 0 | BC189: =IF($H189>0,BA189,0) -> 0 | BD189: =IF(BC189>0,1,0) -> 0 | BE189: =IF($H189>0,BB189,0) -> 0 | BF189: =IF(BE189>0,1,0) -> 0 | BL189: =E189-SUM(AI189,AO189,AU189,BA189) -> 0
A190: =IF(E190+G190>0,A188,"") ->  | B190: =IF(E190+G190>0,B188,"") ->  | C190: =C189 -> 6 | D190: 03-4-23.461(333) | E190: 0 | F190: 1.5 | G190: 0 | H190: 0 | I190: =SUMIF(Y$14:BA$14,C190,Y$7:BA$7) -> 0 | J190: 0 | K190: 0 | L190: 0 | M190: 0 | O190: 0 | Q190: 479.72 | R190: 0 | W190: 0 | AI190: =IF($I190=AI$7,$E190,0) -> 0 | AJ190: =IF($K190=ROUND(AI$7*$F190,2),$G190,0) -> 0 | AK190: 0 | AL190: 0 | AM190: 0 | AN190: 0 | AO190: =IF($I190=AO$7,$E190,0) -> 0 | AP190: =IF($K190=ROUND(AO$7*$F190,2),$G190,0) -> 0 | AQ190: 0 | AR190: 0 | AS190: 0 | AT190: 0 | AU190: =IF($I190=AU$7,$E190,0) -> 0 | AV190: =IF($K190=ROUND(AU$7*$F190,2),$G190,0) -> 0 | AW190: 0 | AX190: 0 | AY190: 0 | AZ190: 0 | BA190: =IF($I190=BA$7,$E190,0) -> 0 | BB190: =IF($K190=ROUND(BA$7*$F190,2),$G190,0) -> 0 | BC190: 0 | BD190: 0 | BE190: 0 | BF190: 0 | BL190: 0
A191: =IF(E191+G191>0,A188,"") ->  | B191: =IF(E191+G191>0,B188,"") ->  | C191: =C189 -> 6 | D191: 03-4-23.461(333) | E191: 0 | F191: 1.1 | G191: 0 | H191: 0 | I191: =SUMIF(Y$14:BA$14,C191,Y$7:BA$7) -> 0 | J191: 0 | K191: 0 | L191: 0 | M191: 0 | O191: 0 | Q191: 479.72 | R191: 0 | W191: 0 | AI191: =IF($I191=AI$7,$E191,0) -> 0 | AJ191: =IF($K191=ROUND(AI$7*$F191,2),$G191,0) -> 0 | AK191: 0 | AL191: 0 | AM191: 0 | AN191: 0 | AO191: =IF($I191=AO$7,$E191,0) -> 0 | AP191: =IF($K191=ROUND(AO$7*$F191,2),$G191,0) -> 0 | AQ191: 0 | AR191: 0 | AS191: 0 | AT191: 0 | AU191: =IF($I191=AU$7,$E191,0) -> 0 | AV191: =IF($K191=ROUND(AU$7*$F191,2),$G191,0) -> 0 | AW191: 0 | AX191: 0 | AY191: 0 | AZ191: 0 | BA191: =IF($I191=BA$7,$E191,0) -> 0 | BB191: =IF($K191=ROUND(BA$7*$F191,2),$G191,0) -> 0 | BC191: 0 | BD191: 0 | BE191: 0 | BF191: 0 | BL191: 0
A192: ООО "КМТС плюс" | B192: Вельск, ул.Горького-20 | C192: =C193 -> 6 | D192: 03-4-23.470 | E192: 0 | F192: 1.5 | G192: 0 | H192: 0 | I192: =SUMIF(Y$14:BA$14,C192,Y$6:BA$6) -> 2064.38 | J192: =IF(H192=0,ROUND(E192*I192,2),IF(H192>0,ROUND(H192*E192,2),0)) -> 0 | K192: =ROUND(F192*I192,2) -> 3096.57 | L192: =IF(H192=0,ROUND(ROUND(F192*I192,2)*G192,2),IF(H192>0,ROUND(G192*H192,2),0)) -> 0 | M192: =IF(H192=0,L192-ROUND(G192*I192,2),0) -> 0 | O192: =J192+L192+N192 -> 0 | Q192: 479.72 | R192: =ROUND(Q192*(E192+G192),2) -> 0 | W192: =R192+T192+V192 -> 0 | AI192: =IF($I192=AI$6,$E192,0) -> 0 | AJ192: =IF($K192=ROUND(AI$6*$F192,2),$G192,0) -> 0 | AK192: =IF($H192>0,AI192,0) -> 0 | AL192: =IF(AK192>0,1,0) -> 0 | AM192: =IF($H192>0,AJ192,0) -> 0 | AN192: =IF(AM192>0,1,0) -> 0 | AO192: =IF($I192=AO$6,$E192,0) -> 0 | AP192: =IF($K192=ROUND(AO$6*$F192,2),$G192,0) -> 0 | AQ192: =IF($H192>0,AO192,0) -> 0 | AR192: =IF(AQ192>0,1,0) -> 0 | AS192: =IF($H192>0,AP192,0) -> 0 | AT192: =IF(AS192>0,1,0) -> 0 | AU192: =IF($I192=AU$6,$E192,0) -> 0 | AV192: =IF($K192=ROUND(AU$6*$F192,2),$G192,0) -> 0 | AW192: =IF($H192>0,AU192,0) -> 0 | AX192: =IF(AW192>0,1,0) -> 0 | AY192: =IF($H192>0,AV192,0) -> 0 | AZ192: =IF(AY192>0,1,0) -> 0 | BA192: =IF($I192=BA$6,$E192,0) -> 0 | BB192: =IF($K192=ROUND(BA$6*$F192,2),$G192,0) -> 0 | BC192: =IF($H192>0,BA192,0) -> 0 | BD192: =IF(BC192>0,1,0) -> 0 | BE192: =IF($H192>0,BB192,0) -> 0 | BF192: =IF(BE192>0,1,0) -> 0 | BI192: 0 | BL192: =E192-SUM(AI192,AO192,AU192,BA192) -> 0
A193: =IF(E193+G193>0,A192,"") ->  | B193: =IF(E193+G193>0,B192,"") ->  | C193: 6 | D193: 03-4-23.470 | E193: 0 | F193: 1.1 | G193: 0 | H193: 0 | I193: =SUMIF(Y$14:BA$14,C193,Y$6:BA$6) -> 2064.38 | J193: =IF(H193=0,ROUND(E193*I193,2),IF(H193>0,ROUND(H193*E193,2),0)) -> 0 | K193: =ROUND(F193*I193,2) -> 2270.82 | L193: =IF(H193=0,ROUND(ROUND(F193*I193,2)*G193,2),IF(H193>0,ROUND(G193*H193,2),0)) -> 0 | M193: =IF(H193=0,L193-ROUND(G193*I193,2),0) -> 0 | O193: =J193+L193+N193 -> 0 | Q193: 479.72 | R193: =ROUND(Q193*(E193+G193),2) -> 0 | W193: =R193+T193+V193 -> 0 | AI193: =IF($I193=AI$6,$E193,0) -> 0 | AJ193: 0 | AK193: =IF($H193>0,AI193,0) -> 0 | AL193: =IF(AK193>0,1,0) -> 0 | AM193: =IF($H193>0,AJ193,0) -> 0 | AN193: =IF(AM193>0,1,0) -> 0 | AO193: =IF($I193=AO$6,$E193,0) -> 0 | AP193: 0 | AQ193: =IF($H193>0,AO193,0) -> 0 | AR193: =IF(AQ193>0,1,0) -> 0 | AS193: =IF($H193>0,AP193,0) -> 0 | AT193: =IF(AS193>0,1,0) -> 0 | AU193: =IF($I193=AU$6,$E193,0) -> 0 | AV193: 0 | AW193: =IF($H193>0,AU193,0) -> 0 | AX193: =IF(AW193>0,1,0) -> 0 | AY193: =IF($H193>0,AV193,0) -> 0 | AZ193: =IF(AY193>0,1,0) -> 0 | BA193: =IF($I193=BA$6,$E193,0) -> 0 | BB193: 0 | BC193: =IF($H193>0,BA193,0) -> 0 | BD193: =IF(BC193>0,1,0) -> 0 | BE193: =IF($H193>0,BB193,0) -> 0 | BF193: =IF(BE193>0,1,0) -> 0 | BL193: =E193-SUM(AI193,AO193,AU193,BA193) -> 0
A194: =IF(E194+G194>0,A192,"") ->  | B194: =IF(E194+G194>0,B192,"") ->  | C194: =C193 -> 6 | D194: 03-4-23.470 | E194: 0 | F194: 1.5 | G194: 0 | H194: 0 | I194: =SUMIF(Y$14:BA$14,C194,Y$7:BA$7) -> 0 | J194: 0 | K194: 0 | L194: 0 | M194: 0 | O194: 0 | Q194: 479.72 | R194: 0 | W194: 0 | AI194: =IF($I194=AI$7,$E194,0) -> 0 | AJ194: =IF($K194=ROUND(AI$7*$F194,2),$G194,0) -> 0 | AK194: 0 | AL194: 0 | AM194: 0 | AN194: 0 | AO194: =IF($I194=AO$7,$E194,0) -> 0 | AP194: =IF($K194=ROUND(AO$7*$F194,2),$G194,0) -> 0 | AQ194: 0 | AR194: 0 | AS194: 0 | AT194: 0 | AU194: =IF($I194=AU$7,$E194,0) -> 0 | AV194: =IF($K194=ROUND(AU$7*$F194,2),$G194,0) -> 0 | AW194: 0 | AX194: 0 | AY194: 0 | AZ194: 0 | BA194: =IF($I194=BA$7,$E194,0) -> 0 | BB194: =IF($K194=ROUND(BA$7*$F194,2),$G194,0) -> 0 | BC194: 0 | BD194: 0 | BE194: 0 | BF194: 0 | BL194: 0
A195: =IF(E195+G195>0,A192,"") ->  | B195: =IF(E195+G195>0,B192,"") ->  | C195: =C193 -> 6 | D195: 03-4-23.470 | E195: 0 | F195: 1.1 | G195: 0 | H195: 0 | I195: =SUMIF(Y$14:BA$14,C195,Y$7:BA$7) -> 0 | J195: 0 | K195: 0 | L195: 0 | M195: 0 | O195: 0 | Q195: 479.72 | R195: 0 | W195: 0 | AI195: =IF($I195=AI$7,$E195,0) -> 0 | AJ195: =IF($K195=ROUND(AI$7*$F195,2),$G195,0) -> 0 | AK195: 0 | AL195: 0 | AM195: 0 | AN195: 0 | AO195: =IF($I195=AO$7,$E195,0) -> 0 | AP195: =IF($K195=ROUND(AO$7*$F195,2),$G195,0) -> 0 | AQ195: 0 | AR195: 0 | AS195: 0 | AT195: 0 | AU195: =IF($I195=AU$7,$E195,0) -> 0 | AV195: =IF($K195=ROUND(AU$7*$F195,2),$G195,0) -> 0 | AW195: 0 | AX195: 0 | AY195: 0 | AZ195: 0 | BA195: =IF($I195=BA$7,$E195,0) -> 0 | BB195: =IF($K195=ROUND(BA$7*$F195,2),$G195,0) -> 0 | BC195: 0 | BD195: 0 | BE195: 0 | BF195: 0 | BL195: 0
A196: ООО "КМТС плюс" | B196: Вельск, ул.Горького-20 | C196: =C197 -> 6 | D196: 03-4-23.470(333) | E196: 0 | F196: 1.5 | G196: 0 | H196: 0 | I196: =SUMIF(Y$14:BA$14,C196,Y$6:BA$6) -> 2064.38 | J196: =IF(H196=0,ROUND(E196*I196,2),IF(H196>0,ROUND(H196*E196,2),0)) -> 0 | K196: =ROUND(F196*I196,2) -> 3096.57 | L196: =IF(H196=0,ROUND(ROUND(F196*I196,2)*G196,2),IF(H196>0,ROUND(G196*H196,2),0)) -> 0 | M196: =IF(H196=0,L196-ROUND(G196*I196,2),0) -> 0 | O196: =J196+L196+N196 -> 0 | Q196: 479.72 | R196: =ROUND(Q196*(E196+G196),2) -> 0 | W196: =R196+T196+V196 -> 0 | AI196: =IF($I196=AI$6,$E196,0) -> 0 | AJ196: =IF($K196=ROUND(AI$6*$F196,2),$G196,0) -> 0 | AK196: =IF($H196>0,AI196,0) -> 0 | AL196: =IF(AK196>0,1,0) -> 0 | AM196: =IF($H196>0,AJ196,0) -> 0 | AN196: =IF(AM196>0,1,0) -> 0 | AO196: =IF($I196=AO$6,$E196,0) -> 0 | AP196: =IF($K196=ROUND(AO$6*$F196,2),$G196,0) -> 0 | AQ196: =IF($H196>0,AO196,0) -> 0 | AR196: =IF(AQ196>0,1,0) -> 0 | AS196: =IF($H196>0,AP196,0) -> 0 | AT196: =IF(AS196>0,1,0) -> 0 | AU196: =IF($I196=AU$6,$E196,0) -> 0 | AV196: =IF($K196=ROUND(AU$6*$F196,2),$G196,0) -> 0 | AW196: =IF($H196>0,AU196,0) -> 0 | AX196: =IF(AW196>0,1,0) -> 0 | AY196: =IF($H196>0,AV196,0) -> 0 | AZ196: =IF(AY196>0,1,0) -> 0 | BA196: =IF($I196=BA$6,$E196,0) -> 0 | BB196: =IF($K196=ROUND(BA$6*$F196,2),$G196,0) -> 0 | BC196: =IF($H196>0,BA196,0) -> 0 | BD196: =IF(BC196>0,1,0) -> 0 | BE196: =IF($H196>0,BB196,0) -> 0 | BF196: =IF(BE196>0,1,0) -> 0 | BI196: 0 | BL196: =E196-SUM(AI196,AO196,AU196,BA196) -> 0
A197: =IF(E197+G197>0,A196,"") ->  | B197: =IF(E197+G197>0,B196,"") ->  | C197: 6 | D197: 03-4-23.470(333) | E197: 0 | F197: 1.1 | G197: 0 | H197: 0 | I197: =SUMIF(Y$14:BA$14,C197,Y$6:BA$6) -> 2064.38 | J197: =IF(H197=0,ROUND(E197*I197,2),IF(H197>0,ROUND(H197*E197,2),0)) -> 0 | K197: =ROUND(F197*I197,2) -> 2270.82 | L197: =IF(H197=0,ROUND(ROUND(F197*I197,2)*G197,2),IF(H197>0,ROUND(G197*H197,2),0)) -> 0 | M197: =IF(H197=0,L197-ROUND(G197*I197,2),0) -> 0 | O197: =J197+L197+N197 -> 0 | Q197: 479.72 | R197: =ROUND(Q197*(E197+G197),2) -> 0 | W197: =R197+T197+V197 -> 0 | AI197: =IF($I197=AI$6,$E197,0) -> 0 | AJ197: 0 | AK197: =IF($H197>0,AI197,0) -> 0 | AL197: =IF(AK197>0,1,0) -> 0 | AM197: =IF($H197>0,AJ197,0) -> 0 | AN197: =IF(AM197>0,1,0) -> 0 | AO197: =IF($I197=AO$6,$E197,0) -> 0 | AP197: 0 | AQ197: =IF($H197>0,AO197,0) -> 0 | AR197: =IF(AQ197>0,1,0) -> 0 | AS197: =IF($H197>0,AP197,0) -> 0 | AT197: =IF(AS197>0,1,0) -> 0 | AU197: =IF($I197=AU$6,$E197,0) -> 0 | AV197: 0 | AW197: =IF($H197>0,AU197,0) -> 0 | AX197: =IF(AW197>0,1,0) -> 0 | AY197: =IF($H197>0,AV197,0) -> 0 | AZ197: =IF(AY197>0,1,0) -> 0 | BA197: =IF($I197=BA$6,$E197,0) -> 0 | BB197: 0 | BC197: =IF($H197>0,BA197,0) -> 0 | BD197: =IF(BC197>0,1,0) -> 0 | BE197: =IF($H197>0,BB197,0) -> 0 | BF197: =IF(BE197>0,1,0) -> 0 | BL197: =E197-SUM(AI197,AO197,AU197,BA197) -> 0
A198: =IF(E198+G198>0,A196,"") ->  | B198: =IF(E198+G198>0,B196,"") ->  | C198: =C197 -> 6 | D198: 03-4-23.470(333) | E198: 0 | F198: 1.5 | G198: 0 | H198: 0 | I198: =SUMIF(Y$14:BA$14,C198,Y$7:BA$7) -> 0 | J198: 0 | K198: 0 | L198: 0 | M198: 0 | O198: 0 | Q198: 479.72 | R198: 0 | W198: 0 | AI198: =IF($I198=AI$7,$E198,0) -> 0 | AJ198: =IF($K198=ROUND(AI$7*$F198,2),$G198,0) -> 0 | AK198: 0 | AL198: 0 | AM198: 0 | AN198: 0 | AO198: =IF($I198=AO$7,$E198,0) -> 0 | AP198: =IF($K198=ROUND(AO$7*$F198,2),$G198,0) -> 0 | AQ198: 0 | AR198: 0 | AS198: 0 | AT198: 0 | AU198: =IF($I198=AU$7,$E198,0) -> 0 | AV198: =IF($K198=ROUND(AU$7*$F198,2),$G198,0) -> 0 | AW198: 0 | AX198: 0 | AY198: 0 | AZ198: 0 | BA198: =IF($I198=BA$7,$E198,0) -> 0 | BB198: =IF($K198=ROUND(BA$7*$F198,2),$G198,0) -> 0 | BC198: 0 | BD198: 0 | BE198: 0 | BF198: 0 | BL198: 0
A199: =IF(E199+G199>0,A196,"") ->  | B199: =IF(E199+G199>0,B196,"") ->  | C199: =C197 -> 6 | D199: 03-4-23.470(333) | E199: 0 | F199: 1.1 | G199: 0 | H199: 0 | I199: =SUMIF(Y$14:BA$14,C199,Y$7:BA$7) -> 0 | J199: 0 | K199: 0 | L199: 0 | M199: 0 | O199: 0 | Q199: 479.72 | R199: 0 | W199: 0 | AI199: =IF($I199=AI$7,$E199,0) -> 0 | AJ199: =IF($K199=ROUND(AI$7*$F199,2),$G199,0) -> 0 | AK199: 0 | AL199: 0 | AM199: 0 | AN199: 0 | AO199: =IF($I199=AO$7,$E199,0) -> 0 | AP199: =IF($K199=ROUND(AO$7*$F199,2),$G199,0) -> 0 | AQ199: 0 | AR199: 0 | AS199: 0 | AT199: 0 | AU199: =IF($I199=AU$7,$E199,0) -> 0 | AV199: =IF($K199=ROUND(AU$7*$F199,2),$G199,0) -> 0 | AW199: 0 | AX199: 0 | AY199: 0 | AZ199: 0 | BA199: =IF($I199=BA$7,$E199,0) -> 0 | BB199: =IF($K199=ROUND(BA$7*$F199,2),$G199,0) -> 0 | BC199: 0 | BD199: 0 | BE199: 0 | BF199: 0 | BL199: 0
A200: ГАУ АО ИД "Вельские вести" | C200: =C201 -> 7 | D200: 03-4-23.519(333) | E200: 0 | F200: 1.5 | G200: 0 | H200: 0 | I200: =SUMIF(Y$14:BA$14,C200,Y$6:BA$6) -> 2580.47 | J200: =IF(H200=0,ROUND(E200*I200,2),IF(H200>0,ROUND(H200*E200,2),0)) -> 0 | K200: =ROUND(F200*I200,2) -> 3870.71 | L200: =IF(H200=0,ROUND(ROUND(F200*I200,2)*G200,2),IF(H200>0,ROUND(G200*H200,2),0)) -> 0 | M200: =IF(H200=0,L200-ROUND(G200*I200,2),0) -> 0 | O200: =J200+L200+N200 -> 0 | Q200: 479.72 | R200: =ROUND(Q200*(E200+G200),2) -> 0 | W200: =R200+T200+V200 -> 0 | AI200: =IF($I200=AI$6,$E200,0) -> 0 | AJ200: =IF($K200=ROUND(AI$6*$F200,2),$G200,0) -> 0 | AK200: =IF($H200>0,AI200,0) -> 0 | AL200: =IF(AK200>0,1,0) -> 0 | AM200: =IF($H200>0,AJ200,0) -> 0 | AN200: =IF(AM200>0,1,0) -> 0 | AO200: =IF($I200=AO$6,$E200,0) -> 0 | AP200: =IF($K200=ROUND(AO$6*$F200,2),$G200,0) -> 0 | AQ200: =IF($H200>0,AO200,0) -> 0 | AR200: =IF(AQ200>0,1,0) -> 0 | AS200: =IF($H200>0,AP200,0) -> 0 | AT200: =IF(AS200>0,1,0) -> 0 | AU200: =IF($I200=AU$6,$E200,0) -> 0 | AV200: =IF($K200=ROUND(AU$6*$F200,2),$G200,0) -> 0 | AW200: =IF($H200>0,AU200,0) -> 0 | AX200: =IF(AW200>0,1,0) -> 0 | AY200: =IF($H200>0,AV200,0) -> 0 | AZ200: =IF(AY200>0,1,0) -> 0 | BA200: =IF($I200=BA$6,$E200,0) -> 0 | BB200: =IF($K200=ROUND(BA$6*$F200,2),$G200,0) -> 0 | BC200: =IF($H200>0,BA200,0) -> 0 | BD200: =IF(BC200>0,1,0) -> 0 | BE200: =IF($H200>0,BB200,0) -> 0 | BF200: =IF(BE200>0,1,0) -> 0 | BI200: 0.02 | BL200: =E200-SUM(AI200,AO200,AU200,BA200) -> 0
A201: =IF(E201+G201>0,A200,"") ->  | B201: =IF(E201+G201>0,B200,"") ->  | C201: 7 | D201: 03-4-23.519(333) | E201: 0 | F201: 1.1 | G201: 0 | H201: 0 | I201: =SUMIF(Y$14:BA$14,C201,Y$6:BA$6) -> 2580.47 | J201: =IF(H201=0,ROUND(E201*I201,2),IF(H201>0,ROUND(H201*E201,2),0)) -> 0 | K201: =ROUND(F201*I201,2) -> 2838.52 | L201: =IF(H201=0,ROUND(ROUND(F201*I201,2)*G201,2),IF(H201>0,ROUND(G201*H201,2),0)) -> 0 | M201: =IF(H201=0,L201-ROUND(G201*I201,2),0) -> 0 | O201: =J201+L201+N201 -> 0 | Q201: 479.72 | R201: =ROUND(Q201*(E201+G201),2) -> 0 | W201: =R201+T201+V201 -> 0 | AI201: =IF($I201=AI$6,$E201,0) -> 0 | AJ201: 0 | AK201: =IF($H201>0,AI201,0) -> 0 | AL201: =IF(AK201>0,1,0) -> 0 | AM201: =IF($H201>0,AJ201,0) -> 0 | AN201: =IF(AM201>0,1,0) -> 0 | AO201: =IF($I201=AO$6,$E201,0) -> 0 | AP201: 0 | AQ201: =IF($H201>0,AO201,0) -> 0 | AR201: =IF(AQ201>0,1,0) -> 0 | AS201: =IF($H201>0,AP201,0) -> 0 | AT201: =IF(AS201>0,1,0) -> 0 | AU201: =IF($I201=AU$6,$E201,0) -> 0 | AV201: 0 | AW201: =IF($H201>0,AU201,0) -> 0 | AX201: =IF(AW201>0,1,0) -> 0 | AY201: =IF($H201>0,AV201,0) -> 0 | AZ201: =IF(AY201>0,1,0) -> 0 | BA201: =IF($I201=BA$6,$E201,0) -> 0 | BB201: 0 | BC201: =IF($H201>0,BA201,0) -> 0 | BD201: =IF(BC201>0,1,0) -> 0 | BE201: =IF($H201>0,BB201,0) -> 0 | BF201: =IF(BE201>0,1,0) -> 0 | BL201: =E201-SUM(AI201,AO201,AU201,BA201) -> 0
A202: =IF(E202+G202>0,A200,"") ->  | B202: =IF(E202+G202>0,B200,"") ->  | C202: =C201 -> 7 | D202: 03-4-23.519(333) | E202: 0 | F202: 1.5 | G202: 0 | H202: 0 | I202: =SUMIF(Y$14:BA$14,C202,Y$7:BA$7) -> 0 | J202: 0 | K202: 0 | L202: 0 | M202: 0 | O202: 0 | Q202: 479.72 | R202: 0 | W202: 0 | AI202: =IF($I202=AI$7,$E202,0) -> 0 | AJ202: =IF($K202=ROUND(AI$7*$F202,2),$G202,0) -> 0 | AK202: 0 | AL202: 0 | AM202: 0 | AN202: 0 | AO202: =IF($I202=AO$7,$E202,0) -> 0 | AP202: =IF($K202=ROUND(AO$7*$F202,2),$G202,0) -> 0 | AQ202: 0 | AR202: 0 | AS202: 0 | AT202: 0 | AU202: =IF($I202=AU$7,$E202,0) -> 0 | AV202: =IF($K202=ROUND(AU$7*$F202,2),$G202,0) -> 0 | AW202: 0 | AX202: 0 | AY202: 0 | AZ202: 0 | BA202: =IF($I202=BA$7,$E202,0) -> 0 | BB202: =IF($K202=ROUND(BA$7*$F202,2),$G202,0) -> 0 | BC202: 0 | BD202: 0 | BE202: 0 | BF202: 0 | BL202: 0
A203: =IF(E203+G203>0,A200,"") ->  | B203: =IF(E203+G203>0,B200,"") ->  | C203: =C201 -> 7 | D203: 03-4-23.519(333) | E203: 0 | F203: 1.1 | G203: 0 | H203: 0 | I203: =SUMIF(Y$14:BA$14,C203,Y$7:BA$7) -> 0 | J203: 0 | K203: 0 | L203: 0 | M203: 0 | O203: 0 | Q203: 479.72 | R203: 0 | W203: 0 | AI203: =IF($I203=AI$7,$E203,0) -> 0 | AJ203: =IF($K203=ROUND(AI$7*$F203,2),$G203,0) -> 0 | AK203: 0 | AL203: 0 | AM203: 0 | AN203: 0 | AO203: =IF($I203=AO$7,$E203,0) -> 0 | AP203: =IF($K203=ROUND(AO$7*$F203,2),$G203,0) -> 0 | AQ203: 0 | AR203: 0 | AS203: 0 | AT203: 0 | AU203: =IF($I203=AU$7,$E203,0) -> 0 | AV203: =IF($K203=ROUND(AU$7*$F203,2),$G203,0) -> 0 | AW203: 0 | AX203: 0 | AY203: 0 | AZ203: 0 | BA203: =IF($I203=BA$7,$E203,0) -> 0 | BB203: =IF($K203=ROUND(BA$7*$F203,2),$G203,0) -> 0 | BC203: 0 | BD203: 0 | BE203: 0 | BF203: 0 | BL203: 0
A204: АО "Тандер" | B204: Вельск | C204: =C205 -> 7 | D204: 03-4-23.525(333) | E204: 0 | F204: 1.5 | G204: 0 | H204: 0 | I204: =SUMIF(Y$14:BA$14,C204,Y$6:BA$6) -> 2580.47 | J204: =IF(H204=0,ROUND(E204*I204,2),IF(H204>0,ROUND(H204*E204,2),0)) -> 0 | K204: =ROUND(F204*I204,2) -> 3870.71 | L204: =IF(H204=0,ROUND(ROUND(F204*I204,2)*G204,2),IF(H204>0,ROUND(G204*H204,2),0)) -> 0 | M204: =IF(H204=0,L204-ROUND(G204*I204,2),0) -> 0 | O204: =J204+L204+N204 -> 0 | Q204: 479.72 | R204: =ROUND(Q204*(E204+G204),2) -> 0 | W204: =R204+T204+V204 -> 0 | AI204: =IF($I204=AI$6,$E204,0) -> 0 | AJ204: =IF($K204=ROUND(AI$6*$F204,2),$G204,0) -> 0 | AK204: =IF($H204>0,AI204,0) -> 0 | AL204: =IF(AK204>0,1,0) -> 0 | AM204: =IF($H204>0,AJ204,0) -> 0 | AN204: =IF(AM204>0,1,0) -> 0 | AO204: =IF($I204=AO$6,$E204,0) -> 0 | AP204: =IF($K204=ROUND(AO$6*$F204,2),$G204,0) -> 0 | AQ204: =IF($H204>0,AO204,0) -> 0 | AR204: =IF(AQ204>0,1,0) -> 0 | AS204: =IF($H204>0,AP204,0) -> 0 | AT204: =IF(AS204>0,1,0) -> 0 | AU204: =IF($I204=AU$6,$E204,0) -> 0 | AV204: =IF($K204=ROUND(AU$6*$F204,2),$G204,0) -> 0 | AW204: =IF($H204>0,AU204,0) -> 0 | AX204: =IF(AW204>0,1,0) -> 0 | AY204: =IF($H204>0,AV204,0) -> 0 | AZ204: =IF(AY204>0,1,0) -> 0 | BA204: =IF($I204=BA$6,$E204,0) -> 0 | BB204: =IF($K204=ROUND(BA$6*$F204,2),$G204,0) -> 0 | BC204: =IF($H204>0,BA204,0) -> 0 | BD204: =IF(BC204>0,1,0) -> 0 | BE204: =IF($H204>0,BB204,0) -> 0 | BF204: =IF(BE204>0,1,0) -> 0 | BI204: 0 | BL204: =E204-SUM(AI204,AO204,AU204,BA204) -> 0
A205: =IF(E205+G205>0,A204,"") ->  | B205: =IF(E205+G205>0,B204,"") ->  | C205: 7 | D205: 03-4-23.525(333) | E205: 0 | F205: 1.1 | G205: 0 | H205: 0 | I205: =SUMIF(Y$14:BA$14,C205,Y$6:BA$6) -> 2580.47 | J205: =IF(H205=0,ROUND(E205*I205,2),IF(H205>0,ROUND(H205*E205,2),0)) -> 0 | K205: =ROUND(F205*I205,2) -> 2838.52 | L205: =IF(H205=0,ROUND(ROUND(F205*I205,2)*G205,2),IF(H205>0,ROUND(G205*H205,2),0)) -> 0 | M205: =IF(H205=0,L205-ROUND(G205*I205,2),0) -> 0 | O205: =J205+L205+N205 -> 0 | Q205: 479.72 | R205: =ROUND(Q205*(E205+G205),2) -> 0 | W205: =R205+T205+V205 -> 0 | AI205: =IF($I205=AI$6,$E205,0) -> 0 | AJ205: 0 | AK205: =IF($H205>0,AI205,0) -> 0 | AL205: =IF(AK205>0,1,0) -> 0 | AM205: =IF($H205>0,AJ205,0) -> 0 | AN205: =IF(AM205>0,1,0) -> 0 | AO205: =IF($I205=AO$6,$E205,0) -> 0 | AP205: 0 | AQ205: =IF($H205>0,AO205,0) -> 0 | AR205: =IF(AQ205>0,1,0) -> 0 | AS205: =IF($H205>0,AP205,0) -> 0 | AT205: =IF(AS205>0,1,0) -> 0 | AU205: =IF($I205=AU$6,$E205,0) -> 0 | AV205: 0 | AW205: =IF($H205>0,AU205,0) -> 0 | AX205: =IF(AW205>0,1,0) -> 0 | AY205: =IF($H205>0,AV205,0) -> 0 | AZ205: =IF(AY205>0,1,0) -> 0 | BA205: =IF($I205=BA$6,$E205,0) -> 0 | BB205: 0 | BC205: =IF($H205>0,BA205,0) -> 0 | BD205: =IF(BC205>0,1,0) -> 0 | BE205: =IF($H205>0,BB205,0) -> 0 | BF205: =IF(BE205>0,1,0) -> 0 | BL205: =E205-SUM(AI205,AO205,AU205,BA205) -> 0
A206: =IF(E206+G206>0,A204,"") ->  | B206: =IF(E206+G206>0,B204,"") ->  | C206: =C205 -> 7 | D206: 03-4-23.525(333) | E206: 0 | F206: 1.5 | G206: 0 | H206: 0 | I206: =SUMIF(Y$14:BA$14,C206,Y$7:BA$7) -> 0 | J206: 0 | K206: 0 | L206: 0 | M206: 0 | O206: 0 | Q206: 479.72 | R206: 0 | W206: 0 | AI206: =IF($I206=AI$7,$E206,0) -> 0 | AJ206: =IF($K206=ROUND(AI$7*$F206,2),$G206,0) -> 0 | AK206: 0 | AL206: 0 | AM206: 0 | AN206: 0 | AO206: =IF($I206=AO$7,$E206,0) -> 0 | AP206: =IF($K206=ROUND(AO$7*$F206,2),$G206,0) -> 0 | AQ206: 0 | AR206: 0 | AS206: 0 | AT206: 0 | AU206: =IF($I206=AU$7,$E206,0) -> 0 | AV206: =IF($K206=ROUND(AU$7*$F206,2),$G206,0) -> 0 | AW206: 0 | AX206: 0 | AY206: 0 | AZ206: 0 | BA206: =IF($I206=BA$7,$E206,0) -> 0 | BB206: =IF($K206=ROUND(BA$7*$F206,2),$G206,0) -> 0 | BC206: 0 | BD206: 0 | BE206: 0 | BF206: 0 | BL206: 0
A207: =IF(E207+G207>0,A204,"") ->  | B207: =IF(E207+G207>0,B204,"") ->  | C207: =C205 -> 7 | D207: 03-4-23.525(333) | E207: 0 | F207: 1.1 | G207: 0 | H207: 0 | I207: =SUMIF(Y$14:BA$14,C207,Y$7:BA$7) -> 0 | J207: 0 | K207: 0 | L207: 0 | M207: 0 | O207: 0 | Q207: 479.72 | R207: 0 | W207: 0 | AI207: =IF($I207=AI$7,$E207,0) -> 0 | AJ207: =IF($K207=ROUND(AI$7*$F207,2),$G207,0) -> 0 | AK207: 0 | AL207: 0 | AM207: 0 | AN207: 0 | AO207: =IF($I207=AO$7,$E207,0) -> 0 | AP207: =IF($K207=ROUND(AO$7*$F207,2),$G207,0) -> 0 | AQ207: 0 | AR207: 0 | AS207: 0 | AT207: 0 | AU207: =IF($I207=AU$7,$E207,0) -> 0 | AV207: =IF($K207=ROUND(AU$7*$F207,2),$G207,0) -> 0 | AW207: 0 | AX207: 0 | AY207: 0 | AZ207: 0 | BA207: =IF($I207=BA$7,$E207,0) -> 0 | BB207: =IF($K207=ROUND(BA$7*$F207,2),$G207,0) -> 0 | BC207: 0 | BD207: 0 | BE207: 0 | BF207: 0 | BL207: 0
A208: ИП Любарская Анастасия Алексеевна (до 01.09 - Евдокимова) | B208: Вельск, ул.Дзержинского-59 | C208: =C209 -> 6 | D208: 03-4-23.527(333) | E208: 0 | F208: 1.5 | G208: 0 | H208: 0 | I208: =SUMIF(Y$14:BA$14,C208,Y$6:BA$6) -> 2064.38 | J208: =IF(H208=0,ROUND(E208*I208,2),IF(H208>0,ROUND(H208*E208,2),0)) -> 0 | K208: =ROUND(F208*I208,2) -> 3096.57 | L208: =IF(H208=0,ROUND(ROUND(F208*I208,2)*G208,2),IF(H208>0,ROUND(G208*H208,2),0)) -> 0 | M208: =IF(H208=0,L208-ROUND(G208*I208,2),0) -> 0 | O208: =J208+L208+N208 -> 0 | Q208: =IF(BI208>0,Q$6,Q$6) -> 479.72 | R208: =ROUND(Q208*(E208+G208),2) -> 0 | W208: =R208+T208+V208 -> 0 | AI208: =IF($I208=AI$6,$E208,0) -> 0 | AJ208: =IF($K208=ROUND(AI$6*$F208,2),$G208,0) -> 0 | AK208: =IF($H208>0,AI208,0) -> 0 | AL208: =IF(AK208>0,1,0) -> 0 | AM208: =IF($H208>0,AJ208,0) -> 0 | AN208: =IF(AM208>0,1,0) -> 0 | AO208: =IF($I208=AO$6,$E208,0) -> 0 | AP208: =IF($K208=ROUND(AO$6*$F208,2),$G208,0) -> 0 | AQ208: =IF($H208>0,AO208,0) -> 0 | AR208: =IF(AQ208>0,1,0) -> 0 | AS208: =IF($H208>0,AP208,0) -> 0 | AT208: =IF(AS208>0,1,0) -> 0 | AU208: =IF($I208=AU$6,$E208,0) -> 0 | AV208: =IF($K208=ROUND(AU$6*$F208,2),$G208,0) -> 0 | AW208: =IF($H208>0,AU208,0) -> 0 | AX208: =IF(AW208>0,1,0) -> 0 | AY208: =IF($H208>0,AV208,0) -> 0 | AZ208: =IF(AY208>0,1,0) -> 0 | BA208: =IF($I208=BA$6,$E208,0) -> 0 | BB208: =IF($K208=ROUND(BA$6*$F208,2),$G208,0) -> 0 | BC208: =IF($H208>0,BA208,0) -> 0 | BD208: =IF(BC208>0,1,0) -> 0 | BE208: =IF($H208>0,BB208,0) -> 0 | BF208: =IF(BE208>0,1,0) -> 0 | BI208: 2 | BL208: =E208-SUM(AI208,AO208,AU208,BA208) -> 0
... 1073 more rows
